Workbook

Sheet Trends
A1: GDI performance over time, using 2012 methodology
Q2: "Most-improved" standings
A3: Country | B3: 2003 | C3: 2004 | D3: 2005 | E3: 2006 | F3: 2007 | G3: 2008 | H3: 2009 | I3: 2010 | J3: 2011 | K3: 2012 | L3: Change, 2003-12 | M3: True rank | N3: "Most improved" rank | R3: Country | S3: Change
A4: ='Index 2012'!B3 -> Australia | B4: =VLOOKUP($A4,INDIRECT("'Index "&B$3&"'!Score_table"),9,FALSE) -> 8.989105781 | C4: 8.589445069 | D4: 7.8861803 | E4: 7.706238957 | F4: 7.49350321 | G4: 7.656795278 | H4: 7.682108692 | I4: 7.701058917 | J4: 7.612057514 | K4: 7.45669338 | L4: =ROUND(K4,1)-ROUND(B4,1) -> -1.5 | M4: =SUM((ROUND(K4,1)-ROUND(B4,1)<ROUND($K$4:$K$24,1)-ROUND($B$4:$B$24,1))+(ROUND(K4,1)-ROUND(B4,1)=ROUND($K$4:$K$24,1)-ROUND($B$4:$B$24,1))*(K4-B4<$K$4:$K$24-$B$4:$B$24))+1 -> 21 | N4: =SUM(IF(ROUND(L4,1)<ROUND($L$4:$L$24,1),1))+1 -> 21 | O4: =A4 -> Australia | P4: 1 | Q4: =VLOOKUP(P4,$M$4:$N$24,2,FALSE) -> 1 | R4: =VLOOKUP(P4,$M$4:$O$24,3,FALSE) -> India | S4: =ROUND(VLOOKUP(R4,$A$4:$L$24,COLUMNS($A$4:$L$24),FALSE),1) -> 7.6
A5: ='Index 2012'!B4 -> Brazil | B5: 3.789517831 | C5: 3.80291536 | D5: 3.919100726 | E5: 3.92600735 | F5: 3.989951465 | G5: 4.059245552 | H5: 4.453036952 | I5: 4.480417381 | J5: 4.526970325 | K5: 4.574874514 | L5: 0.8 | M5: =SUM((ROUND(K5,1)-ROUND(B5,1)<ROUND($K$4:$K$24,1)-ROUND($B$4:$B$24,1))+(ROUND(K5,1)-ROUND(B5,1)=ROUND($K$4:$K$24,1)-ROUND($B$4:$B$24,1))*(K5-B5<$K$4:$K$24-$B$4:$B$24))+1 -> 8 | N5: =SUM(IF(ROUND(L5,1)<ROUND($L$4:$L$24,1),1))+1 -> 7 | O5: Brazil | P5: 2 | Q5: 2 | R5: Saudi Arabia | S5: =ROUND(VLOOKUP(R5,$A$4:$L$24,COLUMNS($A$4:$L$24),FALSE),1) -> 2.4
A6: ='Index 2012'!B5 -> Canada | B6: 7.095462813 | C6: 7.216551936 | D6: 7.081689696 | E6: 6.867274639 | F6: 6.783105688 | G6: 6.544679736 | H6: 6.169947752 | I6: 6.246759843 | J6: 6.300860208 | K6: 5.919274204 | L6: -1.2 | M6: =SUM((ROUND(K6,1)-ROUND(B6,1)<ROUND($K$4:$K$24,1)-ROUND($B$4:$B$24,1))+(ROUND(K6,1)-ROUND(B6,1)=ROUND($K$4:$K$24,1)-ROUND($B$4:$B$24,1))*(K6-B6<$K$4:$K$24-$B$4:$B$24))+1 -> 20 | N6: =SUM(IF(ROUND(L6,1)<ROUND($L$4:$L$24,1),1))+1 -> 20 | O6: Canada | P6: 3 | Q6: 3 | R6: Spain | S6: 1.4
A7: ='Index 2012'!B6 -> China | B7: 3.169151932 | C7: 3.256028604 | D7: 3.242315186 | E7: -0.3850839808 | F7: -0.4632996979 | G7: -0.5690290278 | H7: 2.907755594 | I7: 2.995526365 | J7: 2.935861907 | K7: 2.830710107 | L7: -0.4 | M7: =SUM((ROUND(K7,1)-ROUND(B7,1)<ROUND($K$4:$K$24,1)-ROUND($B$4:$B$24,1))+(ROUND(K7,1)-ROUND(B7,1)=ROUND($K$4:$K$24,1)-ROUND($B$4:$B$24,1))*(K7-B7<$K$4:$K$24-$B$4:$B$24))+1 -> 17 | N7: =SUM(IF(ROUND(L7,1)<ROUND($L$4:$L$24,1),1))+1 -> 15 | O7: China | P7: 4 | Q7: 3 | R7: South Korea | S7: 1.4
A8: ='Index 2012'!B7 -> France | B8: 7.069170395 | C8: 7.4106381 | D8: 7.116509628 | E8: 7.098654404 | F8: 6.967239447 | G8: 6.834837542 | H8: 7.094879342 | I8: 7.13739685 | J8: 7.251295813 | K8: 7.90525973 | L8: 0.8 | M8: =SUM((ROUND(K8,1)-ROUND(B8,1)<ROUND($K$4:$K$24,1)-ROUND($B$4:$B$24,1))+(ROUND(K8,1)-ROUND(B8,1)=ROUND($K$4:$K$24,1)-ROUND($B$4:$B$24,1))*(K8-B8<$K$4:$K$24-$B$4:$B$24))+1 -> 7 | N8: =SUM(IF(ROUND(L8,1)<ROUND($L$4:$L$24,1),1))+1 -> 7 | O8: France | P8: 5 | Q8: 5 | R8: Indonesia | S8: 1.3
A9: ='Index 2012'!B8 -> Germany | B9: 5.712422546 | C9: 6.08788275 | D9: 5.9392639 | E9: 5.958614925 | F9: 5.907416399 | G9: 5.869008852 | H9: 6.088036475 | I9: 6.145350475 | J9: 6.328287391 | K9: 6.359782217 | L9: 0.7 | M9: =SUM((ROUND(K9,1)-ROUND(B9,1)<ROUND($K$4:$K$24,1)-ROUND($B$4:$B$24,1))+(ROUND(K9,1)-ROUND(B9,1)=ROUND($K$4:$K$24,1)-ROUND($B$4:$B$24,1))*(K9-B9<$K$4:$K$24-$B$4:$B$24))+1 -> 11 | N9: =SUM(IF(ROUND(L9,1)<ROUND($L$4:$L$24,1),1))+1 -> 11 | O9: Germany | P9: 6 | Q9: 6 | R9: Italy | S9: 1.2
A10: ='Index 2012'!B9 -> India | B10: -4.868505332 | C10: -4.427739355 | D10: -4.405471673 | E10: 0.862376957 | F10: 1.015951654 | G10: 1.025241933 | H10: 2.788706201 | I10: 2.88711762 | J10: 2.832752658 | K10: 2.72467586 | L10: 7.6 | M10: =SUM((ROUND(K10,1)-ROUND(B10,1)<ROUND($K$4:$K$24,1)-ROUND($B$4:$B$24,1))+(ROUND(K10,1)-ROUND(B10,1)=ROUND($K$4:$K$24,1)-ROUND($B$4:$B$24,1))*(K10-B10<$K$4:$K$24-$B$4:$B$24))+1 -> 1 | N10: =SUM(IF(ROUND(L10,1)<ROUND($L$4:$L$24,1),1))+1 -> 1 | O10: India | P10: 7 | Q10: 7 | R10: France | S10: 0.8
A11: ='Index 2012'!B10 -> Indonesia | B11: 3.651093878 | C11: 3.665560544 | D11: 3.93020888 | E11: 3.720758484 | F11: 3.865955332 | G11: 4.169111152 | H11: 4.441941295 | I11: 4.917343828 | J11: 5.001622437 | K11: 5.037470196 | L11: 1.3 | M11: =SUM((ROUND(K11,1)-ROUND(B11,1)<ROUND($K$4:$K$24,1)-ROUND($B$4:$B$24,1))+(ROUND(K11,1)-ROUND(B11,1)=ROUND($K$4:$K$24,1)-ROUND($B$4:$B$24,1))*(K11-B11<$K$4:$K$24-$B$4:$B$24))+1 -> 5 | N11: =SUM(IF(ROUND(L11,1)<ROUND($L$4:$L$24,1),1))+1 -> 5 | O11: Indonesia | P11: 8 | Q11: 7 | R11: Brazil | S11: 0.8
A12: ='Index 2012'!B11 -> Italy | B12: 5.812204265 | C12: 6.527670682 | D12: 6.315414024 | E12: 6.290223229 | F12: 6.282956273 | G12: 6.57756472 | H12: 6.754393677 | I12: 6.76853296 | J12: 6.960360968 | K12: 7.04904837 | L12: 1.2 | M12: =SUM((ROUND(K12,1)-ROUND(B12,1)<ROUND($K$4:$K$24,1)-ROUND($B$4:$B$24,1))+(ROUND(K12,1)-ROUND(B12,1)=ROUND($K$4:$K$24,1)-ROUND($B$4:$B$24,1))*(K12-B12<$K$4:$K$24-$B$4:$B$24))+1 -> 6 | N12: =SUM(IF(ROUND(L12,1)<ROUND($L$4:$L$24,1),1))+1 -> 6 | O12: Italy | P12: 9 | Q12: 7 | R12: Japan | S12: 0.8
A13: ='Index 2012'!B12 -> Japan | B13: 3.684861471 | C13: 3.827952852 | D13: 3.750667346 | E13: 3.949158255 | F13: 4.369576159 | G13: 4.343462775 | H13: 4.0217869 | I13: 4.374542382 | J13: 4.598849517 | K13: 4.456259187 | L13: 0.8 | M13: =SUM((ROUND(K13,1)-ROUND(B13,1)<ROUND($K$4:$K$24,1)-ROUND($B$4:$B$24,1))+(ROUND(K13,1)-ROUND(B13,1)=ROUND($K$4:$K$24,1)-ROUND($B$4:$B$24,1))*(K13-B13<$K$4:$K$24-$B$4:$B$24))+1 -> 9 | N13: =SUM(IF(ROUND(L13,1)<ROUND($L$4:$L$24,1),1))+1 -> 7 | O13: Japan | P13: 10 | Q13: 7 | R13: Mexico | S13: 0.8
A14: ='Index 2012'!B13 -> Mexico | B14: =VLOOKUP($A14,INDIRECT("'Index "&B$3&"'!Score_table"),9,FALSE) -> 3.416680761 | C14: 3.670485699 | D14: 3.522743212 | E14: 3.365730093 | F14: 3.44222048 | G14: 3.531402579 | H14: 4.138926716 | I14: 4.227106018 | J14: 4.208384575 | K14: 4.167121671 | L14: 0.8 | M14: =SUM((ROUND(K14,1)-ROUND(B14,1)<ROUND($K$4:$K$24,1)-ROUND($B$4:$B$24,1))+(ROUND(K14,1)-ROUND(B14,1)=ROUND($K$4:$K$24,1)-ROUND($B$4:$B$24,1))*(K14-B14<$K$4:$K$24-$B$4:$B$24))+1 -> 10 | N14: =SUM(IF(ROUND(L14,1)<ROUND($L$4:$L$24,1),1))+1 -> 7 | O14: Mexico | P14: 11 | Q14: 11 | R14: Germany | S14: 0.7
A15: ='Index 2012'!B14 -> Netherlands | B15: 7.576126393 | C15: 7.906930517 | D15: 7.609292036 | E15: 7.56734547 | F15: 7.382393457 | G15: 7.180768447 | H15: 7.221269452 | I15: 7.083459788 | J15: 7.171955001 | K15: 7.219293131 | L15: -0.4 | M15: =SUM((ROUND(K15,1)-ROUND(B15,1)<ROUND($K$4:$K$24,1)-ROUND($B$4:$B$24,1))+(ROUND(K15,1)-ROUND(B15,1)=ROUND($K$4:$K$24,1)-ROUND($B$4:$B$24,1))*(K15-B15<$K$4:$K$24-$B$4:$B$24))+1 -> 15 | N15: =SUM(IF(ROUND(L15,1)<ROUND($L$4:$L$24,1),1))+1 -> 15 | O15: Netherlands | P15: 12 | Q15: 12 | R15: Turkey | S15: 0.6
A16: ='Index 2012'!B15 -> Russia | B16: 4.208544771 | C16: 4.306849866 | D16: 4.727710632 | E16: 4.379798166 | F16: 4.40538732 | G16: 4.365060226 | H16: 5.083152316 | I16: 5.067973396 | J16: 4.944159458 | K16: 4.613724376 | L16: 0.4 | M16: =SUM((ROUND(K16,1)-ROUND(B16,1)<ROUND($K$4:$K$24,1)-ROUND($B$4:$B$24,1))+(ROUND(K16,1)-ROUND(B16,1)=ROUND($K$4:$K$24,1)-ROUND($B$4:$B$24,1))*(K16-B16<$K$4:$K$24-$B$4:$B$24))+1 -> 13 | N16: =SUM(IF(ROUND(L16,1)<ROUND($L$4:$L$24,1),1))+1 -> 13 | O16: Russia | P16: 13 | Q16: 13 | R16: Russia | S16: 0.4
A17: ='Index 2012'!B16 -> Saudi Arabia | B17: 0.437874748 | C17: 0.4893876644 | D17: 0.5281000976 | E17: 2.63420414 | F17: 2.600487192 | G17: 2.621836852 | H17: 3.050100313 | I17: 3.155624594 | J17: 3.08933856 | K17: 2.771855514 | L17: 2.4 | M17: =SUM((ROUND(K17,1)-ROUND(B17,1)<ROUND($K$4:$K$24,1)-ROUND($B$4:$B$24,1))+(ROUND(K17,1)-ROUND(B17,1)=ROUND($K$4:$K$24,1)-ROUND($B$4:$B$24,1))*(K17-B17<$K$4:$K$24-$B$4:$B$24))+1 -> 2 | N17: =SUM(IF(ROUND(L17,1)<ROUND($L$4:$L$24,1),1))+1 -> 2 | O17: Saudi Arabia | P17: 14 | Q17: 13 | R17: Sweden | S17: 0.4
A18: ='Index 2012'!B17 -> South Korea | B18: 1.613575436 | C18: 1.853607528 | D18: 1.905790595 | E18: 1.963927951 | F18: 2.189776239 | G18: 2.188279631 | H18: 2.89951517 | I18: 2.908236132 | J18: 3.045942851 | K18: 3.022573955 | L18: 1.4 | M18: =SUM((ROUND(K18,1)-ROUND(B18,1)<ROUND($K$4:$K$24,1)-ROUND($B$4:$B$24,1))+(ROUND(K18,1)-ROUND(B18,1)=ROUND($K$4:$K$24,1)-ROUND($B$4:$B$24,1))*(K18-B18<$K$4:$K$24-$B$4:$B$24))+1 -> 4 | N18: =SUM(IF(ROUND(L18,1)<ROUND($L$4:$L$24,1),1))+1 -> 3 | O18: South Korea | P18: 15 | Q18: 15 | R18: Netherlands | S18: -0.4
A19: ='Index 2012'!B18 -> Spain | B19: 4.755260542 | C19: 5.332831155 | D19: 5.184040706 | E19: 5.278285319 | F19: 5.251396979 | G19: 5.310548895 | H19: 5.601761314 | I19: 5.848068121 | J19: 6.154298522 | K19: 6.208875722 | L19: 1.4 | M19: =SUM((ROUND(K19,1)-ROUND(B19,1)<ROUND($K$4:$K$24,1)-ROUND($B$4:$B$24,1))+(ROUND(K19,1)-ROUND(B19,1)=ROUND($K$4:$K$24,1)-ROUND($B$4:$B$24,1))*(K19-B19<$K$4:$K$24-$B$4:$B$24))+1 -> 3 | N19: =SUM(IF(ROUND(L19,1)<ROUND($L$4:$L$24,1),1))+1 -> 3 | O19: Spain | P19: 16 | Q19: 15 | R19: United States | S19: -0.4
A20: ='Index 2012'!B19 -> Sweden | B20: 6.703313207 | C20: 7.336207932 | D20: 7.221374774 | E20: 7.213525749 | F20: 6.956750173 | G20: 6.969670365 | H20: 7.078582827 | I20: 7.044781892 | J20: 7.233698699 | K20: 7.106090897 | L20: 0.4 | M20: =SUM((ROUND(K20,1)-ROUND(B20,1)<ROUND($K$4:$K$24,1)-ROUND($B$4:$B$24,1))+(ROUND(K20,1)-ROUND(B20,1)=ROUND($K$4:$K$24,1)-ROUND($B$4:$B$24,1))*(K20-B20<$K$4:$K$24-$B$4:$B$24))+1 -> 14 | N20: =SUM(IF(ROUND(L20,1)<ROUND($L$4:$L$24,1),1))+1 -> 13 | O20: Sweden | P20: 17 | Q20: 15 | R20: China | S20: -0.4
A21: ='Index 2012'!B20 -> Switzerland | B21: 4.931071052 | C21: 5.044486872 | D21: 5.86264677 | E21: 5.06459131 | F21: 5.048522089 | G21: 4.969435838 | H21: 4.07533699 | I21: 4.100431856 | J21: 4.277081382 | K21: 4.263644492 | L21: -0.6 | M21: =SUM((ROUND(K21,1)-ROUND(B21,1)<ROUND($K$4:$K$24,1)-ROUND($B$4:$B$24,1))+(ROUND(K21,1)-ROUND(B21,1)=ROUND($K$4:$K$24,1)-ROUND($B$4:$B$24,1))*(K21-B21<$K$4:$K$24-$B$4:$B$24))+1 -> 18 | N21: =SUM(IF(ROUND(L21,1)<ROUND($L$4:$L$24,1),1))+1 -> 18 | O21: Switzerland | P21: 18 | Q21: 18 | R21: Switzerland | S21: -0.6
A22: ='Index 2012'!B21 -> Turkey | B22: 4.103710386 | C22: 4.498582361 | D22: 4.44080805 | E22: 4.560065184 | F22: 4.686196814 | G22: 4.648005688 | H22: 4.066450512 | I22: 4.426392167 | J22: 4.694566652 | K22: 4.690369844 | L22: 0.6 | M22: =SUM((ROUND(K22,1)-ROUND(B22,1)<ROUND($K$4:$K$24,1)-ROUND($B$4:$B$24,1))+(ROUND(K22,1)-ROUND(B22,1)=ROUND($K$4:$K$24,1)-ROUND($B$4:$B$24,1))*(K22-B22<$K$4:$K$24-$B$4:$B$24))+1 -> 12 | N22: =SUM(IF(ROUND(L22,1)<ROUND($L$4:$L$24,1),1))+1 -> 12 | O22: Turkey | P22: 19 | Q22: 19 | R22: United Kingdom | S22: -1
A23: ='Index 2012'!B22 -> United Kingdom | B23: 8.94387681 | C23: 9.162107524 | D23: 8.803937081 | E23: 8.600122867 | F23: 8.310681933 | G23: 8.02737329 | H23: 8.042884376 | I23: 7.874893269 | J23: 8.052246622 | K23: 7.933449439 | L23: -1 | M23: =SUM((ROUND(K23,1)-ROUND(B23,1)<ROUND($K$4:$K$24,1)-ROUND($B$4:$B$24,1))+(ROUND(K23,1)-ROUND(B23,1)=ROUND($K$4:$K$24,1)-ROUND($B$4:$B$24,1))*(K23-B23<$K$4:$K$24-$B$4:$B$24))+1 -> 19 | N23: =SUM(IF(ROUND(L23,1)<ROUND($L$4:$L$24,1),1))+1 -> 19 | O23: United Kingdom | P23: 20 | Q23: 20 | R23: Canada | S23: -1.2
A24: ='Index 2012'!B23 -> United States | B24: 6.594579417 | C24: 6.625348305 | D24: 6.526781586 | E24: 6.23834976 | F24: 6.160706637 | G24: 6.109294602 | H24: 6.227288419 | I24: 6.254036557 | J24: 6.3033914 | K24: 6.209720541 | L24: -0.4 | M24: =SUM((ROUND(K24,1)-ROUND(B24,1)<ROUND($K$4:$K$24,1)-ROUND($B$4:$B$24,1))+(ROUND(K24,1)-ROUND(B24,1)=ROUND($K$4:$K$24,1)-ROUND($B$4:$B$24,1))*(K24-B24<$K$4:$K$24-$B$4:$B$24))+1 -> 16 | N24: =SUM(IF(ROUND(L24,1)<ROUND($L$4:$L$24,1),1))+1 -> 15 | O24: United States | P24: 21 | Q24: 21 | R24: Australia | S24: -1.5
A26: Average | B26: =AVERAGE(B4:B24) -> 4.637576148 | C26: 4.865891998 | D26: 4.814719217 | E26: 4.898103296 | F26: 4.88794644 | G26: 4.877742616 | H26: 5.232755299 | I26: 5.316430972 | J26: 5.405903927 | K26: 5.358131778 | L26: =ROUND(K26,1)-ROUND(B26,1) -> 0.8

Sheet Index 2012
A1: =Index_long_name&" "&Region_name&IF(Region_name="",""," ")&Year -> Global Citizenship Index 2012 | V1: Standings | Y1: One-year change, latest methodology | AB1: Standings/EU as one | AM1: Standings/Europe as one | BF1: EU countries | BG1: Europe countries
A2: Rank | B2: Country | C2: Aid | D2: Trade | E2: Investment | F2: Migration | G2: Environment | H2: Security | I2: Technology | J2: Overall (Average) | K2: True rank | L2: 2010-11 score change | M2: Rank | N2: 2009 rank (2010 method) | P2: True rank/EU | Q2: True rank/Europe | R2: Rank/EU | S2: Rank/Europe | W2: Country | X2: Score | Y2: Score | Z2: Rank | AC2: Country | AD2: Aid | AE2: Trade | AF2: Investment | AG2: Migration | AH2: Environment | AI2: Security | AJ2: Technology | AK2: Overall (Average) | AN2: Country | AO2: Aid | AP2: Trade | AQ2: Investment | AR2: Migration | AS2: Environment | AT2: Security | AU2: Technology | AV2: Overall (Average) | BC2: PPP GDP | BD2: Exchange-rate GDP | BI2: Graphing scale factor to deal with negative scores, alpha by country
A3: =M3 -> 3 | B3: Australia | D3: ='Trade 2012'!F5 -> 8.335550617 | G3: ='Environment 2012'!K5 -> 3.905427699 | H3: ='Security 2012'!J6 -> 10.12910182 | J3: =SUMPRODUCT(C3:I3,$C$33:$I$33)/SUM($C$33:$I$33) -> 7.45669338 | K3: =COUNTIF($J$3:$J$23,">"&J3)+1 -> 3 | M3: =SUM(IF(ROUND(J3,1)<ROUND($J$3:$J$23,1),1))+1 -> 3 | O3: =B3 -> Australia | P3: =(SUM(IF($J3<$J$3:$J$25*(1-BF$3:BF$25),1))+1)*(1-BF3) ->  | Q3: =(SUM(IF($J3<$J$3:$J$25*(1-BG$3:BG$25),1))+1)*(1-BG3) ->  | R3: =(SUM(IF(ROUND($J3,1)<ROUND($J$3:$J$25,1)*(1-BF$3:BF$25),1))+1)*(1-BF3) ->  | S3: =(SUM(IF(ROUND($J3,1)<ROUND($J$3:$J$25,1)*(1-BG$3:BG$25),1))+1)*(1-BG3) ->  | T3: =B3 -> Australia | U3: =ROW(U3)-ROW($U$2) -> 1 | V3: =VLOOKUP(U3,$K$3:$O$23,3,FALSE) -> 1 | W3: =VLOOKUP(U3,$K$3:$O$23,5,FALSE) -> United Kingdom | X3: =VLOOKUP(W3,$B$3:$O$23,9,FALSE) -> 7.933449439 | Y3: =VLOOKUP(W3,$B$3:$O$23,11,FALSE) -> 0 | Z3: =VLOOKUP(U3,$K$3:$O$23,4,FALSE)-V3 -> -1 | AB3: =VLOOKUP(U27,$P$3:$U$25,3,FALSE) ->  | AC3: =VLOOKUP(U27,$P$3:$U$25,5,FALSE) ->  | AD3: =VLOOKUP($AC3,$B$3:$O$25,2,FALSE) ->  | AE3: =VLOOKUP($AC3,$B$3:$O$25,3,FALSE) ->  | AF3: =VLOOKUP($AC3,$B$3:$O$25,4,FALSE) ->  | AG3: =VLOOKUP($AC3,$B$3:$O$25,5,FALSE) ->  | AH3: =VLOOKUP($AC3,$B$3:$O$25,6,FALSE) ->  | AI3: =VLOOKUP($AC3,$B$3:$O$25,7,FALSE) ->  | AJ3: =VLOOKUP($AC3,$B$3:$O$25,8,FALSE) ->  | AK3: =VLOOKUP($AC3,$B$3:$O$25,9,FALSE) ->  | AM3: =VLOOKUP(U38,$Q$3:$V$25,3,FALSE) ->  | AN3: =VLOOKUP(U38,$Q$3:$V$25,4,FALSE) ->  | AO3: =VLOOKUP($AN3,$B$3:$O$25,2,FALSE) ->  | AP3: =VLOOKUP($AN3,$B$3:$O$25,3,FALSE) ->  | AQ3: =VLOOKUP($AN3,$B$3:$O$25,4,FALSE) ->  | AR3: =VLOOKUP($AN3,$B$3:$O$25,5,FALSE) ->  | AS3: =VLOOKUP($AN3,$B$3:$O$25,6,FALSE) ->  | AT3: =VLOOKUP($AN3,$B$3:$O$25,7,FALSE) ->  | AU3: =VLOOKUP($AN3,$B$3:$O$25,8,FALSE) ->  | AV3: =VLOOKUP(AN3,$B$3:$O$25,9,FALSE) ->  | BC3: 864.9146368 | BD3: 924.8431145 | BF3: 0 | BG3: 0 | BI3: =ABS(SUM($C3:$I3*$C$33:$I$33)/SUM(IF($C3:$I3>0,$C3:$I3*$C$33:$I$33))) -> 1 | BJ3: =VLOOKUP($W3,$B$3:$I$23,COLUMN()-(COLUMN($BI$2)-1),FALSE)*C$33/SUM($C$33:$I$33)*VLOOKUP($W3,$B$3:$BI$23,(COLUMN($BI$2)-1),FALSE) -> 0 | BK3: =VLOOKUP($W3,$B$3:$I$23,COLUMN()-(COLUMN($BI$2)-1),FALSE)*D$33/SUM($C$33:$I$33)*VLOOKUP($W3,$B$3:$BI$23,(COLUMN($BI$2)-1),FALSE) -> 2.103341196 | BL3: =VLOOKUP($W3,$B$3:$I$23,COLUMN()-(COLUMN($BI$2)-1),FALSE)*E$33/SUM($C$33:$I$33)*VLOOKUP($W3,$B$3:$BI$23,(COLUMN($BI$2)-1),FALSE) -> 0 | BM3: =VLOOKUP($W3,$B$3:$I$23,COLUMN()-(COLUMN($BI$2)-1),FALSE)*F$33/SUM($C$33:$I$33)*VLOOKUP($W3,$B$3:$BI$23,(COLUMN($BI$2)-1),FALSE) -> 0 | BN3: =VLOOKUP($W3,$B$3:$I$23,COLUMN()-(COLUMN($BI$2)-1),FALSE)*G$33/SUM($C$33:$I$33)*VLOOKUP($W3,$B$3:$BI$23,(COLUMN($BI$2)-1),FALSE) -> 2.505705768 | BO3: =VLOOKUP($W3,$B$3:$I$23,COLUMN()-(COLUMN($BI$2)-1),FALSE)*H$33/SUM($C$33:$I$33)*VLOOKUP($W3,$B$3:$BI$23,(COLUMN($BI$2)-1),FALSE) -> 3.324402474 | BP3: =VLOOKUP($W3,$B$3:$I$23,COLUMN()-(COLUMN($BI$2)-1),FALSE)*I$33/SUM($C$33:$I$33)*VLOOKUP($W3,$B$3:$BI$23,(COLUMN($BI$2)-1),FALSE) -> 0
A4: 13 | B4: Brazil | D4: ='Trade 2012'!F6 -> 3.405026817 | G4: ='Environment 2012'!K6 -> 7.512143108 | H4: ='Security 2012'!J7 -> 2.807453616 | J4: 4.574874514 | K4: 14 | M4: =SUM(IF(ROUND(J4,1)<ROUND($J$3:$J$23,1),1))+1 -> 13 | O4: Brazil | P4: =(SUM(IF($J4<$J$3:$J$25*(1-BF$3:BF$25),1))+1)*(1-BF4) ->  | Q4: =(SUM(IF($J4<$J$3:$J$25*(1-BG$3:BG$25),1))+1)*(1-BG4) ->  | R4: =(SUM(IF(ROUND($J4,1)<ROUND($J$3:$J$25,1)*(1-BF$3:BF$25),1))+1)*(1-BF4) ->  | S4: =(SUM(IF(ROUND($J4,1)<ROUND($J$3:$J$25,1)*(1-BG$3:BG$25),1))+1)*(1-BG4) ->  | T4: Brazil | U4: 2 | V4: 1 | W4: France | X4: 7.90525973 | Y4: =VLOOKUP(W4,$B$3:$O$23,11,FALSE) -> 0 | Z4: =VLOOKUP(U4,$K$3:$O$23,4,FALSE)-V4 -> -1 | BC4: 324.6757642 | BD4: 381.0837463 | BF4: 1 | BG4: 1 | BI4: =ABS(SUM($C4:$I4*$C$33:$I$33)/SUM(IF($C4:$I4>0,$C4:$I4*$C$33:$I$33))) -> 1 | BJ4: =VLOOKUP($W4,$B$3:$I$23,COLUMN()-(COLUMN($BI$2)-1),FALSE)*C$33/SUM($C$33:$I$33)*VLOOKUP($W4,$B$3:$BI$23,(COLUMN($BI$2)-1),FALSE) -> 0 | BK4: =VLOOKUP($W4,$B$3:$I$23,COLUMN()-(COLUMN($BI$2)-1),FALSE)*D$33/SUM($C$33:$I$33)*VLOOKUP($W4,$B$3:$BI$23,(COLUMN($BI$2)-1),FALSE) -> 2.110659787 | BL4: =VLOOKUP($W4,$B$3:$I$23,COLUMN()-(COLUMN($BI$2)-1),FALSE)*E$33/SUM($C$33:$I$33)*VLOOKUP($W4,$B$3:$BI$23,(COLUMN($BI$2)-1),FALSE) -> 0 | BM4: =VLOOKUP($W4,$B$3:$I$23,COLUMN()-(COLUMN($BI$2)-1),FALSE)*F$33/SUM($C$33:$I$33)*VLOOKUP($W4,$B$3:$BI$23,(COLUMN($BI$2)-1),FALSE) -> 0 | BN4: =VLOOKUP($W4,$B$3:$I$23,COLUMN()-(COLUMN($BI$2)-1),FALSE)*G$33/SUM($C$33:$I$33)*VLOOKUP($W4,$B$3:$BI$23,(COLUMN($BI$2)-1),FALSE) -> 2.447144604 | BO4: =VLOOKUP($W4,$B$3:$I$23,COLUMN()-(COLUMN($BI$2)-1),FALSE)*H$33/SUM($C$33:$I$33)*VLOOKUP($W4,$B$3:$BI$23,(COLUMN($BI$2)-1),FALSE) -> 3.347455339 | BP4: =VLOOKUP($W4,$B$3:$I$23,COLUMN()-(COLUMN($BI$2)-1),FALSE)*I$33/SUM($C$33:$I$33)*VLOOKUP($W4,$B$3:$BI$23,(COLUMN($BI$2)-1),FALSE) -> 0
A5: 10 | B5: Canada | D5: ='Trade 2012'!F7 -> 7.118581393 | G5: ='Environment 2012'!K7 -> 4.345556262 | H5: ='Security 2012'!J8 -> 6.293684958 | J5: 5.919274204 | K5: 10 | M5: =SUM(IF(ROUND(J5,1)<ROUND($J$3:$J$23,1),1))+1 -> 10 | O5: Canada | P5: =(SUM(IF($J5<$J$3:$J$25*(1-BF$3:BF$25),1))+1)*(1-BF5) ->  | Q5: =(SUM(IF($J5<$J$3:$J$25*(1-BG$3:BG$25),1))+1)*(1-BG5) ->  | R5: =(SUM(IF(ROUND($J5,1)<ROUND($J$3:$J$25,1)*(1-BF$3:BF$25),1))+1)*(1-BF5) ->  | S5: =(SUM(IF(ROUND($J5,1)<ROUND($J$3:$J$25,1)*(1-BG$3:BG$25),1))+1)*(1-BG5) ->  | T5: Canada | U5: 3 | V5: 3 | W5: Australia | X5: 7.45669338 | BC5: 391.7684736 | BD5: 471.1610778 | BF5: 1 | BG5: 1 | BI5: =ABS(SUM($C5:$I5*$C$33:$I$33)/SUM(IF($C5:$I5>0,$C5:$I5*$C$33:$I$33))) -> 1 | BJ5: =VLOOKUP($W5,$B$3:$I$23,COLUMN()-(COLUMN($BI$2)-1),FALSE)*C$33/SUM($C$33:$I$33)*VLOOKUP($W5,$B$3:$BI$23,(COLUMN($BI$2)-1),FALSE) -> 0 | BK5: =VLOOKUP($W5,$B$3:$I$23,COLUMN()-(COLUMN($BI$2)-1),FALSE)*D$33/SUM($C$33:$I$33)*VLOOKUP($W5,$B$3:$BI$23,(COLUMN($BI$2)-1),FALSE) -> 2.778516872 | BL5: =VLOOKUP($W5,$B$3:$I$23,COLUMN()-(COLUMN($BI$2)-1),FALSE)*E$33/SUM($C$33:$I$33)*VLOOKUP($W5,$B$3:$BI$23,(COLUMN($BI$2)-1),FALSE) -> 0 | BM5: =VLOOKUP($W5,$B$3:$I$23,COLUMN()-(COLUMN($BI$2)-1),FALSE)*F$33/SUM($C$33:$I$33)*VLOOKUP($W5,$B$3:$BI$23,(COLUMN($BI$2)-1),FALSE) -> 0 | BN5: =VLOOKUP($W5,$B$3:$I$23,COLUMN()-(COLUMN($BI$2)-1),FALSE)*G$33/SUM($C$33:$I$33)*VLOOKUP($W5,$B$3:$BI$23,(COLUMN($BI$2)-1),FALSE) -> 1.301809233 | BO5: =VLOOKUP($W5,$B$3:$I$23,COLUMN()-(COLUMN($BI$2)-1),FALSE)*H$33/SUM($C$33:$I$33)*VLOOKUP($W5,$B$3:$BI$23,(COLUMN($BI$2)-1),FALSE) -> 3.376367274 | BP5: =VLOOKUP($W5,$B$3:$I$23,COLUMN()-(COLUMN($BI$2)-1),FALSE)*I$33/SUM($C$33:$I$33)*VLOOKUP($W5,$B$3:$BI$23,(COLUMN($BI$2)-1),FALSE) -> 0
A6: 19 | B6: China | D6: ='Trade 2012'!F8 -> 1.290324255 | G6: ='Environment 2012'!K8 -> 5.799488436 | H6: ='Security 2012'!J9 -> 1.402317629 | J6: 2.830710107 | K6: 19 | M6: =SUM(IF(ROUND(J6,1)<ROUND($J$3:$J$23,1),1))+1 -> 19 | O6: China | P6: =(SUM(IF($J6<$J$3:$J$25*(1-BF$3:BF$25),1))+1)*(1-BF6) ->  | Q6: =(SUM(IF($J6<$J$3:$J$25*(1-BG$3:BG$25),1))+1)*(1-BG6) ->  | R6: =(SUM(IF(ROUND($J6,1)<ROUND($J$3:$J$25,1)*(1-BF$3:BF$25),1))+1)*(1-BF6) ->  | S6: =(SUM(IF(ROUND($J6,1)<ROUND($J$3:$J$25,1)*(1-BG$3:BG$25),1))+1)*(1-BG6) ->  | T6: China | U6: 4 | V6: 4 | W6: Netherlands | X6: 7.219293131 | Y6: =VLOOKUP(W6,$B$3:$O$23,11,FALSE) -> 0 | Z6: =VLOOKUP(U6,$K$3:$O$23,4,FALSE)-V6 -> -4 | BC6: 1275.638841 | BD6: 1336.067752 | BF6: 0 | BG6: 0 | BI6: =ABS(SUM($C6:$I6*$C$33:$I$33)/SUM(IF($C6:$I6>0,$C6:$I6*$C$33:$I$33))) -> 1 | BJ6: =VLOOKUP($W6,$B$3:$I$23,COLUMN()-(COLUMN($BI$2)-1),FALSE)*C$33/SUM($C$33:$I$33)*VLOOKUP($W6,$B$3:$BI$23,(COLUMN($BI$2)-1),FALSE) -> 0 | BK6: =VLOOKUP($W6,$B$3:$I$23,COLUMN()-(COLUMN($BI$2)-1),FALSE)*D$33/SUM($C$33:$I$33)*VLOOKUP($W6,$B$3:$BI$23,(COLUMN($BI$2)-1),FALSE) -> 2.21930121 | BL6: =VLOOKUP($W6,$B$3:$I$23,COLUMN()-(COLUMN($BI$2)-1),FALSE)*E$33/SUM($C$33:$I$33)*VLOOKUP($W6,$B$3:$BI$23,(COLUMN($BI$2)-1),FALSE) -> 0 | BM6: =VLOOKUP($W6,$B$3:$I$23,COLUMN()-(COLUMN($BI$2)-1),FALSE)*F$33/SUM($C$33:$I$33)*VLOOKUP($W6,$B$3:$BI$23,(COLUMN($BI$2)-1),FALSE) -> 0 | BN6: =VLOOKUP($W6,$B$3:$I$23,COLUMN()-(COLUMN($BI$2)-1),FALSE)*G$33/SUM($C$33:$I$33)*VLOOKUP($W6,$B$3:$BI$23,(COLUMN($BI$2)-1),FALSE) -> 2.370631923 | BO6: =VLOOKUP($W6,$B$3:$I$23,COLUMN()-(COLUMN($BI$2)-1),FALSE)*H$33/SUM($C$33:$I$33)*VLOOKUP($W6,$B$3:$BI$23,(COLUMN($BI$2)-1),FALSE) -> 2.629359998 | BP6: =VLOOKUP($W6,$B$3:$I$23,COLUMN()-(COLUMN($BI$2)-1),FALSE)*I$33/SUM($C$33:$I$33)*VLOOKUP($W6,$B$3:$BI$23,(COLUMN($BI$2)-1),FALSE) -> 0
A7: 1 | B7: France | D7: ='Trade 2012'!F9 -> 6.331979361 | G7: ='Environment 2012'!K9 -> 7.341433812 | H7: ='Security 2012'!J10 -> 10.04236602 | J7: 7.90525973 | K7: 2 | M7: =SUM(IF(ROUND(J7,1)<ROUND($J$3:$J$23,1),1))+1 -> 1 | O7: France | P7: =(SUM(IF($J7<$J$3:$J$25*(1-BF$3:BF$25),1))+1)*(1-BF7) ->  | Q7: =(SUM(IF($J7<$J$3:$J$25*(1-BG$3:BG$25),1))+1)*(1-BG7) ->  | R7: =(SUM(IF(ROUND($J7,1)<ROUND($J$3:$J$25,1)*(1-BF$3:BF$25),1))+1)*(1-BF7) ->  | S7: =(SUM(IF(ROUND($J7,1)<ROUND($J$3:$J$25,1)*(1-BG$3:BG$25),1))+1)*(1-BG7) ->  | T7: France | U7: 5 | V7: 5 | W7: Sweden | X7: 7.106090897 | Y7: 0 | Z7: -5 | BF7: 1 | BG7: 1 | BI7: =ABS(SUM($C7:$I7*$C$33:$I$33)/SUM(IF($C7:$I7>0,$C7:$I7*$C$33:$I$33))) -> 1 | BJ7: =VLOOKUP($W7,$B$3:$I$23,COLUMN()-(COLUMN($BI$2)-1),FALSE)*C$33/SUM($C$33:$I$33)*VLOOKUP($W7,$B$3:$BI$23,(COLUMN($BI$2)-1),FALSE) -> 0 | BK7: =VLOOKUP($W7,$B$3:$I$23,COLUMN()-(COLUMN($BI$2)-1),FALSE)*D$33/SUM($C$33:$I$33)*VLOOKUP($W7,$B$3:$BI$23,(COLUMN($BI$2)-1),FALSE) -> 2.187751252 | BL7: =VLOOKUP($W7,$B$3:$I$23,COLUMN()-(COLUMN($BI$2)-1),FALSE)*E$33/SUM($C$33:$I$33)*VLOOKUP($W7,$B$3:$BI$23,(COLUMN($BI$2)-1),FALSE) -> 0 | BM7: =VLOOKUP($W7,$B$3:$I$23,COLUMN()-(COLUMN($BI$2)-1),FALSE)*F$33/SUM($C$33:$I$33)*VLOOKUP($W7,$B$3:$BI$23,(COLUMN($BI$2)-1),FALSE) -> 0 | BN7: =VLOOKUP($W7,$B$3:$I$23,COLUMN()-(COLUMN($BI$2)-1),FALSE)*G$33/SUM($C$33:$I$33)*VLOOKUP($W7,$B$3:$BI$23,(COLUMN($BI$2)-1),FALSE) -> 2.586332057 | BO7: =VLOOKUP($W7,$B$3:$I$23,COLUMN()-(COLUMN($BI$2)-1),FALSE)*H$33/SUM($C$33:$I$33)*VLOOKUP($W7,$B$3:$BI$23,(COLUMN($BI$2)-1),FALSE) -> 2.332007588 | BP7: =VLOOKUP($W7,$B$3:$I$23,COLUMN()-(COLUMN($BI$2)-1),FALSE)*I$33/SUM($C$33:$I$33)*VLOOKUP($W7,$B$3:$BI$23,(COLUMN($BI$2)-1),FALSE) -> 0
A8: 7 | B8: Germany | D8: ='Trade 2012'!F10 -> 6.26472713 | G8: ='Environment 2012'!K10 -> 7.103421472 | H8: ='Security 2012'!J11 -> 5.711198049 | J8: 6.359782217 | K8: 7 | M8: =SUM(IF(ROUND(J8,1)<ROUND($J$3:$J$23,1),1))+1 -> 7 | O8: Germany | P8: =(SUM(IF($J8<$J$3:$J$25*(1-BF$3:BF$25),1))+1)*(1-BF8) ->  | Q8: =(SUM(IF($J8<$J$3:$J$25*(1-BG$3:BG$25),1))+1)*(1-BG8) ->  | R8: =(SUM(IF(ROUND($J8,1)<ROUND($J$3:$J$25,1)*(1-BF$3:BF$25),1))+1)*(1-BF8) ->  | S8: =(SUM(IF(ROUND($J8,1)<ROUND($J$3:$J$25,1)*(1-BG$3:BG$25),1))+1)*(1-BG8) ->  | T8: Germany | U8: 6 | V8: 6 | W8: Italy | X8: 7.04904837 | Y8: 0 | Z8: -6 | BC8: 208.5665341 | BD8: 309.5961928 | BF8: 1 | BG8: 1 | BI8: =ABS(SUM($C8:$I8*$C$33:$I$33)/SUM(IF($C8:$I8>0,$C8:$I8*$C$33:$I$33))) -> 1 | BJ8: =VLOOKUP($W8,$B$3:$I$23,COLUMN()-(COLUMN($BI$2)-1),FALSE)*C$33/SUM($C$33:$I$33)*VLOOKUP($W8,$B$3:$BI$23,(COLUMN($BI$2)-1),FALSE) -> 0 | BK8: =VLOOKUP($W8,$B$3:$I$23,COLUMN()-(COLUMN($BI$2)-1),FALSE)*D$33/SUM($C$33:$I$33)*VLOOKUP($W8,$B$3:$BI$23,(COLUMN($BI$2)-1),FALSE) -> 2.13982046 | BL8: =VLOOKUP($W8,$B$3:$I$23,COLUMN()-(COLUMN($BI$2)-1),FALSE)*E$33/SUM($C$33:$I$33)*VLOOKUP($W8,$B$3:$BI$23,(COLUMN($BI$2)-1),FALSE) -> 0 | BM8: =VLOOKUP($W8,$B$3:$I$23,COLUMN()-(COLUMN($BI$2)-1),FALSE)*F$33/SUM($C$33:$I$33)*VLOOKUP($W8,$B$3:$BI$23,(COLUMN($BI$2)-1),FALSE) -> 0 | BN8: =VLOOKUP($W8,$B$3:$I$23,COLUMN()-(COLUMN($BI$2)-1),FALSE)*G$33/SUM($C$33:$I$33)*VLOOKUP($W8,$B$3:$BI$23,(COLUMN($BI$2)-1),FALSE) -> 2.384095275 | BO8: =VLOOKUP($W8,$B$3:$I$23,COLUMN()-(COLUMN($BI$2)-1),FALSE)*H$33/SUM($C$33:$I$33)*VLOOKUP($W8,$B$3:$BI$23,(COLUMN($BI$2)-1),FALSE) -> 2.525132635 | BP8: =VLOOKUP($W8,$B$3:$I$23,COLUMN()-(COLUMN($BI$2)-1),FALSE)*I$33/SUM($C$33:$I$33)*VLOOKUP($W8,$B$3:$BI$23,(COLUMN($BI$2)-1),FALSE) -> 0
A9: 21 | B9: India | D9: ='Trade 2012'!F11 -> -2.532410515 | G9: ='Environment 2012'!K11 -> 8.286158759 | H9: ='Security 2012'!J12 -> 2.420279338 | J9: 2.72467586 | K9: 21 | M9: =SUM(IF(ROUND(J9,1)<ROUND($J$3:$J$23,1),1))+1 -> 21 | O9: India | P9: =(SUM(IF($J9<$J$3:$J$25*(1-BF$3:BF$25),1))+1)*(1-BF9) ->  | Q9: =(SUM(IF($J9<$J$3:$J$25*(1-BG$3:BG$25),1))+1)*(1-BG9) ->  | R9: =(SUM(IF(ROUND($J9,1)<ROUND($J$3:$J$25,1)*(1-BF$3:BF$25),1))+1)*(1-BF9) ->  | S9: =(SUM(IF(ROUND($J9,1)<ROUND($J$3:$J$25,1)*(1-BG$3:BG$25),1))+1)*(1-BG9) ->  | T9: India | U9: 7 | V9: 7 | W9: Germany | X9: 6.359782217 | Y9: 0 | Z9: -7 | BC9: 188.2605978 | BD9: 237.9893965 | BF9: 1 | BG9: 1 | BI9: =ABS(SUM($C9:$I9*$C$33:$I$33)/SUM(IF($C9:$I9>0,$C9:$I9*$C$33:$I$33))) -> 0.7634684391 | BJ9: =VLOOKUP($W9,$B$3:$I$23,COLUMN()-(COLUMN($BI$2)-1),FALSE)*C$33/SUM($C$33:$I$33)*VLOOKUP($W9,$B$3:$BI$23,(COLUMN($BI$2)-1),FALSE) -> 0 | BK9: =VLOOKUP($W9,$B$3:$I$23,COLUMN()-(COLUMN($BI$2)-1),FALSE)*D$33/SUM($C$33:$I$33)*VLOOKUP($W9,$B$3:$BI$23,(COLUMN($BI$2)-1),FALSE) -> 2.088242377 | BL9: =VLOOKUP($W9,$B$3:$I$23,COLUMN()-(COLUMN($BI$2)-1),FALSE)*E$33/SUM($C$33:$I$33)*VLOOKUP($W9,$B$3:$BI$23,(COLUMN($BI$2)-1),FALSE) -> 0 | BM9: =VLOOKUP($W9,$B$3:$I$23,COLUMN()-(COLUMN($BI$2)-1),FALSE)*F$33/SUM($C$33:$I$33)*VLOOKUP($W9,$B$3:$BI$23,(COLUMN($BI$2)-1),FALSE) -> 0 | BN9: =VLOOKUP($W9,$B$3:$I$23,COLUMN()-(COLUMN($BI$2)-1),FALSE)*G$33/SUM($C$33:$I$33)*VLOOKUP($W9,$B$3:$BI$23,(COLUMN($BI$2)-1),FALSE) -> 2.367807157 | BO9: =VLOOKUP($W9,$B$3:$I$23,COLUMN()-(COLUMN($BI$2)-1),FALSE)*H$33/SUM($C$33:$I$33)*VLOOKUP($W9,$B$3:$BI$23,(COLUMN($BI$2)-1),FALSE) -> 1.903732683 | BP9: =VLOOKUP($W9,$B$3:$I$23,COLUMN()-(COLUMN($BI$2)-1),FALSE)*I$33/SUM($C$33:$I$33)*VLOOKUP($W9,$B$3:$BI$23,(COLUMN($BI$2)-1),FALSE) -> 0
A10: 11 | B10: Indonesia | D10: ='Trade 2012'!F12 -> 6.115877769 | G10: ='Environment 2012'!K12 -> 7.283771229 | H10: ='Security 2012'!J13 -> 1.71276159 | J10: 5.037470196 | K10: 11 | M10: =SUM(IF(ROUND(J10,1)<ROUND($J$3:$J$23,1),1))+1 -> 11 | O10: Indonesia | P10: =(SUM(IF($J10<$J$3:$J$25*(1-BF$3:BF$25),1))+1)*(1-BF10) ->  | Q10: =(SUM(IF($J10<$J$3:$J$25*(1-BG$3:BG$25),1))+1)*(1-BG10) ->  | R10: =(SUM(IF(ROUND($J10,1)<ROUND($J$3:$J$25,1)*(1-BF$3:BF$25),1))+1)*(1-BF10) ->  | S10: =(SUM(IF(ROUND($J10,1)<ROUND($J$3:$J$25,1)*(1-BG$3:BG$25),1))+1)*(1-BG10) ->  | T10: Indonesia | U10: 8 | V10: 8 | W10: United States | X10: 6.209720541 | Y10: 0 | Z10: -8 | BC10: 2173.316891 | BD10: 2649.390055 | BF10: 1 | BG10: 1 | BI10: =ABS(SUM($C10:$I10*$C$33:$I$33)/SUM(IF($C10:$I10>0,$C10:$I10*$C$33:$I$33))) -> 1 | BJ10: =VLOOKUP($W10,$B$3:$I$23,COLUMN()-(COLUMN($BI$2)-1),FALSE)*C$33/SUM($C$33:$I$33)*VLOOKUP($W10,$B$3:$BI$23,(COLUMN($BI$2)-1),FALSE) -> 0 | BK10: =VLOOKUP($W10,$B$3:$I$23,COLUMN()-(COLUMN($BI$2)-1),FALSE)*D$33/SUM($C$33:$I$33)*VLOOKUP($W10,$B$3:$BI$23,(COLUMN($BI$2)-1),FALSE) -> 2.770548103 | BL10: =VLOOKUP($W10,$B$3:$I$23,COLUMN()-(COLUMN($BI$2)-1),FALSE)*E$33/SUM($C$33:$I$33)*VLOOKUP($W10,$B$3:$BI$23,(COLUMN($BI$2)-1),FALSE) -> 0 | BM10: =VLOOKUP($W10,$B$3:$I$23,COLUMN()-(COLUMN($BI$2)-1),FALSE)*F$33/SUM($C$33:$I$33)*VLOOKUP($W10,$B$3:$BI$23,(COLUMN($BI$2)-1),FALSE) -> 0 | BN10: =VLOOKUP($W10,$B$3:$I$23,COLUMN()-(COLUMN($BI$2)-1),FALSE)*G$33/SUM($C$33:$I$33)*VLOOKUP($W10,$B$3:$BI$23,(COLUMN($BI$2)-1),FALSE) -> 1.57991372 | BO10: =VLOOKUP($W10,$B$3:$I$23,COLUMN()-(COLUMN($BI$2)-1),FALSE)*H$33/SUM($C$33:$I$33)*VLOOKUP($W10,$B$3:$BI$23,(COLUMN($BI$2)-1),FALSE) -> 1.859258718 | BP10: =VLOOKUP($W10,$B$3:$I$23,COLUMN()-(COLUMN($BI$2)-1),FALSE)*I$33/SUM($C$33:$I$33)*VLOOKUP($W10,$B$3:$BI$23,(COLUMN($BI$2)-1),FALSE) -> 0
A11: 6 | B11: Italy | D11: ='Trade 2012'!F13 -> 6.41946138 | G11: ='Environment 2012'!K13 -> 7.152285824 | H11: ='Security 2012'!J14 -> 7.575397906 | J11: 7.04904837 | K11: 6 | M11: =SUM(IF(ROUND(J11,1)<ROUND($J$3:$J$23,1),1))+1 -> 6 | O11: Italy | P11: =(SUM(IF($J11<$J$3:$J$25*(1-BF$3:BF$25),1))+1)*(1-BF11) ->  | Q11: =(SUM(IF($J11<$J$3:$J$25*(1-BG$3:BG$25),1))+1)*(1-BG11) ->  | R11: =(SUM(IF(ROUND($J11,1)<ROUND($J$3:$J$25,1)*(1-BF$3:BF$25),1))+1)*(1-BF11) ->  | S11: =(SUM(IF(ROUND($J11,1)<ROUND($J$3:$J$25,1)*(1-BG$3:BG$25),1))+1)*(1-BG11) ->  | T11: Italy | U11: 9 | V11: 8 | W11: Spain | X11: 6.208875722 | Y11: 0 | Z11: -8 | BC11: 2975.329419 | BD11: 3330.031747 | BF11: 1 | BG11: 1 | BI11: =ABS(SUM($C11:$I11*$C$33:$I$33)/SUM(IF($C11:$I11>0,$C11:$I11*$C$33:$I$33))) -> 1 | BJ11: =VLOOKUP($W11,$B$3:$I$23,COLUMN()-(COLUMN($BI$2)-1),FALSE)*C$33/SUM($C$33:$I$33)*VLOOKUP($W11,$B$3:$BI$23,(COLUMN($BI$2)-1),FALSE) -> 0 | BK11: =VLOOKUP($W11,$B$3:$I$23,COLUMN()-(COLUMN($BI$2)-1),FALSE)*D$33/SUM($C$33:$I$33)*VLOOKUP($W11,$B$3:$BI$23,(COLUMN($BI$2)-1),FALSE) -> 2.099691635 | BL11: =VLOOKUP($W11,$B$3:$I$23,COLUMN()-(COLUMN($BI$2)-1),FALSE)*E$33/SUM($C$33:$I$33)*VLOOKUP($W11,$B$3:$BI$23,(COLUMN($BI$2)-1),FALSE) -> 0 | BM11: =VLOOKUP($W11,$B$3:$I$23,COLUMN()-(COLUMN($BI$2)-1),FALSE)*F$33/SUM($C$33:$I$33)*VLOOKUP($W11,$B$3:$BI$23,(COLUMN($BI$2)-1),FALSE) -> 0 | BN11: =VLOOKUP($W11,$B$3:$I$23,COLUMN()-(COLUMN($BI$2)-1),FALSE)*G$33/SUM($C$33:$I$33)*VLOOKUP($W11,$B$3:$BI$23,(COLUMN($BI$2)-1),FALSE) -> 2.440279786 | BO11: =VLOOKUP($W11,$B$3:$I$23,COLUMN()-(COLUMN($BI$2)-1),FALSE)*H$33/SUM($C$33:$I$33)*VLOOKUP($W11,$B$3:$BI$23,(COLUMN($BI$2)-1),FALSE) -> 1.668904301 | BP11: =VLOOKUP($W11,$B$3:$I$23,COLUMN()-(COLUMN($BI$2)-1),FALSE)*I$33/SUM($C$33:$I$33)*VLOOKUP($W11,$B$3:$BI$23,(COLUMN($BI$2)-1),FALSE) -> 0
A12: 15 | B12: Japan | D12: ='Trade 2012'!F14 -> 5.40183991 | G12: ='Environment 2012'!K14 -> 4.510003277 | H12: ='Security 2012'!J15 -> 3.456934374 | J12: 4.456259187 | K12: 15 | M12: =SUM(IF(ROUND(J12,1)<ROUND($J$3:$J$23,1),1))+1 -> 15 | O12: Japan | P12: =(SUM(IF($J12<$J$3:$J$25*(1-BF$3:BF$25),1))+1)*(1-BF12) ->  | Q12: =(SUM(IF($J12<$J$3:$J$25*(1-BG$3:BG$25),1))+1)*(1-BG12) ->  | R12: =(SUM(IF(ROUND($J12,1)<ROUND($J$3:$J$25,1)*(1-BF$3:BF$25),1))+1)*(1-BF12) ->  | S12: =(SUM(IF(ROUND($J12,1)<ROUND($J$3:$J$25,1)*(1-BG$3:BG$25),1))+1)*(1-BG12) ->  | T12: Japan | U12: 10 | V12: 10 | W12: Canada | X12: 5.919274204 | Y12: 0 | Z12: -10 | BC12: 334.1816627 | BD12: 329.9240509 | BF12: 1 | BG12: 1 | BI12: =ABS(SUM($C12:$I12*$C$33:$I$33)/SUM(IF($C12:$I12>0,$C12:$I12*$C$33:$I$33))) -> 1 | BJ12: =VLOOKUP($W12,$B$3:$I$23,COLUMN()-(COLUMN($BI$2)-1),FALSE)*C$33/SUM($C$33:$I$33)*VLOOKUP($W12,$B$3:$BI$23,(COLUMN($BI$2)-1),FALSE) -> 0 | BK12: =VLOOKUP($W12,$B$3:$I$23,COLUMN()-(COLUMN($BI$2)-1),FALSE)*D$33/SUM($C$33:$I$33)*VLOOKUP($W12,$B$3:$BI$23,(COLUMN($BI$2)-1),FALSE) -> 2.372860464 | BL12: =VLOOKUP($W12,$B$3:$I$23,COLUMN()-(COLUMN($BI$2)-1),FALSE)*E$33/SUM($C$33:$I$33)*VLOOKUP($W12,$B$3:$BI$23,(COLUMN($BI$2)-1),FALSE) -> 0 | BM12: =VLOOKUP($W12,$B$3:$I$23,COLUMN()-(COLUMN($BI$2)-1),FALSE)*F$33/SUM($C$33:$I$33)*VLOOKUP($W12,$B$3:$BI$23,(COLUMN($BI$2)-1),FALSE) -> 0 | BN12: =VLOOKUP($W12,$B$3:$I$23,COLUMN()-(COLUMN($BI$2)-1),FALSE)*G$33/SUM($C$33:$I$33)*VLOOKUP($W12,$B$3:$BI$23,(COLUMN($BI$2)-1),FALSE) -> 1.448518754 | BO12: =VLOOKUP($W12,$B$3:$I$23,COLUMN()-(COLUMN($BI$2)-1),FALSE)*H$33/SUM($C$33:$I$33)*VLOOKUP($W12,$B$3:$BI$23,(COLUMN($BI$2)-1),FALSE) -> 2.097894986 | BP12: =VLOOKUP($W12,$B$3:$I$23,COLUMN()-(COLUMN($BI$2)-1),FALSE)*I$33/SUM($C$33:$I$33)*VLOOKUP($W12,$B$3:$BI$23,(COLUMN($BI$2)-1),FALSE) -> 0
A13: 17 | B13: Mexico | D13: ='Trade 2012'!F15 -> 5.453671158 | G13: ='Environment 2012'!K15 -> 4.70975366 | H13: ='Security 2012'!J16 -> 2.337940194 | J13: 4.167121671 | K13: 17 | M13: =SUM(IF(ROUND(J13,1)<ROUND($J$3:$J$23,1),1))+1 -> 17 | O13: Mexico | P13: =(SUM(IF($J13<$J$3:$J$25*(1-BF$3:BF$25),1))+1)*(1-BF13) ->  | Q13: =(SUM(IF($J13<$J$3:$J$25*(1-BG$3:BG$25),1))+1)*(1-BG13) ->  | R13: =(SUM(IF(ROUND($J13,1)<ROUND($J$3:$J$25,1)*(1-BF$3:BF$25),1))+1)*(1-BF13) ->  | S13: =(SUM(IF(ROUND($J13,1)<ROUND($J$3:$J$25,1)*(1-BG$3:BG$25),1))+1)*(1-BG13) ->  | T13: Mexico | U13: 11 | V13: 11 | W13: Indonesia | X13: 5.037470196 | Y13: 0 | Z13: -11 | BF13: 1 | BG13: 1 | BI13: =ABS(SUM($C13:$I13*$C$33:$I$33)/SUM(IF($C13:$I13>0,$C13:$I13*$C$33:$I$33))) -> 1 | BJ13: =VLOOKUP($W13,$B$3:$I$23,COLUMN()-(COLUMN($BI$2)-1),FALSE)*C$33/SUM($C$33:$I$33)*VLOOKUP($W13,$B$3:$BI$23,(COLUMN($BI$2)-1),FALSE) -> 0 | BK13: =VLOOKUP($W13,$B$3:$I$23,COLUMN()-(COLUMN($BI$2)-1),FALSE)*D$33/SUM($C$33:$I$33)*VLOOKUP($W13,$B$3:$BI$23,(COLUMN($BI$2)-1),FALSE) -> 2.038625923 | BL13: =VLOOKUP($W13,$B$3:$I$23,COLUMN()-(COLUMN($BI$2)-1),FALSE)*E$33/SUM($C$33:$I$33)*VLOOKUP($W13,$B$3:$BI$23,(COLUMN($BI$2)-1),FALSE) -> 0 | BM13: =VLOOKUP($W13,$B$3:$I$23,COLUMN()-(COLUMN($BI$2)-1),FALSE)*F$33/SUM($C$33:$I$33)*VLOOKUP($W13,$B$3:$BI$23,(COLUMN($BI$2)-1),FALSE) -> 0 | BN13: =VLOOKUP($W13,$B$3:$I$23,COLUMN()-(COLUMN($BI$2)-1),FALSE)*G$33/SUM($C$33:$I$33)*VLOOKUP($W13,$B$3:$BI$23,(COLUMN($BI$2)-1),FALSE) -> 2.427923743 | BO13: =VLOOKUP($W13,$B$3:$I$23,COLUMN()-(COLUMN($BI$2)-1),FALSE)*H$33/SUM($C$33:$I$33)*VLOOKUP($W13,$B$3:$BI$23,(COLUMN($BI$2)-1),FALSE) -> 0.5709205299 | BP13: =VLOOKUP($W13,$B$3:$I$23,COLUMN()-(COLUMN($BI$2)-1),FALSE)*I$33/SUM($C$33:$I$33)*VLOOKUP($W13,$B$3:$BI$23,(COLUMN($BI$2)-1),FALSE) -> 0
A14: 4 | B14: Netherlands | D14: ='Trade 2012'!F16 -> 6.657903631 | G14: ='Environment 2012'!K16 -> 7.111895769 | H14: ='Security 2012'!J17 -> 7.888079994 | J14: 7.219293131 | K14: 4 | M14: =SUM(IF(ROUND(J14,1)<ROUND($J$3:$J$23,1),1))+1 -> 4 | O14: Netherlands | P14: =(SUM(IF($J14<$J$3:$J$25*(1-BF$3:BF$25),1))+1)*(1-BF14) ->  | Q14: =(SUM(IF($J14<$J$3:$J$25*(1-BG$3:BG$25),1))+1)*(1-BG14) ->  | R14: =(SUM(IF(ROUND($J14,1)<ROUND($J$3:$J$25,1)*(1-BF$3:BF$25),1))+1)*(1-BF14) ->  | S14: =(SUM(IF(ROUND($J14,1)<ROUND($J$3:$J$25,1)*(1-BG$3:BG$25),1))+1)*(1-BG14) ->  | T14: Netherlands | U14: 12 | V14: 12 | W14: Turkey | X14: 4.690369844 | Y14: 0 | Z14: -12 | BC14: 181.1218596 | BD14: 227.1925699 | BF14: 1 | BG14: 1 | BI14: =ABS(SUM($C14:$I14*$C$33:$I$33)/SUM(IF($C14:$I14>0,$C14:$I14*$C$33:$I$33))) -> 1 | BJ14: =VLOOKUP($W14,$B$3:$I$23,COLUMN()-(COLUMN($BI$2)-1),FALSE)*C$33/SUM($C$33:$I$33)*VLOOKUP($W14,$B$3:$BI$23,(COLUMN($BI$2)-1),FALSE) -> 0 | BK14: =VLOOKUP($W14,$B$3:$I$23,COLUMN()-(COLUMN($BI$2)-1),FALSE)*D$33/SUM($C$33:$I$33)*VLOOKUP($W14,$B$3:$BI$23,(COLUMN($BI$2)-1),FALSE) -> 0.9725571608 | BL14: =VLOOKUP($W14,$B$3:$I$23,COLUMN()-(COLUMN($BI$2)-1),FALSE)*E$33/SUM($C$33:$I$33)*VLOOKUP($W14,$B$3:$BI$23,(COLUMN($BI$2)-1),FALSE) -> 0 | BM14: =VLOOKUP($W14,$B$3:$I$23,COLUMN()-(COLUMN($BI$2)-1),FALSE)*F$33/SUM($C$33:$I$33)*VLOOKUP($W14,$B$3:$BI$23,(COLUMN($BI$2)-1),FALSE) -> 0 | BN14: =VLOOKUP($W14,$B$3:$I$23,COLUMN()-(COLUMN($BI$2)-1),FALSE)*G$33/SUM($C$33:$I$33)*VLOOKUP($W14,$B$3:$BI$23,(COLUMN($BI$2)-1),FALSE) -> 2.52286336 | BO14: =VLOOKUP($W14,$B$3:$I$23,COLUMN()-(COLUMN($BI$2)-1),FALSE)*H$33/SUM($C$33:$I$33)*VLOOKUP($W14,$B$3:$BI$23,(COLUMN($BI$2)-1),FALSE) -> 1.194949324 | BP14: =VLOOKUP($W14,$B$3:$I$23,COLUMN()-(COLUMN($BI$2)-1),FALSE)*I$33/SUM($C$33:$I$33)*VLOOKUP($W14,$B$3:$BI$23,(COLUMN($BI$2)-1),FALSE) -> 0
A15: 13 | B15: Russia | D15: ='Trade 2012'!F17 -> 3.645116831 | G15: ='Environment 2012'!K17 -> 7.202564874 | H15: ='Security 2012'!J18 -> 2.993491423 | J15: 4.613724376 | K15: 13 | M15: =SUM(IF(ROUND(J15,1)<ROUND($J$3:$J$23,1),1))+1 -> 13 | O15: Russia | P15: =(SUM(IF($J15<$J$3:$J$25*(1-BF$3:BF$25),1))+1)*(1-BF15) ->  | Q15: =(SUM(IF($J15<$J$3:$J$25*(1-BG$3:BG$25),1))+1)*(1-BG15) ->  | R15: =(SUM(IF(ROUND($J15,1)<ROUND($J$3:$J$25,1)*(1-BF$3:BF$25),1))+1)*(1-BF15) ->  | S15: =(SUM(IF(ROUND($J15,1)<ROUND($J$3:$J$25,1)*(1-BG$3:BG$25),1))+1)*(1-BG15) ->  | T15: Russia | U15: 13 | V15: 13 | W15: Russia | X15: 4.613724376 | Y15: 0 | Z15: -13 | BC15: 1952.973324 | BD15: 2112.780108 | BF15: 1 | BG15: 1 | BI15: =ABS(SUM($C15:$I15*$C$33:$I$33)/SUM(IF($C15:$I15>0,$C15:$I15*$C$33:$I$33))) -> 1 | BJ15: =VLOOKUP($W15,$B$3:$I$23,COLUMN()-(COLUMN($BI$2)-1),FALSE)*C$33/SUM($C$33:$I$33)*VLOOKUP($W15,$B$3:$BI$23,(COLUMN($BI$2)-1),FALSE) -> 0 | BK15: =VLOOKUP($W15,$B$3:$I$23,COLUMN()-(COLUMN($BI$2)-1),FALSE)*D$33/SUM($C$33:$I$33)*VLOOKUP($W15,$B$3:$BI$23,(COLUMN($BI$2)-1),FALSE) -> 1.215038944 | BL15: =VLOOKUP($W15,$B$3:$I$23,COLUMN()-(COLUMN($BI$2)-1),FALSE)*E$33/SUM($C$33:$I$33)*VLOOKUP($W15,$B$3:$BI$23,(COLUMN($BI$2)-1),FALSE) -> 0 | BM15: =VLOOKUP($W15,$B$3:$I$23,COLUMN()-(COLUMN($BI$2)-1),FALSE)*F$33/SUM($C$33:$I$33)*VLOOKUP($W15,$B$3:$BI$23,(COLUMN($BI$2)-1),FALSE) -> 0 | BN15: =VLOOKUP($W15,$B$3:$I$23,COLUMN()-(COLUMN($BI$2)-1),FALSE)*G$33/SUM($C$33:$I$33)*VLOOKUP($W15,$B$3:$BI$23,(COLUMN($BI$2)-1),FALSE) -> 2.400854958 | BO15: =VLOOKUP($W15,$B$3:$I$23,COLUMN()-(COLUMN($BI$2)-1),FALSE)*H$33/SUM($C$33:$I$33)*VLOOKUP($W15,$B$3:$BI$23,(COLUMN($BI$2)-1),FALSE) -> 0.9978304743 | BP15: =VLOOKUP($W15,$B$3:$I$23,COLUMN()-(COLUMN($BI$2)-1),FALSE)*I$33/SUM($C$33:$I$33)*VLOOKUP($W15,$B$3:$BI$23,(COLUMN($BI$2)-1),FALSE) -> 0
A16: 19 | B16: Saudi Arabia | D16: ='Trade 2012'!F18 -> 7.358440009 | G16: ='Environment 2012'!K18 -> -0.2809300589 | H16: ='Security 2012'!J19 -> 1.238056592 | J16: 2.771855514 | K16: 20 | M16: =SUM(IF(ROUND(J16,1)<ROUND($J$3:$J$23,1),1))+1 -> 19 | O16: Saudi Arabia | P16: =(SUM(IF($J16<$J$3:$J$25*(1-BF$3:BF$25),1))+1)*(1-BF16) ->  | Q16: =(SUM(IF($J16<$J$3:$J$25*(1-BG$3:BG$25),1))+1)*(1-BG16) ->  | R16: =(SUM(IF(ROUND($J16,1)<ROUND($J$3:$J$25,1)*(1-BF$3:BF$25),1))+1)*(1-BF16) ->  | S16: =(SUM(IF(ROUND($J16,1)<ROUND($J$3:$J$25,1)*(1-BG$3:BG$25),1))+1)*(1-BG16) ->  | T16: Saudi Arabia | U16: 14 | V16: 13 | W16: Brazil | X16: 4.574874514 | Y16: 0 | Z16: -13 | BC16: 4135.294075 | BD16: 5068.996215 | BF16: 0 | BG16: 0 | BI16: =ABS(SUM($C16:$I16*$C$33:$I$33)/SUM(IF($C16:$I16>0,$C16:$I16*$C$33:$I$33))) -> 0.9673204013 | BJ16: =VLOOKUP($W16,$B$3:$I$23,COLUMN()-(COLUMN($BI$2)-1),FALSE)*C$33/SUM($C$33:$I$33)*VLOOKUP($W16,$B$3:$BI$23,(COLUMN($BI$2)-1),FALSE) -> 0 | BK16: =VLOOKUP($W16,$B$3:$I$23,COLUMN()-(COLUMN($BI$2)-1),FALSE)*D$33/SUM($C$33:$I$33)*VLOOKUP($W16,$B$3:$BI$23,(COLUMN($BI$2)-1),FALSE) -> 1.135008939 | BL16: =VLOOKUP($W16,$B$3:$I$23,COLUMN()-(COLUMN($BI$2)-1),FALSE)*E$33/SUM($C$33:$I$33)*VLOOKUP($W16,$B$3:$BI$23,(COLUMN($BI$2)-1),FALSE) -> 0 | BM16: =VLOOKUP($W16,$B$3:$I$23,COLUMN()-(COLUMN($BI$2)-1),FALSE)*F$33/SUM($C$33:$I$33)*VLOOKUP($W16,$B$3:$BI$23,(COLUMN($BI$2)-1),FALSE) -> 0 | BN16: =VLOOKUP($W16,$B$3:$I$23,COLUMN()-(COLUMN($BI$2)-1),FALSE)*G$33/SUM($C$33:$I$33)*VLOOKUP($W16,$B$3:$BI$23,(COLUMN($BI$2)-1),FALSE) -> 2.504047703 | BO16: =VLOOKUP($W16,$B$3:$I$23,COLUMN()-(COLUMN($BI$2)-1),FALSE)*H$33/SUM($C$33:$I$33)*VLOOKUP($W16,$B$3:$BI$23,(COLUMN($BI$2)-1),FALSE) -> 0.935817872 | BP16: =VLOOKUP($W16,$B$3:$I$23,COLUMN()-(COLUMN($BI$2)-1),FALSE)*I$33/SUM($C$33:$I$33)*VLOOKUP($W16,$B$3:$BI$23,(COLUMN($BI$2)-1),FALSE) -> 0
A17: 18 | B17: South Korea | D17: ='Trade 2012'!F19 -> 1.720372493 | G17: ='Environment 2012'!K19 -> 5.1252829 | H17: ='Security 2012'!J20 -> 2.222066472 | J17: 3.022573955 | K17: 18 | M17: =SUM(IF(ROUND(J17,1)<ROUND($J$3:$J$23,1),1))+1 -> 18 | O17: South Korea | P17: =(SUM(IF($J17<$J$3:$J$25*(1-BF$3:BF$25),1))+1)*(1-BF17) ->  | Q17: =(SUM(IF($J17<$J$3:$J$25*(1-BG$3:BG$25),1))+1)*(1-BG17) ->  | R17: =(SUM(IF(ROUND($J17,1)<ROUND($J$3:$J$25,1)*(1-BF$3:BF$25),1))+1)*(1-BF17) ->  | S17: =(SUM(IF(ROUND($J17,1)<ROUND($J$3:$J$25,1)*(1-BG$3:BG$25),1))+1)*(1-BG17) ->  | T17: South Korea | U17: 15 | V17: 15 | W17: Japan | X17: 4.456259187 | Y17: 0 | Z17: -15 | BF17: 1 | BG17: 1 | BI17: =ABS(SUM($C17:$I17*$C$33:$I$33)/SUM(IF($C17:$I17>0,$C17:$I17*$C$33:$I$33))) -> 1 | BJ17: =VLOOKUP($W17,$B$3:$I$23,COLUMN()-(COLUMN($BI$2)-1),FALSE)*C$33/SUM($C$33:$I$33)*VLOOKUP($W17,$B$3:$BI$23,(COLUMN($BI$2)-1),FALSE) -> 0 | BK17: =VLOOKUP($W17,$B$3:$I$23,COLUMN()-(COLUMN($BI$2)-1),FALSE)*D$33/SUM($C$33:$I$33)*VLOOKUP($W17,$B$3:$BI$23,(COLUMN($BI$2)-1),FALSE) -> 1.800613303 | BL17: =VLOOKUP($W17,$B$3:$I$23,COLUMN()-(COLUMN($BI$2)-1),FALSE)*E$33/SUM($C$33:$I$33)*VLOOKUP($W17,$B$3:$BI$23,(COLUMN($BI$2)-1),FALSE) -> 0 | BM17: =VLOOKUP($W17,$B$3:$I$23,COLUMN()-(COLUMN($BI$2)-1),FALSE)*F$33/SUM($C$33:$I$33)*VLOOKUP($W17,$B$3:$BI$23,(COLUMN($BI$2)-1),FALSE) -> 0 | BN17: =VLOOKUP($W17,$B$3:$I$23,COLUMN()-(COLUMN($BI$2)-1),FALSE)*G$33/SUM($C$33:$I$33)*VLOOKUP($W17,$B$3:$BI$23,(COLUMN($BI$2)-1),FALSE) -> 1.503334426 | BO17: =VLOOKUP($W17,$B$3:$I$23,COLUMN()-(COLUMN($BI$2)-1),FALSE)*H$33/SUM($C$33:$I$33)*VLOOKUP($W17,$B$3:$BI$23,(COLUMN($BI$2)-1),FALSE) -> 1.152311458 | BP17: =VLOOKUP($W17,$B$3:$I$23,COLUMN()-(COLUMN($BI$2)-1),FALSE)*I$33/SUM($C$33:$I$33)*VLOOKUP($W17,$B$3:$BI$23,(COLUMN($BI$2)-1),FALSE) -> 0
A18: 8 | B18: Spain | D18: ='Trade 2012'!F20 -> 6.299074905 | G18: ='Environment 2012'!K20 -> 7.320839359 | H18: ='Security 2012'!J21 -> 5.006712902 | J18: 6.208875722 | K18: 9 | M18: =SUM(IF(ROUND(J18,1)<ROUND($J$3:$J$23,1),1))+1 -> 8 | O18: Spain | P18: =(SUM(IF($J18<$J$3:$J$25*(1-BF$3:BF$25),1))+1)*(1-BF18) ->  | Q18: =(SUM(IF($J18<$J$3:$J$25*(1-BG$3:BG$25),1))+1)*(1-BG18) ->  | R18: =(SUM(IF(ROUND($J18,1)<ROUND($J$3:$J$25,1)*(1-BF$3:BF$25),1))+1)*(1-BF18) ->  | S18: =(SUM(IF(ROUND($J18,1)<ROUND($J$3:$J$25,1)*(1-BG$3:BG$25),1))+1)*(1-BG18) ->  | T18: Spain | U18: 16 | V18: 16 | W18: Switzerland | X18: 4.263644492 | Y18: 0 | Z18: -16 | BC18: 672.4287201 | BD18: 792.128258 | BF18: 1 | BG18: 1 | BI18: =ABS(SUM($C18:$I18*$C$33:$I$33)/SUM(IF($C18:$I18>0,$C18:$I18*$C$33:$I$33))) -> 1 | BJ18: =VLOOKUP($W18,$B$3:$I$23,COLUMN()-(COLUMN($BI$2)-1),FALSE)*C$33/SUM($C$33:$I$33)*VLOOKUP($W18,$B$3:$BI$23,(COLUMN($BI$2)-1),FALSE) -> 0 | BK18: =VLOOKUP($W18,$B$3:$I$23,COLUMN()-(COLUMN($BI$2)-1),FALSE)*D$33/SUM($C$33:$I$33)*VLOOKUP($W18,$B$3:$BI$23,(COLUMN($BI$2)-1),FALSE) -> 0.5372899062 | BL18: =VLOOKUP($W18,$B$3:$I$23,COLUMN()-(COLUMN($BI$2)-1),FALSE)*E$33/SUM($C$33:$I$33)*VLOOKUP($W18,$B$3:$BI$23,(COLUMN($BI$2)-1),FALSE) -> 0 | BM18: =VLOOKUP($W18,$B$3:$I$23,COLUMN()-(COLUMN($BI$2)-1),FALSE)*F$33/SUM($C$33:$I$33)*VLOOKUP($W18,$B$3:$BI$23,(COLUMN($BI$2)-1),FALSE) -> 0 | BN18: =VLOOKUP($W18,$B$3:$I$23,COLUMN()-(COLUMN($BI$2)-1),FALSE)*G$33/SUM($C$33:$I$33)*VLOOKUP($W18,$B$3:$BI$23,(COLUMN($BI$2)-1),FALSE) -> 1.849586982 | BO18: =VLOOKUP($W18,$B$3:$I$23,COLUMN()-(COLUMN($BI$2)-1),FALSE)*H$33/SUM($C$33:$I$33)*VLOOKUP($W18,$B$3:$BI$23,(COLUMN($BI$2)-1),FALSE) -> 1.876767604 | BP18: =VLOOKUP($W18,$B$3:$I$23,COLUMN()-(COLUMN($BI$2)-1),FALSE)*I$33/SUM($C$33:$I$33)*VLOOKUP($W18,$B$3:$BI$23,(COLUMN($BI$2)-1),FALSE) -> 0
A19: 5 | B19: Sweden | D19: ='Trade 2012'!F21 -> 6.563253755 | G19: ='Environment 2012'!K21 -> 7.758996172 | H19: ='Security 2012'!J22 -> 6.996022765 | J19: 7.106090897 | K19: 5 | M19: =SUM(IF(ROUND(J19,1)<ROUND($J$3:$J$23,1),1))+1 -> 5 | O19: Sweden | P19: =(SUM(IF($J19<$J$3:$J$25*(1-BF$3:BF$25),1))+1)*(1-BF19) ->  | Q19: =(SUM(IF($J19<$J$3:$J$25*(1-BG$3:BG$25),1))+1)*(1-BG19) ->  | R19: =(SUM(IF(ROUND($J19,1)<ROUND($J$3:$J$25,1)*(1-BF$3:BF$25),1))+1)*(1-BF19) ->  | S19: =(SUM(IF(ROUND($J19,1)<ROUND($J$3:$J$25,1)*(1-BG$3:BG$25),1))+1)*(1-BG19) ->  | T19: Sweden | U19: 17 | V19: 17 | W19: Mexico | X19: 4.167121671 | Y19: 0 | Z19: -17 | BC19: 125.1299164 | BD19: 126.6792612 | BF19: 0 | BG19: 0 | BI19: =ABS(SUM($C19:$I19*$C$33:$I$33)/SUM(IF($C19:$I19>0,$C19:$I19*$C$33:$I$33))) -> 1 | BJ19: =VLOOKUP($W19,$B$3:$I$23,COLUMN()-(COLUMN($BI$2)-1),FALSE)*C$33/SUM($C$33:$I$33)*VLOOKUP($W19,$B$3:$BI$23,(COLUMN($BI$2)-1),FALSE) -> 0 | BK19: =VLOOKUP($W19,$B$3:$I$23,COLUMN()-(COLUMN($BI$2)-1),FALSE)*D$33/SUM($C$33:$I$33)*VLOOKUP($W19,$B$3:$BI$23,(COLUMN($BI$2)-1),FALSE) -> 1.817890386 | BL19: =VLOOKUP($W19,$B$3:$I$23,COLUMN()-(COLUMN($BI$2)-1),FALSE)*E$33/SUM($C$33:$I$33)*VLOOKUP($W19,$B$3:$BI$23,(COLUMN($BI$2)-1),FALSE) -> 0 | BM19: =VLOOKUP($W19,$B$3:$I$23,COLUMN()-(COLUMN($BI$2)-1),FALSE)*F$33/SUM($C$33:$I$33)*VLOOKUP($W19,$B$3:$BI$23,(COLUMN($BI$2)-1),FALSE) -> 0 | BN19: =VLOOKUP($W19,$B$3:$I$23,COLUMN()-(COLUMN($BI$2)-1),FALSE)*G$33/SUM($C$33:$I$33)*VLOOKUP($W19,$B$3:$BI$23,(COLUMN($BI$2)-1),FALSE) -> 1.569917887 | BO19: =VLOOKUP($W19,$B$3:$I$23,COLUMN()-(COLUMN($BI$2)-1),FALSE)*H$33/SUM($C$33:$I$33)*VLOOKUP($W19,$B$3:$BI$23,(COLUMN($BI$2)-1),FALSE) -> 0.7793133981 | BP19: =VLOOKUP($W19,$B$3:$I$23,COLUMN()-(COLUMN($BI$2)-1),FALSE)*I$33/SUM($C$33:$I$33)*VLOOKUP($W19,$B$3:$BI$23,(COLUMN($BI$2)-1),FALSE) -> 0
A20: 16 | B20: Switzerland | D20: ='Trade 2012'!F22 -> 1.611869719 | G20: ='Environment 2012'!K22 -> 5.548760947 | H20: ='Security 2012'!J23 -> 5.630302811 | J20: 4.263644492 | K20: 16 | M20: =SUM(IF(ROUND(J20,1)<ROUND($J$3:$J$23,1),1))+1 -> 16 | O20: Switzerland | P20: =(SUM(IF($J20<$J$3:$J$25*(1-BF$3:BF$25),1))+1)*(1-BF20) ->  | Q20: =(SUM(IF($J20<$J$3:$J$25*(1-BG$3:BG$25),1))+1)*(1-BG20) ->  | R20: =(SUM(IF(ROUND($J20,1)<ROUND($J$3:$J$25,1)*(1-BF$3:BF$25),1))+1)*(1-BF20) ->  | S20: =(SUM(IF(ROUND($J20,1)<ROUND($J$3:$J$25,1)*(1-BG$3:BG$25),1))+1)*(1-BG20) ->  | T20: Switzerland | U20: 18 | V20: 18 | W20: South Korea | X20: 3.022573955 | Y20: 0 | Z20: -18 | BC20: 271.3447956 | BD20: 381.7662382 | BF20: 0 | BG20: 1 | BI20: =ABS(SUM($C20:$I20*$C$33:$I$33)/SUM(IF($C20:$I20>0,$C20:$I20*$C$33:$I$33))) -> 1 | BJ20: =VLOOKUP($W20,$B$3:$I$23,COLUMN()-(COLUMN($BI$2)-1),FALSE)*C$33/SUM($C$33:$I$33)*VLOOKUP($W20,$B$3:$BI$23,(COLUMN($BI$2)-1),FALSE) -> 0 | BK20: =VLOOKUP($W20,$B$3:$I$23,COLUMN()-(COLUMN($BI$2)-1),FALSE)*D$33/SUM($C$33:$I$33)*VLOOKUP($W20,$B$3:$BI$23,(COLUMN($BI$2)-1),FALSE) -> 0.5734574975 | BL20: =VLOOKUP($W20,$B$3:$I$23,COLUMN()-(COLUMN($BI$2)-1),FALSE)*E$33/SUM($C$33:$I$33)*VLOOKUP($W20,$B$3:$BI$23,(COLUMN($BI$2)-1),FALSE) -> 0 | BM20: =VLOOKUP($W20,$B$3:$I$23,COLUMN()-(COLUMN($BI$2)-1),FALSE)*F$33/SUM($C$33:$I$33)*VLOOKUP($W20,$B$3:$BI$23,(COLUMN($BI$2)-1),FALSE) -> 0 | BN20: =VLOOKUP($W20,$B$3:$I$23,COLUMN()-(COLUMN($BI$2)-1),FALSE)*G$33/SUM($C$33:$I$33)*VLOOKUP($W20,$B$3:$BI$23,(COLUMN($BI$2)-1),FALSE) -> 1.708427633 | BO20: =VLOOKUP($W20,$B$3:$I$23,COLUMN()-(COLUMN($BI$2)-1),FALSE)*H$33/SUM($C$33:$I$33)*VLOOKUP($W20,$B$3:$BI$23,(COLUMN($BI$2)-1),FALSE) -> 0.7406888239 | BP20: =VLOOKUP($W20,$B$3:$I$23,COLUMN()-(COLUMN($BI$2)-1),FALSE)*I$33/SUM($C$33:$I$33)*VLOOKUP($W20,$B$3:$BI$23,(COLUMN($BI$2)-1),FALSE) -> 0
A21: 12 | B21: Turkey | D21: ='Trade 2012'!F23 -> 2.917671482 | G21: ='Environment 2012'!K23 -> 7.568590079 | H21: ='Security 2012'!J24 -> 3.584847972 | J21: 4.690369844 | K21: 12 | M21: =SUM(IF(ROUND(J21,1)<ROUND($J$3:$J$23,1),1))+1 -> 12 | O21: Turkey | P21: =(SUM(IF($J21<$J$3:$J$25*(1-BF$3:BF$25),1))+1)*(1-BF21) ->  | Q21: =(SUM(IF($J21<$J$3:$J$25*(1-BG$3:BG$25),1))+1)*(1-BG21) ->  | R21: =(SUM(IF(ROUND($J21,1)<ROUND($J$3:$J$25,1)*(1-BF$3:BF$25),1))+1)*(1-BF21) ->  | S21: =(SUM(IF(ROUND($J21,1)<ROUND($J$3:$J$25,1)*(1-BG$3:BG$25),1))+1)*(1-BG21) ->  | T21: Turkey | U21: 19 | V21: 19 | W21: China | X21: 2.830710107 | Y21: 0 | Z21: -19 | BF21: 1 | BG21: 1 | BI21: =ABS(SUM($C21:$I21*$C$33:$I$33)/SUM(IF($C21:$I21>0,$C21:$I21*$C$33:$I$33))) -> 1 | BJ21: =VLOOKUP($W21,$B$3:$I$23,COLUMN()-(COLUMN($BI$2)-1),FALSE)*C$33/SUM($C$33:$I$33)*VLOOKUP($W21,$B$3:$BI$23,(COLUMN($BI$2)-1),FALSE) -> 0 | BK21: =VLOOKUP($W21,$B$3:$I$23,COLUMN()-(COLUMN($BI$2)-1),FALSE)*D$33/SUM($C$33:$I$33)*VLOOKUP($W21,$B$3:$BI$23,(COLUMN($BI$2)-1),FALSE) -> 0.4301080851 | BL21: =VLOOKUP($W21,$B$3:$I$23,COLUMN()-(COLUMN($BI$2)-1),FALSE)*E$33/SUM($C$33:$I$33)*VLOOKUP($W21,$B$3:$BI$23,(COLUMN($BI$2)-1),FALSE) -> 0 | BM21: =VLOOKUP($W21,$B$3:$I$23,COLUMN()-(COLUMN($BI$2)-1),FALSE)*F$33/SUM($C$33:$I$33)*VLOOKUP($W21,$B$3:$BI$23,(COLUMN($BI$2)-1),FALSE) -> 0 | BN21: =VLOOKUP($W21,$B$3:$I$23,COLUMN()-(COLUMN($BI$2)-1),FALSE)*G$33/SUM($C$33:$I$33)*VLOOKUP($W21,$B$3:$BI$23,(COLUMN($BI$2)-1),FALSE) -> 1.933162812 | BO21: =VLOOKUP($W21,$B$3:$I$23,COLUMN()-(COLUMN($BI$2)-1),FALSE)*H$33/SUM($C$33:$I$33)*VLOOKUP($W21,$B$3:$BI$23,(COLUMN($BI$2)-1),FALSE) -> 0.4674392097 | BP21: =VLOOKUP($W21,$B$3:$I$23,COLUMN()-(COLUMN($BI$2)-1),FALSE)*I$33/SUM($C$33:$I$33)*VLOOKUP($W21,$B$3:$BI$23,(COLUMN($BI$2)-1),FALSE) -> 0
A22: 1 | B22: United Kingdom | D22: ='Trade 2012'!F24 -> 6.310023589 | G22: ='Environment 2012'!K24 -> 7.517117304 | H22: ='Security 2012'!J25 -> 9.973207423 | J22: 7.933449439 | K22: 1 | M22: =SUM(IF(ROUND(J22,1)<ROUND($J$3:$J$23,1),1))+1 -> 1 | O22: United Kingdom | P22: =(SUM(IF($J22<$J$3:$J$25*(1-BF$3:BF$25),1))+1)*(1-BF22) ->  | Q22: =(SUM(IF($J22<$J$3:$J$25*(1-BG$3:BG$25),1))+1)*(1-BG22) ->  | R22: =(SUM(IF(ROUND($J22,1)<ROUND($J$3:$J$25,1)*(1-BF$3:BF$25),1))+1)*(1-BF22) ->  | S22: =(SUM(IF(ROUND($J22,1)<ROUND($J$3:$J$25,1)*(1-BG$3:BG$25),1))+1)*(1-BG22) ->  | T22: United Kingdom | U22: 20 | V22: 19 | W22: Saudi Arabia | X22: 2.771855514 | Y22: 0 | Z22: -19 | BC22: 264.9464832 | BD22: 232.8736891 | BF22: 1 | BG22: 1 | BI22: =ABS(SUM($C22:$I22*$C$33:$I$33)/SUM(IF($C22:$I22>0,$C22:$I22*$C$33:$I$33))) -> 1 | BJ22: =VLOOKUP($W22,$B$3:$I$23,COLUMN()-(COLUMN($BI$2)-1),FALSE)*C$33/SUM($C$33:$I$33)*VLOOKUP($W22,$B$3:$BI$23,(COLUMN($BI$2)-1),FALSE) -> 0 | BK22: =VLOOKUP($W22,$B$3:$I$23,COLUMN()-(COLUMN($BI$2)-1),FALSE)*D$33/SUM($C$33:$I$33)*VLOOKUP($W22,$B$3:$BI$23,(COLUMN($BI$2)-1),FALSE) -> 2.372656381 | BL22: =VLOOKUP($W22,$B$3:$I$23,COLUMN()-(COLUMN($BI$2)-1),FALSE)*E$33/SUM($C$33:$I$33)*VLOOKUP($W22,$B$3:$BI$23,(COLUMN($BI$2)-1),FALSE) -> 0 | BM22: =VLOOKUP($W22,$B$3:$I$23,COLUMN()-(COLUMN($BI$2)-1),FALSE)*F$33/SUM($C$33:$I$33)*VLOOKUP($W22,$B$3:$BI$23,(COLUMN($BI$2)-1),FALSE) -> 0 | BN22: =VLOOKUP($W22,$B$3:$I$23,COLUMN()-(COLUMN($BI$2)-1),FALSE)*G$33/SUM($C$33:$I$33)*VLOOKUP($W22,$B$3:$BI$23,(COLUMN($BI$2)-1),FALSE) -> -0.09058312578 | BO22: =VLOOKUP($W22,$B$3:$I$23,COLUMN()-(COLUMN($BI$2)-1),FALSE)*H$33/SUM($C$33:$I$33)*VLOOKUP($W22,$B$3:$BI$23,(COLUMN($BI$2)-1),FALSE) -> 0.3991991333 | BP22: =VLOOKUP($W22,$B$3:$I$23,COLUMN()-(COLUMN($BI$2)-1),FALSE)*I$33/SUM($C$33:$I$33)*VLOOKUP($W22,$B$3:$BI$23,(COLUMN($BI$2)-1),FALSE) -> 0
A23: 8 | B23: United States | D23: ='Trade 2012'!F25 -> 8.31164431 | G23: ='Environment 2012'!K25 -> 4.73974116 | H23: ='Security 2012'!J26 -> 5.577776153 | J23: 6.209720541 | K23: 8 | M23: =SUM(IF(ROUND(J23,1)<ROUND($J$3:$J$23,1),1))+1 -> 8 | O23: United States | P23: =(SUM(IF($J23<$J$3:$J$25*(1-BF$3:BF$25),1))+1)*(1-BF23) ->  | Q23: =(SUM(IF($J23<$J$3:$J$25*(1-BG$3:BG$25),1))+1)*(1-BG23) ->  | R23: =(SUM(IF(ROUND($J23,1)<ROUND($J$3:$J$25,1)*(1-BF$3:BF$25),1))+1)*(1-BF23) ->  | S23: =(SUM(IF(ROUND($J23,1)<ROUND($J$3:$J$25,1)*(1-BG$3:BG$25),1))+1)*(1-BG23) ->  | T23: United States | U23: 21 | V23: 21 | W23: India | X23: 2.72467586 | Y23: 0 | Z23: -21 | BF23: 1 | BG23: 1 | BI23: =ABS(SUM($C23:$I23*$C$33:$I$33)/SUM(IF($C23:$I23>0,$C23:$I23*$C$33:$I$33))) -> 1 | BJ23: =VLOOKUP($W23,$B$3:$I$23,COLUMN()-(COLUMN($BI$2)-1),FALSE)*C$33/SUM($C$33:$I$33)*VLOOKUP($W23,$B$3:$BI$23,(COLUMN($BI$2)-1),FALSE) -> 0 | BK23: =VLOOKUP($W23,$B$3:$I$23,COLUMN()-(COLUMN($BI$2)-1),FALSE)*D$33/SUM($C$33:$I$33)*VLOOKUP($W23,$B$3:$BI$23,(COLUMN($BI$2)-1),FALSE) -> -0.6444718343 | BL23: =VLOOKUP($W23,$B$3:$I$23,COLUMN()-(COLUMN($BI$2)-1),FALSE)*E$33/SUM($C$33:$I$33)*VLOOKUP($W23,$B$3:$BI$23,(COLUMN($BI$2)-1),FALSE) -> 0 | BM23: =VLOOKUP($W23,$B$3:$I$23,COLUMN()-(COLUMN($BI$2)-1),FALSE)*F$33/SUM($C$33:$I$33)*VLOOKUP($W23,$B$3:$BI$23,(COLUMN($BI$2)-1),FALSE) -> 0 | BN23: =VLOOKUP($W23,$B$3:$I$23,COLUMN()-(COLUMN($BI$2)-1),FALSE)*G$33/SUM($C$33:$I$33)*VLOOKUP($W23,$B$3:$BI$23,(COLUMN($BI$2)-1),FALSE) -> 2.108740231 | BO23: =VLOOKUP($W23,$B$3:$I$23,COLUMN()-(COLUMN($BI$2)-1),FALSE)*H$33/SUM($C$33:$I$33)*VLOOKUP($W23,$B$3:$BI$23,(COLUMN($BI$2)-1),FALSE) -> 0.6159356293 | BP23: =VLOOKUP($W23,$B$3:$I$23,COLUMN()-(COLUMN($BI$2)-1),FALSE)*I$33/SUM($C$33:$I$33)*VLOOKUP($W23,$B$3:$BI$23,(COLUMN($BI$2)-1),FALSE) -> 0
B24: EU | D24: ='Trade 2012'!G32 -> 0 | G24: ='Environment 2012'!K32 -> 0 | H24: ='Security 2012'!J27 ->  | P24: =(SUM(IF($J24<$J$3:$J$25*(1-BF$3:BF$25),1))+1)*(1-BF24) ->  | R24: =(SUM(IF(ROUND($J24,1)<ROUND($J$3:$J$25,1)*(1-BF$3:BF$25),1))+1)*(1-BF24) ->  | T24: EU | BG24: 1
B25: Europe | D25: ='Trade 2012'!G33 -> 0 | G25: ='Environment 2012'!K33 -> 0 | H25: ='Security 2012'!J28 ->  | P25: =(SUM(IF($J25<$J$3:$J$25*(1-BF$3:BF$25),1))+1)*(1-BF25) ->  | Q25: =(SUM(IF($J25<$J$3:$J$25*(1-BG$3:BG$25),1))+1)*(1-BG25) ->  | R25: =(SUM(IF(ROUND($J25,1)<ROUND($J$3:$J$25,1)*(1-BF$3:BF$25),1))+1)*(1-BF25) ->  | S25: =(SUM(IF(ROUND($J25,1)<ROUND($J$3:$J$25,1)*(1-BG$3:BG$25),1))+1)*(1-BG25) ->  | T25: Europe | BF25: 1
R26: =(SUM(IF(#REF!<$J$3:$J$25*(1-BF$3:BF$25),1))+1)*(1-#REF!) -> 
B27: Average | C27: =AVERAGE(C3:C23) ->  | D27: 5 | G27: 6.074395335 | H27: 5 | J27: 5.358131778 | U27: 1
B28: Standard dev. | C28: =STDEVP(C3:C23) ->  | D28: 2.665393319 | G28: 1.936239522 | H28: 2.852828565 | J28: 1.694282666 | U28: 2
U29: 3
B30: Lowest | C30: =MIN(C3:C23) -> 0 | D30: -2.532410515 | E30: 0 | F30: 0 | G30: -0.2809300589 | H30: 1.238056592 | I30: 0 | J30: 2.72467586 | U30: 4
B31: Highest | C31: =MAX(C3:C23) -> 0 | D31: 8.335550617 | E31: 0 | F31: 0 | G31: 8.286158759 | H31: 10.12910182 | I31: 0 | J31: 7.933449439 | U31: 5
U32: 6
B33: Weight | C33: 0 | D33: 1 | E33: 0 | F33: 0 | G33: 1 | H33: 1 | I33: 0 | U33: 7
U34: 8
U35: 9
U38: 1
U39: 2
U40: 3
U41: 4
U42: 5
U43: 6
U44: 7
A67: =INT(RIGHT(CELL("filename",A1),4)) -> 2012

Sheet Index 2011
A1: =Index_long_name&" "&Region_name&IF(Region_name="",""," ")&Year -> Global Citizenship Index 2011 | V1: Standings | Y1: One-year change, latest methodology | AB1: Standings/EU as one | AM1: Standings/Europe as one | BF1: EU countries | BG1: Europe countries
A2: Rank | B2: Country | C2: Aid | D2: Trade | E2: Investment | F2: Migration | G2: Environment | H2: Security | I2: Technology | J2: Overall (Average) | K2: True rank | L2: 2010-11 score change | M2: Rank | N2: 2009 rank (2010 method) | P2: True rank/EU | Q2: True rank/Europe | R2: Rank/EU | S2: Rank/Europe | W2: Country | X2: Score | Y2: Score | Z2: Rank | AC2: Country | AD2: Aid | AE2: Trade | AF2: Investment | AG2: Migration | AH2: Environment | AI2: Security | AJ2: Technology | AK2: Overall (Average) | AN2: Country | AO2: Aid | AP2: Trade | AQ2: Investment | AR2: Migration | AS2: Environment | AT2: Security | AU2: Technology | AV2: Overall (Average) | BC2: PPP GDP | BD2: Exchange-rate GDP | BI2: Graphing scale factor to deal with negative scores, alpha by country
A3: =M3 -> 2 | B3: Australia | D3: ='Trade 2011'!F5 -> 8.273610429 | G3: ='Environment 2011'!K5 -> 3.928066249 | H3: ='Security 2011'!J6 -> 10.63449586 | J3: =SUMPRODUCT(C3:I3,$C$33:$I$33)/SUM($C$33:$I$33) -> 7.612057514 | K3: =COUNTIF($J$3:$J$23,">"&J3)+1 -> 2 | M3: =SUM(IF(ROUND(J3,1)<ROUND($J$3:$J$23,1),1))+1 -> 2 | O3: =B3 -> Australia | P3: =(SUM(IF($J3<$J$3:$J$25*(1-BF$3:BF$25),1))+1)*(1-BF3) ->  | Q3: =(SUM(IF($J3<$J$3:$J$25*(1-BG$3:BG$25),1))+1)*(1-BG3) ->  | R3: =(SUM(IF(ROUND($J3,1)<ROUND($J$3:$J$25,1)*(1-BF$3:BF$25),1))+1)*(1-BF3) ->  | S3: =(SUM(IF(ROUND($J3,1)<ROUND($J$3:$J$25,1)*(1-BG$3:BG$25),1))+1)*(1-BG3) ->  | T3: =B3 -> Australia | U3: =ROW(U3)-ROW($U$2) -> 1 | V3: =VLOOKUP(U3,$K$3:$O$23,3,FALSE) -> 1 | W3: =VLOOKUP(U3,$K$3:$O$23,5,FALSE) -> United Kingdom | X3: =VLOOKUP(W3,$B$3:$O$23,9,FALSE) -> 8.052246622 | Y3: =VLOOKUP(W3,$B$3:$O$23,11,FALSE) -> 0 | Z3: =VLOOKUP(U3,$K$3:$O$23,4,FALSE)-V3 -> -1 | AB3: =VLOOKUP(U27,$P$3:$U$25,3,FALSE) ->  | AC3: =VLOOKUP(U27,$P$3:$U$25,5,FALSE) ->  | AD3: =VLOOKUP($AC3,$B$3:$O$25,2,FALSE) ->  | AE3: =VLOOKUP($AC3,$B$3:$O$25,3,FALSE) ->  | AF3: =VLOOKUP($AC3,$B$3:$O$25,4,FALSE) ->  | AG3: =VLOOKUP($AC3,$B$3:$O$25,5,FALSE) ->  | AH3: =VLOOKUP($AC3,$B$3:$O$25,6,FALSE) ->  | AI3: =VLOOKUP($AC3,$B$3:$O$25,7,FALSE) ->  | AJ3: =VLOOKUP($AC3,$B$3:$O$25,8,FALSE) ->  | AK3: =VLOOKUP($AC3,$B$3:$O$25,9,FALSE) ->  | AM3: =VLOOKUP(U38,$Q$3:$V$25,3,FALSE) ->  | AN3: =VLOOKUP(U38,$Q$3:$V$25,4,FALSE) ->  | AO3: =VLOOKUP($AN3,$B$3:$O$25,2,FALSE) ->  | AP3: =VLOOKUP($AN3,$B$3:$O$25,3,FALSE) ->  | AQ3: =VLOOKUP($AN3,$B$3:$O$25,4,FALSE) ->  | AR3: =VLOOKUP($AN3,$B$3:$O$25,5,FALSE) ->  | AS3: =VLOOKUP($AN3,$B$3:$O$25,6,FALSE) ->  | AT3: =VLOOKUP($AN3,$B$3:$O$25,7,FALSE) ->  | AU3: =VLOOKUP($AN3,$B$3:$O$25,8,FALSE) ->  | AV3: =VLOOKUP(AN3,$B$3:$O$25,9,FALSE) ->  | BC3: 864.9146368 | BD3: 924.8431145 | BF3: 0 | BG3: 0 | BI3: =ABS(SUM($C3:$I3*$C$33:$I$33)/SUM(IF($C3:$I3>0,$C3:$I3*$C$33:$I$33))) -> 1 | BJ3: =VLOOKUP($W3,$B$3:$I$23,COLUMN()-(COLUMN($BI$2)-1),FALSE)*C$33/SUM($C$33:$I$33)*VLOOKUP($W3,$B$3:$BI$23,(COLUMN($BI$2)-1),FALSE) -> 0 | BK3: =VLOOKUP($W3,$B$3:$I$23,COLUMN()-(COLUMN($BI$2)-1),FALSE)*D$33/SUM($C$33:$I$33)*VLOOKUP($W3,$B$3:$BI$23,(COLUMN($BI$2)-1),FALSE) -> 2.136574567 | BL3: =VLOOKUP($W3,$B$3:$I$23,COLUMN()-(COLUMN($BI$2)-1),FALSE)*E$33/SUM($C$33:$I$33)*VLOOKUP($W3,$B$3:$BI$23,(COLUMN($BI$2)-1),FALSE) -> 0 | BM3: =VLOOKUP($W3,$B$3:$I$23,COLUMN()-(COLUMN($BI$2)-1),FALSE)*F$33/SUM($C$33:$I$33)*VLOOKUP($W3,$B$3:$BI$23,(COLUMN($BI$2)-1),FALSE) -> 0 | BN3: =VLOOKUP($W3,$B$3:$I$23,COLUMN()-(COLUMN($BI$2)-1),FALSE)*G$33/SUM($C$33:$I$33)*VLOOKUP($W3,$B$3:$BI$23,(COLUMN($BI$2)-1),FALSE) -> 2.488561168 | BO3: =VLOOKUP($W3,$B$3:$I$23,COLUMN()-(COLUMN($BI$2)-1),FALSE)*H$33/SUM($C$33:$I$33)*VLOOKUP($W3,$B$3:$BI$23,(COLUMN($BI$2)-1),FALSE) -> 3.427110888 | BP3: =VLOOKUP($W3,$B$3:$I$23,COLUMN()-(COLUMN($BI$2)-1),FALSE)*I$33/SUM($C$33:$I$33)*VLOOKUP($W3,$B$3:$BI$23,(COLUMN($BI$2)-1),FALSE) -> 0
A4: 15 | B4: Brazil | D4: ='Trade 2011'!F6 -> 3.596487186 | G4: ='Environment 2011'!K6 -> 7.56901034 | H4: ='Security 2011'!J7 -> 2.415413449 | J4: 4.526970325 | K4: 15 | M4: =SUM(IF(ROUND(J4,1)<ROUND($J$3:$J$23,1),1))+1 -> 15 | O4: Brazil | P4: =(SUM(IF($J4<$J$3:$J$25*(1-BF$3:BF$25),1))+1)*(1-BF4) ->  | Q4: =(SUM(IF($J4<$J$3:$J$25*(1-BG$3:BG$25),1))+1)*(1-BG4) ->  | R4: =(SUM(IF(ROUND($J4,1)<ROUND($J$3:$J$25,1)*(1-BF$3:BF$25),1))+1)*(1-BF4) ->  | S4: =(SUM(IF(ROUND($J4,1)<ROUND($J$3:$J$25,1)*(1-BG$3:BG$25),1))+1)*(1-BG4) ->  | T4: Brazil | U4: 2 | V4: 2 | W4: Australia | X4: 7.612057514 | Y4: =VLOOKUP(W4,$B$3:$O$23,11,FALSE) -> 0 | Z4: =VLOOKUP(U4,$K$3:$O$23,4,FALSE)-V4 -> -2 | BC4: 324.6757642 | BD4: 381.0837463 | BF4: 1 | BG4: 1 | BI4: =ABS(SUM($C4:$I4*$C$33:$I$33)/SUM(IF($C4:$I4>0,$C4:$I4*$C$33:$I$33))) -> 1 | BJ4: =VLOOKUP($W4,$B$3:$I$23,COLUMN()-(COLUMN($BI$2)-1),FALSE)*C$33/SUM($C$33:$I$33)*VLOOKUP($W4,$B$3:$BI$23,(COLUMN($BI$2)-1),FALSE) -> 0 | BK4: =VLOOKUP($W4,$B$3:$I$23,COLUMN()-(COLUMN($BI$2)-1),FALSE)*D$33/SUM($C$33:$I$33)*VLOOKUP($W4,$B$3:$BI$23,(COLUMN($BI$2)-1),FALSE) -> 2.757870143 | BL4: =VLOOKUP($W4,$B$3:$I$23,COLUMN()-(COLUMN($BI$2)-1),FALSE)*E$33/SUM($C$33:$I$33)*VLOOKUP($W4,$B$3:$BI$23,(COLUMN($BI$2)-1),FALSE) -> 0 | BM4: =VLOOKUP($W4,$B$3:$I$23,COLUMN()-(COLUMN($BI$2)-1),FALSE)*F$33/SUM($C$33:$I$33)*VLOOKUP($W4,$B$3:$BI$23,(COLUMN($BI$2)-1),FALSE) -> 0 | BN4: =VLOOKUP($W4,$B$3:$I$23,COLUMN()-(COLUMN($BI$2)-1),FALSE)*G$33/SUM($C$33:$I$33)*VLOOKUP($W4,$B$3:$BI$23,(COLUMN($BI$2)-1),FALSE) -> 1.309355416 | BO4: =VLOOKUP($W4,$B$3:$I$23,COLUMN()-(COLUMN($BI$2)-1),FALSE)*H$33/SUM($C$33:$I$33)*VLOOKUP($W4,$B$3:$BI$23,(COLUMN($BI$2)-1),FALSE) -> 3.544831955 | BP4: =VLOOKUP($W4,$B$3:$I$23,COLUMN()-(COLUMN($BI$2)-1),FALSE)*I$33/SUM($C$33:$I$33)*VLOOKUP($W4,$B$3:$BI$23,(COLUMN($BI$2)-1),FALSE) -> 0
A5: 7 | B5: Canada | D5: ='Trade 2011'!F7 -> 7.07655347 | G5: ='Environment 2011'!K7 -> 5.390546287 | H5: ='Security 2011'!J8 -> 6.435480868 | J5: 6.300860208 | K5: 9 | M5: =SUM(IF(ROUND(J5,1)<ROUND($J$3:$J$23,1),1))+1 -> 7 | O5: Canada | P5: =(SUM(IF($J5<$J$3:$J$25*(1-BF$3:BF$25),1))+1)*(1-BF5) ->  | Q5: =(SUM(IF($J5<$J$3:$J$25*(1-BG$3:BG$25),1))+1)*(1-BG5) ->  | R5: =(SUM(IF(ROUND($J5,1)<ROUND($J$3:$J$25,1)*(1-BF$3:BF$25),1))+1)*(1-BF5) ->  | S5: =(SUM(IF(ROUND($J5,1)<ROUND($J$3:$J$25,1)*(1-BG$3:BG$25),1))+1)*(1-BG5) ->  | T5: Canada | U5: 3 | V5: 3 | W5: France | X5: 7.251295813 | BC5: 391.7684736 | BD5: 471.1610778 | BF5: 1 | BG5: 1 | BI5: =ABS(SUM($C5:$I5*$C$33:$I$33)/SUM(IF($C5:$I5>0,$C5:$I5*$C$33:$I$33))) -> 1 | BJ5: =VLOOKUP($W5,$B$3:$I$23,COLUMN()-(COLUMN($BI$2)-1),FALSE)*C$33/SUM($C$33:$I$33)*VLOOKUP($W5,$B$3:$BI$23,(COLUMN($BI$2)-1),FALSE) -> 0 | BK5: =VLOOKUP($W5,$B$3:$I$23,COLUMN()-(COLUMN($BI$2)-1),FALSE)*D$33/SUM($C$33:$I$33)*VLOOKUP($W5,$B$3:$BI$23,(COLUMN($BI$2)-1),FALSE) -> 2.10581289 | BL5: =VLOOKUP($W5,$B$3:$I$23,COLUMN()-(COLUMN($BI$2)-1),FALSE)*E$33/SUM($C$33:$I$33)*VLOOKUP($W5,$B$3:$BI$23,(COLUMN($BI$2)-1),FALSE) -> 0 | BM5: =VLOOKUP($W5,$B$3:$I$23,COLUMN()-(COLUMN($BI$2)-1),FALSE)*F$33/SUM($C$33:$I$33)*VLOOKUP($W5,$B$3:$BI$23,(COLUMN($BI$2)-1),FALSE) -> 0 | BN5: =VLOOKUP($W5,$B$3:$I$23,COLUMN()-(COLUMN($BI$2)-1),FALSE)*G$33/SUM($C$33:$I$33)*VLOOKUP($W5,$B$3:$BI$23,(COLUMN($BI$2)-1),FALSE) -> 2.392554919 | BO5: =VLOOKUP($W5,$B$3:$I$23,COLUMN()-(COLUMN($BI$2)-1),FALSE)*H$33/SUM($C$33:$I$33)*VLOOKUP($W5,$B$3:$BI$23,(COLUMN($BI$2)-1),FALSE) -> 2.752928004 | BP5: =VLOOKUP($W5,$B$3:$I$23,COLUMN()-(COLUMN($BI$2)-1),FALSE)*I$33/SUM($C$33:$I$33)*VLOOKUP($W5,$B$3:$BI$23,(COLUMN($BI$2)-1),FALSE) -> 0
A6: 20 | B6: China | D6: ='Trade 2011'!F8 -> 1.289362862 | G6: ='Environment 2011'!K8 -> 6.14380619 | H6: ='Security 2011'!J9 -> 1.374416668 | J6: 2.935861907 | K6: 20 | M6: =SUM(IF(ROUND(J6,1)<ROUND($J$3:$J$23,1),1))+1 -> 20 | O6: China | P6: =(SUM(IF($J6<$J$3:$J$25*(1-BF$3:BF$25),1))+1)*(1-BF6) ->  | Q6: =(SUM(IF($J6<$J$3:$J$25*(1-BG$3:BG$25),1))+1)*(1-BG6) ->  | R6: =(SUM(IF(ROUND($J6,1)<ROUND($J$3:$J$25,1)*(1-BF$3:BF$25),1))+1)*(1-BF6) ->  | S6: =(SUM(IF(ROUND($J6,1)<ROUND($J$3:$J$25,1)*(1-BG$3:BG$25),1))+1)*(1-BG6) ->  | T6: China | U6: 4 | V6: 4 | W6: Sweden | X6: 7.233698699 | Y6: =VLOOKUP(W6,$B$3:$O$23,11,FALSE) -> 0 | Z6: =VLOOKUP(U6,$K$3:$O$23,4,FALSE)-V6 -> -4 | BC6: 1275.638841 | BD6: 1336.067752 | BF6: 0 | BG6: 0 | BI6: =ABS(SUM($C6:$I6*$C$33:$I$33)/SUM(IF($C6:$I6>0,$C6:$I6*$C$33:$I$33))) -> 1 | BJ6: =VLOOKUP($W6,$B$3:$I$23,COLUMN()-(COLUMN($BI$2)-1),FALSE)*C$33/SUM($C$33:$I$33)*VLOOKUP($W6,$B$3:$BI$23,(COLUMN($BI$2)-1),FALSE) -> 0 | BK6: =VLOOKUP($W6,$B$3:$I$23,COLUMN()-(COLUMN($BI$2)-1),FALSE)*D$33/SUM($C$33:$I$33)*VLOOKUP($W6,$B$3:$BI$23,(COLUMN($BI$2)-1),FALSE) -> 2.206419879 | BL6: =VLOOKUP($W6,$B$3:$I$23,COLUMN()-(COLUMN($BI$2)-1),FALSE)*E$33/SUM($C$33:$I$33)*VLOOKUP($W6,$B$3:$BI$23,(COLUMN($BI$2)-1),FALSE) -> 0 | BM6: =VLOOKUP($W6,$B$3:$I$23,COLUMN()-(COLUMN($BI$2)-1),FALSE)*F$33/SUM($C$33:$I$33)*VLOOKUP($W6,$B$3:$BI$23,(COLUMN($BI$2)-1),FALSE) -> 0 | BN6: =VLOOKUP($W6,$B$3:$I$23,COLUMN()-(COLUMN($BI$2)-1),FALSE)*G$33/SUM($C$33:$I$33)*VLOOKUP($W6,$B$3:$BI$23,(COLUMN($BI$2)-1),FALSE) -> 2.637551033 | BO6: =VLOOKUP($W6,$B$3:$I$23,COLUMN()-(COLUMN($BI$2)-1),FALSE)*H$33/SUM($C$33:$I$33)*VLOOKUP($W6,$B$3:$BI$23,(COLUMN($BI$2)-1),FALSE) -> 2.389727787 | BP6: =VLOOKUP($W6,$B$3:$I$23,COLUMN()-(COLUMN($BI$2)-1),FALSE)*I$33/SUM($C$33:$I$33)*VLOOKUP($W6,$B$3:$BI$23,(COLUMN($BI$2)-1),FALSE) -> 0
A7: 3 | B7: France | D7: ='Trade 2011'!F9 -> 6.317438669 | G7: ='Environment 2011'!K9 -> 7.177664758 | H7: ='Security 2011'!J10 -> 8.258784012 | J7: 7.251295813 | K7: 3 | M7: =SUM(IF(ROUND(J7,1)<ROUND($J$3:$J$23,1),1))+1 -> 3 | O7: France | P7: =(SUM(IF($J7<$J$3:$J$25*(1-BF$3:BF$25),1))+1)*(1-BF7) ->  | Q7: =(SUM(IF($J7<$J$3:$J$25*(1-BG$3:BG$25),1))+1)*(1-BG7) ->  | R7: =(SUM(IF(ROUND($J7,1)<ROUND($J$3:$J$25,1)*(1-BF$3:BF$25),1))+1)*(1-BF7) ->  | S7: =(SUM(IF(ROUND($J7,1)<ROUND($J$3:$J$25,1)*(1-BG$3:BG$25),1))+1)*(1-BG7) ->  | T7: France | U7: 5 | V7: 4 | W7: Netherlands | X7: 7.171955001 | Y7: 0 | Z7: -4 | BF7: 1 | BG7: 1 | BI7: =ABS(SUM($C7:$I7*$C$33:$I$33)/SUM(IF($C7:$I7>0,$C7:$I7*$C$33:$I$33))) -> 1 | BJ7: =VLOOKUP($W7,$B$3:$I$23,COLUMN()-(COLUMN($BI$2)-1),FALSE)*C$33/SUM($C$33:$I$33)*VLOOKUP($W7,$B$3:$BI$23,(COLUMN($BI$2)-1),FALSE) -> 0 | BK7: =VLOOKUP($W7,$B$3:$I$23,COLUMN()-(COLUMN($BI$2)-1),FALSE)*D$33/SUM($C$33:$I$33)*VLOOKUP($W7,$B$3:$BI$23,(COLUMN($BI$2)-1),FALSE) -> 2.202252028 | BL7: =VLOOKUP($W7,$B$3:$I$23,COLUMN()-(COLUMN($BI$2)-1),FALSE)*E$33/SUM($C$33:$I$33)*VLOOKUP($W7,$B$3:$BI$23,(COLUMN($BI$2)-1),FALSE) -> 0 | BM7: =VLOOKUP($W7,$B$3:$I$23,COLUMN()-(COLUMN($BI$2)-1),FALSE)*F$33/SUM($C$33:$I$33)*VLOOKUP($W7,$B$3:$BI$23,(COLUMN($BI$2)-1),FALSE) -> 0 | BN7: =VLOOKUP($W7,$B$3:$I$23,COLUMN()-(COLUMN($BI$2)-1),FALSE)*G$33/SUM($C$33:$I$33)*VLOOKUP($W7,$B$3:$BI$23,(COLUMN($BI$2)-1),FALSE) -> 2.34471127 | BO7: =VLOOKUP($W7,$B$3:$I$23,COLUMN()-(COLUMN($BI$2)-1),FALSE)*H$33/SUM($C$33:$I$33)*VLOOKUP($W7,$B$3:$BI$23,(COLUMN($BI$2)-1),FALSE) -> 2.624991703 | BP7: =VLOOKUP($W7,$B$3:$I$23,COLUMN()-(COLUMN($BI$2)-1),FALSE)*I$33/SUM($C$33:$I$33)*VLOOKUP($W7,$B$3:$BI$23,(COLUMN($BI$2)-1),FALSE) -> 0
A8: 7 | B8: Germany | D8: ='Trade 2011'!F10 -> 6.297438532 | G8: ='Environment 2011'!K10 -> 6.911756386 | H8: ='Security 2011'!J11 -> 5.775667254 | J8: 6.328287391 | K8: 7 | M8: =SUM(IF(ROUND(J8,1)<ROUND($J$3:$J$23,1),1))+1 -> 7 | O8: Germany | P8: =(SUM(IF($J8<$J$3:$J$25*(1-BF$3:BF$25),1))+1)*(1-BF8) ->  | Q8: =(SUM(IF($J8<$J$3:$J$25*(1-BG$3:BG$25),1))+1)*(1-BG8) ->  | R8: =(SUM(IF(ROUND($J8,1)<ROUND($J$3:$J$25,1)*(1-BF$3:BF$25),1))+1)*(1-BF8) ->  | S8: =(SUM(IF(ROUND($J8,1)<ROUND($J$3:$J$25,1)*(1-BG$3:BG$25),1))+1)*(1-BG8) ->  | T8: Germany | U8: 6 | V8: 6 | W8: Italy | X8: 6.960360968 | Y8: 0 | Z8: -6 | BC8: 208.5665341 | BD8: 309.5961928 | BF8: 1 | BG8: 1 | BI8: =ABS(SUM($C8:$I8*$C$33:$I$33)/SUM(IF($C8:$I8>0,$C8:$I8*$C$33:$I$33))) -> 1 | BJ8: =VLOOKUP($W8,$B$3:$I$23,COLUMN()-(COLUMN($BI$2)-1),FALSE)*C$33/SUM($C$33:$I$33)*VLOOKUP($W8,$B$3:$BI$23,(COLUMN($BI$2)-1),FALSE) -> 0 | BK8: =VLOOKUP($W8,$B$3:$I$23,COLUMN()-(COLUMN($BI$2)-1),FALSE)*D$33/SUM($C$33:$I$33)*VLOOKUP($W8,$B$3:$BI$23,(COLUMN($BI$2)-1),FALSE) -> 2.154669082 | BL8: =VLOOKUP($W8,$B$3:$I$23,COLUMN()-(COLUMN($BI$2)-1),FALSE)*E$33/SUM($C$33:$I$33)*VLOOKUP($W8,$B$3:$BI$23,(COLUMN($BI$2)-1),FALSE) -> 0 | BM8: =VLOOKUP($W8,$B$3:$I$23,COLUMN()-(COLUMN($BI$2)-1),FALSE)*F$33/SUM($C$33:$I$33)*VLOOKUP($W8,$B$3:$BI$23,(COLUMN($BI$2)-1),FALSE) -> 0 | BN8: =VLOOKUP($W8,$B$3:$I$23,COLUMN()-(COLUMN($BI$2)-1),FALSE)*G$33/SUM($C$33:$I$33)*VLOOKUP($W8,$B$3:$BI$23,(COLUMN($BI$2)-1),FALSE) -> 2.326424878 | BO8: =VLOOKUP($W8,$B$3:$I$23,COLUMN()-(COLUMN($BI$2)-1),FALSE)*H$33/SUM($C$33:$I$33)*VLOOKUP($W8,$B$3:$BI$23,(COLUMN($BI$2)-1),FALSE) -> 2.479267008 | BP8: =VLOOKUP($W8,$B$3:$I$23,COLUMN()-(COLUMN($BI$2)-1),FALSE)*I$33/SUM($C$33:$I$33)*VLOOKUP($W8,$B$3:$BI$23,(COLUMN($BI$2)-1),FALSE) -> 0
A9: 21 | B9: India | D9: ='Trade 2011'!F11 -> -2.453772095 | G9: ='Environment 2011'!K11 -> 8.602113693 | H9: ='Security 2011'!J12 -> 2.349916376 | J9: 2.832752658 | K9: 21 | M9: =SUM(IF(ROUND(J9,1)<ROUND($J$3:$J$23,1),1))+1 -> 21 | O9: India | P9: =(SUM(IF($J9<$J$3:$J$25*(1-BF$3:BF$25),1))+1)*(1-BF9) ->  | Q9: =(SUM(IF($J9<$J$3:$J$25*(1-BG$3:BG$25),1))+1)*(1-BG9) ->  | R9: =(SUM(IF(ROUND($J9,1)<ROUND($J$3:$J$25,1)*(1-BF$3:BF$25),1))+1)*(1-BF9) ->  | S9: =(SUM(IF(ROUND($J9,1)<ROUND($J$3:$J$25,1)*(1-BG$3:BG$25),1))+1)*(1-BG9) ->  | T9: India | U9: 7 | V9: 7 | W9: Germany | X9: 6.328287391 | Y9: 0 | Z9: -7 | BC9: 188.2605978 | BD9: 237.9893965 | BF9: 1 | BG9: 1 | BI9: =ABS(SUM($C9:$I9*$C$33:$I$33)/SUM(IF($C9:$I9>0,$C9:$I9*$C$33:$I$33))) -> 0.7759527613 | BJ9: =VLOOKUP($W9,$B$3:$I$23,COLUMN()-(COLUMN($BI$2)-1),FALSE)*C$33/SUM($C$33:$I$33)*VLOOKUP($W9,$B$3:$BI$23,(COLUMN($BI$2)-1),FALSE) -> 0 | BK9: =VLOOKUP($W9,$B$3:$I$23,COLUMN()-(COLUMN($BI$2)-1),FALSE)*D$33/SUM($C$33:$I$33)*VLOOKUP($W9,$B$3:$BI$23,(COLUMN($BI$2)-1),FALSE) -> 2.099146177 | BL9: =VLOOKUP($W9,$B$3:$I$23,COLUMN()-(COLUMN($BI$2)-1),FALSE)*E$33/SUM($C$33:$I$33)*VLOOKUP($W9,$B$3:$BI$23,(COLUMN($BI$2)-1),FALSE) -> 0 | BM9: =VLOOKUP($W9,$B$3:$I$23,COLUMN()-(COLUMN($BI$2)-1),FALSE)*F$33/SUM($C$33:$I$33)*VLOOKUP($W9,$B$3:$BI$23,(COLUMN($BI$2)-1),FALSE) -> 0 | BN9: =VLOOKUP($W9,$B$3:$I$23,COLUMN()-(COLUMN($BI$2)-1),FALSE)*G$33/SUM($C$33:$I$33)*VLOOKUP($W9,$B$3:$BI$23,(COLUMN($BI$2)-1),FALSE) -> 2.303918795 | BO9: =VLOOKUP($W9,$B$3:$I$23,COLUMN()-(COLUMN($BI$2)-1),FALSE)*H$33/SUM($C$33:$I$33)*VLOOKUP($W9,$B$3:$BI$23,(COLUMN($BI$2)-1),FALSE) -> 1.925222418 | BP9: =VLOOKUP($W9,$B$3:$I$23,COLUMN()-(COLUMN($BI$2)-1),FALSE)*I$33/SUM($C$33:$I$33)*VLOOKUP($W9,$B$3:$BI$23,(COLUMN($BI$2)-1),FALSE) -> 0
A10: 11 | B10: Indonesia | D10: ='Trade 2011'!F12 -> 6.121821208 | G10: ='Environment 2011'!K12 -> 7.306344758 | H10: ='Security 2011'!J13 -> 1.576701344 | J10: 5.001622437 | K10: 11 | M10: =SUM(IF(ROUND(J10,1)<ROUND($J$3:$J$23,1),1))+1 -> 11 | O10: Indonesia | P10: =(SUM(IF($J10<$J$3:$J$25*(1-BF$3:BF$25),1))+1)*(1-BF10) ->  | Q10: =(SUM(IF($J10<$J$3:$J$25*(1-BG$3:BG$25),1))+1)*(1-BG10) ->  | R10: =(SUM(IF(ROUND($J10,1)<ROUND($J$3:$J$25,1)*(1-BF$3:BF$25),1))+1)*(1-BF10) ->  | S10: =(SUM(IF(ROUND($J10,1)<ROUND($J$3:$J$25,1)*(1-BG$3:BG$25),1))+1)*(1-BG10) ->  | T10: Indonesia | U10: 8 | V10: 7 | W10: United States | X10: 6.3033914 | Y10: 0 | Z10: -7 | BC10: 2173.316891 | BD10: 2649.390055 | BF10: 1 | BG10: 1 | BI10: =ABS(SUM($C10:$I10*$C$33:$I$33)/SUM(IF($C10:$I10>0,$C10:$I10*$C$33:$I$33))) -> 1 | BJ10: =VLOOKUP($W10,$B$3:$I$23,COLUMN()-(COLUMN($BI$2)-1),FALSE)*C$33/SUM($C$33:$I$33)*VLOOKUP($W10,$B$3:$BI$23,(COLUMN($BI$2)-1),FALSE) -> 0 | BK10: =VLOOKUP($W10,$B$3:$I$23,COLUMN()-(COLUMN($BI$2)-1),FALSE)*D$33/SUM($C$33:$I$33)*VLOOKUP($W10,$B$3:$BI$23,(COLUMN($BI$2)-1),FALSE) -> 2.773152314 | BL10: =VLOOKUP($W10,$B$3:$I$23,COLUMN()-(COLUMN($BI$2)-1),FALSE)*E$33/SUM($C$33:$I$33)*VLOOKUP($W10,$B$3:$BI$23,(COLUMN($BI$2)-1),FALSE) -> 0 | BM10: =VLOOKUP($W10,$B$3:$I$23,COLUMN()-(COLUMN($BI$2)-1),FALSE)*F$33/SUM($C$33:$I$33)*VLOOKUP($W10,$B$3:$BI$23,(COLUMN($BI$2)-1),FALSE) -> 0 | BN10: =VLOOKUP($W10,$B$3:$I$23,COLUMN()-(COLUMN($BI$2)-1),FALSE)*G$33/SUM($C$33:$I$33)*VLOOKUP($W10,$B$3:$BI$23,(COLUMN($BI$2)-1),FALSE) -> 1.617865966 | BO10: =VLOOKUP($W10,$B$3:$I$23,COLUMN()-(COLUMN($BI$2)-1),FALSE)*H$33/SUM($C$33:$I$33)*VLOOKUP($W10,$B$3:$BI$23,(COLUMN($BI$2)-1),FALSE) -> 1.912373121 | BP10: =VLOOKUP($W10,$B$3:$I$23,COLUMN()-(COLUMN($BI$2)-1),FALSE)*I$33/SUM($C$33:$I$33)*VLOOKUP($W10,$B$3:$BI$23,(COLUMN($BI$2)-1),FALSE) -> 0
A11: 6 | B11: Italy | D11: ='Trade 2011'!F13 -> 6.464007245 | G11: ='Environment 2011'!K13 -> 6.979274634 | H11: ='Security 2011'!J14 -> 7.437801025 | J11: 6.960360968 | K11: 6 | M11: =SUM(IF(ROUND(J11,1)<ROUND($J$3:$J$23,1),1))+1 -> 6 | O11: Italy | P11: =(SUM(IF($J11<$J$3:$J$25*(1-BF$3:BF$25),1))+1)*(1-BF11) ->  | Q11: =(SUM(IF($J11<$J$3:$J$25*(1-BG$3:BG$25),1))+1)*(1-BG11) ->  | R11: =(SUM(IF(ROUND($J11,1)<ROUND($J$3:$J$25,1)*(1-BF$3:BF$25),1))+1)*(1-BF11) ->  | S11: =(SUM(IF(ROUND($J11,1)<ROUND($J$3:$J$25,1)*(1-BG$3:BG$25),1))+1)*(1-BG11) ->  | T11: Italy | U11: 9 | V11: 7 | W11: Canada | X11: 6.300860208 | Y11: 0 | Z11: -7 | BC11: 2975.329419 | BD11: 3330.031747 | BF11: 1 | BG11: 1 | BI11: =ABS(SUM($C11:$I11*$C$33:$I$33)/SUM(IF($C11:$I11>0,$C11:$I11*$C$33:$I$33))) -> 1 | BJ11: =VLOOKUP($W11,$B$3:$I$23,COLUMN()-(COLUMN($BI$2)-1),FALSE)*C$33/SUM($C$33:$I$33)*VLOOKUP($W11,$B$3:$BI$23,(COLUMN($BI$2)-1),FALSE) -> 0 | BK11: =VLOOKUP($W11,$B$3:$I$23,COLUMN()-(COLUMN($BI$2)-1),FALSE)*D$33/SUM($C$33:$I$33)*VLOOKUP($W11,$B$3:$BI$23,(COLUMN($BI$2)-1),FALSE) -> 2.358851157 | BL11: =VLOOKUP($W11,$B$3:$I$23,COLUMN()-(COLUMN($BI$2)-1),FALSE)*E$33/SUM($C$33:$I$33)*VLOOKUP($W11,$B$3:$BI$23,(COLUMN($BI$2)-1),FALSE) -> 0 | BM11: =VLOOKUP($W11,$B$3:$I$23,COLUMN()-(COLUMN($BI$2)-1),FALSE)*F$33/SUM($C$33:$I$33)*VLOOKUP($W11,$B$3:$BI$23,(COLUMN($BI$2)-1),FALSE) -> 0 | BN11: =VLOOKUP($W11,$B$3:$I$23,COLUMN()-(COLUMN($BI$2)-1),FALSE)*G$33/SUM($C$33:$I$33)*VLOOKUP($W11,$B$3:$BI$23,(COLUMN($BI$2)-1),FALSE) -> 1.796848762 | BO11: =VLOOKUP($W11,$B$3:$I$23,COLUMN()-(COLUMN($BI$2)-1),FALSE)*H$33/SUM($C$33:$I$33)*VLOOKUP($W11,$B$3:$BI$23,(COLUMN($BI$2)-1),FALSE) -> 2.145160289 | BP11: =VLOOKUP($W11,$B$3:$I$23,COLUMN()-(COLUMN($BI$2)-1),FALSE)*I$33/SUM($C$33:$I$33)*VLOOKUP($W11,$B$3:$BI$23,(COLUMN($BI$2)-1),FALSE) -> 0
A12: 14 | B12: Japan | D12: ='Trade 2011'!F14 -> 5.3982108 | G12: ='Environment 2011'!K14 -> 4.975757192 | H12: ='Security 2011'!J15 -> 3.42258056 | J12: 4.598849517 | K12: 14 | M12: =SUM(IF(ROUND(J12,1)<ROUND($J$3:$J$23,1),1))+1 -> 14 | O12: Japan | P12: =(SUM(IF($J12<$J$3:$J$25*(1-BF$3:BF$25),1))+1)*(1-BF12) ->  | Q12: =(SUM(IF($J12<$J$3:$J$25*(1-BG$3:BG$25),1))+1)*(1-BG12) ->  | R12: =(SUM(IF(ROUND($J12,1)<ROUND($J$3:$J$25,1)*(1-BF$3:BF$25),1))+1)*(1-BF12) ->  | S12: =(SUM(IF(ROUND($J12,1)<ROUND($J$3:$J$25,1)*(1-BG$3:BG$25),1))+1)*(1-BG12) ->  | T12: Japan | U12: 10 | V12: 10 | W12: Spain | X12: 6.154298522 | Y12: 0 | Z12: -10 | BC12: 334.1816627 | BD12: 329.9240509 | BF12: 1 | BG12: 1 | BI12: =ABS(SUM($C12:$I12*$C$33:$I$33)/SUM(IF($C12:$I12>0,$C12:$I12*$C$33:$I$33))) -> 1 | BJ12: =VLOOKUP($W12,$B$3:$I$23,COLUMN()-(COLUMN($BI$2)-1),FALSE)*C$33/SUM($C$33:$I$33)*VLOOKUP($W12,$B$3:$BI$23,(COLUMN($BI$2)-1),FALSE) -> 0 | BK12: =VLOOKUP($W12,$B$3:$I$23,COLUMN()-(COLUMN($BI$2)-1),FALSE)*D$33/SUM($C$33:$I$33)*VLOOKUP($W12,$B$3:$BI$23,(COLUMN($BI$2)-1),FALSE) -> 2.119005791 | BL12: =VLOOKUP($W12,$B$3:$I$23,COLUMN()-(COLUMN($BI$2)-1),FALSE)*E$33/SUM($C$33:$I$33)*VLOOKUP($W12,$B$3:$BI$23,(COLUMN($BI$2)-1),FALSE) -> 0 | BM12: =VLOOKUP($W12,$B$3:$I$23,COLUMN()-(COLUMN($BI$2)-1),FALSE)*F$33/SUM($C$33:$I$33)*VLOOKUP($W12,$B$3:$BI$23,(COLUMN($BI$2)-1),FALSE) -> 0 | BN12: =VLOOKUP($W12,$B$3:$I$23,COLUMN()-(COLUMN($BI$2)-1),FALSE)*G$33/SUM($C$33:$I$33)*VLOOKUP($W12,$B$3:$BI$23,(COLUMN($BI$2)-1),FALSE) -> 2.377989775 | BO12: =VLOOKUP($W12,$B$3:$I$23,COLUMN()-(COLUMN($BI$2)-1),FALSE)*H$33/SUM($C$33:$I$33)*VLOOKUP($W12,$B$3:$BI$23,(COLUMN($BI$2)-1),FALSE) -> 1.657302957 | BP12: =VLOOKUP($W12,$B$3:$I$23,COLUMN()-(COLUMN($BI$2)-1),FALSE)*I$33/SUM($C$33:$I$33)*VLOOKUP($W12,$B$3:$BI$23,(COLUMN($BI$2)-1),FALSE) -> 0
A13: 17 | B13: Mexico | D13: ='Trade 2011'!F15 -> 5.456437917 | G13: ='Environment 2011'!K15 -> 4.853789553 | H13: ='Security 2011'!J16 -> 2.314926255 | J13: 4.208384575 | K13: 17 | M13: =SUM(IF(ROUND(J13,1)<ROUND($J$3:$J$23,1),1))+1 -> 17 | O13: Mexico | P13: =(SUM(IF($J13<$J$3:$J$25*(1-BF$3:BF$25),1))+1)*(1-BF13) ->  | Q13: =(SUM(IF($J13<$J$3:$J$25*(1-BG$3:BG$25),1))+1)*(1-BG13) ->  | R13: =(SUM(IF(ROUND($J13,1)<ROUND($J$3:$J$25,1)*(1-BF$3:BF$25),1))+1)*(1-BF13) ->  | S13: =(SUM(IF(ROUND($J13,1)<ROUND($J$3:$J$25,1)*(1-BG$3:BG$25),1))+1)*(1-BG13) ->  | T13: Mexico | U13: 11 | V13: 11 | W13: Indonesia | X13: 5.001622437 | Y13: 0 | Z13: -11 | BF13: 1 | BG13: 1 | BI13: =ABS(SUM($C13:$I13*$C$33:$I$33)/SUM(IF($C13:$I13>0,$C13:$I13*$C$33:$I$33))) -> 1 | BJ13: =VLOOKUP($W13,$B$3:$I$23,COLUMN()-(COLUMN($BI$2)-1),FALSE)*C$33/SUM($C$33:$I$33)*VLOOKUP($W13,$B$3:$BI$23,(COLUMN($BI$2)-1),FALSE) -> 0 | BK13: =VLOOKUP($W13,$B$3:$I$23,COLUMN()-(COLUMN($BI$2)-1),FALSE)*D$33/SUM($C$33:$I$33)*VLOOKUP($W13,$B$3:$BI$23,(COLUMN($BI$2)-1),FALSE) -> 2.040607069 | BL13: =VLOOKUP($W13,$B$3:$I$23,COLUMN()-(COLUMN($BI$2)-1),FALSE)*E$33/SUM($C$33:$I$33)*VLOOKUP($W13,$B$3:$BI$23,(COLUMN($BI$2)-1),FALSE) -> 0 | BM13: =VLOOKUP($W13,$B$3:$I$23,COLUMN()-(COLUMN($BI$2)-1),FALSE)*F$33/SUM($C$33:$I$33)*VLOOKUP($W13,$B$3:$BI$23,(COLUMN($BI$2)-1),FALSE) -> 0 | BN13: =VLOOKUP($W13,$B$3:$I$23,COLUMN()-(COLUMN($BI$2)-1),FALSE)*G$33/SUM($C$33:$I$33)*VLOOKUP($W13,$B$3:$BI$23,(COLUMN($BI$2)-1),FALSE) -> 2.435448253 | BO13: =VLOOKUP($W13,$B$3:$I$23,COLUMN()-(COLUMN($BI$2)-1),FALSE)*H$33/SUM($C$33:$I$33)*VLOOKUP($W13,$B$3:$BI$23,(COLUMN($BI$2)-1),FALSE) -> 0.5255671147 | BP13: =VLOOKUP($W13,$B$3:$I$23,COLUMN()-(COLUMN($BI$2)-1),FALSE)*I$33/SUM($C$33:$I$33)*VLOOKUP($W13,$B$3:$BI$23,(COLUMN($BI$2)-1),FALSE) -> 0
A14: 4 | B14: Netherlands | D14: ='Trade 2011'!F16 -> 6.606756085 | G14: ='Environment 2011'!K16 -> 7.034133809 | H14: ='Security 2011'!J17 -> 7.87497511 | J14: 7.171955001 | K14: 5 | M14: =SUM(IF(ROUND(J14,1)<ROUND($J$3:$J$23,1),1))+1 -> 4 | O14: Netherlands | P14: =(SUM(IF($J14<$J$3:$J$25*(1-BF$3:BF$25),1))+1)*(1-BF14) ->  | Q14: =(SUM(IF($J14<$J$3:$J$25*(1-BG$3:BG$25),1))+1)*(1-BG14) ->  | R14: =(SUM(IF(ROUND($J14,1)<ROUND($J$3:$J$25,1)*(1-BF$3:BF$25),1))+1)*(1-BF14) ->  | S14: =(SUM(IF(ROUND($J14,1)<ROUND($J$3:$J$25,1)*(1-BG$3:BG$25),1))+1)*(1-BG14) ->  | T14: Netherlands | U14: 12 | V14: 12 | W14: Russia | X14: 4.944159458 | Y14: 0 | Z14: -12 | BC14: 181.1218596 | BD14: 227.1925699 | BF14: 1 | BG14: 1 | BI14: =ABS(SUM($C14:$I14*$C$33:$I$33)/SUM(IF($C14:$I14>0,$C14:$I14*$C$33:$I$33))) -> 1 | BJ14: =VLOOKUP($W14,$B$3:$I$23,COLUMN()-(COLUMN($BI$2)-1),FALSE)*C$33/SUM($C$33:$I$33)*VLOOKUP($W14,$B$3:$BI$23,(COLUMN($BI$2)-1),FALSE) -> 0 | BK14: =VLOOKUP($W14,$B$3:$I$23,COLUMN()-(COLUMN($BI$2)-1),FALSE)*D$33/SUM($C$33:$I$33)*VLOOKUP($W14,$B$3:$BI$23,(COLUMN($BI$2)-1),FALSE) -> 1.351024213 | BL14: =VLOOKUP($W14,$B$3:$I$23,COLUMN()-(COLUMN($BI$2)-1),FALSE)*E$33/SUM($C$33:$I$33)*VLOOKUP($W14,$B$3:$BI$23,(COLUMN($BI$2)-1),FALSE) -> 0 | BM14: =VLOOKUP($W14,$B$3:$I$23,COLUMN()-(COLUMN($BI$2)-1),FALSE)*F$33/SUM($C$33:$I$33)*VLOOKUP($W14,$B$3:$BI$23,(COLUMN($BI$2)-1),FALSE) -> 0 | BN14: =VLOOKUP($W14,$B$3:$I$23,COLUMN()-(COLUMN($BI$2)-1),FALSE)*G$33/SUM($C$33:$I$33)*VLOOKUP($W14,$B$3:$BI$23,(COLUMN($BI$2)-1),FALSE) -> 2.590102137 | BO14: =VLOOKUP($W14,$B$3:$I$23,COLUMN()-(COLUMN($BI$2)-1),FALSE)*H$33/SUM($C$33:$I$33)*VLOOKUP($W14,$B$3:$BI$23,(COLUMN($BI$2)-1),FALSE) -> 1.003033108 | BP14: =VLOOKUP($W14,$B$3:$I$23,COLUMN()-(COLUMN($BI$2)-1),FALSE)*I$33/SUM($C$33:$I$33)*VLOOKUP($W14,$B$3:$BI$23,(COLUMN($BI$2)-1),FALSE) -> 0
A15: 12 | B15: Russia | D15: ='Trade 2011'!F17 -> 4.053072638 | G15: ='Environment 2011'!K17 -> 7.770306411 | H15: ='Security 2011'!J18 -> 3.009099325 | J15: 4.944159458 | K15: 12 | M15: =SUM(IF(ROUND(J15,1)<ROUND($J$3:$J$23,1),1))+1 -> 12 | O15: Russia | P15: =(SUM(IF($J15<$J$3:$J$25*(1-BF$3:BF$25),1))+1)*(1-BF15) ->  | Q15: =(SUM(IF($J15<$J$3:$J$25*(1-BG$3:BG$25),1))+1)*(1-BG15) ->  | R15: =(SUM(IF(ROUND($J15,1)<ROUND($J$3:$J$25,1)*(1-BF$3:BF$25),1))+1)*(1-BF15) ->  | S15: =(SUM(IF(ROUND($J15,1)<ROUND($J$3:$J$25,1)*(1-BG$3:BG$25),1))+1)*(1-BG15) ->  | T15: Russia | U15: 13 | V15: 13 | W15: Turkey | X15: 4.694566652 | Y15: 0 | Z15: -13 | BC15: 1952.973324 | BD15: 2112.780108 | BF15: 1 | BG15: 1 | BI15: =ABS(SUM($C15:$I15*$C$33:$I$33)/SUM(IF($C15:$I15>0,$C15:$I15*$C$33:$I$33))) -> 1 | BJ15: =VLOOKUP($W15,$B$3:$I$23,COLUMN()-(COLUMN($BI$2)-1),FALSE)*C$33/SUM($C$33:$I$33)*VLOOKUP($W15,$B$3:$BI$23,(COLUMN($BI$2)-1),FALSE) -> 0 | BK15: =VLOOKUP($W15,$B$3:$I$23,COLUMN()-(COLUMN($BI$2)-1),FALSE)*D$33/SUM($C$33:$I$33)*VLOOKUP($W15,$B$3:$BI$23,(COLUMN($BI$2)-1),FALSE) -> 0.9650687472 | BL15: =VLOOKUP($W15,$B$3:$I$23,COLUMN()-(COLUMN($BI$2)-1),FALSE)*E$33/SUM($C$33:$I$33)*VLOOKUP($W15,$B$3:$BI$23,(COLUMN($BI$2)-1),FALSE) -> 0 | BM15: =VLOOKUP($W15,$B$3:$I$23,COLUMN()-(COLUMN($BI$2)-1),FALSE)*F$33/SUM($C$33:$I$33)*VLOOKUP($W15,$B$3:$BI$23,(COLUMN($BI$2)-1),FALSE) -> 0 | BN15: =VLOOKUP($W15,$B$3:$I$23,COLUMN()-(COLUMN($BI$2)-1),FALSE)*G$33/SUM($C$33:$I$33)*VLOOKUP($W15,$B$3:$BI$23,(COLUMN($BI$2)-1),FALSE) -> 2.511945466 | BO15: =VLOOKUP($W15,$B$3:$I$23,COLUMN()-(COLUMN($BI$2)-1),FALSE)*H$33/SUM($C$33:$I$33)*VLOOKUP($W15,$B$3:$BI$23,(COLUMN($BI$2)-1),FALSE) -> 1.217552439 | BP15: =VLOOKUP($W15,$B$3:$I$23,COLUMN()-(COLUMN($BI$2)-1),FALSE)*I$33/SUM($C$33:$I$33)*VLOOKUP($W15,$B$3:$BI$23,(COLUMN($BI$2)-1),FALSE) -> 0
A16: 18 | B16: Saudi Arabia | D16: ='Trade 2011'!F18 -> 7.364638328 | G16: ='Environment 2011'!K18 -> 0.6842209031 | H16: ='Security 2011'!J19 -> 1.219156449 | J16: 3.08933856 | K16: 18 | M16: =SUM(IF(ROUND(J16,1)<ROUND($J$3:$J$23,1),1))+1 -> 18 | O16: Saudi Arabia | P16: =(SUM(IF($J16<$J$3:$J$25*(1-BF$3:BF$25),1))+1)*(1-BF16) ->  | Q16: =(SUM(IF($J16<$J$3:$J$25*(1-BG$3:BG$25),1))+1)*(1-BG16) ->  | R16: =(SUM(IF(ROUND($J16,1)<ROUND($J$3:$J$25,1)*(1-BF$3:BF$25),1))+1)*(1-BF16) ->  | S16: =(SUM(IF(ROUND($J16,1)<ROUND($J$3:$J$25,1)*(1-BG$3:BG$25),1))+1)*(1-BG16) ->  | T16: Saudi Arabia | U16: 14 | V16: 14 | W16: Japan | X16: 4.598849517 | Y16: 0 | Z16: -14 | BC16: 4135.294075 | BD16: 5068.996215 | BF16: 0 | BG16: 0 | BI16: =ABS(SUM($C16:$I16*$C$33:$I$33)/SUM(IF($C16:$I16>0,$C16:$I16*$C$33:$I$33))) -> 1 | BJ16: =VLOOKUP($W16,$B$3:$I$23,COLUMN()-(COLUMN($BI$2)-1),FALSE)*C$33/SUM($C$33:$I$33)*VLOOKUP($W16,$B$3:$BI$23,(COLUMN($BI$2)-1),FALSE) -> 0 | BK16: =VLOOKUP($W16,$B$3:$I$23,COLUMN()-(COLUMN($BI$2)-1),FALSE)*D$33/SUM($C$33:$I$33)*VLOOKUP($W16,$B$3:$BI$23,(COLUMN($BI$2)-1),FALSE) -> 1.7994036 | BL16: =VLOOKUP($W16,$B$3:$I$23,COLUMN()-(COLUMN($BI$2)-1),FALSE)*E$33/SUM($C$33:$I$33)*VLOOKUP($W16,$B$3:$BI$23,(COLUMN($BI$2)-1),FALSE) -> 0 | BM16: =VLOOKUP($W16,$B$3:$I$23,COLUMN()-(COLUMN($BI$2)-1),FALSE)*F$33/SUM($C$33:$I$33)*VLOOKUP($W16,$B$3:$BI$23,(COLUMN($BI$2)-1),FALSE) -> 0 | BN16: =VLOOKUP($W16,$B$3:$I$23,COLUMN()-(COLUMN($BI$2)-1),FALSE)*G$33/SUM($C$33:$I$33)*VLOOKUP($W16,$B$3:$BI$23,(COLUMN($BI$2)-1),FALSE) -> 1.658585731 | BO16: =VLOOKUP($W16,$B$3:$I$23,COLUMN()-(COLUMN($BI$2)-1),FALSE)*H$33/SUM($C$33:$I$33)*VLOOKUP($W16,$B$3:$BI$23,(COLUMN($BI$2)-1),FALSE) -> 1.140860187 | BP16: =VLOOKUP($W16,$B$3:$I$23,COLUMN()-(COLUMN($BI$2)-1),FALSE)*I$33/SUM($C$33:$I$33)*VLOOKUP($W16,$B$3:$BI$23,(COLUMN($BI$2)-1),FALSE) -> 0
A17: 19 | B17: South Korea | D17: ='Trade 2011'!F19 -> 1.718885557 | G17: ='Environment 2011'!K19 -> 5.173179919 | H17: ='Security 2011'!J20 -> 2.245763078 | J17: 3.045942851 | K17: 19 | M17: =SUM(IF(ROUND(J17,1)<ROUND($J$3:$J$23,1),1))+1 -> 19 | O17: South Korea | P17: =(SUM(IF($J17<$J$3:$J$25*(1-BF$3:BF$25),1))+1)*(1-BF17) ->  | Q17: =(SUM(IF($J17<$J$3:$J$25*(1-BG$3:BG$25),1))+1)*(1-BG17) ->  | R17: =(SUM(IF(ROUND($J17,1)<ROUND($J$3:$J$25,1)*(1-BF$3:BF$25),1))+1)*(1-BF17) ->  | S17: =(SUM(IF(ROUND($J17,1)<ROUND($J$3:$J$25,1)*(1-BG$3:BG$25),1))+1)*(1-BG17) ->  | T17: South Korea | U17: 15 | V17: 15 | W17: Brazil | X17: 4.526970325 | Y17: 0 | Z17: -15 | BF17: 1 | BG17: 1 | BI17: =ABS(SUM($C17:$I17*$C$33:$I$33)/SUM(IF($C17:$I17>0,$C17:$I17*$C$33:$I$33))) -> 1 | BJ17: =VLOOKUP($W17,$B$3:$I$23,COLUMN()-(COLUMN($BI$2)-1),FALSE)*C$33/SUM($C$33:$I$33)*VLOOKUP($W17,$B$3:$BI$23,(COLUMN($BI$2)-1),FALSE) -> 0 | BK17: =VLOOKUP($W17,$B$3:$I$23,COLUMN()-(COLUMN($BI$2)-1),FALSE)*D$33/SUM($C$33:$I$33)*VLOOKUP($W17,$B$3:$BI$23,(COLUMN($BI$2)-1),FALSE) -> 1.198829062 | BL17: =VLOOKUP($W17,$B$3:$I$23,COLUMN()-(COLUMN($BI$2)-1),FALSE)*E$33/SUM($C$33:$I$33)*VLOOKUP($W17,$B$3:$BI$23,(COLUMN($BI$2)-1),FALSE) -> 0 | BM17: =VLOOKUP($W17,$B$3:$I$23,COLUMN()-(COLUMN($BI$2)-1),FALSE)*F$33/SUM($C$33:$I$33)*VLOOKUP($W17,$B$3:$BI$23,(COLUMN($BI$2)-1),FALSE) -> 0 | BN17: =VLOOKUP($W17,$B$3:$I$23,COLUMN()-(COLUMN($BI$2)-1),FALSE)*G$33/SUM($C$33:$I$33)*VLOOKUP($W17,$B$3:$BI$23,(COLUMN($BI$2)-1),FALSE) -> 2.523003447 | BO17: =VLOOKUP($W17,$B$3:$I$23,COLUMN()-(COLUMN($BI$2)-1),FALSE)*H$33/SUM($C$33:$I$33)*VLOOKUP($W17,$B$3:$BI$23,(COLUMN($BI$2)-1),FALSE) -> 0.8051378164 | BP17: =VLOOKUP($W17,$B$3:$I$23,COLUMN()-(COLUMN($BI$2)-1),FALSE)*I$33/SUM($C$33:$I$33)*VLOOKUP($W17,$B$3:$BI$23,(COLUMN($BI$2)-1),FALSE) -> 0
A18: 10 | B18: Spain | D18: ='Trade 2011'!F20 -> 6.357017372 | G18: ='Environment 2011'!K20 -> 7.133969324 | H18: ='Security 2011'!J21 -> 4.971908871 | J18: 6.154298522 | K18: 10 | M18: =SUM(IF(ROUND(J18,1)<ROUND($J$3:$J$23,1),1))+1 -> 10 | O18: Spain | P18: =(SUM(IF($J18<$J$3:$J$25*(1-BF$3:BF$25),1))+1)*(1-BF18) ->  | Q18: =(SUM(IF($J18<$J$3:$J$25*(1-BG$3:BG$25),1))+1)*(1-BG18) ->  | R18: =(SUM(IF(ROUND($J18,1)<ROUND($J$3:$J$25,1)*(1-BF$3:BF$25),1))+1)*(1-BF18) ->  | S18: =(SUM(IF(ROUND($J18,1)<ROUND($J$3:$J$25,1)*(1-BG$3:BG$25),1))+1)*(1-BG18) ->  | T18: Spain | U18: 16 | V18: 16 | W18: Switzerland | X18: 4.277081382 | Y18: 0 | Z18: -16 | BC18: 672.4287201 | BD18: 792.128258 | BF18: 1 | BG18: 1 | BI18: =ABS(SUM($C18:$I18*$C$33:$I$33)/SUM(IF($C18:$I18>0,$C18:$I18*$C$33:$I$33))) -> 1 | BJ18: =VLOOKUP($W18,$B$3:$I$23,COLUMN()-(COLUMN($BI$2)-1),FALSE)*C$33/SUM($C$33:$I$33)*VLOOKUP($W18,$B$3:$BI$23,(COLUMN($BI$2)-1),FALSE) -> 0 | BK18: =VLOOKUP($W18,$B$3:$I$23,COLUMN()-(COLUMN($BI$2)-1),FALSE)*D$33/SUM($C$33:$I$33)*VLOOKUP($W18,$B$3:$BI$23,(COLUMN($BI$2)-1),FALSE) -> 0.5482293083 | BL18: =VLOOKUP($W18,$B$3:$I$23,COLUMN()-(COLUMN($BI$2)-1),FALSE)*E$33/SUM($C$33:$I$33)*VLOOKUP($W18,$B$3:$BI$23,(COLUMN($BI$2)-1),FALSE) -> 0 | BM18: =VLOOKUP($W18,$B$3:$I$23,COLUMN()-(COLUMN($BI$2)-1),FALSE)*F$33/SUM($C$33:$I$33)*VLOOKUP($W18,$B$3:$BI$23,(COLUMN($BI$2)-1),FALSE) -> 0 | BN18: =VLOOKUP($W18,$B$3:$I$23,COLUMN()-(COLUMN($BI$2)-1),FALSE)*G$33/SUM($C$33:$I$33)*VLOOKUP($W18,$B$3:$BI$23,(COLUMN($BI$2)-1),FALSE) -> 1.822538254 | BO18: =VLOOKUP($W18,$B$3:$I$23,COLUMN()-(COLUMN($BI$2)-1),FALSE)*H$33/SUM($C$33:$I$33)*VLOOKUP($W18,$B$3:$BI$23,(COLUMN($BI$2)-1),FALSE) -> 1.90631382 | BP18: =VLOOKUP($W18,$B$3:$I$23,COLUMN()-(COLUMN($BI$2)-1),FALSE)*I$33/SUM($C$33:$I$33)*VLOOKUP($W18,$B$3:$BI$23,(COLUMN($BI$2)-1),FALSE) -> 0
A19: 4 | B19: Sweden | D19: ='Trade 2011'!F21 -> 6.619259636 | G19: ='Environment 2011'!K21 -> 7.9126531 | H19: ='Security 2011'!J22 -> 7.169183361 | J19: 7.233698699 | K19: 4 | M19: =SUM(IF(ROUND(J19,1)<ROUND($J$3:$J$23,1),1))+1 -> 4 | O19: Sweden | P19: =(SUM(IF($J19<$J$3:$J$25*(1-BF$3:BF$25),1))+1)*(1-BF19) ->  | Q19: =(SUM(IF($J19<$J$3:$J$25*(1-BG$3:BG$25),1))+1)*(1-BG19) ->  | R19: =(SUM(IF(ROUND($J19,1)<ROUND($J$3:$J$25,1)*(1-BF$3:BF$25),1))+1)*(1-BF19) ->  | S19: =(SUM(IF(ROUND($J19,1)<ROUND($J$3:$J$25,1)*(1-BG$3:BG$25),1))+1)*(1-BG19) ->  | T19: Sweden | U19: 17 | V19: 17 | W19: Mexico | X19: 4.208384575 | Y19: 0 | Z19: -17 | BC19: 125.1299164 | BD19: 126.6792612 | BF19: 0 | BG19: 0 | BI19: =ABS(SUM($C19:$I19*$C$33:$I$33)/SUM(IF($C19:$I19>0,$C19:$I19*$C$33:$I$33))) -> 1 | BJ19: =VLOOKUP($W19,$B$3:$I$23,COLUMN()-(COLUMN($BI$2)-1),FALSE)*C$33/SUM($C$33:$I$33)*VLOOKUP($W19,$B$3:$BI$23,(COLUMN($BI$2)-1),FALSE) -> 0 | BK19: =VLOOKUP($W19,$B$3:$I$23,COLUMN()-(COLUMN($BI$2)-1),FALSE)*D$33/SUM($C$33:$I$33)*VLOOKUP($W19,$B$3:$BI$23,(COLUMN($BI$2)-1),FALSE) -> 1.818812639 | BL19: =VLOOKUP($W19,$B$3:$I$23,COLUMN()-(COLUMN($BI$2)-1),FALSE)*E$33/SUM($C$33:$I$33)*VLOOKUP($W19,$B$3:$BI$23,(COLUMN($BI$2)-1),FALSE) -> 0 | BM19: =VLOOKUP($W19,$B$3:$I$23,COLUMN()-(COLUMN($BI$2)-1),FALSE)*F$33/SUM($C$33:$I$33)*VLOOKUP($W19,$B$3:$BI$23,(COLUMN($BI$2)-1),FALSE) -> 0 | BN19: =VLOOKUP($W19,$B$3:$I$23,COLUMN()-(COLUMN($BI$2)-1),FALSE)*G$33/SUM($C$33:$I$33)*VLOOKUP($W19,$B$3:$BI$23,(COLUMN($BI$2)-1),FALSE) -> 1.617929851 | BO19: =VLOOKUP($W19,$B$3:$I$23,COLUMN()-(COLUMN($BI$2)-1),FALSE)*H$33/SUM($C$33:$I$33)*VLOOKUP($W19,$B$3:$BI$23,(COLUMN($BI$2)-1),FALSE) -> 0.771642085 | BP19: =VLOOKUP($W19,$B$3:$I$23,COLUMN()-(COLUMN($BI$2)-1),FALSE)*I$33/SUM($C$33:$I$33)*VLOOKUP($W19,$B$3:$BI$23,(COLUMN($BI$2)-1),FALSE) -> 0
A20: 16 | B20: Switzerland | D20: ='Trade 2011'!F22 -> 1.644687925 | G20: ='Environment 2011'!K22 -> 5.467614763 | H20: ='Security 2011'!J23 -> 5.71894146 | J20: 4.277081382 | K20: 16 | M20: =SUM(IF(ROUND(J20,1)<ROUND($J$3:$J$23,1),1))+1 -> 16 | O20: Switzerland | P20: =(SUM(IF($J20<$J$3:$J$25*(1-BF$3:BF$25),1))+1)*(1-BF20) ->  | Q20: =(SUM(IF($J20<$J$3:$J$25*(1-BG$3:BG$25),1))+1)*(1-BG20) ->  | R20: =(SUM(IF(ROUND($J20,1)<ROUND($J$3:$J$25,1)*(1-BF$3:BF$25),1))+1)*(1-BF20) ->  | S20: =(SUM(IF(ROUND($J20,1)<ROUND($J$3:$J$25,1)*(1-BG$3:BG$25),1))+1)*(1-BG20) ->  | T20: Switzerland | U20: 18 | V20: 18 | W20: Saudi Arabia | X20: 3.08933856 | Y20: 0 | Z20: -18 | BC20: 271.3447956 | BD20: 381.7662382 | BF20: 0 | BG20: 1 | BI20: =ABS(SUM($C20:$I20*$C$33:$I$33)/SUM(IF($C20:$I20>0,$C20:$I20*$C$33:$I$33))) -> 1 | BJ20: =VLOOKUP($W20,$B$3:$I$23,COLUMN()-(COLUMN($BI$2)-1),FALSE)*C$33/SUM($C$33:$I$33)*VLOOKUP($W20,$B$3:$BI$23,(COLUMN($BI$2)-1),FALSE) -> 0 | BK20: =VLOOKUP($W20,$B$3:$I$23,COLUMN()-(COLUMN($BI$2)-1),FALSE)*D$33/SUM($C$33:$I$33)*VLOOKUP($W20,$B$3:$BI$23,(COLUMN($BI$2)-1),FALSE) -> 2.454879443 | BL20: =VLOOKUP($W20,$B$3:$I$23,COLUMN()-(COLUMN($BI$2)-1),FALSE)*E$33/SUM($C$33:$I$33)*VLOOKUP($W20,$B$3:$BI$23,(COLUMN($BI$2)-1),FALSE) -> 0 | BM20: =VLOOKUP($W20,$B$3:$I$23,COLUMN()-(COLUMN($BI$2)-1),FALSE)*F$33/SUM($C$33:$I$33)*VLOOKUP($W20,$B$3:$BI$23,(COLUMN($BI$2)-1),FALSE) -> 0 | BN20: =VLOOKUP($W20,$B$3:$I$23,COLUMN()-(COLUMN($BI$2)-1),FALSE)*G$33/SUM($C$33:$I$33)*VLOOKUP($W20,$B$3:$BI$23,(COLUMN($BI$2)-1),FALSE) -> 0.2280736344 | BO20: =VLOOKUP($W20,$B$3:$I$23,COLUMN()-(COLUMN($BI$2)-1),FALSE)*H$33/SUM($C$33:$I$33)*VLOOKUP($W20,$B$3:$BI$23,(COLUMN($BI$2)-1),FALSE) -> 0.4063854831 | BP20: =VLOOKUP($W20,$B$3:$I$23,COLUMN()-(COLUMN($BI$2)-1),FALSE)*I$33/SUM($C$33:$I$33)*VLOOKUP($W20,$B$3:$BI$23,(COLUMN($BI$2)-1),FALSE) -> 0
A21: 13 | B21: Turkey | D21: ='Trade 2011'!F23 -> 2.895206242 | G21: ='Environment 2011'!K23 -> 7.535836397 | H21: ='Security 2011'!J24 -> 3.652657317 | J21: 4.694566652 | K21: 13 | M21: =SUM(IF(ROUND(J21,1)<ROUND($J$3:$J$23,1),1))+1 -> 13 | O21: Turkey | P21: =(SUM(IF($J21<$J$3:$J$25*(1-BF$3:BF$25),1))+1)*(1-BF21) ->  | Q21: =(SUM(IF($J21<$J$3:$J$25*(1-BG$3:BG$25),1))+1)*(1-BG21) ->  | R21: =(SUM(IF(ROUND($J21,1)<ROUND($J$3:$J$25,1)*(1-BF$3:BF$25),1))+1)*(1-BF21) ->  | S21: =(SUM(IF(ROUND($J21,1)<ROUND($J$3:$J$25,1)*(1-BG$3:BG$25),1))+1)*(1-BG21) ->  | T21: Turkey | U21: 19 | V21: 19 | W21: South Korea | X21: 3.045942851 | Y21: 0 | Z21: -19 | BF21: 1 | BG21: 1 | BI21: =ABS(SUM($C21:$I21*$C$33:$I$33)/SUM(IF($C21:$I21>0,$C21:$I21*$C$33:$I$33))) -> 1 | BJ21: =VLOOKUP($W21,$B$3:$I$23,COLUMN()-(COLUMN($BI$2)-1),FALSE)*C$33/SUM($C$33:$I$33)*VLOOKUP($W21,$B$3:$BI$23,(COLUMN($BI$2)-1),FALSE) -> 0 | BK21: =VLOOKUP($W21,$B$3:$I$23,COLUMN()-(COLUMN($BI$2)-1),FALSE)*D$33/SUM($C$33:$I$33)*VLOOKUP($W21,$B$3:$BI$23,(COLUMN($BI$2)-1),FALSE) -> 0.5729618523 | BL21: =VLOOKUP($W21,$B$3:$I$23,COLUMN()-(COLUMN($BI$2)-1),FALSE)*E$33/SUM($C$33:$I$33)*VLOOKUP($W21,$B$3:$BI$23,(COLUMN($BI$2)-1),FALSE) -> 0 | BM21: =VLOOKUP($W21,$B$3:$I$23,COLUMN()-(COLUMN($BI$2)-1),FALSE)*F$33/SUM($C$33:$I$33)*VLOOKUP($W21,$B$3:$BI$23,(COLUMN($BI$2)-1),FALSE) -> 0 | BN21: =VLOOKUP($W21,$B$3:$I$23,COLUMN()-(COLUMN($BI$2)-1),FALSE)*G$33/SUM($C$33:$I$33)*VLOOKUP($W21,$B$3:$BI$23,(COLUMN($BI$2)-1),FALSE) -> 1.724393306 | BO21: =VLOOKUP($W21,$B$3:$I$23,COLUMN()-(COLUMN($BI$2)-1),FALSE)*H$33/SUM($C$33:$I$33)*VLOOKUP($W21,$B$3:$BI$23,(COLUMN($BI$2)-1),FALSE) -> 0.7485876926 | BP21: =VLOOKUP($W21,$B$3:$I$23,COLUMN()-(COLUMN($BI$2)-1),FALSE)*I$33/SUM($C$33:$I$33)*VLOOKUP($W21,$B$3:$BI$23,(COLUMN($BI$2)-1),FALSE) -> 0
A22: 1 | B22: United Kingdom | D22: ='Trade 2011'!F24 -> 6.4097237 | G22: ='Environment 2011'!K24 -> 7.465683503 | H22: ='Security 2011'!J25 -> 10.28133266 | J22: 8.052246622 | K22: 1 | M22: =SUM(IF(ROUND(J22,1)<ROUND($J$3:$J$23,1),1))+1 -> 1 | O22: United Kingdom | P22: =(SUM(IF($J22<$J$3:$J$25*(1-BF$3:BF$25),1))+1)*(1-BF22) ->  | Q22: =(SUM(IF($J22<$J$3:$J$25*(1-BG$3:BG$25),1))+1)*(1-BG22) ->  | R22: =(SUM(IF(ROUND($J22,1)<ROUND($J$3:$J$25,1)*(1-BF$3:BF$25),1))+1)*(1-BF22) ->  | S22: =(SUM(IF(ROUND($J22,1)<ROUND($J$3:$J$25,1)*(1-BG$3:BG$25),1))+1)*(1-BG22) ->  | T22: United Kingdom | U22: 20 | V22: 20 | W22: China | X22: 2.935861907 | Y22: 0 | Z22: -20 | BC22: 264.9464832 | BD22: 232.8736891 | BF22: 1 | BG22: 1 | BI22: =ABS(SUM($C22:$I22*$C$33:$I$33)/SUM(IF($C22:$I22>0,$C22:$I22*$C$33:$I$33))) -> 1 | BJ22: =VLOOKUP($W22,$B$3:$I$23,COLUMN()-(COLUMN($BI$2)-1),FALSE)*C$33/SUM($C$33:$I$33)*VLOOKUP($W22,$B$3:$BI$23,(COLUMN($BI$2)-1),FALSE) -> 0 | BK22: =VLOOKUP($W22,$B$3:$I$23,COLUMN()-(COLUMN($BI$2)-1),FALSE)*D$33/SUM($C$33:$I$33)*VLOOKUP($W22,$B$3:$BI$23,(COLUMN($BI$2)-1),FALSE) -> 0.4297876208 | BL22: =VLOOKUP($W22,$B$3:$I$23,COLUMN()-(COLUMN($BI$2)-1),FALSE)*E$33/SUM($C$33:$I$33)*VLOOKUP($W22,$B$3:$BI$23,(COLUMN($BI$2)-1),FALSE) -> 0 | BM22: =VLOOKUP($W22,$B$3:$I$23,COLUMN()-(COLUMN($BI$2)-1),FALSE)*F$33/SUM($C$33:$I$33)*VLOOKUP($W22,$B$3:$BI$23,(COLUMN($BI$2)-1),FALSE) -> 0 | BN22: =VLOOKUP($W22,$B$3:$I$23,COLUMN()-(COLUMN($BI$2)-1),FALSE)*G$33/SUM($C$33:$I$33)*VLOOKUP($W22,$B$3:$BI$23,(COLUMN($BI$2)-1),FALSE) -> 2.047935397 | BO22: =VLOOKUP($W22,$B$3:$I$23,COLUMN()-(COLUMN($BI$2)-1),FALSE)*H$33/SUM($C$33:$I$33)*VLOOKUP($W22,$B$3:$BI$23,(COLUMN($BI$2)-1),FALSE) -> 0.4581388894 | BP22: =VLOOKUP($W22,$B$3:$I$23,COLUMN()-(COLUMN($BI$2)-1),FALSE)*I$33/SUM($C$33:$I$33)*VLOOKUP($W22,$B$3:$BI$23,(COLUMN($BI$2)-1),FALSE) -> 0
A23: 7 | B23: United States | D23: ='Trade 2011'!F25 -> 8.319456941 | G23: ='Environment 2011'!K25 -> 4.853597897 | H23: ='Security 2011'!J26 -> 5.737119362 | J23: 6.3033914 | K23: 8 | M23: =SUM(IF(ROUND(J23,1)<ROUND($J$3:$J$23,1),1))+1 -> 7 | O23: United States | P23: =(SUM(IF($J23<$J$3:$J$25*(1-BF$3:BF$25),1))+1)*(1-BF23) ->  | Q23: =(SUM(IF($J23<$J$3:$J$25*(1-BG$3:BG$25),1))+1)*(1-BG23) ->  | R23: =(SUM(IF(ROUND($J23,1)<ROUND($J$3:$J$25,1)*(1-BF$3:BF$25),1))+1)*(1-BF23) ->  | S23: =(SUM(IF(ROUND($J23,1)<ROUND($J$3:$J$25,1)*(1-BG$3:BG$25),1))+1)*(1-BG23) ->  | T23: United States | U23: 21 | V23: 21 | W23: India | X23: 2.832752658 | Y23: 0 | Z23: -21 | BF23: 1 | BG23: 1 | BI23: =ABS(SUM($C23:$I23*$C$33:$I$33)/SUM(IF($C23:$I23>0,$C23:$I23*$C$33:$I$33))) -> 1 | BJ23: =VLOOKUP($W23,$B$3:$I$23,COLUMN()-(COLUMN($BI$2)-1),FALSE)*C$33/SUM($C$33:$I$33)*VLOOKUP($W23,$B$3:$BI$23,(COLUMN($BI$2)-1),FALSE) -> 0 | BK23: =VLOOKUP($W23,$B$3:$I$23,COLUMN()-(COLUMN($BI$2)-1),FALSE)*D$33/SUM($C$33:$I$33)*VLOOKUP($W23,$B$3:$BI$23,(COLUMN($BI$2)-1),FALSE) -> -0.634670411 | BL23: =VLOOKUP($W23,$B$3:$I$23,COLUMN()-(COLUMN($BI$2)-1),FALSE)*E$33/SUM($C$33:$I$33)*VLOOKUP($W23,$B$3:$BI$23,(COLUMN($BI$2)-1),FALSE) -> 0 | BM23: =VLOOKUP($W23,$B$3:$I$23,COLUMN()-(COLUMN($BI$2)-1),FALSE)*F$33/SUM($C$33:$I$33)*VLOOKUP($W23,$B$3:$BI$23,(COLUMN($BI$2)-1),FALSE) -> 0 | BN23: =VLOOKUP($W23,$B$3:$I$23,COLUMN()-(COLUMN($BI$2)-1),FALSE)*G$33/SUM($C$33:$I$33)*VLOOKUP($W23,$B$3:$BI$23,(COLUMN($BI$2)-1),FALSE) -> 2.224944624 | BO23: =VLOOKUP($W23,$B$3:$I$23,COLUMN()-(COLUMN($BI$2)-1),FALSE)*H$33/SUM($C$33:$I$33)*VLOOKUP($W23,$B$3:$BI$23,(COLUMN($BI$2)-1),FALSE) -> 0.6078080335 | BP23: =VLOOKUP($W23,$B$3:$I$23,COLUMN()-(COLUMN($BI$2)-1),FALSE)*I$33/SUM($C$33:$I$33)*VLOOKUP($W23,$B$3:$BI$23,(COLUMN($BI$2)-1),FALSE) -> 0
B24: EU | D24: ='Trade 2011'!G32 -> 0 | G24: ='Environment 2011'!K32 -> 0 | H24: ='Security 2011'!J27 ->  | P24: =(SUM(IF($J24<$J$3:$J$25*(1-BF$3:BF$25),1))+1)*(1-BF24) ->  | R24: =(SUM(IF(ROUND($J24,1)<ROUND($J$3:$J$25,1)*(1-BF$3:BF$25),1))+1)*(1-BF24) ->  | T24: EU | BG24: 1
B25: Europe | D25: ='Trade 2011'!G33 -> 0 | G25: ='Environment 2011'!K33 -> 0 | H25: ='Security 2011'!J28 ->  | P25: =(SUM(IF($J25<$J$3:$J$25*(1-BF$3:BF$25),1))+1)*(1-BF25) ->  | Q25: =(SUM(IF($J25<$J$3:$J$25*(1-BG$3:BG$25),1))+1)*(1-BG25) ->  | R25: =(SUM(IF(ROUND($J25,1)<ROUND($J$3:$J$25,1)*(1-BF$3:BF$25),1))+1)*(1-BF25) ->  | S25: =(SUM(IF(ROUND($J25,1)<ROUND($J$3:$J$25,1)*(1-BG$3:BG$25),1))+1)*(1-BG25) ->  | T25: Europe | BF25: 1
R26: =(SUM(IF(#REF!<$J$3:$J$25*(1-BF$3:BF$25),1))+1)*(1-#REF!) -> 
B27: Average | C27: =AVERAGE(C3:C23) ->  | D27: 5.03934765 | G27: 6.23187267 | H27: 4.946491461 | J27: 5.405903927 | U27: 1
B28: Standard dev. | C28: =STDEVP(C3:C23) ->  | D28: 2.641019213 | G28: 1.748859604 | H28: 2.834825116 | J28: 1.630688581 | U28: 2
U29: 3
B30: Lowest | C30: =MIN(C3:C23) -> 0 | D30: -2.453772095 | E30: 0 | F30: 0 | G30: 0.6842209031 | H30: 1.219156449 | I30: 0 | J30: 2.832752658 | U30: 4
B31: Highest | C31: =MAX(C3:C23) -> 0 | D31: 8.319456941 | E31: 0 | F31: 0 | G31: 8.602113693 | H31: 10.63449586 | I31: 0 | J31: 8.052246622 | U31: 5
U32: 6
B33: Weight | C33: 0 | D33: 1 | E33: 0 | F33: 0 | G33: 1 | H33: 1 | I33: 0 | U33: 7
U34: 8
U35: 9
U38: 1
U39: 2
U40: 3
U41: 4
U42: 5
U43: 6
U44: 7
A67: =INT(RIGHT(CELL("filename",A1),4)) -> 2011

Sheet Index 2010
A1: =Index_long_name&" "&Region_name&IF(Region_name="",""," ")&Year -> Global Citizenship Index 2010 | V1: Standings | Y1: One-year change, latest methodology | AB1: Standings/EU as one | AM1: Standings/Europe as one | BF1: EU countries | BG1: Europe countries
A2: Rank | B2: Country | C2: Aid | D2: Trade | E2: Investment | F2: Migration | G2: Environment | H2: Security | I2: Technology | J2: Overall (Average) | K2: True rank | L2: 2010-11 score change | M2: Rank | N2: 2009 rank (2010 method) | P2: True rank/EU | Q2: True rank/Europe | R2: Rank/EU | S2: Rank/Europe | W2: Country | X2: Score | Y2: Score | Z2: Rank | AC2: Country | AD2: Aid | AE2: Trade | AF2: Investment | AG2: Migration | AH2: Environment | AI2: Security | AJ2: Technology | AK2: Overall (Average) | AN2: Country | AO2: Aid | AP2: Trade | AQ2: Investment | AR2: Migration | AS2: Environment | AT2: Security | AU2: Technology | AV2: Overall (Average) | BC2: PPP GDP | BD2: Exchange-rate GDP | BI2: Graphing scale factor to deal with negative scores, alpha by country
A3: =M3 -> 2 | B3: Australia | D3: ='Trade 2010'!F5 -> 8.229260986 | G3: ='Environment 2010'!K5 -> 3.722903678 | H3: ='Security 2010'!J6 -> 11.15101209 | J3: =SUMPRODUCT(C3:I3,$C$33:$I$33)/SUM($C$33:$I$33) -> 7.701058917 | K3: =COUNTIF($J$3:$J$23,">"&J3)+1 -> 2 | M3: =SUM(IF(ROUND(J3,1)<ROUND($J$3:$J$23,1),1))+1 -> 2 | O3: =B3 -> Australia | P3: =(SUM(IF($J3<$J$3:$J$25*(1-BF$3:BF$25),1))+1)*(1-BF3) ->  | Q3: =(SUM(IF($J3<$J$3:$J$25*(1-BG$3:BG$25),1))+1)*(1-BG3) ->  | R3: =(SUM(IF(ROUND($J3,1)<ROUND($J$3:$J$25,1)*(1-BF$3:BF$25),1))+1)*(1-BF3) ->  | S3: =(SUM(IF(ROUND($J3,1)<ROUND($J$3:$J$25,1)*(1-BG$3:BG$25),1))+1)*(1-BG3) ->  | T3: =B3 -> Australia | U3: =ROW(U3)-ROW($U$2) -> 1 | V3: =VLOOKUP(U3,$K$3:$O$23,3,FALSE) -> 1 | W3: =VLOOKUP(U3,$K$3:$O$23,5,FALSE) -> United Kingdom | X3: =VLOOKUP(W3,$B$3:$O$23,9,FALSE) -> 7.874893269 | Y3: =VLOOKUP(W3,$B$3:$O$23,11,FALSE) -> 0 | Z3: =VLOOKUP(U3,$K$3:$O$23,4,FALSE)-V3 -> -1 | AB3: =VLOOKUP(U27,$P$3:$U$25,3,FALSE) ->  | AC3: =VLOOKUP(U27,$P$3:$U$25,5,FALSE) ->  | AD3: =VLOOKUP($AC3,$B$3:$O$25,2,FALSE) ->  | AE3: =VLOOKUP($AC3,$B$3:$O$25,3,FALSE) ->  | AF3: =VLOOKUP($AC3,$B$3:$O$25,4,FALSE) ->  | AG3: =VLOOKUP($AC3,$B$3:$O$25,5,FALSE) ->  | AH3: =VLOOKUP($AC3,$B$3:$O$25,6,FALSE) ->  | AI3: =VLOOKUP($AC3,$B$3:$O$25,7,FALSE) ->  | AJ3: =VLOOKUP($AC3,$B$3:$O$25,8,FALSE) ->  | AK3: =VLOOKUP($AC3,$B$3:$O$25,9,FALSE) ->  | AM3: =VLOOKUP(U38,$Q$3:$V$25,3,FALSE) ->  | AN3: =VLOOKUP(U38,$Q$3:$V$25,4,FALSE) ->  | AO3: =VLOOKUP($AN3,$B$3:$O$25,2,FALSE) ->  | AP3: =VLOOKUP($AN3,$B$3:$O$25,3,FALSE) ->  | AQ3: =VLOOKUP($AN3,$B$3:$O$25,4,FALSE) ->  | AR3: =VLOOKUP($AN3,$B$3:$O$25,5,FALSE) ->  | AS3: =VLOOKUP($AN3,$B$3:$O$25,6,FALSE) ->  | AT3: =VLOOKUP($AN3,$B$3:$O$25,7,FALSE) ->  | AU3: =VLOOKUP($AN3,$B$3:$O$25,8,FALSE) ->  | AV3: =VLOOKUP(AN3,$B$3:$O$25,9,FALSE) ->  | BC3: 864.9146368 | BD3: 924.8431145 | BF3: 0 | BG3: 0 | BI3: =ABS(SUM($C3:$I3*$C$33:$I$33)/SUM(IF($C3:$I3>0,$C3:$I3*$C$33:$I$33))) -> 1 | BJ3: =VLOOKUP($W3,$B$3:$I$23,COLUMN()-(COLUMN($BI$2)-1),FALSE)*C$33/SUM($C$33:$I$33)*VLOOKUP($W3,$B$3:$BI$23,(COLUMN($BI$2)-1),FALSE) -> 0 | BK3: =VLOOKUP($W3,$B$3:$I$23,COLUMN()-(COLUMN($BI$2)-1),FALSE)*D$33/SUM($C$33:$I$33)*VLOOKUP($W3,$B$3:$BI$23,(COLUMN($BI$2)-1),FALSE) -> 2.124099919 | BL3: =VLOOKUP($W3,$B$3:$I$23,COLUMN()-(COLUMN($BI$2)-1),FALSE)*E$33/SUM($C$33:$I$33)*VLOOKUP($W3,$B$3:$BI$23,(COLUMN($BI$2)-1),FALSE) -> 0 | BM3: =VLOOKUP($W3,$B$3:$I$23,COLUMN()-(COLUMN($BI$2)-1),FALSE)*F$33/SUM($C$33:$I$33)*VLOOKUP($W3,$B$3:$BI$23,(COLUMN($BI$2)-1),FALSE) -> 0 | BN3: =VLOOKUP($W3,$B$3:$I$23,COLUMN()-(COLUMN($BI$2)-1),FALSE)*G$33/SUM($C$33:$I$33)*VLOOKUP($W3,$B$3:$BI$23,(COLUMN($BI$2)-1),FALSE) -> 2.250445786 | BO3: =VLOOKUP($W3,$B$3:$I$23,COLUMN()-(COLUMN($BI$2)-1),FALSE)*H$33/SUM($C$33:$I$33)*VLOOKUP($W3,$B$3:$BI$23,(COLUMN($BI$2)-1),FALSE) -> 3.500347565 | BP3: =VLOOKUP($W3,$B$3:$I$23,COLUMN()-(COLUMN($BI$2)-1),FALSE)*I$33/SUM($C$33:$I$33)*VLOOKUP($W3,$B$3:$BI$23,(COLUMN($BI$2)-1),FALSE) -> 0
A4: 13 | B4: Brazil | D4: ='Trade 2010'!F6 -> 3.692604025 | G4: ='Environment 2010'!K6 -> 7.387388873 | H4: ='Security 2010'!J7 -> 2.361259244 | J4: 4.480417381 | K4: 13 | M4: =SUM(IF(ROUND(J4,1)<ROUND($J$3:$J$23,1),1))+1 -> 13 | O4: Brazil | P4: =(SUM(IF($J4<$J$3:$J$25*(1-BF$3:BF$25),1))+1)*(1-BF4) ->  | Q4: =(SUM(IF($J4<$J$3:$J$25*(1-BG$3:BG$25),1))+1)*(1-BG4) ->  | R4: =(SUM(IF(ROUND($J4,1)<ROUND($J$3:$J$25,1)*(1-BF$3:BF$25),1))+1)*(1-BF4) ->  | S4: =(SUM(IF(ROUND($J4,1)<ROUND($J$3:$J$25,1)*(1-BG$3:BG$25),1))+1)*(1-BG4) ->  | T4: Brazil | U4: 2 | V4: 2 | W4: Australia | X4: 7.701058917 | Y4: =VLOOKUP(W4,$B$3:$O$23,11,FALSE) -> 0 | Z4: =VLOOKUP(U4,$K$3:$O$23,4,FALSE)-V4 -> -2 | BC4: 324.6757642 | BD4: 381.0837463 | BF4: 1 | BG4: 1 | BI4: =ABS(SUM($C4:$I4*$C$33:$I$33)/SUM(IF($C4:$I4>0,$C4:$I4*$C$33:$I$33))) -> 1 | BJ4: =VLOOKUP($W4,$B$3:$I$23,COLUMN()-(COLUMN($BI$2)-1),FALSE)*C$33/SUM($C$33:$I$33)*VLOOKUP($W4,$B$3:$BI$23,(COLUMN($BI$2)-1),FALSE) -> 0 | BK4: =VLOOKUP($W4,$B$3:$I$23,COLUMN()-(COLUMN($BI$2)-1),FALSE)*D$33/SUM($C$33:$I$33)*VLOOKUP($W4,$B$3:$BI$23,(COLUMN($BI$2)-1),FALSE) -> 2.743086995 | BL4: =VLOOKUP($W4,$B$3:$I$23,COLUMN()-(COLUMN($BI$2)-1),FALSE)*E$33/SUM($C$33:$I$33)*VLOOKUP($W4,$B$3:$BI$23,(COLUMN($BI$2)-1),FALSE) -> 0 | BM4: =VLOOKUP($W4,$B$3:$I$23,COLUMN()-(COLUMN($BI$2)-1),FALSE)*F$33/SUM($C$33:$I$33)*VLOOKUP($W4,$B$3:$BI$23,(COLUMN($BI$2)-1),FALSE) -> 0 | BN4: =VLOOKUP($W4,$B$3:$I$23,COLUMN()-(COLUMN($BI$2)-1),FALSE)*G$33/SUM($C$33:$I$33)*VLOOKUP($W4,$B$3:$BI$23,(COLUMN($BI$2)-1),FALSE) -> 1.240967893 | BO4: =VLOOKUP($W4,$B$3:$I$23,COLUMN()-(COLUMN($BI$2)-1),FALSE)*H$33/SUM($C$33:$I$33)*VLOOKUP($W4,$B$3:$BI$23,(COLUMN($BI$2)-1),FALSE) -> 3.717004029 | BP4: =VLOOKUP($W4,$B$3:$I$23,COLUMN()-(COLUMN($BI$2)-1),FALSE)*I$33/SUM($C$33:$I$33)*VLOOKUP($W4,$B$3:$BI$23,(COLUMN($BI$2)-1),FALSE) -> 0
A5: 8 | B5: Canada | D5: ='Trade 2010'!F7 -> 7.06209723 | G5: ='Environment 2010'!K7 -> 5.036490375 | H5: ='Security 2010'!J8 -> 6.641691923 | J5: 6.246759843 | K5: 8 | M5: =SUM(IF(ROUND(J5,1)<ROUND($J$3:$J$23,1),1))+1 -> 8 | O5: Canada | P5: =(SUM(IF($J5<$J$3:$J$25*(1-BF$3:BF$25),1))+1)*(1-BF5) ->  | Q5: =(SUM(IF($J5<$J$3:$J$25*(1-BG$3:BG$25),1))+1)*(1-BG5) ->  | R5: =(SUM(IF(ROUND($J5,1)<ROUND($J$3:$J$25,1)*(1-BF$3:BF$25),1))+1)*(1-BF5) ->  | S5: =(SUM(IF(ROUND($J5,1)<ROUND($J$3:$J$25,1)*(1-BG$3:BG$25),1))+1)*(1-BG5) ->  | T5: Canada | U5: 3 | V5: 3 | W5: France | X5: 7.13739685 | BC5: 391.7684736 | BD5: 471.1610778 | BF5: 1 | BG5: 1 | BI5: =ABS(SUM($C5:$I5*$C$33:$I$33)/SUM(IF($C5:$I5>0,$C5:$I5*$C$33:$I$33))) -> 1 | BJ5: =VLOOKUP($W5,$B$3:$I$23,COLUMN()-(COLUMN($BI$2)-1),FALSE)*C$33/SUM($C$33:$I$33)*VLOOKUP($W5,$B$3:$BI$23,(COLUMN($BI$2)-1),FALSE) -> 0 | BK5: =VLOOKUP($W5,$B$3:$I$23,COLUMN()-(COLUMN($BI$2)-1),FALSE)*D$33/SUM($C$33:$I$33)*VLOOKUP($W5,$B$3:$BI$23,(COLUMN($BI$2)-1),FALSE) -> 2.105754083 | BL5: =VLOOKUP($W5,$B$3:$I$23,COLUMN()-(COLUMN($BI$2)-1),FALSE)*E$33/SUM($C$33:$I$33)*VLOOKUP($W5,$B$3:$BI$23,(COLUMN($BI$2)-1),FALSE) -> 0 | BM5: =VLOOKUP($W5,$B$3:$I$23,COLUMN()-(COLUMN($BI$2)-1),FALSE)*F$33/SUM($C$33:$I$33)*VLOOKUP($W5,$B$3:$BI$23,(COLUMN($BI$2)-1),FALSE) -> 0 | BN5: =VLOOKUP($W5,$B$3:$I$23,COLUMN()-(COLUMN($BI$2)-1),FALSE)*G$33/SUM($C$33:$I$33)*VLOOKUP($W5,$B$3:$BI$23,(COLUMN($BI$2)-1),FALSE) -> 2.196956416 | BO5: =VLOOKUP($W5,$B$3:$I$23,COLUMN()-(COLUMN($BI$2)-1),FALSE)*H$33/SUM($C$33:$I$33)*VLOOKUP($W5,$B$3:$BI$23,(COLUMN($BI$2)-1),FALSE) -> 2.834686351 | BP5: =VLOOKUP($W5,$B$3:$I$23,COLUMN()-(COLUMN($BI$2)-1),FALSE)*I$33/SUM($C$33:$I$33)*VLOOKUP($W5,$B$3:$BI$23,(COLUMN($BI$2)-1),FALSE) -> 0
A6: 19 | B6: China | D6: ='Trade 2010'!F8 -> 1.304480904 | G6: ='Environment 2010'!K8 -> 6.32322874 | H6: ='Security 2010'!J9 -> 1.358869451 | J6: 2.995526365 | K6: 19 | M6: =SUM(IF(ROUND(J6,1)<ROUND($J$3:$J$23,1),1))+1 -> 19 | O6: China | P6: =(SUM(IF($J6<$J$3:$J$25*(1-BF$3:BF$25),1))+1)*(1-BF6) ->  | Q6: =(SUM(IF($J6<$J$3:$J$25*(1-BG$3:BG$25),1))+1)*(1-BG6) ->  | R6: =(SUM(IF(ROUND($J6,1)<ROUND($J$3:$J$25,1)*(1-BF$3:BF$25),1))+1)*(1-BF6) ->  | S6: =(SUM(IF(ROUND($J6,1)<ROUND($J$3:$J$25,1)*(1-BG$3:BG$25),1))+1)*(1-BG6) ->  | T6: China | U6: 4 | V6: 3 | W6: Netherlands | X6: 7.083459788 | Y6: =VLOOKUP(W6,$B$3:$O$23,11,FALSE) -> 0 | Z6: =VLOOKUP(U6,$K$3:$O$23,4,FALSE)-V6 -> -3 | BC6: 1275.638841 | BD6: 1336.067752 | BF6: 0 | BG6: 0 | BI6: =ABS(SUM($C6:$I6*$C$33:$I$33)/SUM(IF($C6:$I6>0,$C6:$I6*$C$33:$I$33))) -> 1 | BJ6: =VLOOKUP($W6,$B$3:$I$23,COLUMN()-(COLUMN($BI$2)-1),FALSE)*C$33/SUM($C$33:$I$33)*VLOOKUP($W6,$B$3:$BI$23,(COLUMN($BI$2)-1),FALSE) -> 0 | BK6: =VLOOKUP($W6,$B$3:$I$23,COLUMN()-(COLUMN($BI$2)-1),FALSE)*D$33/SUM($C$33:$I$33)*VLOOKUP($W6,$B$3:$BI$23,(COLUMN($BI$2)-1),FALSE) -> 2.201347741 | BL6: =VLOOKUP($W6,$B$3:$I$23,COLUMN()-(COLUMN($BI$2)-1),FALSE)*E$33/SUM($C$33:$I$33)*VLOOKUP($W6,$B$3:$BI$23,(COLUMN($BI$2)-1),FALSE) -> 0 | BM6: =VLOOKUP($W6,$B$3:$I$23,COLUMN()-(COLUMN($BI$2)-1),FALSE)*F$33/SUM($C$33:$I$33)*VLOOKUP($W6,$B$3:$BI$23,(COLUMN($BI$2)-1),FALSE) -> 0 | BN6: =VLOOKUP($W6,$B$3:$I$23,COLUMN()-(COLUMN($BI$2)-1),FALSE)*G$33/SUM($C$33:$I$33)*VLOOKUP($W6,$B$3:$BI$23,(COLUMN($BI$2)-1),FALSE) -> 2.156083244 | BO6: =VLOOKUP($W6,$B$3:$I$23,COLUMN()-(COLUMN($BI$2)-1),FALSE)*H$33/SUM($C$33:$I$33)*VLOOKUP($W6,$B$3:$BI$23,(COLUMN($BI$2)-1),FALSE) -> 2.726028803 | BP6: =VLOOKUP($W6,$B$3:$I$23,COLUMN()-(COLUMN($BI$2)-1),FALSE)*I$33/SUM($C$33:$I$33)*VLOOKUP($W6,$B$3:$BI$23,(COLUMN($BI$2)-1),FALSE) -> 0
A7: 3 | B7: France | D7: ='Trade 2010'!F9 -> 6.317262248 | G7: ='Environment 2010'!K9 -> 6.590869248 | H7: ='Security 2010'!J10 -> 8.504059054 | J7: 7.13739685 | K7: 3 | M7: =SUM(IF(ROUND(J7,1)<ROUND($J$3:$J$23,1),1))+1 -> 3 | O7: France | P7: =(SUM(IF($J7<$J$3:$J$25*(1-BF$3:BF$25),1))+1)*(1-BF7) ->  | Q7: =(SUM(IF($J7<$J$3:$J$25*(1-BG$3:BG$25),1))+1)*(1-BG7) ->  | R7: =(SUM(IF(ROUND($J7,1)<ROUND($J$3:$J$25,1)*(1-BF$3:BF$25),1))+1)*(1-BF7) ->  | S7: =(SUM(IF(ROUND($J7,1)<ROUND($J$3:$J$25,1)*(1-BG$3:BG$25),1))+1)*(1-BG7) ->  | T7: France | U7: 5 | V7: 5 | W7: Sweden | X7: 7.044781892 | Y7: 0 | Z7: -5 | BF7: 1 | BG7: 1 | BI7: =ABS(SUM($C7:$I7*$C$33:$I$33)/SUM(IF($C7:$I7>0,$C7:$I7*$C$33:$I$33))) -> 1 | BJ7: =VLOOKUP($W7,$B$3:$I$23,COLUMN()-(COLUMN($BI$2)-1),FALSE)*C$33/SUM($C$33:$I$33)*VLOOKUP($W7,$B$3:$BI$23,(COLUMN($BI$2)-1),FALSE) -> 0 | BK7: =VLOOKUP($W7,$B$3:$I$23,COLUMN()-(COLUMN($BI$2)-1),FALSE)*D$33/SUM($C$33:$I$33)*VLOOKUP($W7,$B$3:$BI$23,(COLUMN($BI$2)-1),FALSE) -> 2.186053016 | BL7: =VLOOKUP($W7,$B$3:$I$23,COLUMN()-(COLUMN($BI$2)-1),FALSE)*E$33/SUM($C$33:$I$33)*VLOOKUP($W7,$B$3:$BI$23,(COLUMN($BI$2)-1),FALSE) -> 0 | BM7: =VLOOKUP($W7,$B$3:$I$23,COLUMN()-(COLUMN($BI$2)-1),FALSE)*F$33/SUM($C$33:$I$33)*VLOOKUP($W7,$B$3:$BI$23,(COLUMN($BI$2)-1),FALSE) -> 0 | BN7: =VLOOKUP($W7,$B$3:$I$23,COLUMN()-(COLUMN($BI$2)-1),FALSE)*G$33/SUM($C$33:$I$33)*VLOOKUP($W7,$B$3:$BI$23,(COLUMN($BI$2)-1),FALSE) -> 2.376494398 | BO7: =VLOOKUP($W7,$B$3:$I$23,COLUMN()-(COLUMN($BI$2)-1),FALSE)*H$33/SUM($C$33:$I$33)*VLOOKUP($W7,$B$3:$BI$23,(COLUMN($BI$2)-1),FALSE) -> 2.482234478 | BP7: =VLOOKUP($W7,$B$3:$I$23,COLUMN()-(COLUMN($BI$2)-1),FALSE)*I$33/SUM($C$33:$I$33)*VLOOKUP($W7,$B$3:$BI$23,(COLUMN($BI$2)-1),FALSE) -> 0
A8: 9 | B8: Germany | D8: ='Trade 2010'!F10 -> 6.304647285 | G8: ='Environment 2010'!K10 -> 6.27137253 | H8: ='Security 2010'!J11 -> 5.86003161 | J8: 6.145350475 | K8: 9 | M8: =SUM(IF(ROUND(J8,1)<ROUND($J$3:$J$23,1),1))+1 -> 9 | O8: Germany | P8: =(SUM(IF($J8<$J$3:$J$25*(1-BF$3:BF$25),1))+1)*(1-BF8) ->  | Q8: =(SUM(IF($J8<$J$3:$J$25*(1-BG$3:BG$25),1))+1)*(1-BG8) ->  | R8: =(SUM(IF(ROUND($J8,1)<ROUND($J$3:$J$25,1)*(1-BF$3:BF$25),1))+1)*(1-BF8) ->  | S8: =(SUM(IF(ROUND($J8,1)<ROUND($J$3:$J$25,1)*(1-BG$3:BG$25),1))+1)*(1-BG8) ->  | T8: Germany | U8: 6 | V8: 6 | W8: Italy | X8: 6.76853296 | Y8: 0 | Z8: -6 | BC8: 208.5665341 | BD8: 309.5961928 | BF8: 1 | BG8: 1 | BI8: =ABS(SUM($C8:$I8*$C$33:$I$33)/SUM(IF($C8:$I8>0,$C8:$I8*$C$33:$I$33))) -> 1 | BJ8: =VLOOKUP($W8,$B$3:$I$23,COLUMN()-(COLUMN($BI$2)-1),FALSE)*C$33/SUM($C$33:$I$33)*VLOOKUP($W8,$B$3:$BI$23,(COLUMN($BI$2)-1),FALSE) -> 0 | BK8: =VLOOKUP($W8,$B$3:$I$23,COLUMN()-(COLUMN($BI$2)-1),FALSE)*D$33/SUM($C$33:$I$33)*VLOOKUP($W8,$B$3:$BI$23,(COLUMN($BI$2)-1),FALSE) -> 2.139461955 | BL8: =VLOOKUP($W8,$B$3:$I$23,COLUMN()-(COLUMN($BI$2)-1),FALSE)*E$33/SUM($C$33:$I$33)*VLOOKUP($W8,$B$3:$BI$23,(COLUMN($BI$2)-1),FALSE) -> 0 | BM8: =VLOOKUP($W8,$B$3:$I$23,COLUMN()-(COLUMN($BI$2)-1),FALSE)*F$33/SUM($C$33:$I$33)*VLOOKUP($W8,$B$3:$BI$23,(COLUMN($BI$2)-1),FALSE) -> 0 | BN8: =VLOOKUP($W8,$B$3:$I$23,COLUMN()-(COLUMN($BI$2)-1),FALSE)*G$33/SUM($C$33:$I$33)*VLOOKUP($W8,$B$3:$BI$23,(COLUMN($BI$2)-1),FALSE) -> 2.080327467 | BO8: =VLOOKUP($W8,$B$3:$I$23,COLUMN()-(COLUMN($BI$2)-1),FALSE)*H$33/SUM($C$33:$I$33)*VLOOKUP($W8,$B$3:$BI$23,(COLUMN($BI$2)-1),FALSE) -> 2.548743538 | BP8: =VLOOKUP($W8,$B$3:$I$23,COLUMN()-(COLUMN($BI$2)-1),FALSE)*I$33/SUM($C$33:$I$33)*VLOOKUP($W8,$B$3:$BI$23,(COLUMN($BI$2)-1),FALSE) -> 0
A9: 20 | B9: India | D9: ='Trade 2010'!F11 -> -2.441121701 | G9: ='Environment 2010'!K11 -> 8.762265009 | H9: ='Security 2010'!J12 -> 2.340209553 | J9: 2.88711762 | K9: 21 | M9: =SUM(IF(ROUND(J9,1)<ROUND($J$3:$J$23,1),1))+1 -> 20 | O9: India | P9: =(SUM(IF($J9<$J$3:$J$25*(1-BF$3:BF$25),1))+1)*(1-BF9) ->  | Q9: =(SUM(IF($J9<$J$3:$J$25*(1-BG$3:BG$25),1))+1)*(1-BG9) ->  | R9: =(SUM(IF(ROUND($J9,1)<ROUND($J$3:$J$25,1)*(1-BF$3:BF$25),1))+1)*(1-BF9) ->  | S9: =(SUM(IF(ROUND($J9,1)<ROUND($J$3:$J$25,1)*(1-BG$3:BG$25),1))+1)*(1-BG9) ->  | T9: India | U9: 7 | V9: 7 | W9: United States | X9: 6.254036557 | Y9: 0 | Z9: -7 | BC9: 188.2605978 | BD9: 237.9893965 | BF9: 1 | BG9: 1 | BI9: =ABS(SUM($C9:$I9*$C$33:$I$33)/SUM(IF($C9:$I9>0,$C9:$I9*$C$33:$I$33))) -> 0.7801281429 | BJ9: =VLOOKUP($W9,$B$3:$I$23,COLUMN()-(COLUMN($BI$2)-1),FALSE)*C$33/SUM($C$33:$I$33)*VLOOKUP($W9,$B$3:$BI$23,(COLUMN($BI$2)-1),FALSE) -> 0 | BK9: =VLOOKUP($W9,$B$3:$I$23,COLUMN()-(COLUMN($BI$2)-1),FALSE)*D$33/SUM($C$33:$I$33)*VLOOKUP($W9,$B$3:$BI$23,(COLUMN($BI$2)-1),FALSE) -> 2.779089347 | BL9: =VLOOKUP($W9,$B$3:$I$23,COLUMN()-(COLUMN($BI$2)-1),FALSE)*E$33/SUM($C$33:$I$33)*VLOOKUP($W9,$B$3:$BI$23,(COLUMN($BI$2)-1),FALSE) -> 0 | BM9: =VLOOKUP($W9,$B$3:$I$23,COLUMN()-(COLUMN($BI$2)-1),FALSE)*F$33/SUM($C$33:$I$33)*VLOOKUP($W9,$B$3:$BI$23,(COLUMN($BI$2)-1),FALSE) -> 0 | BN9: =VLOOKUP($W9,$B$3:$I$23,COLUMN()-(COLUMN($BI$2)-1),FALSE)*G$33/SUM($C$33:$I$33)*VLOOKUP($W9,$B$3:$BI$23,(COLUMN($BI$2)-1),FALSE) -> 1.477590999 | BO9: =VLOOKUP($W9,$B$3:$I$23,COLUMN()-(COLUMN($BI$2)-1),FALSE)*H$33/SUM($C$33:$I$33)*VLOOKUP($W9,$B$3:$BI$23,(COLUMN($BI$2)-1),FALSE) -> 1.997356211 | BP9: =VLOOKUP($W9,$B$3:$I$23,COLUMN()-(COLUMN($BI$2)-1),FALSE)*I$33/SUM($C$33:$I$33)*VLOOKUP($W9,$B$3:$BI$23,(COLUMN($BI$2)-1),FALSE) -> 0
A10: 12 | B10: Indonesia | D10: ='Trade 2010'!F12 -> 6.122777316 | G10: ='Environment 2010'!K12 -> 7.145338852 | H10: ='Security 2010'!J13 -> 1.483915317 | J10: 4.917343828 | K10: 12 | M10: =SUM(IF(ROUND(J10,1)<ROUND($J$3:$J$23,1),1))+1 -> 12 | O10: Indonesia | P10: =(SUM(IF($J10<$J$3:$J$25*(1-BF$3:BF$25),1))+1)*(1-BF10) ->  | Q10: =(SUM(IF($J10<$J$3:$J$25*(1-BG$3:BG$25),1))+1)*(1-BG10) ->  | R10: =(SUM(IF(ROUND($J10,1)<ROUND($J$3:$J$25,1)*(1-BF$3:BF$25),1))+1)*(1-BF10) ->  | S10: =(SUM(IF(ROUND($J10,1)<ROUND($J$3:$J$25,1)*(1-BG$3:BG$25),1))+1)*(1-BG10) ->  | T10: Indonesia | U10: 8 | V10: 8 | W10: Canada | X10: 6.246759843 | Y10: 0 | Z10: -8 | BC10: 2173.316891 | BD10: 2649.390055 | BF10: 1 | BG10: 1 | BI10: =ABS(SUM($C10:$I10*$C$33:$I$33)/SUM(IF($C10:$I10>0,$C10:$I10*$C$33:$I$33))) -> 1 | BJ10: =VLOOKUP($W10,$B$3:$I$23,COLUMN()-(COLUMN($BI$2)-1),FALSE)*C$33/SUM($C$33:$I$33)*VLOOKUP($W10,$B$3:$BI$23,(COLUMN($BI$2)-1),FALSE) -> 0 | BK10: =VLOOKUP($W10,$B$3:$I$23,COLUMN()-(COLUMN($BI$2)-1),FALSE)*D$33/SUM($C$33:$I$33)*VLOOKUP($W10,$B$3:$BI$23,(COLUMN($BI$2)-1),FALSE) -> 2.35403241 | BL10: =VLOOKUP($W10,$B$3:$I$23,COLUMN()-(COLUMN($BI$2)-1),FALSE)*E$33/SUM($C$33:$I$33)*VLOOKUP($W10,$B$3:$BI$23,(COLUMN($BI$2)-1),FALSE) -> 0 | BM10: =VLOOKUP($W10,$B$3:$I$23,COLUMN()-(COLUMN($BI$2)-1),FALSE)*F$33/SUM($C$33:$I$33)*VLOOKUP($W10,$B$3:$BI$23,(COLUMN($BI$2)-1),FALSE) -> 0 | BN10: =VLOOKUP($W10,$B$3:$I$23,COLUMN()-(COLUMN($BI$2)-1),FALSE)*G$33/SUM($C$33:$I$33)*VLOOKUP($W10,$B$3:$BI$23,(COLUMN($BI$2)-1),FALSE) -> 1.678830125 | BO10: =VLOOKUP($W10,$B$3:$I$23,COLUMN()-(COLUMN($BI$2)-1),FALSE)*H$33/SUM($C$33:$I$33)*VLOOKUP($W10,$B$3:$BI$23,(COLUMN($BI$2)-1),FALSE) -> 2.213897308 | BP10: =VLOOKUP($W10,$B$3:$I$23,COLUMN()-(COLUMN($BI$2)-1),FALSE)*I$33/SUM($C$33:$I$33)*VLOOKUP($W10,$B$3:$BI$23,(COLUMN($BI$2)-1),FALSE) -> 0
A11: 6 | B11: Italy | D11: ='Trade 2010'!F13 -> 6.418385866 | G11: ='Environment 2010'!K13 -> 6.240982401 | H11: ='Security 2010'!J14 -> 7.646230613 | J11: 6.76853296 | K11: 6 | M11: =SUM(IF(ROUND(J11,1)<ROUND($J$3:$J$23,1),1))+1 -> 6 | O11: Italy | P11: =(SUM(IF($J11<$J$3:$J$25*(1-BF$3:BF$25),1))+1)*(1-BF11) ->  | Q11: =(SUM(IF($J11<$J$3:$J$25*(1-BG$3:BG$25),1))+1)*(1-BG11) ->  | R11: =(SUM(IF(ROUND($J11,1)<ROUND($J$3:$J$25,1)*(1-BF$3:BF$25),1))+1)*(1-BF11) ->  | S11: =(SUM(IF(ROUND($J11,1)<ROUND($J$3:$J$25,1)*(1-BG$3:BG$25),1))+1)*(1-BG11) ->  | T11: Italy | U11: 9 | V11: 9 | W11: Germany | X11: 6.145350475 | Y11: 0 | Z11: -9 | BC11: 2975.329419 | BD11: 3330.031747 | BF11: 1 | BG11: 1 | BI11: =ABS(SUM($C11:$I11*$C$33:$I$33)/SUM(IF($C11:$I11>0,$C11:$I11*$C$33:$I$33))) -> 1 | BJ11: =VLOOKUP($W11,$B$3:$I$23,COLUMN()-(COLUMN($BI$2)-1),FALSE)*C$33/SUM($C$33:$I$33)*VLOOKUP($W11,$B$3:$BI$23,(COLUMN($BI$2)-1),FALSE) -> 0 | BK11: =VLOOKUP($W11,$B$3:$I$23,COLUMN()-(COLUMN($BI$2)-1),FALSE)*D$33/SUM($C$33:$I$33)*VLOOKUP($W11,$B$3:$BI$23,(COLUMN($BI$2)-1),FALSE) -> 2.101549095 | BL11: =VLOOKUP($W11,$B$3:$I$23,COLUMN()-(COLUMN($BI$2)-1),FALSE)*E$33/SUM($C$33:$I$33)*VLOOKUP($W11,$B$3:$BI$23,(COLUMN($BI$2)-1),FALSE) -> 0 | BM11: =VLOOKUP($W11,$B$3:$I$23,COLUMN()-(COLUMN($BI$2)-1),FALSE)*F$33/SUM($C$33:$I$33)*VLOOKUP($W11,$B$3:$BI$23,(COLUMN($BI$2)-1),FALSE) -> 0 | BN11: =VLOOKUP($W11,$B$3:$I$23,COLUMN()-(COLUMN($BI$2)-1),FALSE)*G$33/SUM($C$33:$I$33)*VLOOKUP($W11,$B$3:$BI$23,(COLUMN($BI$2)-1),FALSE) -> 2.09045751 | BO11: =VLOOKUP($W11,$B$3:$I$23,COLUMN()-(COLUMN($BI$2)-1),FALSE)*H$33/SUM($C$33:$I$33)*VLOOKUP($W11,$B$3:$BI$23,(COLUMN($BI$2)-1),FALSE) -> 1.95334387 | BP11: =VLOOKUP($W11,$B$3:$I$23,COLUMN()-(COLUMN($BI$2)-1),FALSE)*I$33/SUM($C$33:$I$33)*VLOOKUP($W11,$B$3:$BI$23,(COLUMN($BI$2)-1),FALSE) -> 0
A12: 14 | B12: Japan | D12: ='Trade 2010'!F14 -> 5.397992521 | G12: ='Environment 2010'!K14 -> 4.417550636 | H12: ='Security 2010'!J15 -> 3.308083989 | J12: 4.374542382 | K12: 15 | M12: =SUM(IF(ROUND(J12,1)<ROUND($J$3:$J$23,1),1))+1 -> 14 | O12: Japan | P12: =(SUM(IF($J12<$J$3:$J$25*(1-BF$3:BF$25),1))+1)*(1-BF12) ->  | Q12: =(SUM(IF($J12<$J$3:$J$25*(1-BG$3:BG$25),1))+1)*(1-BG12) ->  | R12: =(SUM(IF(ROUND($J12,1)<ROUND($J$3:$J$25,1)*(1-BF$3:BF$25),1))+1)*(1-BF12) ->  | S12: =(SUM(IF(ROUND($J12,1)<ROUND($J$3:$J$25,1)*(1-BG$3:BG$25),1))+1)*(1-BG12) ->  | T12: Japan | U12: 10 | V12: 10 | W12: Spain | X12: 5.848068121 | Y12: 0 | Z12: -10 | BC12: 334.1816627 | BD12: 329.9240509 | BF12: 1 | BG12: 1 | BI12: =ABS(SUM($C12:$I12*$C$33:$I$33)/SUM(IF($C12:$I12>0,$C12:$I12*$C$33:$I$33))) -> 1 | BJ12: =VLOOKUP($W12,$B$3:$I$23,COLUMN()-(COLUMN($BI$2)-1),FALSE)*C$33/SUM($C$33:$I$33)*VLOOKUP($W12,$B$3:$BI$23,(COLUMN($BI$2)-1),FALSE) -> 0 | BK12: =VLOOKUP($W12,$B$3:$I$23,COLUMN()-(COLUMN($BI$2)-1),FALSE)*D$33/SUM($C$33:$I$33)*VLOOKUP($W12,$B$3:$BI$23,(COLUMN($BI$2)-1),FALSE) -> 2.101598123 | BL12: =VLOOKUP($W12,$B$3:$I$23,COLUMN()-(COLUMN($BI$2)-1),FALSE)*E$33/SUM($C$33:$I$33)*VLOOKUP($W12,$B$3:$BI$23,(COLUMN($BI$2)-1),FALSE) -> 0 | BM12: =VLOOKUP($W12,$B$3:$I$23,COLUMN()-(COLUMN($BI$2)-1),FALSE)*F$33/SUM($C$33:$I$33)*VLOOKUP($W12,$B$3:$BI$23,(COLUMN($BI$2)-1),FALSE) -> 0 | BN12: =VLOOKUP($W12,$B$3:$I$23,COLUMN()-(COLUMN($BI$2)-1),FALSE)*G$33/SUM($C$33:$I$33)*VLOOKUP($W12,$B$3:$BI$23,(COLUMN($BI$2)-1),FALSE) -> 2.071072717 | BO12: =VLOOKUP($W12,$B$3:$I$23,COLUMN()-(COLUMN($BI$2)-1),FALSE)*H$33/SUM($C$33:$I$33)*VLOOKUP($W12,$B$3:$BI$23,(COLUMN($BI$2)-1),FALSE) -> 1.675397282 | BP12: =VLOOKUP($W12,$B$3:$I$23,COLUMN()-(COLUMN($BI$2)-1),FALSE)*I$33/SUM($C$33:$I$33)*VLOOKUP($W12,$B$3:$BI$23,(COLUMN($BI$2)-1),FALSE) -> 0
A13: 16 | B13: Mexico | D13: ='Trade 2010'!F15 -> 5.45731552 | G13: ='Environment 2010'!K15 -> 4.897043965 | H13: ='Security 2010'!J16 -> 2.326958568 | J13: 4.227106018 | K13: 16 | M13: =SUM(IF(ROUND(J13,1)<ROUND($J$3:$J$23,1),1))+1 -> 16 | O13: Mexico | P13: =(SUM(IF($J13<$J$3:$J$25*(1-BF$3:BF$25),1))+1)*(1-BF13) ->  | Q13: =(SUM(IF($J13<$J$3:$J$25*(1-BG$3:BG$25),1))+1)*(1-BG13) ->  | R13: =(SUM(IF(ROUND($J13,1)<ROUND($J$3:$J$25,1)*(1-BF$3:BF$25),1))+1)*(1-BF13) ->  | S13: =(SUM(IF(ROUND($J13,1)<ROUND($J$3:$J$25,1)*(1-BG$3:BG$25),1))+1)*(1-BG13) ->  | T13: Mexico | U13: 11 | V13: 11 | W13: Russia | X13: 5.067973396 | Y13: 0 | Z13: -11 | BF13: 1 | BG13: 1 | BI13: =ABS(SUM($C13:$I13*$C$33:$I$33)/SUM(IF($C13:$I13>0,$C13:$I13*$C$33:$I$33))) -> 1 | BJ13: =VLOOKUP($W13,$B$3:$I$23,COLUMN()-(COLUMN($BI$2)-1),FALSE)*C$33/SUM($C$33:$I$33)*VLOOKUP($W13,$B$3:$BI$23,(COLUMN($BI$2)-1),FALSE) -> 0 | BK13: =VLOOKUP($W13,$B$3:$I$23,COLUMN()-(COLUMN($BI$2)-1),FALSE)*D$33/SUM($C$33:$I$33)*VLOOKUP($W13,$B$3:$BI$23,(COLUMN($BI$2)-1),FALSE) -> 1.422078487 | BL13: =VLOOKUP($W13,$B$3:$I$23,COLUMN()-(COLUMN($BI$2)-1),FALSE)*E$33/SUM($C$33:$I$33)*VLOOKUP($W13,$B$3:$BI$23,(COLUMN($BI$2)-1),FALSE) -> 0 | BM13: =VLOOKUP($W13,$B$3:$I$23,COLUMN()-(COLUMN($BI$2)-1),FALSE)*F$33/SUM($C$33:$I$33)*VLOOKUP($W13,$B$3:$BI$23,(COLUMN($BI$2)-1),FALSE) -> 0 | BN13: =VLOOKUP($W13,$B$3:$I$23,COLUMN()-(COLUMN($BI$2)-1),FALSE)*G$33/SUM($C$33:$I$33)*VLOOKUP($W13,$B$3:$BI$23,(COLUMN($BI$2)-1),FALSE) -> 2.622072541 | BO13: =VLOOKUP($W13,$B$3:$I$23,COLUMN()-(COLUMN($BI$2)-1),FALSE)*H$33/SUM($C$33:$I$33)*VLOOKUP($W13,$B$3:$BI$23,(COLUMN($BI$2)-1),FALSE) -> 1.023822368 | BP13: =VLOOKUP($W13,$B$3:$I$23,COLUMN()-(COLUMN($BI$2)-1),FALSE)*I$33/SUM($C$33:$I$33)*VLOOKUP($W13,$B$3:$BI$23,(COLUMN($BI$2)-1),FALSE) -> 0
A14: 3 | B14: Netherlands | D14: ='Trade 2010'!F16 -> 6.604043224 | G14: ='Environment 2010'!K16 -> 6.468249731 | H14: ='Security 2010'!J17 -> 8.178086409 | J14: 7.083459788 | K14: 4 | M14: =SUM(IF(ROUND(J14,1)<ROUND($J$3:$J$23,1),1))+1 -> 3 | O14: Netherlands | P14: =(SUM(IF($J14<$J$3:$J$25*(1-BF$3:BF$25),1))+1)*(1-BF14) ->  | Q14: =(SUM(IF($J14<$J$3:$J$25*(1-BG$3:BG$25),1))+1)*(1-BG14) ->  | R14: =(SUM(IF(ROUND($J14,1)<ROUND($J$3:$J$25,1)*(1-BF$3:BF$25),1))+1)*(1-BF14) ->  | S14: =(SUM(IF(ROUND($J14,1)<ROUND($J$3:$J$25,1)*(1-BG$3:BG$25),1))+1)*(1-BG14) ->  | T14: Netherlands | U14: 12 | V14: 12 | W14: Indonesia | X14: 4.917343828 | Y14: 0 | Z14: -12 | BC14: 181.1218596 | BD14: 227.1925699 | BF14: 1 | BG14: 1 | BI14: =ABS(SUM($C14:$I14*$C$33:$I$33)/SUM(IF($C14:$I14>0,$C14:$I14*$C$33:$I$33))) -> 1 | BJ14: =VLOOKUP($W14,$B$3:$I$23,COLUMN()-(COLUMN($BI$2)-1),FALSE)*C$33/SUM($C$33:$I$33)*VLOOKUP($W14,$B$3:$BI$23,(COLUMN($BI$2)-1),FALSE) -> 0 | BK14: =VLOOKUP($W14,$B$3:$I$23,COLUMN()-(COLUMN($BI$2)-1),FALSE)*D$33/SUM($C$33:$I$33)*VLOOKUP($W14,$B$3:$BI$23,(COLUMN($BI$2)-1),FALSE) -> 2.040925772 | BL14: =VLOOKUP($W14,$B$3:$I$23,COLUMN()-(COLUMN($BI$2)-1),FALSE)*E$33/SUM($C$33:$I$33)*VLOOKUP($W14,$B$3:$BI$23,(COLUMN($BI$2)-1),FALSE) -> 0 | BM14: =VLOOKUP($W14,$B$3:$I$23,COLUMN()-(COLUMN($BI$2)-1),FALSE)*F$33/SUM($C$33:$I$33)*VLOOKUP($W14,$B$3:$BI$23,(COLUMN($BI$2)-1),FALSE) -> 0 | BN14: =VLOOKUP($W14,$B$3:$I$23,COLUMN()-(COLUMN($BI$2)-1),FALSE)*G$33/SUM($C$33:$I$33)*VLOOKUP($W14,$B$3:$BI$23,(COLUMN($BI$2)-1),FALSE) -> 2.381779617 | BO14: =VLOOKUP($W14,$B$3:$I$23,COLUMN()-(COLUMN($BI$2)-1),FALSE)*H$33/SUM($C$33:$I$33)*VLOOKUP($W14,$B$3:$BI$23,(COLUMN($BI$2)-1),FALSE) -> 0.4946384389 | BP14: =VLOOKUP($W14,$B$3:$I$23,COLUMN()-(COLUMN($BI$2)-1),FALSE)*I$33/SUM($C$33:$I$33)*VLOOKUP($W14,$B$3:$BI$23,(COLUMN($BI$2)-1),FALSE) -> 0
A15: 11 | B15: Russia | D15: ='Trade 2010'!F17 -> 4.26623546 | G15: ='Environment 2010'!K17 -> 7.866217623 | H15: ='Security 2010'!J18 -> 3.071467103 | J15: 5.067973396 | K15: 11 | M15: =SUM(IF(ROUND(J15,1)<ROUND($J$3:$J$23,1),1))+1 -> 11 | O15: Russia | P15: =(SUM(IF($J15<$J$3:$J$25*(1-BF$3:BF$25),1))+1)*(1-BF15) ->  | Q15: =(SUM(IF($J15<$J$3:$J$25*(1-BG$3:BG$25),1))+1)*(1-BG15) ->  | R15: =(SUM(IF(ROUND($J15,1)<ROUND($J$3:$J$25,1)*(1-BF$3:BF$25),1))+1)*(1-BF15) ->  | S15: =(SUM(IF(ROUND($J15,1)<ROUND($J$3:$J$25,1)*(1-BG$3:BG$25),1))+1)*(1-BG15) ->  | T15: Russia | U15: 13 | V15: 13 | W15: Brazil | X15: 4.480417381 | Y15: 0 | Z15: -13 | BC15: 1952.973324 | BD15: 2112.780108 | BF15: 1 | BG15: 1 | BI15: =ABS(SUM($C15:$I15*$C$33:$I$33)/SUM(IF($C15:$I15>0,$C15:$I15*$C$33:$I$33))) -> 1 | BJ15: =VLOOKUP($W15,$B$3:$I$23,COLUMN()-(COLUMN($BI$2)-1),FALSE)*C$33/SUM($C$33:$I$33)*VLOOKUP($W15,$B$3:$BI$23,(COLUMN($BI$2)-1),FALSE) -> 0 | BK15: =VLOOKUP($W15,$B$3:$I$23,COLUMN()-(COLUMN($BI$2)-1),FALSE)*D$33/SUM($C$33:$I$33)*VLOOKUP($W15,$B$3:$BI$23,(COLUMN($BI$2)-1),FALSE) -> 1.230868008 | BL15: =VLOOKUP($W15,$B$3:$I$23,COLUMN()-(COLUMN($BI$2)-1),FALSE)*E$33/SUM($C$33:$I$33)*VLOOKUP($W15,$B$3:$BI$23,(COLUMN($BI$2)-1),FALSE) -> 0 | BM15: =VLOOKUP($W15,$B$3:$I$23,COLUMN()-(COLUMN($BI$2)-1),FALSE)*F$33/SUM($C$33:$I$33)*VLOOKUP($W15,$B$3:$BI$23,(COLUMN($BI$2)-1),FALSE) -> 0 | BN15: =VLOOKUP($W15,$B$3:$I$23,COLUMN()-(COLUMN($BI$2)-1),FALSE)*G$33/SUM($C$33:$I$33)*VLOOKUP($W15,$B$3:$BI$23,(COLUMN($BI$2)-1),FALSE) -> 2.462462958 | BO15: =VLOOKUP($W15,$B$3:$I$23,COLUMN()-(COLUMN($BI$2)-1),FALSE)*H$33/SUM($C$33:$I$33)*VLOOKUP($W15,$B$3:$BI$23,(COLUMN($BI$2)-1),FALSE) -> 0.7870864146 | BP15: =VLOOKUP($W15,$B$3:$I$23,COLUMN()-(COLUMN($BI$2)-1),FALSE)*I$33/SUM($C$33:$I$33)*VLOOKUP($W15,$B$3:$BI$23,(COLUMN($BI$2)-1),FALSE) -> 0
A16: 18 | B16: Saudi Arabia | D16: ='Trade 2010'!F18 -> 7.365635439 | G16: ='Environment 2010'!K18 -> 0.882023761 | H16: ='Security 2010'!J19 -> 1.219214581 | J16: 3.155624594 | K16: 18 | M16: =SUM(IF(ROUND(J16,1)<ROUND($J$3:$J$23,1),1))+1 -> 18 | O16: Saudi Arabia | P16: =(SUM(IF($J16<$J$3:$J$25*(1-BF$3:BF$25),1))+1)*(1-BF16) ->  | Q16: =(SUM(IF($J16<$J$3:$J$25*(1-BG$3:BG$25),1))+1)*(1-BG16) ->  | R16: =(SUM(IF(ROUND($J16,1)<ROUND($J$3:$J$25,1)*(1-BF$3:BF$25),1))+1)*(1-BF16) ->  | S16: =(SUM(IF(ROUND($J16,1)<ROUND($J$3:$J$25,1)*(1-BG$3:BG$25),1))+1)*(1-BG16) ->  | T16: Saudi Arabia | U16: 14 | V16: 14 | W16: Turkey | X16: 4.426392167 | Y16: 0 | Z16: -14 | BC16: 4135.294075 | BD16: 5068.996215 | BF16: 0 | BG16: 0 | BI16: =ABS(SUM($C16:$I16*$C$33:$I$33)/SUM(IF($C16:$I16>0,$C16:$I16*$C$33:$I$33))) -> 1 | BJ16: =VLOOKUP($W16,$B$3:$I$23,COLUMN()-(COLUMN($BI$2)-1),FALSE)*C$33/SUM($C$33:$I$33)*VLOOKUP($W16,$B$3:$BI$23,(COLUMN($BI$2)-1),FALSE) -> 0 | BK16: =VLOOKUP($W16,$B$3:$I$23,COLUMN()-(COLUMN($BI$2)-1),FALSE)*D$33/SUM($C$33:$I$33)*VLOOKUP($W16,$B$3:$BI$23,(COLUMN($BI$2)-1),FALSE) -> 0.9624208191 | BL16: =VLOOKUP($W16,$B$3:$I$23,COLUMN()-(COLUMN($BI$2)-1),FALSE)*E$33/SUM($C$33:$I$33)*VLOOKUP($W16,$B$3:$BI$23,(COLUMN($BI$2)-1),FALSE) -> 0 | BM16: =VLOOKUP($W16,$B$3:$I$23,COLUMN()-(COLUMN($BI$2)-1),FALSE)*F$33/SUM($C$33:$I$33)*VLOOKUP($W16,$B$3:$BI$23,(COLUMN($BI$2)-1),FALSE) -> 0 | BN16: =VLOOKUP($W16,$B$3:$I$23,COLUMN()-(COLUMN($BI$2)-1),FALSE)*G$33/SUM($C$33:$I$33)*VLOOKUP($W16,$B$3:$BI$23,(COLUMN($BI$2)-1),FALSE) -> 2.216062841 | BO16: =VLOOKUP($W16,$B$3:$I$23,COLUMN()-(COLUMN($BI$2)-1),FALSE)*H$33/SUM($C$33:$I$33)*VLOOKUP($W16,$B$3:$BI$23,(COLUMN($BI$2)-1),FALSE) -> 1.247908507 | BP16: =VLOOKUP($W16,$B$3:$I$23,COLUMN()-(COLUMN($BI$2)-1),FALSE)*I$33/SUM($C$33:$I$33)*VLOOKUP($W16,$B$3:$BI$23,(COLUMN($BI$2)-1),FALSE) -> 0
A17: 20 | B17: South Korea | D17: ='Trade 2010'!F19 -> 1.720112168 | G17: ='Environment 2010'!K19 -> 4.908406344 | H17: ='Security 2010'!J20 -> 2.096189883 | J17: 2.908236132 | K17: 20 | M17: =SUM(IF(ROUND(J17,1)<ROUND($J$3:$J$23,1),1))+1 -> 20 | O17: South Korea | P17: =(SUM(IF($J17<$J$3:$J$25*(1-BF$3:BF$25),1))+1)*(1-BF17) ->  | Q17: =(SUM(IF($J17<$J$3:$J$25*(1-BG$3:BG$25),1))+1)*(1-BG17) ->  | R17: =(SUM(IF(ROUND($J17,1)<ROUND($J$3:$J$25,1)*(1-BF$3:BF$25),1))+1)*(1-BF17) ->  | S17: =(SUM(IF(ROUND($J17,1)<ROUND($J$3:$J$25,1)*(1-BG$3:BG$25),1))+1)*(1-BG17) ->  | T17: South Korea | U17: 15 | V17: 14 | W17: Japan | X17: 4.374542382 | Y17: 0 | Z17: -14 | BF17: 1 | BG17: 1 | BI17: =ABS(SUM($C17:$I17*$C$33:$I$33)/SUM(IF($C17:$I17>0,$C17:$I17*$C$33:$I$33))) -> 1 | BJ17: =VLOOKUP($W17,$B$3:$I$23,COLUMN()-(COLUMN($BI$2)-1),FALSE)*C$33/SUM($C$33:$I$33)*VLOOKUP($W17,$B$3:$BI$23,(COLUMN($BI$2)-1),FALSE) -> 0 | BK17: =VLOOKUP($W17,$B$3:$I$23,COLUMN()-(COLUMN($BI$2)-1),FALSE)*D$33/SUM($C$33:$I$33)*VLOOKUP($W17,$B$3:$BI$23,(COLUMN($BI$2)-1),FALSE) -> 1.79933084 | BL17: =VLOOKUP($W17,$B$3:$I$23,COLUMN()-(COLUMN($BI$2)-1),FALSE)*E$33/SUM($C$33:$I$33)*VLOOKUP($W17,$B$3:$BI$23,(COLUMN($BI$2)-1),FALSE) -> 0 | BM17: =VLOOKUP($W17,$B$3:$I$23,COLUMN()-(COLUMN($BI$2)-1),FALSE)*F$33/SUM($C$33:$I$33)*VLOOKUP($W17,$B$3:$BI$23,(COLUMN($BI$2)-1),FALSE) -> 0 | BN17: =VLOOKUP($W17,$B$3:$I$23,COLUMN()-(COLUMN($BI$2)-1),FALSE)*G$33/SUM($C$33:$I$33)*VLOOKUP($W17,$B$3:$BI$23,(COLUMN($BI$2)-1),FALSE) -> 1.472516879 | BO17: =VLOOKUP($W17,$B$3:$I$23,COLUMN()-(COLUMN($BI$2)-1),FALSE)*H$33/SUM($C$33:$I$33)*VLOOKUP($W17,$B$3:$BI$23,(COLUMN($BI$2)-1),FALSE) -> 1.102694663 | BP17: =VLOOKUP($W17,$B$3:$I$23,COLUMN()-(COLUMN($BI$2)-1),FALSE)*I$33/SUM($C$33:$I$33)*VLOOKUP($W17,$B$3:$BI$23,(COLUMN($BI$2)-1),FALSE) -> 0
A18: 10 | B18: Spain | D18: ='Trade 2010'!F20 -> 6.304794368 | G18: ='Environment 2010'!K20 -> 6.213218151 | H18: ='Security 2010'!J21 -> 5.026191845 | J18: 5.848068121 | K18: 10 | M18: =SUM(IF(ROUND(J18,1)<ROUND($J$3:$J$23,1),1))+1 -> 10 | O18: Spain | P18: =(SUM(IF($J18<$J$3:$J$25*(1-BF$3:BF$25),1))+1)*(1-BF18) ->  | Q18: =(SUM(IF($J18<$J$3:$J$25*(1-BG$3:BG$25),1))+1)*(1-BG18) ->  | R18: =(SUM(IF(ROUND($J18,1)<ROUND($J$3:$J$25,1)*(1-BF$3:BF$25),1))+1)*(1-BF18) ->  | S18: =(SUM(IF(ROUND($J18,1)<ROUND($J$3:$J$25,1)*(1-BG$3:BG$25),1))+1)*(1-BG18) ->  | T18: Spain | U18: 16 | V18: 16 | W18: Mexico | X18: 4.227106018 | Y18: 0 | Z18: -16 | BC18: 672.4287201 | BD18: 792.128258 | BF18: 1 | BG18: 1 | BI18: =ABS(SUM($C18:$I18*$C$33:$I$33)/SUM(IF($C18:$I18>0,$C18:$I18*$C$33:$I$33))) -> 1 | BJ18: =VLOOKUP($W18,$B$3:$I$23,COLUMN()-(COLUMN($BI$2)-1),FALSE)*C$33/SUM($C$33:$I$33)*VLOOKUP($W18,$B$3:$BI$23,(COLUMN($BI$2)-1),FALSE) -> 0 | BK18: =VLOOKUP($W18,$B$3:$I$23,COLUMN()-(COLUMN($BI$2)-1),FALSE)*D$33/SUM($C$33:$I$33)*VLOOKUP($W18,$B$3:$BI$23,(COLUMN($BI$2)-1),FALSE) -> 1.819105173 | BL18: =VLOOKUP($W18,$B$3:$I$23,COLUMN()-(COLUMN($BI$2)-1),FALSE)*E$33/SUM($C$33:$I$33)*VLOOKUP($W18,$B$3:$BI$23,(COLUMN($BI$2)-1),FALSE) -> 0 | BM18: =VLOOKUP($W18,$B$3:$I$23,COLUMN()-(COLUMN($BI$2)-1),FALSE)*F$33/SUM($C$33:$I$33)*VLOOKUP($W18,$B$3:$BI$23,(COLUMN($BI$2)-1),FALSE) -> 0 | BN18: =VLOOKUP($W18,$B$3:$I$23,COLUMN()-(COLUMN($BI$2)-1),FALSE)*G$33/SUM($C$33:$I$33)*VLOOKUP($W18,$B$3:$BI$23,(COLUMN($BI$2)-1),FALSE) -> 1.632347988 | BO18: =VLOOKUP($W18,$B$3:$I$23,COLUMN()-(COLUMN($BI$2)-1),FALSE)*H$33/SUM($C$33:$I$33)*VLOOKUP($W18,$B$3:$BI$23,(COLUMN($BI$2)-1),FALSE) -> 0.7756528559 | BP18: =VLOOKUP($W18,$B$3:$I$23,COLUMN()-(COLUMN($BI$2)-1),FALSE)*I$33/SUM($C$33:$I$33)*VLOOKUP($W18,$B$3:$BI$23,(COLUMN($BI$2)-1),FALSE) -> 0
A19: 5 | B19: Sweden | D19: ='Trade 2010'!F21 -> 6.558159047 | G19: ='Environment 2010'!K21 -> 7.129483195 | H19: ='Security 2010'!J22 -> 7.446703434 | J19: 7.044781892 | K19: 5 | M19: =SUM(IF(ROUND(J19,1)<ROUND($J$3:$J$23,1),1))+1 -> 5 | O19: Sweden | P19: =(SUM(IF($J19<$J$3:$J$25*(1-BF$3:BF$25),1))+1)*(1-BF19) ->  | Q19: =(SUM(IF($J19<$J$3:$J$25*(1-BG$3:BG$25),1))+1)*(1-BG19) ->  | R19: =(SUM(IF(ROUND($J19,1)<ROUND($J$3:$J$25,1)*(1-BF$3:BF$25),1))+1)*(1-BF19) ->  | S19: =(SUM(IF(ROUND($J19,1)<ROUND($J$3:$J$25,1)*(1-BG$3:BG$25),1))+1)*(1-BG19) ->  | T19: Sweden | U19: 17 | V19: 17 | W19: Switzerland | X19: 4.100431856 | Y19: 0 | Z19: -17 | BC19: 125.1299164 | BD19: 126.6792612 | BF19: 0 | BG19: 0 | BI19: =ABS(SUM($C19:$I19*$C$33:$I$33)/SUM(IF($C19:$I19>0,$C19:$I19*$C$33:$I$33))) -> 1 | BJ19: =VLOOKUP($W19,$B$3:$I$23,COLUMN()-(COLUMN($BI$2)-1),FALSE)*C$33/SUM($C$33:$I$33)*VLOOKUP($W19,$B$3:$BI$23,(COLUMN($BI$2)-1),FALSE) -> 0 | BK19: =VLOOKUP($W19,$B$3:$I$23,COLUMN()-(COLUMN($BI$2)-1),FALSE)*D$33/SUM($C$33:$I$33)*VLOOKUP($W19,$B$3:$BI$23,(COLUMN($BI$2)-1),FALSE) -> 0.5548258165 | BL19: =VLOOKUP($W19,$B$3:$I$23,COLUMN()-(COLUMN($BI$2)-1),FALSE)*E$33/SUM($C$33:$I$33)*VLOOKUP($W19,$B$3:$BI$23,(COLUMN($BI$2)-1),FALSE) -> 0 | BM19: =VLOOKUP($W19,$B$3:$I$23,COLUMN()-(COLUMN($BI$2)-1),FALSE)*F$33/SUM($C$33:$I$33)*VLOOKUP($W19,$B$3:$BI$23,(COLUMN($BI$2)-1),FALSE) -> 0 | BN19: =VLOOKUP($W19,$B$3:$I$23,COLUMN()-(COLUMN($BI$2)-1),FALSE)*G$33/SUM($C$33:$I$33)*VLOOKUP($W19,$B$3:$BI$23,(COLUMN($BI$2)-1),FALSE) -> 1.609288338 | BO19: =VLOOKUP($W19,$B$3:$I$23,COLUMN()-(COLUMN($BI$2)-1),FALSE)*H$33/SUM($C$33:$I$33)*VLOOKUP($W19,$B$3:$BI$23,(COLUMN($BI$2)-1),FALSE) -> 1.936317702 | BP19: =VLOOKUP($W19,$B$3:$I$23,COLUMN()-(COLUMN($BI$2)-1),FALSE)*I$33/SUM($C$33:$I$33)*VLOOKUP($W19,$B$3:$BI$23,(COLUMN($BI$2)-1),FALSE) -> 0
A20: 17 | B20: Switzerland | D20: ='Trade 2010'!F22 -> 1.66447745 | G20: ='Environment 2010'!K22 -> 4.827865015 | H20: ='Security 2010'!J23 -> 5.808953105 | J20: 4.100431856 | K20: 17 | M20: =SUM(IF(ROUND(J20,1)<ROUND($J$3:$J$23,1),1))+1 -> 17 | O20: Switzerland | P20: =(SUM(IF($J20<$J$3:$J$25*(1-BF$3:BF$25),1))+1)*(1-BF20) ->  | Q20: =(SUM(IF($J20<$J$3:$J$25*(1-BG$3:BG$25),1))+1)*(1-BG20) ->  | R20: =(SUM(IF(ROUND($J20,1)<ROUND($J$3:$J$25,1)*(1-BF$3:BF$25),1))+1)*(1-BF20) ->  | S20: =(SUM(IF(ROUND($J20,1)<ROUND($J$3:$J$25,1)*(1-BG$3:BG$25),1))+1)*(1-BG20) ->  | T20: Switzerland | U20: 18 | V20: 18 | W20: Saudi Arabia | X20: 3.155624594 | Y20: 0 | Z20: -18 | BC20: 271.3447956 | BD20: 381.7662382 | BF20: 0 | BG20: 1 | BI20: =ABS(SUM($C20:$I20*$C$33:$I$33)/SUM(IF($C20:$I20>0,$C20:$I20*$C$33:$I$33))) -> 1 | BJ20: =VLOOKUP($W20,$B$3:$I$23,COLUMN()-(COLUMN($BI$2)-1),FALSE)*C$33/SUM($C$33:$I$33)*VLOOKUP($W20,$B$3:$BI$23,(COLUMN($BI$2)-1),FALSE) -> 0 | BK20: =VLOOKUP($W20,$B$3:$I$23,COLUMN()-(COLUMN($BI$2)-1),FALSE)*D$33/SUM($C$33:$I$33)*VLOOKUP($W20,$B$3:$BI$23,(COLUMN($BI$2)-1),FALSE) -> 2.455211813 | BL20: =VLOOKUP($W20,$B$3:$I$23,COLUMN()-(COLUMN($BI$2)-1),FALSE)*E$33/SUM($C$33:$I$33)*VLOOKUP($W20,$B$3:$BI$23,(COLUMN($BI$2)-1),FALSE) -> 0 | BM20: =VLOOKUP($W20,$B$3:$I$23,COLUMN()-(COLUMN($BI$2)-1),FALSE)*F$33/SUM($C$33:$I$33)*VLOOKUP($W20,$B$3:$BI$23,(COLUMN($BI$2)-1),FALSE) -> 0 | BN20: =VLOOKUP($W20,$B$3:$I$23,COLUMN()-(COLUMN($BI$2)-1),FALSE)*G$33/SUM($C$33:$I$33)*VLOOKUP($W20,$B$3:$BI$23,(COLUMN($BI$2)-1),FALSE) -> 0.2940079203 | BO20: =VLOOKUP($W20,$B$3:$I$23,COLUMN()-(COLUMN($BI$2)-1),FALSE)*H$33/SUM($C$33:$I$33)*VLOOKUP($W20,$B$3:$BI$23,(COLUMN($BI$2)-1),FALSE) -> 0.4064048605 | BP20: =VLOOKUP($W20,$B$3:$I$23,COLUMN()-(COLUMN($BI$2)-1),FALSE)*I$33/SUM($C$33:$I$33)*VLOOKUP($W20,$B$3:$BI$23,(COLUMN($BI$2)-1),FALSE) -> 0
A21: 14 | B21: Turkey | D21: ='Trade 2010'!F23 -> 2.887262457 | G21: ='Environment 2010'!K23 -> 6.648188524 | H21: ='Security 2010'!J24 -> 3.743725521 | J21: 4.426392167 | K21: 14 | M21: =SUM(IF(ROUND(J21,1)<ROUND($J$3:$J$23,1),1))+1 -> 14 | O21: Turkey | P21: =(SUM(IF($J21<$J$3:$J$25*(1-BF$3:BF$25),1))+1)*(1-BF21) ->  | Q21: =(SUM(IF($J21<$J$3:$J$25*(1-BG$3:BG$25),1))+1)*(1-BG21) ->  | R21: =(SUM(IF(ROUND($J21,1)<ROUND($J$3:$J$25,1)*(1-BF$3:BF$25),1))+1)*(1-BF21) ->  | S21: =(SUM(IF(ROUND($J21,1)<ROUND($J$3:$J$25,1)*(1-BG$3:BG$25),1))+1)*(1-BG21) ->  | T21: Turkey | U21: 19 | V21: 19 | W21: China | X21: 2.995526365 | Y21: 0 | Z21: -19 | BF21: 1 | BG21: 1 | BI21: =ABS(SUM($C21:$I21*$C$33:$I$33)/SUM(IF($C21:$I21>0,$C21:$I21*$C$33:$I$33))) -> 1 | BJ21: =VLOOKUP($W21,$B$3:$I$23,COLUMN()-(COLUMN($BI$2)-1),FALSE)*C$33/SUM($C$33:$I$33)*VLOOKUP($W21,$B$3:$BI$23,(COLUMN($BI$2)-1),FALSE) -> 0 | BK21: =VLOOKUP($W21,$B$3:$I$23,COLUMN()-(COLUMN($BI$2)-1),FALSE)*D$33/SUM($C$33:$I$33)*VLOOKUP($W21,$B$3:$BI$23,(COLUMN($BI$2)-1),FALSE) -> 0.434826968 | BL21: =VLOOKUP($W21,$B$3:$I$23,COLUMN()-(COLUMN($BI$2)-1),FALSE)*E$33/SUM($C$33:$I$33)*VLOOKUP($W21,$B$3:$BI$23,(COLUMN($BI$2)-1),FALSE) -> 0 | BM21: =VLOOKUP($W21,$B$3:$I$23,COLUMN()-(COLUMN($BI$2)-1),FALSE)*F$33/SUM($C$33:$I$33)*VLOOKUP($W21,$B$3:$BI$23,(COLUMN($BI$2)-1),FALSE) -> 0 | BN21: =VLOOKUP($W21,$B$3:$I$23,COLUMN()-(COLUMN($BI$2)-1),FALSE)*G$33/SUM($C$33:$I$33)*VLOOKUP($W21,$B$3:$BI$23,(COLUMN($BI$2)-1),FALSE) -> 2.107742913 | BO21: =VLOOKUP($W21,$B$3:$I$23,COLUMN()-(COLUMN($BI$2)-1),FALSE)*H$33/SUM($C$33:$I$33)*VLOOKUP($W21,$B$3:$BI$23,(COLUMN($BI$2)-1),FALSE) -> 0.4529564838 | BP21: =VLOOKUP($W21,$B$3:$I$23,COLUMN()-(COLUMN($BI$2)-1),FALSE)*I$33/SUM($C$33:$I$33)*VLOOKUP($W21,$B$3:$BI$23,(COLUMN($BI$2)-1),FALSE) -> 0
A22: 1 | B22: United Kingdom | D22: ='Trade 2010'!F24 -> 6.372299757 | G22: ='Environment 2010'!K24 -> 6.751337357 | H22: ='Security 2010'!J25 -> 10.50104269 | J22: 7.874893269 | K22: 1 | M22: =SUM(IF(ROUND(J22,1)<ROUND($J$3:$J$23,1),1))+1 -> 1 | O22: United Kingdom | P22: =(SUM(IF($J22<$J$3:$J$25*(1-BF$3:BF$25),1))+1)*(1-BF22) ->  | Q22: =(SUM(IF($J22<$J$3:$J$25*(1-BG$3:BG$25),1))+1)*(1-BG22) ->  | R22: =(SUM(IF(ROUND($J22,1)<ROUND($J$3:$J$25,1)*(1-BF$3:BF$25),1))+1)*(1-BF22) ->  | S22: =(SUM(IF(ROUND($J22,1)<ROUND($J$3:$J$25,1)*(1-BG$3:BG$25),1))+1)*(1-BG22) ->  | T22: United Kingdom | U22: 20 | V22: 20 | W22: South Korea | X22: 2.908236132 | Y22: 0 | Z22: -20 | BC22: 264.9464832 | BD22: 232.8736891 | BF22: 1 | BG22: 1 | BI22: =ABS(SUM($C22:$I22*$C$33:$I$33)/SUM(IF($C22:$I22>0,$C22:$I22*$C$33:$I$33))) -> 1 | BJ22: =VLOOKUP($W22,$B$3:$I$23,COLUMN()-(COLUMN($BI$2)-1),FALSE)*C$33/SUM($C$33:$I$33)*VLOOKUP($W22,$B$3:$BI$23,(COLUMN($BI$2)-1),FALSE) -> 0 | BK22: =VLOOKUP($W22,$B$3:$I$23,COLUMN()-(COLUMN($BI$2)-1),FALSE)*D$33/SUM($C$33:$I$33)*VLOOKUP($W22,$B$3:$BI$23,(COLUMN($BI$2)-1),FALSE) -> 0.5733707227 | BL22: =VLOOKUP($W22,$B$3:$I$23,COLUMN()-(COLUMN($BI$2)-1),FALSE)*E$33/SUM($C$33:$I$33)*VLOOKUP($W22,$B$3:$BI$23,(COLUMN($BI$2)-1),FALSE) -> 0 | BM22: =VLOOKUP($W22,$B$3:$I$23,COLUMN()-(COLUMN($BI$2)-1),FALSE)*F$33/SUM($C$33:$I$33)*VLOOKUP($W22,$B$3:$BI$23,(COLUMN($BI$2)-1),FALSE) -> 0 | BN22: =VLOOKUP($W22,$B$3:$I$23,COLUMN()-(COLUMN($BI$2)-1),FALSE)*G$33/SUM($C$33:$I$33)*VLOOKUP($W22,$B$3:$BI$23,(COLUMN($BI$2)-1),FALSE) -> 1.636135448 | BO22: =VLOOKUP($W22,$B$3:$I$23,COLUMN()-(COLUMN($BI$2)-1),FALSE)*H$33/SUM($C$33:$I$33)*VLOOKUP($W22,$B$3:$BI$23,(COLUMN($BI$2)-1),FALSE) -> 0.6987299611 | BP22: =VLOOKUP($W22,$B$3:$I$23,COLUMN()-(COLUMN($BI$2)-1),FALSE)*I$33/SUM($C$33:$I$33)*VLOOKUP($W22,$B$3:$BI$23,(COLUMN($BI$2)-1),FALSE) -> 0
A23: 7 | B23: United States | D23: ='Trade 2010'!F25 -> 8.337268041 | G23: ='Environment 2010'!K25 -> 4.432772997 | H23: ='Security 2010'!J26 -> 5.992068632 | J23: 6.254036557 | K23: 7 | M23: =SUM(IF(ROUND(J23,1)<ROUND($J$3:$J$23,1),1))+1 -> 7 | O23: United States | P23: =(SUM(IF($J23<$J$3:$J$25*(1-BF$3:BF$25),1))+1)*(1-BF23) ->  | Q23: =(SUM(IF($J23<$J$3:$J$25*(1-BG$3:BG$25),1))+1)*(1-BG23) ->  | R23: =(SUM(IF(ROUND($J23,1)<ROUND($J$3:$J$25,1)*(1-BF$3:BF$25),1))+1)*(1-BF23) ->  | S23: =(SUM(IF(ROUND($J23,1)<ROUND($J$3:$J$25,1)*(1-BG$3:BG$25),1))+1)*(1-BG23) ->  | T23: United States | U23: 21 | V23: 20 | W23: India | X23: 2.88711762 | Y23: 0 | Z23: -20 | BF23: 1 | BG23: 1 | BI23: =ABS(SUM($C23:$I23*$C$33:$I$33)/SUM(IF($C23:$I23>0,$C23:$I23*$C$33:$I$33))) -> 1 | BJ23: =VLOOKUP($W23,$B$3:$I$23,COLUMN()-(COLUMN($BI$2)-1),FALSE)*C$33/SUM($C$33:$I$33)*VLOOKUP($W23,$B$3:$BI$23,(COLUMN($BI$2)-1),FALSE) -> 0 | BK23: =VLOOKUP($W23,$B$3:$I$23,COLUMN()-(COLUMN($BI$2)-1),FALSE)*D$33/SUM($C$33:$I$33)*VLOOKUP($W23,$B$3:$BI$23,(COLUMN($BI$2)-1),FALSE) -> -0.634795913 | BL23: =VLOOKUP($W23,$B$3:$I$23,COLUMN()-(COLUMN($BI$2)-1),FALSE)*E$33/SUM($C$33:$I$33)*VLOOKUP($W23,$B$3:$BI$23,(COLUMN($BI$2)-1),FALSE) -> 0 | BM23: =VLOOKUP($W23,$B$3:$I$23,COLUMN()-(COLUMN($BI$2)-1),FALSE)*F$33/SUM($C$33:$I$33)*VLOOKUP($W23,$B$3:$BI$23,(COLUMN($BI$2)-1),FALSE) -> 0 | BN23: =VLOOKUP($W23,$B$3:$I$23,COLUMN()-(COLUMN($BI$2)-1),FALSE)*G$33/SUM($C$33:$I$33)*VLOOKUP($W23,$B$3:$BI$23,(COLUMN($BI$2)-1),FALSE) -> 2.278563176 | BO23: =VLOOKUP($W23,$B$3:$I$23,COLUMN()-(COLUMN($BI$2)-1),FALSE)*H$33/SUM($C$33:$I$33)*VLOOKUP($W23,$B$3:$BI$23,(COLUMN($BI$2)-1),FALSE) -> 0.6085544442 | BP23: =VLOOKUP($W23,$B$3:$I$23,COLUMN()-(COLUMN($BI$2)-1),FALSE)*I$33/SUM($C$33:$I$33)*VLOOKUP($W23,$B$3:$BI$23,(COLUMN($BI$2)-1),FALSE) -> 0
B24: EU | D24: ='Trade 2010'!G32 -> 0 | G24: ='Environment 2010'!K32 -> 0 | H24: ='Security 2010'!J27 ->  | P24: =(SUM(IF($J24<$J$3:$J$25*(1-BF$3:BF$25),1))+1)*(1-BF24) ->  | R24: =(SUM(IF(ROUND($J24,1)<ROUND($J$3:$J$25,1)*(1-BF$3:BF$25),1))+1)*(1-BF24) ->  | T24: EU | BG24: 1
B25: Europe | D25: ='Trade 2010'!G33 -> 0 | G25: ='Environment 2010'!K33 -> 0 | H25: ='Security 2010'!J28 ->  | P25: =(SUM(IF($J25<$J$3:$J$25*(1-BF$3:BF$25),1))+1)*(1-BF25) ->  | Q25: =(SUM(IF($J25<$J$3:$J$25*(1-BG$3:BG$25),1))+1)*(1-BG25) ->  | R25: =(SUM(IF(ROUND($J25,1)<ROUND($J$3:$J$25,1)*(1-BF$3:BF$25),1))+1)*(1-BF25) ->  | S25: =(SUM(IF(ROUND($J25,1)<ROUND($J$3:$J$25,1)*(1-BG$3:BG$25),1))+1)*(1-BG25) ->  | T25: Europe | BF25: 1
R26: =(SUM(IF(#REF!<$J$3:$J$25*(1-BF$3:BF$25),1))+1)*(1-#REF!) -> 
B27: Average | C27: =AVERAGE(C3:C23) ->  | D27: 5.045047124 | G27: 5.853485572 | H27: 5.05076022 | J27: 5.316430972 | U27: 1
B28: Standard dev. | C28: =STDEVP(C3:C23) ->  | D28: 2.624581653 | G28: 1.662738577 | H28: 2.977484835 | J28: 1.59615342 | U28: 2
U29: 3
B30: Lowest | C30: =MIN(C3:C23) -> 0 | D30: -2.441121701 | E30: 0 | F30: 0 | G30: 0.882023761 | H30: 1.219214581 | I30: 0 | J30: 2.88711762 | U30: 4
B31: Highest | C31: =MAX(C3:C23) -> 0 | D31: 8.337268041 | E31: 0 | F31: 0 | G31: 8.762265009 | H31: 11.15101209 | I31: 0 | J31: 7.874893269 | U31: 5
U32: 6
B33: Weight | C33: 0 | D33: 1 | E33: 0 | F33: 0 | G33: 1 | H33: 1 | I33: 0 | U33: 7
U34: 8
U35: 9
U38: 1
U39: 2
U40: 3
U41: 4
U42: 5
U43: 6
U44: 7
A67: =INT(RIGHT(CELL("filename",A1),4)) -> 2010

Sheet Index 2009
A1: =Index_long_name&" "&Region_name&IF(Region_name="",""," ")&Year -> Global Citizenship Index 2009 | V1: Standings | Y1: One-year change, latest methodology | AB1: Standings/EU as one | AM1: Standings/Europe as one | BF1: EU countries | BG1: Europe countries
A2: Rank | B2: Country | C2: Aid | D2: Trade | E2: Investment | F2: Migration | G2: Environment | H2: Security | I2: Technology | J2: Overall (Average) | K2: True rank | L2: 2010-11 score change | M2: Rank | N2: 2009 rank (2010 method) | P2: True rank/EU | Q2: True rank/Europe | R2: Rank/EU | S2: Rank/Europe | W2: Country | X2: Score | Y2: Score | Z2: Rank | AC2: Country | AD2: Aid | AE2: Trade | AF2: Investment | AG2: Migration | AH2: Environment | AI2: Security | AJ2: Technology | AK2: Overall (Average) | AN2: Country | AO2: Aid | AP2: Trade | AQ2: Investment | AR2: Migration | AS2: Environment | AT2: Security | AU2: Technology | AV2: Overall (Average) | BC2: PPP GDP | BD2: Exchange-rate GDP | BI2: Graphing scale factor to deal with negative scores, alpha by country
A3: =M3 -> 2 | B3: Australia | D3: ='Trade 2009'!F5 -> 8.215001774 | G3: ='Environment 2009'!K5 -> 3.0750354 | H3: ='Security 2009'!J6 -> 11.7562889 | J3: =SUMPRODUCT(C3:I3,$C$33:$I$33)/SUM($C$33:$I$33) -> 7.682108692 | K3: =COUNTIF($J$3:$J$23,">"&J3)+1 -> 2 | M3: =SUM(IF(ROUND(J3,1)<ROUND($J$3:$J$23,1),1))+1 -> 2 | O3: =B3 -> Australia | P3: =(SUM(IF($J3<$J$3:$J$25*(1-BF$3:BF$25),1))+1)*(1-BF3) ->  | Q3: =(SUM(IF($J3<$J$3:$J$25*(1-BG$3:BG$25),1))+1)*(1-BG3) ->  | R3: =(SUM(IF(ROUND($J3,1)<ROUND($J$3:$J$25,1)*(1-BF$3:BF$25),1))+1)*(1-BF3) ->  | S3: =(SUM(IF(ROUND($J3,1)<ROUND($J$3:$J$25,1)*(1-BG$3:BG$25),1))+1)*(1-BG3) ->  | T3: =B3 -> Australia | U3: =ROW(U3)-ROW($U$2) -> 1 | V3: =VLOOKUP(U3,$K$3:$O$23,3,FALSE) -> 1 | W3: =VLOOKUP(U3,$K$3:$O$23,5,FALSE) -> United Kingdom | X3: =VLOOKUP(W3,$B$3:$O$23,9,FALSE) -> 8.042884376 | Y3: =VLOOKUP(W3,$B$3:$O$23,11,FALSE) -> 0 | Z3: =VLOOKUP(U3,$K$3:$O$23,4,FALSE)-V3 -> -1 | AB3: =VLOOKUP(U27,$P$3:$U$25,3,FALSE) ->  | AC3: =VLOOKUP(U27,$P$3:$U$25,5,FALSE) ->  | AD3: =VLOOKUP($AC3,$B$3:$O$25,2,FALSE) ->  | AE3: =VLOOKUP($AC3,$B$3:$O$25,3,FALSE) ->  | AF3: =VLOOKUP($AC3,$B$3:$O$25,4,FALSE) ->  | AG3: =VLOOKUP($AC3,$B$3:$O$25,5,FALSE) ->  | AH3: =VLOOKUP($AC3,$B$3:$O$25,6,FALSE) ->  | AI3: =VLOOKUP($AC3,$B$3:$O$25,7,FALSE) ->  | AJ3: =VLOOKUP($AC3,$B$3:$O$25,8,FALSE) ->  | AK3: =VLOOKUP($AC3,$B$3:$O$25,9,FALSE) ->  | AM3: =VLOOKUP(U38,$Q$3:$V$25,3,FALSE) ->  | AN3: =VLOOKUP(U38,$Q$3:$V$25,4,FALSE) ->  | AO3: =VLOOKUP($AN3,$B$3:$O$25,2,FALSE) ->  | AP3: =VLOOKUP($AN3,$B$3:$O$25,3,FALSE) ->  | AQ3: =VLOOKUP($AN3,$B$3:$O$25,4,FALSE) ->  | AR3: =VLOOKUP($AN3,$B$3:$O$25,5,FALSE) ->  | AS3: =VLOOKUP($AN3,$B$3:$O$25,6,FALSE) ->  | AT3: =VLOOKUP($AN3,$B$3:$O$25,7,FALSE) ->  | AU3: =VLOOKUP($AN3,$B$3:$O$25,8,FALSE) ->  | AV3: =VLOOKUP(AN3,$B$3:$O$25,9,FALSE) ->  | BC3: 864.9146368 | BD3: 924.8431145 | BF3: 0 | BG3: 0 | BI3: =ABS(SUM($C3:$I3*$C$33:$I$33)/SUM(IF($C3:$I3>0,$C3:$I3*$C$33:$I$33))) -> 1 | BJ3: =VLOOKUP($W3,$B$3:$I$23,COLUMN()-(COLUMN($BI$2)-1),FALSE)*C$33/SUM($C$33:$I$33)*VLOOKUP($W3,$B$3:$BI$23,(COLUMN($BI$2)-1),FALSE) -> 0 | BK3: =VLOOKUP($W3,$B$3:$I$23,COLUMN()-(COLUMN($BI$2)-1),FALSE)*D$33/SUM($C$33:$I$33)*VLOOKUP($W3,$B$3:$BI$23,(COLUMN($BI$2)-1),FALSE) -> 2.077923517 | BL3: =VLOOKUP($W3,$B$3:$I$23,COLUMN()-(COLUMN($BI$2)-1),FALSE)*E$33/SUM($C$33:$I$33)*VLOOKUP($W3,$B$3:$BI$23,(COLUMN($BI$2)-1),FALSE) -> 0 | BM3: =VLOOKUP($W3,$B$3:$I$23,COLUMN()-(COLUMN($BI$2)-1),FALSE)*F$33/SUM($C$33:$I$33)*VLOOKUP($W3,$B$3:$BI$23,(COLUMN($BI$2)-1),FALSE) -> 0 | BN3: =VLOOKUP($W3,$B$3:$I$23,COLUMN()-(COLUMN($BI$2)-1),FALSE)*G$33/SUM($C$33:$I$33)*VLOOKUP($W3,$B$3:$BI$23,(COLUMN($BI$2)-1),FALSE) -> 2.276767006 | BO3: =VLOOKUP($W3,$B$3:$I$23,COLUMN()-(COLUMN($BI$2)-1),FALSE)*H$33/SUM($C$33:$I$33)*VLOOKUP($W3,$B$3:$BI$23,(COLUMN($BI$2)-1),FALSE) -> 3.688193853 | BP3: =VLOOKUP($W3,$B$3:$I$23,COLUMN()-(COLUMN($BI$2)-1),FALSE)*I$33/SUM($C$33:$I$33)*VLOOKUP($W3,$B$3:$BI$23,(COLUMN($BI$2)-1),FALSE) -> 0
A4: 12 | B4: Brazil | D4: ='Trade 2009'!F6 -> 3.785438248 | G4: ='Environment 2009'!K6 -> 7.207530931 | H4: ='Security 2009'!J7 -> 2.366141676 | J4: 4.453036952 | K4: 12 | M4: =SUM(IF(ROUND(J4,1)<ROUND($J$3:$J$23,1),1))+1 -> 12 | O4: Brazil | P4: =(SUM(IF($J4<$J$3:$J$25*(1-BF$3:BF$25),1))+1)*(1-BF4) ->  | Q4: =(SUM(IF($J4<$J$3:$J$25*(1-BG$3:BG$25),1))+1)*(1-BG4) ->  | R4: =(SUM(IF(ROUND($J4,1)<ROUND($J$3:$J$25,1)*(1-BF$3:BF$25),1))+1)*(1-BF4) ->  | S4: =(SUM(IF(ROUND($J4,1)<ROUND($J$3:$J$25,1)*(1-BG$3:BG$25),1))+1)*(1-BG4) ->  | T4: Brazil | U4: 2 | V4: 2 | W4: Australia | X4: 7.682108692 | Y4: =VLOOKUP(W4,$B$3:$O$23,11,FALSE) -> 0 | Z4: =VLOOKUP(U4,$K$3:$O$23,4,FALSE)-V4 -> -2 | BC4: 324.6757642 | BD4: 381.0837463 | BF4: 1 | BG4: 1 | BI4: =ABS(SUM($C4:$I4*$C$33:$I$33)/SUM(IF($C4:$I4>0,$C4:$I4*$C$33:$I$33))) -> 1 | BJ4: =VLOOKUP($W4,$B$3:$I$23,COLUMN()-(COLUMN($BI$2)-1),FALSE)*C$33/SUM($C$33:$I$33)*VLOOKUP($W4,$B$3:$BI$23,(COLUMN($BI$2)-1),FALSE) -> 0 | BK4: =VLOOKUP($W4,$B$3:$I$23,COLUMN()-(COLUMN($BI$2)-1),FALSE)*D$33/SUM($C$33:$I$33)*VLOOKUP($W4,$B$3:$BI$23,(COLUMN($BI$2)-1),FALSE) -> 2.738333925 | BL4: =VLOOKUP($W4,$B$3:$I$23,COLUMN()-(COLUMN($BI$2)-1),FALSE)*E$33/SUM($C$33:$I$33)*VLOOKUP($W4,$B$3:$BI$23,(COLUMN($BI$2)-1),FALSE) -> 0 | BM4: =VLOOKUP($W4,$B$3:$I$23,COLUMN()-(COLUMN($BI$2)-1),FALSE)*F$33/SUM($C$33:$I$33)*VLOOKUP($W4,$B$3:$BI$23,(COLUMN($BI$2)-1),FALSE) -> 0 | BN4: =VLOOKUP($W4,$B$3:$I$23,COLUMN()-(COLUMN($BI$2)-1),FALSE)*G$33/SUM($C$33:$I$33)*VLOOKUP($W4,$B$3:$BI$23,(COLUMN($BI$2)-1),FALSE) -> 1.0250118 | BO4: =VLOOKUP($W4,$B$3:$I$23,COLUMN()-(COLUMN($BI$2)-1),FALSE)*H$33/SUM($C$33:$I$33)*VLOOKUP($W4,$B$3:$BI$23,(COLUMN($BI$2)-1),FALSE) -> 3.918762967 | BP4: =VLOOKUP($W4,$B$3:$I$23,COLUMN()-(COLUMN($BI$2)-1),FALSE)*I$33/SUM($C$33:$I$33)*VLOOKUP($W4,$B$3:$BI$23,(COLUMN($BI$2)-1),FALSE) -> 0
A5: 7 | B5: Canada | D5: ='Trade 2009'!F7 -> 7.057634971 | G5: ='Environment 2009'!K7 -> 4.473280886 | H5: ='Security 2009'!J8 -> 6.978927399 | J5: 6.169947752 | K5: 8 | M5: =SUM(IF(ROUND(J5,1)<ROUND($J$3:$J$23,1),1))+1 -> 7 | O5: Canada | P5: =(SUM(IF($J5<$J$3:$J$25*(1-BF$3:BF$25),1))+1)*(1-BF5) ->  | Q5: =(SUM(IF($J5<$J$3:$J$25*(1-BG$3:BG$25),1))+1)*(1-BG5) ->  | R5: =(SUM(IF(ROUND($J5,1)<ROUND($J$3:$J$25,1)*(1-BF$3:BF$25),1))+1)*(1-BF5) ->  | S5: =(SUM(IF(ROUND($J5,1)<ROUND($J$3:$J$25,1)*(1-BG$3:BG$25),1))+1)*(1-BG5) ->  | T5: Canada | U5: 3 | V5: 3 | W5: Netherlands | X5: 7.221269452 | BC5: 391.7684736 | BD5: 471.1610778 | BF5: 1 | BG5: 1 | BI5: =ABS(SUM($C5:$I5*$C$33:$I$33)/SUM(IF($C5:$I5>0,$C5:$I5*$C$33:$I$33))) -> 1 | BJ5: =VLOOKUP($W5,$B$3:$I$23,COLUMN()-(COLUMN($BI$2)-1),FALSE)*C$33/SUM($C$33:$I$33)*VLOOKUP($W5,$B$3:$BI$23,(COLUMN($BI$2)-1),FALSE) -> 0 | BK5: =VLOOKUP($W5,$B$3:$I$23,COLUMN()-(COLUMN($BI$2)-1),FALSE)*D$33/SUM($C$33:$I$33)*VLOOKUP($W5,$B$3:$BI$23,(COLUMN($BI$2)-1),FALSE) -> 2.187261718 | BL5: =VLOOKUP($W5,$B$3:$I$23,COLUMN()-(COLUMN($BI$2)-1),FALSE)*E$33/SUM($C$33:$I$33)*VLOOKUP($W5,$B$3:$BI$23,(COLUMN($BI$2)-1),FALSE) -> 0 | BM5: =VLOOKUP($W5,$B$3:$I$23,COLUMN()-(COLUMN($BI$2)-1),FALSE)*F$33/SUM($C$33:$I$33)*VLOOKUP($W5,$B$3:$BI$23,(COLUMN($BI$2)-1),FALSE) -> 0 | BN5: =VLOOKUP($W5,$B$3:$I$23,COLUMN()-(COLUMN($BI$2)-1),FALSE)*G$33/SUM($C$33:$I$33)*VLOOKUP($W5,$B$3:$BI$23,(COLUMN($BI$2)-1),FALSE) -> 2.14825283 | BO5: =VLOOKUP($W5,$B$3:$I$23,COLUMN()-(COLUMN($BI$2)-1),FALSE)*H$33/SUM($C$33:$I$33)*VLOOKUP($W5,$B$3:$BI$23,(COLUMN($BI$2)-1),FALSE) -> 2.885754903 | BP5: =VLOOKUP($W5,$B$3:$I$23,COLUMN()-(COLUMN($BI$2)-1),FALSE)*I$33/SUM($C$33:$I$33)*VLOOKUP($W5,$B$3:$BI$23,(COLUMN($BI$2)-1),FALSE) -> 0
A6: 19 | B6: China | D6: ='Trade 2009'!F8 -> 1.333030981 | G6: ='Environment 2009'!K8 -> 6.03870596 | H6: ='Security 2009'!J9 -> 1.351529841 | J6: 2.907755594 | K6: 19 | M6: =SUM(IF(ROUND(J6,1)<ROUND($J$3:$J$23,1),1))+1 -> 19 | O6: China | P6: =(SUM(IF($J6<$J$3:$J$25*(1-BF$3:BF$25),1))+1)*(1-BF6) ->  | Q6: =(SUM(IF($J6<$J$3:$J$25*(1-BG$3:BG$25),1))+1)*(1-BG6) ->  | R6: =(SUM(IF(ROUND($J6,1)<ROUND($J$3:$J$25,1)*(1-BF$3:BF$25),1))+1)*(1-BF6) ->  | S6: =(SUM(IF(ROUND($J6,1)<ROUND($J$3:$J$25,1)*(1-BG$3:BG$25),1))+1)*(1-BG6) ->  | T6: China | U6: 4 | V6: 4 | W6: France | X6: 7.094879342 | Y6: =VLOOKUP(W6,$B$3:$O$23,11,FALSE) -> 0 | Z6: =VLOOKUP(U6,$K$3:$O$23,4,FALSE)-V6 -> -4 | BC6: 1275.638841 | BD6: 1336.067752 | BF6: 0 | BG6: 0 | BI6: =ABS(SUM($C6:$I6*$C$33:$I$33)/SUM(IF($C6:$I6>0,$C6:$I6*$C$33:$I$33))) -> 1 | BJ6: =VLOOKUP($W6,$B$3:$I$23,COLUMN()-(COLUMN($BI$2)-1),FALSE)*C$33/SUM($C$33:$I$33)*VLOOKUP($W6,$B$3:$BI$23,(COLUMN($BI$2)-1),FALSE) -> 0 | BK6: =VLOOKUP($W6,$B$3:$I$23,COLUMN()-(COLUMN($BI$2)-1),FALSE)*D$33/SUM($C$33:$I$33)*VLOOKUP($W6,$B$3:$BI$23,(COLUMN($BI$2)-1),FALSE) -> 2.095841391 | BL6: =VLOOKUP($W6,$B$3:$I$23,COLUMN()-(COLUMN($BI$2)-1),FALSE)*E$33/SUM($C$33:$I$33)*VLOOKUP($W6,$B$3:$BI$23,(COLUMN($BI$2)-1),FALSE) -> 0 | BM6: =VLOOKUP($W6,$B$3:$I$23,COLUMN()-(COLUMN($BI$2)-1),FALSE)*F$33/SUM($C$33:$I$33)*VLOOKUP($W6,$B$3:$BI$23,(COLUMN($BI$2)-1),FALSE) -> 0 | BN6: =VLOOKUP($W6,$B$3:$I$23,COLUMN()-(COLUMN($BI$2)-1),FALSE)*G$33/SUM($C$33:$I$33)*VLOOKUP($W6,$B$3:$BI$23,(COLUMN($BI$2)-1),FALSE) -> 2.161212576 | BO6: =VLOOKUP($W6,$B$3:$I$23,COLUMN()-(COLUMN($BI$2)-1),FALSE)*H$33/SUM($C$33:$I$33)*VLOOKUP($W6,$B$3:$BI$23,(COLUMN($BI$2)-1),FALSE) -> 2.837825375 | BP6: =VLOOKUP($W6,$B$3:$I$23,COLUMN()-(COLUMN($BI$2)-1),FALSE)*I$33/SUM($C$33:$I$33)*VLOOKUP($W6,$B$3:$BI$23,(COLUMN($BI$2)-1),FALSE) -> 0
A7: 4 | B7: France | D7: ='Trade 2009'!F9 -> 6.287524173 | G7: ='Environment 2009'!K9 -> 6.483637729 | H7: ='Security 2009'!J10 -> 8.513476125 | J7: 7.094879342 | K7: 4 | M7: =SUM(IF(ROUND(J7,1)<ROUND($J$3:$J$23,1),1))+1 -> 4 | O7: France | P7: =(SUM(IF($J7<$J$3:$J$25*(1-BF$3:BF$25),1))+1)*(1-BF7) ->  | Q7: =(SUM(IF($J7<$J$3:$J$25*(1-BG$3:BG$25),1))+1)*(1-BG7) ->  | R7: =(SUM(IF(ROUND($J7,1)<ROUND($J$3:$J$25,1)*(1-BF$3:BF$25),1))+1)*(1-BF7) ->  | S7: =(SUM(IF(ROUND($J7,1)<ROUND($J$3:$J$25,1)*(1-BG$3:BG$25),1))+1)*(1-BG7) ->  | T7: France | U7: 5 | V7: 4 | W7: Sweden | X7: 7.078582827 | Y7: 0 | Z7: -4 | BF7: 1 | BG7: 1 | BI7: =ABS(SUM($C7:$I7*$C$33:$I$33)/SUM(IF($C7:$I7>0,$C7:$I7*$C$33:$I$33))) -> 1 | BJ7: =VLOOKUP($W7,$B$3:$I$23,COLUMN()-(COLUMN($BI$2)-1),FALSE)*C$33/SUM($C$33:$I$33)*VLOOKUP($W7,$B$3:$BI$23,(COLUMN($BI$2)-1),FALSE) -> 0 | BK7: =VLOOKUP($W7,$B$3:$I$23,COLUMN()-(COLUMN($BI$2)-1),FALSE)*D$33/SUM($C$33:$I$33)*VLOOKUP($W7,$B$3:$BI$23,(COLUMN($BI$2)-1),FALSE) -> 2.166516318 | BL7: =VLOOKUP($W7,$B$3:$I$23,COLUMN()-(COLUMN($BI$2)-1),FALSE)*E$33/SUM($C$33:$I$33)*VLOOKUP($W7,$B$3:$BI$23,(COLUMN($BI$2)-1),FALSE) -> 0 | BM7: =VLOOKUP($W7,$B$3:$I$23,COLUMN()-(COLUMN($BI$2)-1),FALSE)*F$33/SUM($C$33:$I$33)*VLOOKUP($W7,$B$3:$BI$23,(COLUMN($BI$2)-1),FALSE) -> 0 | BN7: =VLOOKUP($W7,$B$3:$I$23,COLUMN()-(COLUMN($BI$2)-1),FALSE)*G$33/SUM($C$33:$I$33)*VLOOKUP($W7,$B$3:$BI$23,(COLUMN($BI$2)-1),FALSE) -> 2.315861401 | BO7: =VLOOKUP($W7,$B$3:$I$23,COLUMN()-(COLUMN($BI$2)-1),FALSE)*H$33/SUM($C$33:$I$33)*VLOOKUP($W7,$B$3:$BI$23,(COLUMN($BI$2)-1),FALSE) -> 2.596205109 | BP7: =VLOOKUP($W7,$B$3:$I$23,COLUMN()-(COLUMN($BI$2)-1),FALSE)*I$33/SUM($C$33:$I$33)*VLOOKUP($W7,$B$3:$BI$23,(COLUMN($BI$2)-1),FALSE) -> 0
A8: 9 | B8: Germany | D8: ='Trade 2009'!F10 -> 6.279492379 | G8: ='Environment 2009'!K10 -> 6.187606876 | H8: ='Security 2009'!J11 -> 5.797010171 | J8: 6.088036475 | K8: 9 | M8: =SUM(IF(ROUND(J8,1)<ROUND($J$3:$J$23,1),1))+1 -> 9 | O8: Germany | P8: =(SUM(IF($J8<$J$3:$J$25*(1-BF$3:BF$25),1))+1)*(1-BF8) ->  | Q8: =(SUM(IF($J8<$J$3:$J$25*(1-BG$3:BG$25),1))+1)*(1-BG8) ->  | R8: =(SUM(IF(ROUND($J8,1)<ROUND($J$3:$J$25,1)*(1-BF$3:BF$25),1))+1)*(1-BF8) ->  | S8: =(SUM(IF(ROUND($J8,1)<ROUND($J$3:$J$25,1)*(1-BG$3:BG$25),1))+1)*(1-BG8) ->  | T8: Germany | U8: 6 | V8: 6 | W8: Italy | X8: 6.754393677 | Y8: 0 | Z8: -6 | BC8: 208.5665341 | BD8: 309.5961928 | BF8: 1 | BG8: 1 | BI8: =ABS(SUM($C8:$I8*$C$33:$I$33)/SUM(IF($C8:$I8>0,$C8:$I8*$C$33:$I$33))) -> 1 | BJ8: =VLOOKUP($W8,$B$3:$I$23,COLUMN()-(COLUMN($BI$2)-1),FALSE)*C$33/SUM($C$33:$I$33)*VLOOKUP($W8,$B$3:$BI$23,(COLUMN($BI$2)-1),FALSE) -> 0 | BK8: =VLOOKUP($W8,$B$3:$I$23,COLUMN()-(COLUMN($BI$2)-1),FALSE)*D$33/SUM($C$33:$I$33)*VLOOKUP($W8,$B$3:$BI$23,(COLUMN($BI$2)-1),FALSE) -> 2.129595744 | BL8: =VLOOKUP($W8,$B$3:$I$23,COLUMN()-(COLUMN($BI$2)-1),FALSE)*E$33/SUM($C$33:$I$33)*VLOOKUP($W8,$B$3:$BI$23,(COLUMN($BI$2)-1),FALSE) -> 0 | BM8: =VLOOKUP($W8,$B$3:$I$23,COLUMN()-(COLUMN($BI$2)-1),FALSE)*F$33/SUM($C$33:$I$33)*VLOOKUP($W8,$B$3:$BI$23,(COLUMN($BI$2)-1),FALSE) -> 0 | BN8: =VLOOKUP($W8,$B$3:$I$23,COLUMN()-(COLUMN($BI$2)-1),FALSE)*G$33/SUM($C$33:$I$33)*VLOOKUP($W8,$B$3:$BI$23,(COLUMN($BI$2)-1),FALSE) -> 1.993698897 | BO8: =VLOOKUP($W8,$B$3:$I$23,COLUMN()-(COLUMN($BI$2)-1),FALSE)*H$33/SUM($C$33:$I$33)*VLOOKUP($W8,$B$3:$BI$23,(COLUMN($BI$2)-1),FALSE) -> 2.631099035 | BP8: =VLOOKUP($W8,$B$3:$I$23,COLUMN()-(COLUMN($BI$2)-1),FALSE)*I$33/SUM($C$33:$I$33)*VLOOKUP($W8,$B$3:$BI$23,(COLUMN($BI$2)-1),FALSE) -> 0
A9: 21 | B9: India | D9: ='Trade 2009'!F11 -> -2.45960262 | G9: ='Environment 2009'!K11 -> 8.592853421 | H9: ='Security 2009'!J12 -> 2.232867801 | J9: 2.788706201 | K9: 21 | M9: =SUM(IF(ROUND(J9,1)<ROUND($J$3:$J$23,1),1))+1 -> 21 | O9: India | P9: =(SUM(IF($J9<$J$3:$J$25*(1-BF$3:BF$25),1))+1)*(1-BF9) ->  | Q9: =(SUM(IF($J9<$J$3:$J$25*(1-BG$3:BG$25),1))+1)*(1-BG9) ->  | R9: =(SUM(IF(ROUND($J9,1)<ROUND($J$3:$J$25,1)*(1-BF$3:BF$25),1))+1)*(1-BF9) ->  | S9: =(SUM(IF(ROUND($J9,1)<ROUND($J$3:$J$25,1)*(1-BG$3:BG$25),1))+1)*(1-BG9) ->  | T9: India | U9: 7 | V9: 7 | W9: United States | X9: 6.227288419 | Y9: 0 | Z9: -7 | BC9: 188.2605978 | BD9: 237.9893965 | BF9: 1 | BG9: 1 | BI9: =ABS(SUM($C9:$I9*$C$33:$I$33)/SUM(IF($C9:$I9>0,$C9:$I9*$C$33:$I$33))) -> 0.7728001147 | BJ9: =VLOOKUP($W9,$B$3:$I$23,COLUMN()-(COLUMN($BI$2)-1),FALSE)*C$33/SUM($C$33:$I$33)*VLOOKUP($W9,$B$3:$BI$23,(COLUMN($BI$2)-1),FALSE) -> 0 | BK9: =VLOOKUP($W9,$B$3:$I$23,COLUMN()-(COLUMN($BI$2)-1),FALSE)*D$33/SUM($C$33:$I$33)*VLOOKUP($W9,$B$3:$BI$23,(COLUMN($BI$2)-1),FALSE) -> 2.773666024 | BL9: =VLOOKUP($W9,$B$3:$I$23,COLUMN()-(COLUMN($BI$2)-1),FALSE)*E$33/SUM($C$33:$I$33)*VLOOKUP($W9,$B$3:$BI$23,(COLUMN($BI$2)-1),FALSE) -> 0 | BM9: =VLOOKUP($W9,$B$3:$I$23,COLUMN()-(COLUMN($BI$2)-1),FALSE)*F$33/SUM($C$33:$I$33)*VLOOKUP($W9,$B$3:$BI$23,(COLUMN($BI$2)-1),FALSE) -> 0 | BN9: =VLOOKUP($W9,$B$3:$I$23,COLUMN()-(COLUMN($BI$2)-1),FALSE)*G$33/SUM($C$33:$I$33)*VLOOKUP($W9,$B$3:$BI$23,(COLUMN($BI$2)-1),FALSE) -> 1.348849342 | BO9: =VLOOKUP($W9,$B$3:$I$23,COLUMN()-(COLUMN($BI$2)-1),FALSE)*H$33/SUM($C$33:$I$33)*VLOOKUP($W9,$B$3:$BI$23,(COLUMN($BI$2)-1),FALSE) -> 2.104773054 | BP9: =VLOOKUP($W9,$B$3:$I$23,COLUMN()-(COLUMN($BI$2)-1),FALSE)*I$33/SUM($C$33:$I$33)*VLOOKUP($W9,$B$3:$BI$23,(COLUMN($BI$2)-1),FALSE) -> 0
A10: 13 | B10: Indonesia | D10: ='Trade 2009'!F12 -> 6.121380541 | G10: ='Environment 2009'!K12 -> 5.79377755 | H10: ='Security 2009'!J13 -> 1.410665795 | J10: 4.441941295 | K10: 13 | M10: =SUM(IF(ROUND(J10,1)<ROUND($J$3:$J$23,1),1))+1 -> 13 | O10: Indonesia | P10: =(SUM(IF($J10<$J$3:$J$25*(1-BF$3:BF$25),1))+1)*(1-BF10) ->  | Q10: =(SUM(IF($J10<$J$3:$J$25*(1-BG$3:BG$25),1))+1)*(1-BG10) ->  | R10: =(SUM(IF(ROUND($J10,1)<ROUND($J$3:$J$25,1)*(1-BF$3:BF$25),1))+1)*(1-BF10) ->  | S10: =(SUM(IF(ROUND($J10,1)<ROUND($J$3:$J$25,1)*(1-BG$3:BG$25),1))+1)*(1-BG10) ->  | T10: Indonesia | U10: 8 | V10: 7 | W10: Canada | X10: 6.169947752 | Y10: 0 | Z10: -7 | BC10: 2173.316891 | BD10: 2649.390055 | BF10: 1 | BG10: 1 | BI10: =ABS(SUM($C10:$I10*$C$33:$I$33)/SUM(IF($C10:$I10>0,$C10:$I10*$C$33:$I$33))) -> 1 | BJ10: =VLOOKUP($W10,$B$3:$I$23,COLUMN()-(COLUMN($BI$2)-1),FALSE)*C$33/SUM($C$33:$I$33)*VLOOKUP($W10,$B$3:$BI$23,(COLUMN($BI$2)-1),FALSE) -> 0 | BK10: =VLOOKUP($W10,$B$3:$I$23,COLUMN()-(COLUMN($BI$2)-1),FALSE)*D$33/SUM($C$33:$I$33)*VLOOKUP($W10,$B$3:$BI$23,(COLUMN($BI$2)-1),FALSE) -> 2.35254499 | BL10: =VLOOKUP($W10,$B$3:$I$23,COLUMN()-(COLUMN($BI$2)-1),FALSE)*E$33/SUM($C$33:$I$33)*VLOOKUP($W10,$B$3:$BI$23,(COLUMN($BI$2)-1),FALSE) -> 0 | BM10: =VLOOKUP($W10,$B$3:$I$23,COLUMN()-(COLUMN($BI$2)-1),FALSE)*F$33/SUM($C$33:$I$33)*VLOOKUP($W10,$B$3:$BI$23,(COLUMN($BI$2)-1),FALSE) -> 0 | BN10: =VLOOKUP($W10,$B$3:$I$23,COLUMN()-(COLUMN($BI$2)-1),FALSE)*G$33/SUM($C$33:$I$33)*VLOOKUP($W10,$B$3:$BI$23,(COLUMN($BI$2)-1),FALSE) -> 1.491093629 | BO10: =VLOOKUP($W10,$B$3:$I$23,COLUMN()-(COLUMN($BI$2)-1),FALSE)*H$33/SUM($C$33:$I$33)*VLOOKUP($W10,$B$3:$BI$23,(COLUMN($BI$2)-1),FALSE) -> 2.326309133 | BP10: =VLOOKUP($W10,$B$3:$I$23,COLUMN()-(COLUMN($BI$2)-1),FALSE)*I$33/SUM($C$33:$I$33)*VLOOKUP($W10,$B$3:$BI$23,(COLUMN($BI$2)-1),FALSE) -> 0
A11: 6 | B11: Italy | D11: ='Trade 2009'!F13 -> 6.388787233 | G11: ='Environment 2009'!K13 -> 5.981096692 | H11: ='Security 2009'!J14 -> 7.893297105 | J11: 6.754393677 | K11: 6 | M11: =SUM(IF(ROUND(J11,1)<ROUND($J$3:$J$23,1),1))+1 -> 6 | O11: Italy | P11: =(SUM(IF($J11<$J$3:$J$25*(1-BF$3:BF$25),1))+1)*(1-BF11) ->  | Q11: =(SUM(IF($J11<$J$3:$J$25*(1-BG$3:BG$25),1))+1)*(1-BG11) ->  | R11: =(SUM(IF(ROUND($J11,1)<ROUND($J$3:$J$25,1)*(1-BF$3:BF$25),1))+1)*(1-BF11) ->  | S11: =(SUM(IF(ROUND($J11,1)<ROUND($J$3:$J$25,1)*(1-BG$3:BG$25),1))+1)*(1-BG11) ->  | T11: Italy | U11: 9 | V11: 9 | W11: Germany | X11: 6.088036475 | Y11: 0 | Z11: -9 | BC11: 2975.329419 | BD11: 3330.031747 | BF11: 1 | BG11: 1 | BI11: =ABS(SUM($C11:$I11*$C$33:$I$33)/SUM(IF($C11:$I11>0,$C11:$I11*$C$33:$I$33))) -> 1 | BJ11: =VLOOKUP($W11,$B$3:$I$23,COLUMN()-(COLUMN($BI$2)-1),FALSE)*C$33/SUM($C$33:$I$33)*VLOOKUP($W11,$B$3:$BI$23,(COLUMN($BI$2)-1),FALSE) -> 0 | BK11: =VLOOKUP($W11,$B$3:$I$23,COLUMN()-(COLUMN($BI$2)-1),FALSE)*D$33/SUM($C$33:$I$33)*VLOOKUP($W11,$B$3:$BI$23,(COLUMN($BI$2)-1),FALSE) -> 2.093164126 | BL11: =VLOOKUP($W11,$B$3:$I$23,COLUMN()-(COLUMN($BI$2)-1),FALSE)*E$33/SUM($C$33:$I$33)*VLOOKUP($W11,$B$3:$BI$23,(COLUMN($BI$2)-1),FALSE) -> 0 | BM11: =VLOOKUP($W11,$B$3:$I$23,COLUMN()-(COLUMN($BI$2)-1),FALSE)*F$33/SUM($C$33:$I$33)*VLOOKUP($W11,$B$3:$BI$23,(COLUMN($BI$2)-1),FALSE) -> 0 | BN11: =VLOOKUP($W11,$B$3:$I$23,COLUMN()-(COLUMN($BI$2)-1),FALSE)*G$33/SUM($C$33:$I$33)*VLOOKUP($W11,$B$3:$BI$23,(COLUMN($BI$2)-1),FALSE) -> 2.062535625 | BO11: =VLOOKUP($W11,$B$3:$I$23,COLUMN()-(COLUMN($BI$2)-1),FALSE)*H$33/SUM($C$33:$I$33)*VLOOKUP($W11,$B$3:$BI$23,(COLUMN($BI$2)-1),FALSE) -> 1.932336724 | BP11: =VLOOKUP($W11,$B$3:$I$23,COLUMN()-(COLUMN($BI$2)-1),FALSE)*I$33/SUM($C$33:$I$33)*VLOOKUP($W11,$B$3:$BI$23,(COLUMN($BI$2)-1),FALSE) -> 0
A12: 17 | B12: Japan | D12: ='Trade 2009'!F14 -> 5.401087363 | G12: ='Environment 2009'!K14 -> 3.808235222 | H12: ='Security 2009'!J15 -> 2.856038114 | J12: 4.0217869 | K12: 17 | M12: =SUM(IF(ROUND(J12,1)<ROUND($J$3:$J$23,1),1))+1 -> 17 | O12: Japan | P12: =(SUM(IF($J12<$J$3:$J$25*(1-BF$3:BF$25),1))+1)*(1-BF12) ->  | Q12: =(SUM(IF($J12<$J$3:$J$25*(1-BG$3:BG$25),1))+1)*(1-BG12) ->  | R12: =(SUM(IF(ROUND($J12,1)<ROUND($J$3:$J$25,1)*(1-BF$3:BF$25),1))+1)*(1-BF12) ->  | S12: =(SUM(IF(ROUND($J12,1)<ROUND($J$3:$J$25,1)*(1-BG$3:BG$25),1))+1)*(1-BG12) ->  | T12: Japan | U12: 10 | V12: 10 | W12: Spain | X12: 5.601761314 | Y12: 0 | Z12: -10 | BC12: 334.1816627 | BD12: 329.9240509 | BF12: 1 | BG12: 1 | BI12: =ABS(SUM($C12:$I12*$C$33:$I$33)/SUM(IF($C12:$I12>0,$C12:$I12*$C$33:$I$33))) -> 1 | BJ12: =VLOOKUP($W12,$B$3:$I$23,COLUMN()-(COLUMN($BI$2)-1),FALSE)*C$33/SUM($C$33:$I$33)*VLOOKUP($W12,$B$3:$BI$23,(COLUMN($BI$2)-1),FALSE) -> 0 | BK12: =VLOOKUP($W12,$B$3:$I$23,COLUMN()-(COLUMN($BI$2)-1),FALSE)*D$33/SUM($C$33:$I$33)*VLOOKUP($W12,$B$3:$BI$23,(COLUMN($BI$2)-1),FALSE) -> 2.094338512 | BL12: =VLOOKUP($W12,$B$3:$I$23,COLUMN()-(COLUMN($BI$2)-1),FALSE)*E$33/SUM($C$33:$I$33)*VLOOKUP($W12,$B$3:$BI$23,(COLUMN($BI$2)-1),FALSE) -> 0 | BM12: =VLOOKUP($W12,$B$3:$I$23,COLUMN()-(COLUMN($BI$2)-1),FALSE)*F$33/SUM($C$33:$I$33)*VLOOKUP($W12,$B$3:$BI$23,(COLUMN($BI$2)-1),FALSE) -> 0 | BN12: =VLOOKUP($W12,$B$3:$I$23,COLUMN()-(COLUMN($BI$2)-1),FALSE)*G$33/SUM($C$33:$I$33)*VLOOKUP($W12,$B$3:$BI$23,(COLUMN($BI$2)-1),FALSE) -> 1.946084117 | BO12: =VLOOKUP($W12,$B$3:$I$23,COLUMN()-(COLUMN($BI$2)-1),FALSE)*H$33/SUM($C$33:$I$33)*VLOOKUP($W12,$B$3:$BI$23,(COLUMN($BI$2)-1),FALSE) -> 1.561338685 | BP12: =VLOOKUP($W12,$B$3:$I$23,COLUMN()-(COLUMN($BI$2)-1),FALSE)*I$33/SUM($C$33:$I$33)*VLOOKUP($W12,$B$3:$BI$23,(COLUMN($BI$2)-1),FALSE) -> 0
A13: 14 | B13: Mexico | D13: ='Trade 2009'!F15 -> 5.447780163 | G13: ='Environment 2009'!K15 -> 4.908944812 | H13: ='Security 2009'!J16 -> 2.060055173 | J13: 4.138926716 | K13: 14 | M13: =SUM(IF(ROUND(J13,1)<ROUND($J$3:$J$23,1),1))+1 -> 14 | O13: Mexico | P13: =(SUM(IF($J13<$J$3:$J$25*(1-BF$3:BF$25),1))+1)*(1-BF13) ->  | Q13: =(SUM(IF($J13<$J$3:$J$25*(1-BG$3:BG$25),1))+1)*(1-BG13) ->  | R13: =(SUM(IF(ROUND($J13,1)<ROUND($J$3:$J$25,1)*(1-BF$3:BF$25),1))+1)*(1-BF13) ->  | S13: =(SUM(IF(ROUND($J13,1)<ROUND($J$3:$J$25,1)*(1-BG$3:BG$25),1))+1)*(1-BG13) ->  | T13: Mexico | U13: 11 | V13: 11 | W13: Russia | X13: 5.083152316 | Y13: 0 | Z13: -11 | BF13: 1 | BG13: 1 | BI13: =ABS(SUM($C13:$I13*$C$33:$I$33)/SUM(IF($C13:$I13>0,$C13:$I13*$C$33:$I$33))) -> 1 | BJ13: =VLOOKUP($W13,$B$3:$I$23,COLUMN()-(COLUMN($BI$2)-1),FALSE)*C$33/SUM($C$33:$I$33)*VLOOKUP($W13,$B$3:$BI$23,(COLUMN($BI$2)-1),FALSE) -> 0 | BK13: =VLOOKUP($W13,$B$3:$I$23,COLUMN()-(COLUMN($BI$2)-1),FALSE)*D$33/SUM($C$33:$I$33)*VLOOKUP($W13,$B$3:$BI$23,(COLUMN($BI$2)-1),FALSE) -> 1.472271423 | BL13: =VLOOKUP($W13,$B$3:$I$23,COLUMN()-(COLUMN($BI$2)-1),FALSE)*E$33/SUM($C$33:$I$33)*VLOOKUP($W13,$B$3:$BI$23,(COLUMN($BI$2)-1),FALSE) -> 0 | BM13: =VLOOKUP($W13,$B$3:$I$23,COLUMN()-(COLUMN($BI$2)-1),FALSE)*F$33/SUM($C$33:$I$33)*VLOOKUP($W13,$B$3:$BI$23,(COLUMN($BI$2)-1),FALSE) -> 0 | BN13: =VLOOKUP($W13,$B$3:$I$23,COLUMN()-(COLUMN($BI$2)-1),FALSE)*G$33/SUM($C$33:$I$33)*VLOOKUP($W13,$B$3:$BI$23,(COLUMN($BI$2)-1),FALSE) -> 2.560196671 | BO13: =VLOOKUP($W13,$B$3:$I$23,COLUMN()-(COLUMN($BI$2)-1),FALSE)*H$33/SUM($C$33:$I$33)*VLOOKUP($W13,$B$3:$BI$23,(COLUMN($BI$2)-1),FALSE) -> 1.050684222 | BP13: =VLOOKUP($W13,$B$3:$I$23,COLUMN()-(COLUMN($BI$2)-1),FALSE)*I$33/SUM($C$33:$I$33)*VLOOKUP($W13,$B$3:$BI$23,(COLUMN($BI$2)-1),FALSE) -> 0
A14: 3 | B14: Netherlands | D14: ='Trade 2009'!F16 -> 6.561785154 | G14: ='Environment 2009'!K16 -> 6.44475849 | H14: ='Security 2009'!J17 -> 8.65726471 | J14: 7.221269452 | K14: 3 | M14: =SUM(IF(ROUND(J14,1)<ROUND($J$3:$J$23,1),1))+1 -> 3 | O14: Netherlands | P14: =(SUM(IF($J14<$J$3:$J$25*(1-BF$3:BF$25),1))+1)*(1-BF14) ->  | Q14: =(SUM(IF($J14<$J$3:$J$25*(1-BG$3:BG$25),1))+1)*(1-BG14) ->  | R14: =(SUM(IF(ROUND($J14,1)<ROUND($J$3:$J$25,1)*(1-BF$3:BF$25),1))+1)*(1-BF14) ->  | S14: =(SUM(IF(ROUND($J14,1)<ROUND($J$3:$J$25,1)*(1-BG$3:BG$25),1))+1)*(1-BG14) ->  | T14: Netherlands | U14: 12 | V14: 12 | W14: Brazil | X14: 4.453036952 | Y14: 0 | Z14: -12 | BC14: 181.1218596 | BD14: 227.1925699 | BF14: 1 | BG14: 1 | BI14: =ABS(SUM($C14:$I14*$C$33:$I$33)/SUM(IF($C14:$I14>0,$C14:$I14*$C$33:$I$33))) -> 1 | BJ14: =VLOOKUP($W14,$B$3:$I$23,COLUMN()-(COLUMN($BI$2)-1),FALSE)*C$33/SUM($C$33:$I$33)*VLOOKUP($W14,$B$3:$BI$23,(COLUMN($BI$2)-1),FALSE) -> 0 | BK14: =VLOOKUP($W14,$B$3:$I$23,COLUMN()-(COLUMN($BI$2)-1),FALSE)*D$33/SUM($C$33:$I$33)*VLOOKUP($W14,$B$3:$BI$23,(COLUMN($BI$2)-1),FALSE) -> 1.261812749 | BL14: =VLOOKUP($W14,$B$3:$I$23,COLUMN()-(COLUMN($BI$2)-1),FALSE)*E$33/SUM($C$33:$I$33)*VLOOKUP($W14,$B$3:$BI$23,(COLUMN($BI$2)-1),FALSE) -> 0 | BM14: =VLOOKUP($W14,$B$3:$I$23,COLUMN()-(COLUMN($BI$2)-1),FALSE)*F$33/SUM($C$33:$I$33)*VLOOKUP($W14,$B$3:$BI$23,(COLUMN($BI$2)-1),FALSE) -> 0 | BN14: =VLOOKUP($W14,$B$3:$I$23,COLUMN()-(COLUMN($BI$2)-1),FALSE)*G$33/SUM($C$33:$I$33)*VLOOKUP($W14,$B$3:$BI$23,(COLUMN($BI$2)-1),FALSE) -> 2.40251031 | BO14: =VLOOKUP($W14,$B$3:$I$23,COLUMN()-(COLUMN($BI$2)-1),FALSE)*H$33/SUM($C$33:$I$33)*VLOOKUP($W14,$B$3:$BI$23,(COLUMN($BI$2)-1),FALSE) -> 0.7887138921 | BP14: =VLOOKUP($W14,$B$3:$I$23,COLUMN()-(COLUMN($BI$2)-1),FALSE)*I$33/SUM($C$33:$I$33)*VLOOKUP($W14,$B$3:$BI$23,(COLUMN($BI$2)-1),FALSE) -> 0
A15: 11 | B15: Russia | D15: ='Trade 2009'!F17 -> 4.416814269 | G15: ='Environment 2009'!K17 -> 7.680590013 | H15: ='Security 2009'!J18 -> 3.152052665 | J15: 5.083152316 | K15: 11 | M15: =SUM(IF(ROUND(J15,1)<ROUND($J$3:$J$23,1),1))+1 -> 11 | O15: Russia | P15: =(SUM(IF($J15<$J$3:$J$25*(1-BF$3:BF$25),1))+1)*(1-BF15) ->  | Q15: =(SUM(IF($J15<$J$3:$J$25*(1-BG$3:BG$25),1))+1)*(1-BG15) ->  | R15: =(SUM(IF(ROUND($J15,1)<ROUND($J$3:$J$25,1)*(1-BF$3:BF$25),1))+1)*(1-BF15) ->  | S15: =(SUM(IF(ROUND($J15,1)<ROUND($J$3:$J$25,1)*(1-BG$3:BG$25),1))+1)*(1-BG15) ->  | T15: Russia | U15: 13 | V15: 13 | W15: Indonesia | X15: 4.441941295 | Y15: 0 | Z15: -13 | BC15: 1952.973324 | BD15: 2112.780108 | BF15: 1 | BG15: 1 | BI15: =ABS(SUM($C15:$I15*$C$33:$I$33)/SUM(IF($C15:$I15>0,$C15:$I15*$C$33:$I$33))) -> 1 | BJ15: =VLOOKUP($W15,$B$3:$I$23,COLUMN()-(COLUMN($BI$2)-1),FALSE)*C$33/SUM($C$33:$I$33)*VLOOKUP($W15,$B$3:$BI$23,(COLUMN($BI$2)-1),FALSE) -> 0 | BK15: =VLOOKUP($W15,$B$3:$I$23,COLUMN()-(COLUMN($BI$2)-1),FALSE)*D$33/SUM($C$33:$I$33)*VLOOKUP($W15,$B$3:$BI$23,(COLUMN($BI$2)-1),FALSE) -> 2.04046018 | BL15: =VLOOKUP($W15,$B$3:$I$23,COLUMN()-(COLUMN($BI$2)-1),FALSE)*E$33/SUM($C$33:$I$33)*VLOOKUP($W15,$B$3:$BI$23,(COLUMN($BI$2)-1),FALSE) -> 0 | BM15: =VLOOKUP($W15,$B$3:$I$23,COLUMN()-(COLUMN($BI$2)-1),FALSE)*F$33/SUM($C$33:$I$33)*VLOOKUP($W15,$B$3:$BI$23,(COLUMN($BI$2)-1),FALSE) -> 0 | BN15: =VLOOKUP($W15,$B$3:$I$23,COLUMN()-(COLUMN($BI$2)-1),FALSE)*G$33/SUM($C$33:$I$33)*VLOOKUP($W15,$B$3:$BI$23,(COLUMN($BI$2)-1),FALSE) -> 1.931259183 | BO15: =VLOOKUP($W15,$B$3:$I$23,COLUMN()-(COLUMN($BI$2)-1),FALSE)*H$33/SUM($C$33:$I$33)*VLOOKUP($W15,$B$3:$BI$23,(COLUMN($BI$2)-1),FALSE) -> 0.4702219317 | BP15: =VLOOKUP($W15,$B$3:$I$23,COLUMN()-(COLUMN($BI$2)-1),FALSE)*I$33/SUM($C$33:$I$33)*VLOOKUP($W15,$B$3:$BI$23,(COLUMN($BI$2)-1),FALSE) -> 0
A16: 18 | B16: Saudi Arabia | D16: ='Trade 2009'!F18 -> 7.364178764 | G16: ='Environment 2009'!K18 -> 0.6050913237 | H16: ='Security 2009'!J19 -> 1.181030853 | J16: 3.050100313 | K16: 18 | M16: =SUM(IF(ROUND(J16,1)<ROUND($J$3:$J$23,1),1))+1 -> 18 | O16: Saudi Arabia | P16: =(SUM(IF($J16<$J$3:$J$25*(1-BF$3:BF$25),1))+1)*(1-BF16) ->  | Q16: =(SUM(IF($J16<$J$3:$J$25*(1-BG$3:BG$25),1))+1)*(1-BG16) ->  | R16: =(SUM(IF(ROUND($J16,1)<ROUND($J$3:$J$25,1)*(1-BF$3:BF$25),1))+1)*(1-BF16) ->  | S16: =(SUM(IF(ROUND($J16,1)<ROUND($J$3:$J$25,1)*(1-BG$3:BG$25),1))+1)*(1-BG16) ->  | T16: Saudi Arabia | U16: 14 | V16: 14 | W16: Mexico | X16: 4.138926716 | Y16: 0 | Z16: -14 | BC16: 4135.294075 | BD16: 5068.996215 | BF16: 0 | BG16: 0 | BI16: =ABS(SUM($C16:$I16*$C$33:$I$33)/SUM(IF($C16:$I16>0,$C16:$I16*$C$33:$I$33))) -> 1 | BJ16: =VLOOKUP($W16,$B$3:$I$23,COLUMN()-(COLUMN($BI$2)-1),FALSE)*C$33/SUM($C$33:$I$33)*VLOOKUP($W16,$B$3:$BI$23,(COLUMN($BI$2)-1),FALSE) -> 0 | BK16: =VLOOKUP($W16,$B$3:$I$23,COLUMN()-(COLUMN($BI$2)-1),FALSE)*D$33/SUM($C$33:$I$33)*VLOOKUP($W16,$B$3:$BI$23,(COLUMN($BI$2)-1),FALSE) -> 1.815926721 | BL16: =VLOOKUP($W16,$B$3:$I$23,COLUMN()-(COLUMN($BI$2)-1),FALSE)*E$33/SUM($C$33:$I$33)*VLOOKUP($W16,$B$3:$BI$23,(COLUMN($BI$2)-1),FALSE) -> 0 | BM16: =VLOOKUP($W16,$B$3:$I$23,COLUMN()-(COLUMN($BI$2)-1),FALSE)*F$33/SUM($C$33:$I$33)*VLOOKUP($W16,$B$3:$BI$23,(COLUMN($BI$2)-1),FALSE) -> 0 | BN16: =VLOOKUP($W16,$B$3:$I$23,COLUMN()-(COLUMN($BI$2)-1),FALSE)*G$33/SUM($C$33:$I$33)*VLOOKUP($W16,$B$3:$BI$23,(COLUMN($BI$2)-1),FALSE) -> 1.636314937 | BO16: =VLOOKUP($W16,$B$3:$I$23,COLUMN()-(COLUMN($BI$2)-1),FALSE)*H$33/SUM($C$33:$I$33)*VLOOKUP($W16,$B$3:$BI$23,(COLUMN($BI$2)-1),FALSE) -> 0.6866850577 | BP16: =VLOOKUP($W16,$B$3:$I$23,COLUMN()-(COLUMN($BI$2)-1),FALSE)*I$33/SUM($C$33:$I$33)*VLOOKUP($W16,$B$3:$BI$23,(COLUMN($BI$2)-1),FALSE) -> 0
A17: 19 | B17: South Korea | D17: ='Trade 2009'!F19 -> 1.720315251 | G17: ='Environment 2009'!K19 -> 4.899460272 | H17: ='Security 2009'!J20 -> 2.078769987 | J17: 2.89951517 | K17: 20 | M17: =SUM(IF(ROUND(J17,1)<ROUND($J$3:$J$23,1),1))+1 -> 19 | O17: South Korea | P17: =(SUM(IF($J17<$J$3:$J$25*(1-BF$3:BF$25),1))+1)*(1-BF17) ->  | Q17: =(SUM(IF($J17<$J$3:$J$25*(1-BG$3:BG$25),1))+1)*(1-BG17) ->  | R17: =(SUM(IF(ROUND($J17,1)<ROUND($J$3:$J$25,1)*(1-BF$3:BF$25),1))+1)*(1-BF17) ->  | S17: =(SUM(IF(ROUND($J17,1)<ROUND($J$3:$J$25,1)*(1-BG$3:BG$25),1))+1)*(1-BG17) ->  | T17: South Korea | U17: 15 | V17: 14 | W17: Switzerland | X17: 4.07533699 | Y17: 0 | Z17: -14 | BF17: 1 | BG17: 1 | BI17: =ABS(SUM($C17:$I17*$C$33:$I$33)/SUM(IF($C17:$I17>0,$C17:$I17*$C$33:$I$33))) -> 1 | BJ17: =VLOOKUP($W17,$B$3:$I$23,COLUMN()-(COLUMN($BI$2)-1),FALSE)*C$33/SUM($C$33:$I$33)*VLOOKUP($W17,$B$3:$BI$23,(COLUMN($BI$2)-1),FALSE) -> 0 | BK17: =VLOOKUP($W17,$B$3:$I$23,COLUMN()-(COLUMN($BI$2)-1),FALSE)*D$33/SUM($C$33:$I$33)*VLOOKUP($W17,$B$3:$BI$23,(COLUMN($BI$2)-1),FALSE) -> 0.5552611134 | BL17: =VLOOKUP($W17,$B$3:$I$23,COLUMN()-(COLUMN($BI$2)-1),FALSE)*E$33/SUM($C$33:$I$33)*VLOOKUP($W17,$B$3:$BI$23,(COLUMN($BI$2)-1),FALSE) -> 0 | BM17: =VLOOKUP($W17,$B$3:$I$23,COLUMN()-(COLUMN($BI$2)-1),FALSE)*F$33/SUM($C$33:$I$33)*VLOOKUP($W17,$B$3:$BI$23,(COLUMN($BI$2)-1),FALSE) -> 0 | BN17: =VLOOKUP($W17,$B$3:$I$23,COLUMN()-(COLUMN($BI$2)-1),FALSE)*G$33/SUM($C$33:$I$33)*VLOOKUP($W17,$B$3:$BI$23,(COLUMN($BI$2)-1),FALSE) -> 1.515782463 | BO17: =VLOOKUP($W17,$B$3:$I$23,COLUMN()-(COLUMN($BI$2)-1),FALSE)*H$33/SUM($C$33:$I$33)*VLOOKUP($W17,$B$3:$BI$23,(COLUMN($BI$2)-1),FALSE) -> 2.004293414 | BP17: =VLOOKUP($W17,$B$3:$I$23,COLUMN()-(COLUMN($BI$2)-1),FALSE)*I$33/SUM($C$33:$I$33)*VLOOKUP($W17,$B$3:$BI$23,(COLUMN($BI$2)-1),FALSE) -> 0
A18: 10 | B18: Spain | D18: ='Trade 2009'!F20 -> 6.283015537 | G18: ='Environment 2009'!K20 -> 5.838252352 | H18: ='Security 2009'!J21 -> 4.684016054 | J18: 5.601761314 | K18: 10 | M18: =SUM(IF(ROUND(J18,1)<ROUND($J$3:$J$23,1),1))+1 -> 10 | O18: Spain | P18: =(SUM(IF($J18<$J$3:$J$25*(1-BF$3:BF$25),1))+1)*(1-BF18) ->  | Q18: =(SUM(IF($J18<$J$3:$J$25*(1-BG$3:BG$25),1))+1)*(1-BG18) ->  | R18: =(SUM(IF(ROUND($J18,1)<ROUND($J$3:$J$25,1)*(1-BF$3:BF$25),1))+1)*(1-BF18) ->  | S18: =(SUM(IF(ROUND($J18,1)<ROUND($J$3:$J$25,1)*(1-BG$3:BG$25),1))+1)*(1-BG18) ->  | T18: Spain | U18: 16 | V18: 14 | W18: Turkey | X18: 4.066450512 | Y18: 0 | Z18: -14 | BC18: 672.4287201 | BD18: 792.128258 | BF18: 1 | BG18: 1 | BI18: =ABS(SUM($C18:$I18*$C$33:$I$33)/SUM(IF($C18:$I18>0,$C18:$I18*$C$33:$I$33))) -> 1 | BJ18: =VLOOKUP($W18,$B$3:$I$23,COLUMN()-(COLUMN($BI$2)-1),FALSE)*C$33/SUM($C$33:$I$33)*VLOOKUP($W18,$B$3:$BI$23,(COLUMN($BI$2)-1),FALSE) -> 0 | BK18: =VLOOKUP($W18,$B$3:$I$23,COLUMN()-(COLUMN($BI$2)-1),FALSE)*D$33/SUM($C$33:$I$33)*VLOOKUP($W18,$B$3:$BI$23,(COLUMN($BI$2)-1),FALSE) -> 0.921862759 | BL18: =VLOOKUP($W18,$B$3:$I$23,COLUMN()-(COLUMN($BI$2)-1),FALSE)*E$33/SUM($C$33:$I$33)*VLOOKUP($W18,$B$3:$BI$23,(COLUMN($BI$2)-1),FALSE) -> 0 | BM18: =VLOOKUP($W18,$B$3:$I$23,COLUMN()-(COLUMN($BI$2)-1),FALSE)*F$33/SUM($C$33:$I$33)*VLOOKUP($W18,$B$3:$BI$23,(COLUMN($BI$2)-1),FALSE) -> 0 | BN18: =VLOOKUP($W18,$B$3:$I$23,COLUMN()-(COLUMN($BI$2)-1),FALSE)*G$33/SUM($C$33:$I$33)*VLOOKUP($W18,$B$3:$BI$23,(COLUMN($BI$2)-1),FALSE) -> 1.858128136 | BO18: =VLOOKUP($W18,$B$3:$I$23,COLUMN()-(COLUMN($BI$2)-1),FALSE)*H$33/SUM($C$33:$I$33)*VLOOKUP($W18,$B$3:$BI$23,(COLUMN($BI$2)-1),FALSE) -> 1.286459618 | BP18: =VLOOKUP($W18,$B$3:$I$23,COLUMN()-(COLUMN($BI$2)-1),FALSE)*I$33/SUM($C$33:$I$33)*VLOOKUP($W18,$B$3:$BI$23,(COLUMN($BI$2)-1),FALSE) -> 0
A19: 4 | B19: Sweden | D19: ='Trade 2009'!F21 -> 6.499548954 | G19: ='Environment 2009'!K21 -> 6.947584202 | H19: ='Security 2009'!J22 -> 7.788615326 | J19: 7.078582827 | K19: 5 | M19: =SUM(IF(ROUND(J19,1)<ROUND($J$3:$J$23,1),1))+1 -> 4 | O19: Sweden | P19: =(SUM(IF($J19<$J$3:$J$25*(1-BF$3:BF$25),1))+1)*(1-BF19) ->  | Q19: =(SUM(IF($J19<$J$3:$J$25*(1-BG$3:BG$25),1))+1)*(1-BG19) ->  | R19: =(SUM(IF(ROUND($J19,1)<ROUND($J$3:$J$25,1)*(1-BF$3:BF$25),1))+1)*(1-BF19) ->  | S19: =(SUM(IF(ROUND($J19,1)<ROUND($J$3:$J$25,1)*(1-BG$3:BG$25),1))+1)*(1-BG19) ->  | T19: Sweden | U19: 17 | V19: 17 | W19: Japan | X19: 4.0217869 | Y19: 0 | Z19: -17 | BC19: 125.1299164 | BD19: 126.6792612 | BF19: 0 | BG19: 0 | BI19: =ABS(SUM($C19:$I19*$C$33:$I$33)/SUM(IF($C19:$I19>0,$C19:$I19*$C$33:$I$33))) -> 1 | BJ19: =VLOOKUP($W19,$B$3:$I$23,COLUMN()-(COLUMN($BI$2)-1),FALSE)*C$33/SUM($C$33:$I$33)*VLOOKUP($W19,$B$3:$BI$23,(COLUMN($BI$2)-1),FALSE) -> 0 | BK19: =VLOOKUP($W19,$B$3:$I$23,COLUMN()-(COLUMN($BI$2)-1),FALSE)*D$33/SUM($C$33:$I$33)*VLOOKUP($W19,$B$3:$BI$23,(COLUMN($BI$2)-1),FALSE) -> 1.800362454 | BL19: =VLOOKUP($W19,$B$3:$I$23,COLUMN()-(COLUMN($BI$2)-1),FALSE)*E$33/SUM($C$33:$I$33)*VLOOKUP($W19,$B$3:$BI$23,(COLUMN($BI$2)-1),FALSE) -> 0 | BM19: =VLOOKUP($W19,$B$3:$I$23,COLUMN()-(COLUMN($BI$2)-1),FALSE)*F$33/SUM($C$33:$I$33)*VLOOKUP($W19,$B$3:$BI$23,(COLUMN($BI$2)-1),FALSE) -> 0 | BN19: =VLOOKUP($W19,$B$3:$I$23,COLUMN()-(COLUMN($BI$2)-1),FALSE)*G$33/SUM($C$33:$I$33)*VLOOKUP($W19,$B$3:$BI$23,(COLUMN($BI$2)-1),FALSE) -> 1.269411741 | BO19: =VLOOKUP($W19,$B$3:$I$23,COLUMN()-(COLUMN($BI$2)-1),FALSE)*H$33/SUM($C$33:$I$33)*VLOOKUP($W19,$B$3:$BI$23,(COLUMN($BI$2)-1),FALSE) -> 0.9520127048 | BP19: =VLOOKUP($W19,$B$3:$I$23,COLUMN()-(COLUMN($BI$2)-1),FALSE)*I$33/SUM($C$33:$I$33)*VLOOKUP($W19,$B$3:$BI$23,(COLUMN($BI$2)-1),FALSE) -> 0
A20: 14 | B20: Switzerland | D20: ='Trade 2009'!F22 -> 1.66578334 | G20: ='Environment 2009'!K22 -> 4.54734739 | H20: ='Security 2009'!J23 -> 6.012880241 | J20: 4.07533699 | K20: 15 | M20: =SUM(IF(ROUND(J20,1)<ROUND($J$3:$J$23,1),1))+1 -> 14 | O20: Switzerland | P20: =(SUM(IF($J20<$J$3:$J$25*(1-BF$3:BF$25),1))+1)*(1-BF20) ->  | Q20: =(SUM(IF($J20<$J$3:$J$25*(1-BG$3:BG$25),1))+1)*(1-BG20) ->  | R20: =(SUM(IF(ROUND($J20,1)<ROUND($J$3:$J$25,1)*(1-BF$3:BF$25),1))+1)*(1-BF20) ->  | S20: =(SUM(IF(ROUND($J20,1)<ROUND($J$3:$J$25,1)*(1-BG$3:BG$25),1))+1)*(1-BG20) ->  | T20: Switzerland | U20: 18 | V20: 18 | W20: Saudi Arabia | X20: 3.050100313 | Y20: 0 | Z20: -18 | BC20: 271.3447956 | BD20: 381.7662382 | BF20: 0 | BG20: 1 | BI20: =ABS(SUM($C20:$I20*$C$33:$I$33)/SUM(IF($C20:$I20>0,$C20:$I20*$C$33:$I$33))) -> 1 | BJ20: =VLOOKUP($W20,$B$3:$I$23,COLUMN()-(COLUMN($BI$2)-1),FALSE)*C$33/SUM($C$33:$I$33)*VLOOKUP($W20,$B$3:$BI$23,(COLUMN($BI$2)-1),FALSE) -> 0 | BK20: =VLOOKUP($W20,$B$3:$I$23,COLUMN()-(COLUMN($BI$2)-1),FALSE)*D$33/SUM($C$33:$I$33)*VLOOKUP($W20,$B$3:$BI$23,(COLUMN($BI$2)-1),FALSE) -> 2.454726255 | BL20: =VLOOKUP($W20,$B$3:$I$23,COLUMN()-(COLUMN($BI$2)-1),FALSE)*E$33/SUM($C$33:$I$33)*VLOOKUP($W20,$B$3:$BI$23,(COLUMN($BI$2)-1),FALSE) -> 0 | BM20: =VLOOKUP($W20,$B$3:$I$23,COLUMN()-(COLUMN($BI$2)-1),FALSE)*F$33/SUM($C$33:$I$33)*VLOOKUP($W20,$B$3:$BI$23,(COLUMN($BI$2)-1),FALSE) -> 0 | BN20: =VLOOKUP($W20,$B$3:$I$23,COLUMN()-(COLUMN($BI$2)-1),FALSE)*G$33/SUM($C$33:$I$33)*VLOOKUP($W20,$B$3:$BI$23,(COLUMN($BI$2)-1),FALSE) -> 0.2016971079 | BO20: =VLOOKUP($W20,$B$3:$I$23,COLUMN()-(COLUMN($BI$2)-1),FALSE)*H$33/SUM($C$33:$I$33)*VLOOKUP($W20,$B$3:$BI$23,(COLUMN($BI$2)-1),FALSE) -> 0.393676951 | BP20: =VLOOKUP($W20,$B$3:$I$23,COLUMN()-(COLUMN($BI$2)-1),FALSE)*I$33/SUM($C$33:$I$33)*VLOOKUP($W20,$B$3:$BI$23,(COLUMN($BI$2)-1),FALSE) -> 0
A21: 14 | B21: Turkey | D21: ='Trade 2009'!F23 -> 2.765588277 | G21: ='Environment 2009'!K23 -> 5.574384407 | H21: ='Security 2009'!J24 -> 3.859378853 | J21: 4.066450512 | K21: 16 | M21: =SUM(IF(ROUND(J21,1)<ROUND($J$3:$J$23,1),1))+1 -> 14 | O21: Turkey | P21: =(SUM(IF($J21<$J$3:$J$25*(1-BF$3:BF$25),1))+1)*(1-BF21) ->  | Q21: =(SUM(IF($J21<$J$3:$J$25*(1-BG$3:BG$25),1))+1)*(1-BG21) ->  | R21: =(SUM(IF(ROUND($J21,1)<ROUND($J$3:$J$25,1)*(1-BF$3:BF$25),1))+1)*(1-BF21) ->  | S21: =(SUM(IF(ROUND($J21,1)<ROUND($J$3:$J$25,1)*(1-BG$3:BG$25),1))+1)*(1-BG21) ->  | T21: Turkey | U21: 19 | V21: 19 | W21: China | X21: 2.907755594 | Y21: 0 | Z21: -19 | BF21: 1 | BG21: 1 | BI21: =ABS(SUM($C21:$I21*$C$33:$I$33)/SUM(IF($C21:$I21>0,$C21:$I21*$C$33:$I$33))) -> 1 | BJ21: =VLOOKUP($W21,$B$3:$I$23,COLUMN()-(COLUMN($BI$2)-1),FALSE)*C$33/SUM($C$33:$I$33)*VLOOKUP($W21,$B$3:$BI$23,(COLUMN($BI$2)-1),FALSE) -> 0 | BK21: =VLOOKUP($W21,$B$3:$I$23,COLUMN()-(COLUMN($BI$2)-1),FALSE)*D$33/SUM($C$33:$I$33)*VLOOKUP($W21,$B$3:$BI$23,(COLUMN($BI$2)-1),FALSE) -> 0.4443436603 | BL21: =VLOOKUP($W21,$B$3:$I$23,COLUMN()-(COLUMN($BI$2)-1),FALSE)*E$33/SUM($C$33:$I$33)*VLOOKUP($W21,$B$3:$BI$23,(COLUMN($BI$2)-1),FALSE) -> 0 | BM21: =VLOOKUP($W21,$B$3:$I$23,COLUMN()-(COLUMN($BI$2)-1),FALSE)*F$33/SUM($C$33:$I$33)*VLOOKUP($W21,$B$3:$BI$23,(COLUMN($BI$2)-1),FALSE) -> 0 | BN21: =VLOOKUP($W21,$B$3:$I$23,COLUMN()-(COLUMN($BI$2)-1),FALSE)*G$33/SUM($C$33:$I$33)*VLOOKUP($W21,$B$3:$BI$23,(COLUMN($BI$2)-1),FALSE) -> 2.012901987 | BO21: =VLOOKUP($W21,$B$3:$I$23,COLUMN()-(COLUMN($BI$2)-1),FALSE)*H$33/SUM($C$33:$I$33)*VLOOKUP($W21,$B$3:$BI$23,(COLUMN($BI$2)-1),FALSE) -> 0.450509947 | BP21: =VLOOKUP($W21,$B$3:$I$23,COLUMN()-(COLUMN($BI$2)-1),FALSE)*I$33/SUM($C$33:$I$33)*VLOOKUP($W21,$B$3:$BI$23,(COLUMN($BI$2)-1),FALSE) -> 0
A22: 1 | B22: United Kingdom | D22: ='Trade 2009'!F24 -> 6.233770551 | G22: ='Environment 2009'!K24 -> 6.830301017 | H22: ='Security 2009'!J25 -> 11.06458156 | J22: 8.042884376 | K22: 1 | M22: =SUM(IF(ROUND(J22,1)<ROUND($J$3:$J$23,1),1))+1 -> 1 | O22: United Kingdom | P22: =(SUM(IF($J22<$J$3:$J$25*(1-BF$3:BF$25),1))+1)*(1-BF22) ->  | Q22: =(SUM(IF($J22<$J$3:$J$25*(1-BG$3:BG$25),1))+1)*(1-BG22) ->  | R22: =(SUM(IF(ROUND($J22,1)<ROUND($J$3:$J$25,1)*(1-BF$3:BF$25),1))+1)*(1-BF22) ->  | S22: =(SUM(IF(ROUND($J22,1)<ROUND($J$3:$J$25,1)*(1-BG$3:BG$25),1))+1)*(1-BG22) ->  | T22: United Kingdom | U22: 20 | V22: 19 | W22: South Korea | X22: 2.89951517 | Y22: 0 | Z22: -19 | BC22: 264.9464832 | BD22: 232.8736891 | BF22: 1 | BG22: 1 | BI22: =ABS(SUM($C22:$I22*$C$33:$I$33)/SUM(IF($C22:$I22>0,$C22:$I22*$C$33:$I$33))) -> 1 | BJ22: =VLOOKUP($W22,$B$3:$I$23,COLUMN()-(COLUMN($BI$2)-1),FALSE)*C$33/SUM($C$33:$I$33)*VLOOKUP($W22,$B$3:$BI$23,(COLUMN($BI$2)-1),FALSE) -> 0 | BK22: =VLOOKUP($W22,$B$3:$I$23,COLUMN()-(COLUMN($BI$2)-1),FALSE)*D$33/SUM($C$33:$I$33)*VLOOKUP($W22,$B$3:$BI$23,(COLUMN($BI$2)-1),FALSE) -> 0.5734384172 | BL22: =VLOOKUP($W22,$B$3:$I$23,COLUMN()-(COLUMN($BI$2)-1),FALSE)*E$33/SUM($C$33:$I$33)*VLOOKUP($W22,$B$3:$BI$23,(COLUMN($BI$2)-1),FALSE) -> 0 | BM22: =VLOOKUP($W22,$B$3:$I$23,COLUMN()-(COLUMN($BI$2)-1),FALSE)*F$33/SUM($C$33:$I$33)*VLOOKUP($W22,$B$3:$BI$23,(COLUMN($BI$2)-1),FALSE) -> 0 | BN22: =VLOOKUP($W22,$B$3:$I$23,COLUMN()-(COLUMN($BI$2)-1),FALSE)*G$33/SUM($C$33:$I$33)*VLOOKUP($W22,$B$3:$BI$23,(COLUMN($BI$2)-1),FALSE) -> 1.633153424 | BO22: =VLOOKUP($W22,$B$3:$I$23,COLUMN()-(COLUMN($BI$2)-1),FALSE)*H$33/SUM($C$33:$I$33)*VLOOKUP($W22,$B$3:$BI$23,(COLUMN($BI$2)-1),FALSE) -> 0.692923329 | BP22: =VLOOKUP($W22,$B$3:$I$23,COLUMN()-(COLUMN($BI$2)-1),FALSE)*I$33/SUM($C$33:$I$33)*VLOOKUP($W22,$B$3:$BI$23,(COLUMN($BI$2)-1),FALSE) -> 0
A23: 7 | B23: United States | D23: ='Trade 2009'!F25 -> 8.320998073 | G23: ='Environment 2009'!K25 -> 4.046548025 | H23: ='Security 2009'!J26 -> 6.314319161 | J23: 6.227288419 | K23: 7 | M23: =SUM(IF(ROUND(J23,1)<ROUND($J$3:$J$23,1),1))+1 -> 7 | O23: United States | P23: =(SUM(IF($J23<$J$3:$J$25*(1-BF$3:BF$25),1))+1)*(1-BF23) ->  | Q23: =(SUM(IF($J23<$J$3:$J$25*(1-BG$3:BG$25),1))+1)*(1-BG23) ->  | R23: =(SUM(IF(ROUND($J23,1)<ROUND($J$3:$J$25,1)*(1-BF$3:BF$25),1))+1)*(1-BF23) ->  | S23: =(SUM(IF(ROUND($J23,1)<ROUND($J$3:$J$25,1)*(1-BG$3:BG$25),1))+1)*(1-BG23) ->  | T23: United States | U23: 21 | V23: 21 | W23: India | X23: 2.788706201 | Y23: 0 | Z23: -21 | BF23: 1 | BG23: 1 | BI23: =ABS(SUM($C23:$I23*$C$33:$I$33)/SUM(IF($C23:$I23>0,$C23:$I23*$C$33:$I$33))) -> 1 | BJ23: =VLOOKUP($W23,$B$3:$I$23,COLUMN()-(COLUMN($BI$2)-1),FALSE)*C$33/SUM($C$33:$I$33)*VLOOKUP($W23,$B$3:$BI$23,(COLUMN($BI$2)-1),FALSE) -> 0 | BK23: =VLOOKUP($W23,$B$3:$I$23,COLUMN()-(COLUMN($BI$2)-1),FALSE)*D$33/SUM($C$33:$I$33)*VLOOKUP($W23,$B$3:$BI$23,(COLUMN($BI$2)-1),FALSE) -> -0.633593729 | BL23: =VLOOKUP($W23,$B$3:$I$23,COLUMN()-(COLUMN($BI$2)-1),FALSE)*E$33/SUM($C$33:$I$33)*VLOOKUP($W23,$B$3:$BI$23,(COLUMN($BI$2)-1),FALSE) -> 0 | BM23: =VLOOKUP($W23,$B$3:$I$23,COLUMN()-(COLUMN($BI$2)-1),FALSE)*F$33/SUM($C$33:$I$33)*VLOOKUP($W23,$B$3:$BI$23,(COLUMN($BI$2)-1),FALSE) -> 0 | BN23: =VLOOKUP($W23,$B$3:$I$23,COLUMN()-(COLUMN($BI$2)-1),FALSE)*G$33/SUM($C$33:$I$33)*VLOOKUP($W23,$B$3:$BI$23,(COLUMN($BI$2)-1),FALSE) -> 2.21351937 | BO23: =VLOOKUP($W23,$B$3:$I$23,COLUMN()-(COLUMN($BI$2)-1),FALSE)*H$33/SUM($C$33:$I$33)*VLOOKUP($W23,$B$3:$BI$23,(COLUMN($BI$2)-1),FALSE) -> 0.5751868308 | BP23: =VLOOKUP($W23,$B$3:$I$23,COLUMN()-(COLUMN($BI$2)-1),FALSE)*I$33/SUM($C$33:$I$33)*VLOOKUP($W23,$B$3:$BI$23,(COLUMN($BI$2)-1),FALSE) -> 0
B24: EU | D24: ='Trade 2009'!G32 -> 0 | G24: ='Environment 2009'!K32 -> 0 | H24: ='Security 2009'!J27 ->  | P24: =(SUM(IF($J24<$J$3:$J$25*(1-BF$3:BF$25),1))+1)*(1-BF24) ->  | R24: =(SUM(IF(ROUND($J24,1)<ROUND($J$3:$J$25,1)*(1-BF$3:BF$25),1))+1)*(1-BF24) ->  | T24: EU | BG24: 1
B25: Europe | D25: ='Trade 2009'!G33 -> 0 | G25: ='Environment 2009'!K33 -> 0 | H25: ='Security 2009'!J28 ->  | P25: =(SUM(IF($J25<$J$3:$J$25*(1-BF$3:BF$25),1))+1)*(1-BF25) ->  | Q25: =(SUM(IF($J25<$J$3:$J$25*(1-BG$3:BG$25),1))+1)*(1-BG25) ->  | R25: =(SUM(IF(ROUND($J25,1)<ROUND($J$3:$J$25,1)*(1-BF$3:BF$25),1))+1)*(1-BF25) ->  | S25: =(SUM(IF(ROUND($J25,1)<ROUND($J$3:$J$25,1)*(1-BG$3:BG$25),1))+1)*(1-BG25) ->  | T25: Europe | BF25: 1
R26: =(SUM(IF(#REF!<$J$3:$J$25*(1-BF$3:BF$25),1))+1)*(1-#REF!) -> 
B27: Average | C27: =AVERAGE(C3:C23) ->  | D27: 5.032826351 | G27: 5.522143951 | H27: 5.143295596 | J27: 5.232755299 | U27: 1
B28: Standard dev. | C28: =STDEVP(C3:C23) ->  | D28: 2.615320487 | G28: 1.713239409 | H28: 3.185759842 | J28: 1.661624587 | U28: 2
U29: 3
B30: Lowest | C30: =MIN(C3:C23) -> 0 | D30: -2.45960262 | E30: 0 | F30: 0 | G30: 0.6050913237 | H30: 1.181030853 | I30: 0 | J30: 2.788706201 | U30: 4
B31: Highest | C31: =MAX(C3:C23) -> 0 | D31: 8.320998073 | E31: 0 | F31: 0 | G31: 8.592853421 | H31: 11.7562889 | I31: 0 | J31: 8.042884376 | U31: 5
U32: 6
B33: Weight | C33: 0 | D33: 1 | E33: 0 | F33: 0 | G33: 1 | H33: 1 | I33: 0 | U33: 7
U34: 8
U35: 9
U38: 1
U39: 2
U40: 3
U41: 4
U42: 5
U43: 6
U44: 7
A67: =INT(RIGHT(CELL("filename",A1),4)) -> 2009

Sheet Index 2008
A1: =Index_long_name&" "&Region_name&IF(Region_name="",""," ")&Year -> Global Citizenship Index 2008 | V1: Standings | Y1: One-year change, latest methodology | AB1: Standings/EU as one | AM1: Standings/Europe as one | BF1: EU countries | BG1: Europe countries
A2: Rank | B2: Country | C2: Aid | D2: Trade | E2: Investment | F2: Migration | G2: Environment | H2: Security | I2: Technology | J2: Overall (Average) | K2: True rank | L2: 2010-11 score change | M2: Rank | N2: 2009 rank (2010 method) | P2: True rank/EU | Q2: True rank/Europe | R2: Rank/EU | S2: Rank/Europe | W2: Country | X2: Score | Y2: Score | Z2: Rank | AC2: Country | AD2: Aid | AE2: Trade | AF2: Investment | AG2: Migration | AH2: Environment | AI2: Security | AJ2: Technology | AK2: Overall (Average) | AN2: Country | AO2: Aid | AP2: Trade | AQ2: Investment | AR2: Migration | AS2: Environment | AT2: Security | AU2: Technology | AV2: Overall (Average) | BC2: PPP GDP | BD2: Exchange-rate GDP | BI2: Graphing scale factor to deal with negative scores, alpha by country
A3: =M3 -> 2 | B3: Australia | D3: ='Trade 2008'!F5 -> 6.838651702 | G3: ='Environment 2008'!K5 -> 3.821160521 | H3: ='Security 2008'!J6 -> 12.31057361 | J3: =SUMPRODUCT(C3:I3,$C$33:$I$33)/SUM($C$33:$I$33) -> 7.656795278 | K3: =COUNTIF($J$3:$J$23,">"&J3)+1 -> 2 | M3: =SUM(IF(ROUND(J3,1)<ROUND($J$3:$J$23,1),1))+1 -> 2 | O3: =B3 -> Australia | P3: =(SUM(IF($J3<$J$3:$J$25*(1-BF$3:BF$25),1))+1)*(1-BF3) ->  | Q3: =(SUM(IF($J3<$J$3:$J$25*(1-BG$3:BG$25),1))+1)*(1-BG3) ->  | R3: =(SUM(IF(ROUND($J3,1)<ROUND($J$3:$J$25,1)*(1-BF$3:BF$25),1))+1)*(1-BF3) ->  | S3: =(SUM(IF(ROUND($J3,1)<ROUND($J$3:$J$25,1)*(1-BG$3:BG$25),1))+1)*(1-BG3) ->  | T3: =B3 -> Australia | U3: =ROW(U3)-ROW($U$2) -> 1 | V3: =VLOOKUP(U3,$K$3:$O$23,3,FALSE) -> 1 | W3: =VLOOKUP(U3,$K$3:$O$23,5,FALSE) -> United Kingdom | X3: =VLOOKUP(W3,$B$3:$O$23,9,FALSE) -> 8.02737329 | Y3: =VLOOKUP(W3,$B$3:$O$23,11,FALSE) -> 0 | Z3: =VLOOKUP(U3,$K$3:$O$23,4,FALSE)-V3 -> -1 | AB3: =VLOOKUP(U27,$P$3:$U$25,3,FALSE) ->  | AC3: =VLOOKUP(U27,$P$3:$U$25,5,FALSE) ->  | AD3: =VLOOKUP($AC3,$B$3:$O$25,2,FALSE) ->  | AE3: =VLOOKUP($AC3,$B$3:$O$25,3,FALSE) ->  | AF3: =VLOOKUP($AC3,$B$3:$O$25,4,FALSE) ->  | AG3: =VLOOKUP($AC3,$B$3:$O$25,5,FALSE) ->  | AH3: =VLOOKUP($AC3,$B$3:$O$25,6,FALSE) ->  | AI3: =VLOOKUP($AC3,$B$3:$O$25,7,FALSE) ->  | AJ3: =VLOOKUP($AC3,$B$3:$O$25,8,FALSE) ->  | AK3: =VLOOKUP($AC3,$B$3:$O$25,9,FALSE) ->  | AM3: =VLOOKUP(U38,$Q$3:$V$25,3,FALSE) ->  | AN3: =VLOOKUP(U38,$Q$3:$V$25,4,FALSE) ->  | AO3: =VLOOKUP($AN3,$B$3:$O$25,2,FALSE) ->  | AP3: =VLOOKUP($AN3,$B$3:$O$25,3,FALSE) ->  | AQ3: =VLOOKUP($AN3,$B$3:$O$25,4,FALSE) ->  | AR3: =VLOOKUP($AN3,$B$3:$O$25,5,FALSE) ->  | AS3: =VLOOKUP($AN3,$B$3:$O$25,6,FALSE) ->  | AT3: =VLOOKUP($AN3,$B$3:$O$25,7,FALSE) ->  | AU3: =VLOOKUP($AN3,$B$3:$O$25,8,FALSE) ->  | AV3: =VLOOKUP(AN3,$B$3:$O$25,9,FALSE) ->  | BC3: 864.9146368 | BD3: 924.8431145 | BF3: 0 | BG3: 0 | BI3: =ABS(SUM($C3:$I3*$C$33:$I$33)/SUM(IF($C3:$I3>0,$C3:$I3*$C$33:$I$33))) -> 1 | BJ3: =VLOOKUP($W3,$B$3:$I$23,COLUMN()-(COLUMN($BI$2)-1),FALSE)*C$33/SUM($C$33:$I$33)*VLOOKUP($W3,$B$3:$BI$23,(COLUMN($BI$2)-1),FALSE) -> 0 | BK3: =VLOOKUP($W3,$B$3:$I$23,COLUMN()-(COLUMN($BI$2)-1),FALSE)*D$33/SUM($C$33:$I$33)*VLOOKUP($W3,$B$3:$BI$23,(COLUMN($BI$2)-1),FALSE) -> 1.780686542 | BL3: =VLOOKUP($W3,$B$3:$I$23,COLUMN()-(COLUMN($BI$2)-1),FALSE)*E$33/SUM($C$33:$I$33)*VLOOKUP($W3,$B$3:$BI$23,(COLUMN($BI$2)-1),FALSE) -> 0 | BM3: =VLOOKUP($W3,$B$3:$I$23,COLUMN()-(COLUMN($BI$2)-1),FALSE)*F$33/SUM($C$33:$I$33)*VLOOKUP($W3,$B$3:$BI$23,(COLUMN($BI$2)-1),FALSE) -> 0 | BN3: =VLOOKUP($W3,$B$3:$I$23,COLUMN()-(COLUMN($BI$2)-1),FALSE)*G$33/SUM($C$33:$I$33)*VLOOKUP($W3,$B$3:$BI$23,(COLUMN($BI$2)-1),FALSE) -> 2.376023213 | BO3: =VLOOKUP($W3,$B$3:$I$23,COLUMN()-(COLUMN($BI$2)-1),FALSE)*H$33/SUM($C$33:$I$33)*VLOOKUP($W3,$B$3:$BI$23,(COLUMN($BI$2)-1),FALSE) -> 3.870663535 | BP3: =VLOOKUP($W3,$B$3:$I$23,COLUMN()-(COLUMN($BI$2)-1),FALSE)*I$33/SUM($C$33:$I$33)*VLOOKUP($W3,$B$3:$BI$23,(COLUMN($BI$2)-1),FALSE) -> 0
A4: 16 | B4: Brazil | D4: ='Trade 2008'!F6 -> 2.6773879 | G4: ='Environment 2008'!K6 -> 7.14322815 | H4: ='Security 2008'!J7 -> 2.357120605 | J4: 4.059245552 | K4: 16 | M4: =SUM(IF(ROUND(J4,1)<ROUND($J$3:$J$23,1),1))+1 -> 16 | O4: Brazil | P4: =(SUM(IF($J4<$J$3:$J$25*(1-BF$3:BF$25),1))+1)*(1-BF4) ->  | Q4: =(SUM(IF($J4<$J$3:$J$25*(1-BG$3:BG$25),1))+1)*(1-BG4) ->  | R4: =(SUM(IF(ROUND($J4,1)<ROUND($J$3:$J$25,1)*(1-BF$3:BF$25),1))+1)*(1-BF4) ->  | S4: =(SUM(IF(ROUND($J4,1)<ROUND($J$3:$J$25,1)*(1-BG$3:BG$25),1))+1)*(1-BG4) ->  | T4: Brazil | U4: 2 | V4: 2 | W4: Australia | X4: 7.656795278 | Y4: =VLOOKUP(W4,$B$3:$O$23,11,FALSE) -> 0 | Z4: =VLOOKUP(U4,$K$3:$O$23,4,FALSE)-V4 -> -2 | BC4: 324.6757642 | BD4: 381.0837463 | BF4: 1 | BG4: 1 | BI4: =ABS(SUM($C4:$I4*$C$33:$I$33)/SUM(IF($C4:$I4>0,$C4:$I4*$C$33:$I$33))) -> 1 | BJ4: =VLOOKUP($W4,$B$3:$I$23,COLUMN()-(COLUMN($BI$2)-1),FALSE)*C$33/SUM($C$33:$I$33)*VLOOKUP($W4,$B$3:$BI$23,(COLUMN($BI$2)-1),FALSE) -> 0 | BK4: =VLOOKUP($W4,$B$3:$I$23,COLUMN()-(COLUMN($BI$2)-1),FALSE)*D$33/SUM($C$33:$I$33)*VLOOKUP($W4,$B$3:$BI$23,(COLUMN($BI$2)-1),FALSE) -> 2.279550567 | BL4: =VLOOKUP($W4,$B$3:$I$23,COLUMN()-(COLUMN($BI$2)-1),FALSE)*E$33/SUM($C$33:$I$33)*VLOOKUP($W4,$B$3:$BI$23,(COLUMN($BI$2)-1),FALSE) -> 0 | BM4: =VLOOKUP($W4,$B$3:$I$23,COLUMN()-(COLUMN($BI$2)-1),FALSE)*F$33/SUM($C$33:$I$33)*VLOOKUP($W4,$B$3:$BI$23,(COLUMN($BI$2)-1),FALSE) -> 0 | BN4: =VLOOKUP($W4,$B$3:$I$23,COLUMN()-(COLUMN($BI$2)-1),FALSE)*G$33/SUM($C$33:$I$33)*VLOOKUP($W4,$B$3:$BI$23,(COLUMN($BI$2)-1),FALSE) -> 1.273720174 | BO4: =VLOOKUP($W4,$B$3:$I$23,COLUMN()-(COLUMN($BI$2)-1),FALSE)*H$33/SUM($C$33:$I$33)*VLOOKUP($W4,$B$3:$BI$23,(COLUMN($BI$2)-1),FALSE) -> 4.103524537 | BP4: =VLOOKUP($W4,$B$3:$I$23,COLUMN()-(COLUMN($BI$2)-1),FALSE)*I$33/SUM($C$33:$I$33)*VLOOKUP($W4,$B$3:$BI$23,(COLUMN($BI$2)-1),FALSE) -> 0
A5: 7 | B5: Canada | D5: ='Trade 2008'!F7 -> 7.921227451 | G5: ='Environment 2008'!K7 -> 4.431349937 | H5: ='Security 2008'!J8 -> 7.281461821 | J5: 6.544679736 | K5: 7 | M5: =SUM(IF(ROUND(J5,1)<ROUND($J$3:$J$23,1),1))+1 -> 7 | O5: Canada | P5: =(SUM(IF($J5<$J$3:$J$25*(1-BF$3:BF$25),1))+1)*(1-BF5) ->  | Q5: =(SUM(IF($J5<$J$3:$J$25*(1-BG$3:BG$25),1))+1)*(1-BG5) ->  | R5: =(SUM(IF(ROUND($J5,1)<ROUND($J$3:$J$25,1)*(1-BF$3:BF$25),1))+1)*(1-BF5) ->  | S5: =(SUM(IF(ROUND($J5,1)<ROUND($J$3:$J$25,1)*(1-BG$3:BG$25),1))+1)*(1-BG5) ->  | T5: Canada | U5: 3 | V5: 3 | W5: Netherlands | X5: 7.180768447 | BC5: 391.7684736 | BD5: 471.1610778 | BF5: 1 | BG5: 1 | BI5: =ABS(SUM($C5:$I5*$C$33:$I$33)/SUM(IF($C5:$I5>0,$C5:$I5*$C$33:$I$33))) -> 1 | BJ5: =VLOOKUP($W5,$B$3:$I$23,COLUMN()-(COLUMN($BI$2)-1),FALSE)*C$33/SUM($C$33:$I$33)*VLOOKUP($W5,$B$3:$BI$23,(COLUMN($BI$2)-1),FALSE) -> 0 | BK5: =VLOOKUP($W5,$B$3:$I$23,COLUMN()-(COLUMN($BI$2)-1),FALSE)*D$33/SUM($C$33:$I$33)*VLOOKUP($W5,$B$3:$BI$23,(COLUMN($BI$2)-1),FALSE) -> 1.928226882 | BL5: =VLOOKUP($W5,$B$3:$I$23,COLUMN()-(COLUMN($BI$2)-1),FALSE)*E$33/SUM($C$33:$I$33)*VLOOKUP($W5,$B$3:$BI$23,(COLUMN($BI$2)-1),FALSE) -> 0 | BM5: =VLOOKUP($W5,$B$3:$I$23,COLUMN()-(COLUMN($BI$2)-1),FALSE)*F$33/SUM($C$33:$I$33)*VLOOKUP($W5,$B$3:$BI$23,(COLUMN($BI$2)-1),FALSE) -> 0 | BN5: =VLOOKUP($W5,$B$3:$I$23,COLUMN()-(COLUMN($BI$2)-1),FALSE)*G$33/SUM($C$33:$I$33)*VLOOKUP($W5,$B$3:$BI$23,(COLUMN($BI$2)-1),FALSE) -> 2.225866238 | BO5: =VLOOKUP($W5,$B$3:$I$23,COLUMN()-(COLUMN($BI$2)-1),FALSE)*H$33/SUM($C$33:$I$33)*VLOOKUP($W5,$B$3:$BI$23,(COLUMN($BI$2)-1),FALSE) -> 3.026675326 | BP5: =VLOOKUP($W5,$B$3:$I$23,COLUMN()-(COLUMN($BI$2)-1),FALSE)*I$33/SUM($C$33:$I$33)*VLOOKUP($W5,$B$3:$BI$23,(COLUMN($BI$2)-1),FALSE) -> 0
A6: 21 | B6: China | D6: ='Trade 2008'!F8 -> -9.115849513 | G6: ='Environment 2008'!K8 -> 6.050320762 | H6: ='Security 2008'!J9 -> 1.358441667 | J6: -0.5690290278 | K6: 21 | M6: =SUM(IF(ROUND(J6,1)<ROUND($J$3:$J$23,1),1))+1 -> 21 | O6: China | P6: =(SUM(IF($J6<$J$3:$J$25*(1-BF$3:BF$25),1))+1)*(1-BF6) ->  | Q6: =(SUM(IF($J6<$J$3:$J$25*(1-BG$3:BG$25),1))+1)*(1-BG6) ->  | R6: =(SUM(IF(ROUND($J6,1)<ROUND($J$3:$J$25,1)*(1-BF$3:BF$25),1))+1)*(1-BF6) ->  | S6: =(SUM(IF(ROUND($J6,1)<ROUND($J$3:$J$25,1)*(1-BG$3:BG$25),1))+1)*(1-BG6) ->  | T6: China | U6: 4 | V6: 4 | W6: Sweden | X6: 6.969670365 | Y6: =VLOOKUP(W6,$B$3:$O$23,11,FALSE) -> 0 | Z6: =VLOOKUP(U6,$K$3:$O$23,4,FALSE)-V6 -> -4 | BC6: 1275.638841 | BD6: 1336.067752 | BF6: 0 | BG6: 0 | BI6: =ABS(SUM($C6:$I6*$C$33:$I$33)/SUM(IF($C6:$I6>0,$C6:$I6*$C$33:$I$33))) -> 0.230414607 | BJ6: =VLOOKUP($W6,$B$3:$I$23,COLUMN()-(COLUMN($BI$2)-1),FALSE)*C$33/SUM($C$33:$I$33)*VLOOKUP($W6,$B$3:$BI$23,(COLUMN($BI$2)-1),FALSE) -> 0 | BK6: =VLOOKUP($W6,$B$3:$I$23,COLUMN()-(COLUMN($BI$2)-1),FALSE)*D$33/SUM($C$33:$I$33)*VLOOKUP($W6,$B$3:$BI$23,(COLUMN($BI$2)-1),FALSE) -> 1.878641601 | BL6: =VLOOKUP($W6,$B$3:$I$23,COLUMN()-(COLUMN($BI$2)-1),FALSE)*E$33/SUM($C$33:$I$33)*VLOOKUP($W6,$B$3:$BI$23,(COLUMN($BI$2)-1),FALSE) -> 0 | BM6: =VLOOKUP($W6,$B$3:$I$23,COLUMN()-(COLUMN($BI$2)-1),FALSE)*F$33/SUM($C$33:$I$33)*VLOOKUP($W6,$B$3:$BI$23,(COLUMN($BI$2)-1),FALSE) -> 0 | BN6: =VLOOKUP($W6,$B$3:$I$23,COLUMN()-(COLUMN($BI$2)-1),FALSE)*G$33/SUM($C$33:$I$33)*VLOOKUP($W6,$B$3:$BI$23,(COLUMN($BI$2)-1),FALSE) -> 2.402087021 | BO6: =VLOOKUP($W6,$B$3:$I$23,COLUMN()-(COLUMN($BI$2)-1),FALSE)*H$33/SUM($C$33:$I$33)*VLOOKUP($W6,$B$3:$BI$23,(COLUMN($BI$2)-1),FALSE) -> 2.688941744 | BP6: =VLOOKUP($W6,$B$3:$I$23,COLUMN()-(COLUMN($BI$2)-1),FALSE)*I$33/SUM($C$33:$I$33)*VLOOKUP($W6,$B$3:$BI$23,(COLUMN($BI$2)-1),FALSE) -> 0
A7: 5 | B7: France | D7: ='Trade 2008'!F9 -> 5.380818485 | G7: ='Environment 2008'!K9 -> 6.539277131 | H7: ='Security 2008'!J10 -> 8.58441701 | J7: 6.834837542 | K7: 5 | M7: =SUM(IF(ROUND(J7,1)<ROUND($J$3:$J$23,1),1))+1 -> 5 | O7: France | P7: =(SUM(IF($J7<$J$3:$J$25*(1-BF$3:BF$25),1))+1)*(1-BF7) ->  | Q7: =(SUM(IF($J7<$J$3:$J$25*(1-BG$3:BG$25),1))+1)*(1-BG7) ->  | R7: =(SUM(IF(ROUND($J7,1)<ROUND($J$3:$J$25,1)*(1-BF$3:BF$25),1))+1)*(1-BF7) ->  | S7: =(SUM(IF(ROUND($J7,1)<ROUND($J$3:$J$25,1)*(1-BG$3:BG$25),1))+1)*(1-BG7) ->  | T7: France | U7: 5 | V7: 5 | W7: France | X7: 6.834837542 | Y7: 0 | Z7: -5 | BF7: 1 | BG7: 1 | BI7: =ABS(SUM($C7:$I7*$C$33:$I$33)/SUM(IF($C7:$I7>0,$C7:$I7*$C$33:$I$33))) -> 1 | BJ7: =VLOOKUP($W7,$B$3:$I$23,COLUMN()-(COLUMN($BI$2)-1),FALSE)*C$33/SUM($C$33:$I$33)*VLOOKUP($W7,$B$3:$BI$23,(COLUMN($BI$2)-1),FALSE) -> 0 | BK7: =VLOOKUP($W7,$B$3:$I$23,COLUMN()-(COLUMN($BI$2)-1),FALSE)*D$33/SUM($C$33:$I$33)*VLOOKUP($W7,$B$3:$BI$23,(COLUMN($BI$2)-1),FALSE) -> 1.793606162 | BL7: =VLOOKUP($W7,$B$3:$I$23,COLUMN()-(COLUMN($BI$2)-1),FALSE)*E$33/SUM($C$33:$I$33)*VLOOKUP($W7,$B$3:$BI$23,(COLUMN($BI$2)-1),FALSE) -> 0 | BM7: =VLOOKUP($W7,$B$3:$I$23,COLUMN()-(COLUMN($BI$2)-1),FALSE)*F$33/SUM($C$33:$I$33)*VLOOKUP($W7,$B$3:$BI$23,(COLUMN($BI$2)-1),FALSE) -> 0 | BN7: =VLOOKUP($W7,$B$3:$I$23,COLUMN()-(COLUMN($BI$2)-1),FALSE)*G$33/SUM($C$33:$I$33)*VLOOKUP($W7,$B$3:$BI$23,(COLUMN($BI$2)-1),FALSE) -> 2.179759044 | BO7: =VLOOKUP($W7,$B$3:$I$23,COLUMN()-(COLUMN($BI$2)-1),FALSE)*H$33/SUM($C$33:$I$33)*VLOOKUP($W7,$B$3:$BI$23,(COLUMN($BI$2)-1),FALSE) -> 2.861472337 | BP7: =VLOOKUP($W7,$B$3:$I$23,COLUMN()-(COLUMN($BI$2)-1),FALSE)*I$33/SUM($C$33:$I$33)*VLOOKUP($W7,$B$3:$BI$23,(COLUMN($BI$2)-1),FALSE) -> 0
A8: 9 | B8: Germany | D8: ='Trade 2008'!F10 -> 5.258200659 | G8: ='Environment 2008'!K10 -> 6.42035165 | H8: ='Security 2008'!J11 -> 5.928474248 | J8: 5.869008852 | K8: 9 | M8: =SUM(IF(ROUND(J8,1)<ROUND($J$3:$J$23,1),1))+1 -> 9 | O8: Germany | P8: =(SUM(IF($J8<$J$3:$J$25*(1-BF$3:BF$25),1))+1)*(1-BF8) ->  | Q8: =(SUM(IF($J8<$J$3:$J$25*(1-BG$3:BG$25),1))+1)*(1-BG8) ->  | R8: =(SUM(IF(ROUND($J8,1)<ROUND($J$3:$J$25,1)*(1-BF$3:BF$25),1))+1)*(1-BF8) ->  | S8: =(SUM(IF(ROUND($J8,1)<ROUND($J$3:$J$25,1)*(1-BG$3:BG$25),1))+1)*(1-BG8) ->  | T8: Germany | U8: 6 | V8: 6 | W8: Italy | X8: 6.57756472 | Y8: 0 | Z8: -6 | BC8: 208.5665341 | BD8: 309.5961928 | BF8: 1 | BG8: 1 | BI8: =ABS(SUM($C8:$I8*$C$33:$I$33)/SUM(IF($C8:$I8>0,$C8:$I8*$C$33:$I$33))) -> 1 | BJ8: =VLOOKUP($W8,$B$3:$I$23,COLUMN()-(COLUMN($BI$2)-1),FALSE)*C$33/SUM($C$33:$I$33)*VLOOKUP($W8,$B$3:$BI$23,(COLUMN($BI$2)-1),FALSE) -> 0 | BK8: =VLOOKUP($W8,$B$3:$I$23,COLUMN()-(COLUMN($BI$2)-1),FALSE)*D$33/SUM($C$33:$I$33)*VLOOKUP($W8,$B$3:$BI$23,(COLUMN($BI$2)-1),FALSE) -> 1.840117267 | BL8: =VLOOKUP($W8,$B$3:$I$23,COLUMN()-(COLUMN($BI$2)-1),FALSE)*E$33/SUM($C$33:$I$33)*VLOOKUP($W8,$B$3:$BI$23,(COLUMN($BI$2)-1),FALSE) -> 0 | BM8: =VLOOKUP($W8,$B$3:$I$23,COLUMN()-(COLUMN($BI$2)-1),FALSE)*F$33/SUM($C$33:$I$33)*VLOOKUP($W8,$B$3:$BI$23,(COLUMN($BI$2)-1),FALSE) -> 0 | BN8: =VLOOKUP($W8,$B$3:$I$23,COLUMN()-(COLUMN($BI$2)-1),FALSE)*G$33/SUM($C$33:$I$33)*VLOOKUP($W8,$B$3:$BI$23,(COLUMN($BI$2)-1),FALSE) -> 2.038654563 | BO8: =VLOOKUP($W8,$B$3:$I$23,COLUMN()-(COLUMN($BI$2)-1),FALSE)*H$33/SUM($C$33:$I$33)*VLOOKUP($W8,$B$3:$BI$23,(COLUMN($BI$2)-1),FALSE) -> 2.69879289 | BP8: =VLOOKUP($W8,$B$3:$I$23,COLUMN()-(COLUMN($BI$2)-1),FALSE)*I$33/SUM($C$33:$I$33)*VLOOKUP($W8,$B$3:$BI$23,(COLUMN($BI$2)-1),FALSE) -> 0
A9: 20 | B9: India | D9: ='Trade 2008'!F11 -> -7.157171019 | G9: ='Environment 2008'!K11 -> 8.033102024 | H9: ='Security 2008'!J12 -> 2.199794795 | J9: 1.025241933 | K9: 20 | M9: =SUM(IF(ROUND(J9,1)<ROUND($J$3:$J$23,1),1))+1 -> 20 | O9: India | P9: =(SUM(IF($J9<$J$3:$J$25*(1-BF$3:BF$25),1))+1)*(1-BF9) ->  | Q9: =(SUM(IF($J9<$J$3:$J$25*(1-BG$3:BG$25),1))+1)*(1-BG9) ->  | R9: =(SUM(IF(ROUND($J9,1)<ROUND($J$3:$J$25,1)*(1-BF$3:BF$25),1))+1)*(1-BF9) ->  | S9: =(SUM(IF(ROUND($J9,1)<ROUND($J$3:$J$25,1)*(1-BG$3:BG$25),1))+1)*(1-BG9) ->  | T9: India | U9: 7 | V9: 7 | W9: Canada | X9: 6.544679736 | Y9: 0 | Z9: -7 | BC9: 188.2605978 | BD9: 237.9893965 | BF9: 1 | BG9: 1 | BI9: =ABS(SUM($C9:$I9*$C$33:$I$33)/SUM(IF($C9:$I9>0,$C9:$I9*$C$33:$I$33))) -> 0.3005723457 | BJ9: =VLOOKUP($W9,$B$3:$I$23,COLUMN()-(COLUMN($BI$2)-1),FALSE)*C$33/SUM($C$33:$I$33)*VLOOKUP($W9,$B$3:$BI$23,(COLUMN($BI$2)-1),FALSE) -> 0 | BK9: =VLOOKUP($W9,$B$3:$I$23,COLUMN()-(COLUMN($BI$2)-1),FALSE)*D$33/SUM($C$33:$I$33)*VLOOKUP($W9,$B$3:$BI$23,(COLUMN($BI$2)-1),FALSE) -> 2.64040915 | BL9: =VLOOKUP($W9,$B$3:$I$23,COLUMN()-(COLUMN($BI$2)-1),FALSE)*E$33/SUM($C$33:$I$33)*VLOOKUP($W9,$B$3:$BI$23,(COLUMN($BI$2)-1),FALSE) -> 0 | BM9: =VLOOKUP($W9,$B$3:$I$23,COLUMN()-(COLUMN($BI$2)-1),FALSE)*F$33/SUM($C$33:$I$33)*VLOOKUP($W9,$B$3:$BI$23,(COLUMN($BI$2)-1),FALSE) -> 0 | BN9: =VLOOKUP($W9,$B$3:$I$23,COLUMN()-(COLUMN($BI$2)-1),FALSE)*G$33/SUM($C$33:$I$33)*VLOOKUP($W9,$B$3:$BI$23,(COLUMN($BI$2)-1),FALSE) -> 1.477116646 | BO9: =VLOOKUP($W9,$B$3:$I$23,COLUMN()-(COLUMN($BI$2)-1),FALSE)*H$33/SUM($C$33:$I$33)*VLOOKUP($W9,$B$3:$BI$23,(COLUMN($BI$2)-1),FALSE) -> 2.42715394 | BP9: =VLOOKUP($W9,$B$3:$I$23,COLUMN()-(COLUMN($BI$2)-1),FALSE)*I$33/SUM($C$33:$I$33)*VLOOKUP($W9,$B$3:$BI$23,(COLUMN($BI$2)-1),FALSE) -> 0
A10: 15 | B10: Indonesia | D10: ='Trade 2008'!F12 -> 5.663086927 | G10: ='Environment 2008'!K12 -> 5.493410558 | H10: ='Security 2008'!J13 -> 1.350835971 | J10: 4.169111152 | K10: 15 | M10: =SUM(IF(ROUND(J10,1)<ROUND($J$3:$J$23,1),1))+1 -> 15 | O10: Indonesia | P10: =(SUM(IF($J10<$J$3:$J$25*(1-BF$3:BF$25),1))+1)*(1-BF10) ->  | Q10: =(SUM(IF($J10<$J$3:$J$25*(1-BG$3:BG$25),1))+1)*(1-BG10) ->  | R10: =(SUM(IF(ROUND($J10,1)<ROUND($J$3:$J$25,1)*(1-BF$3:BF$25),1))+1)*(1-BF10) ->  | S10: =(SUM(IF(ROUND($J10,1)<ROUND($J$3:$J$25,1)*(1-BG$3:BG$25),1))+1)*(1-BG10) ->  | T10: Indonesia | U10: 8 | V10: 8 | W10: United States | X10: 6.109294602 | Y10: 0 | Z10: -8 | BC10: 2173.316891 | BD10: 2649.390055 | BF10: 1 | BG10: 1 | BI10: =ABS(SUM($C10:$I10*$C$33:$I$33)/SUM(IF($C10:$I10>0,$C10:$I10*$C$33:$I$33))) -> 1 | BJ10: =VLOOKUP($W10,$B$3:$I$23,COLUMN()-(COLUMN($BI$2)-1),FALSE)*C$33/SUM($C$33:$I$33)*VLOOKUP($W10,$B$3:$BI$23,(COLUMN($BI$2)-1),FALSE) -> 0 | BK10: =VLOOKUP($W10,$B$3:$I$23,COLUMN()-(COLUMN($BI$2)-1),FALSE)*D$33/SUM($C$33:$I$33)*VLOOKUP($W10,$B$3:$BI$23,(COLUMN($BI$2)-1),FALSE) -> 2.651999082 | BL10: =VLOOKUP($W10,$B$3:$I$23,COLUMN()-(COLUMN($BI$2)-1),FALSE)*E$33/SUM($C$33:$I$33)*VLOOKUP($W10,$B$3:$BI$23,(COLUMN($BI$2)-1),FALSE) -> 0 | BM10: =VLOOKUP($W10,$B$3:$I$23,COLUMN()-(COLUMN($BI$2)-1),FALSE)*F$33/SUM($C$33:$I$33)*VLOOKUP($W10,$B$3:$BI$23,(COLUMN($BI$2)-1),FALSE) -> 0 | BN10: =VLOOKUP($W10,$B$3:$I$23,COLUMN()-(COLUMN($BI$2)-1),FALSE)*G$33/SUM($C$33:$I$33)*VLOOKUP($W10,$B$3:$BI$23,(COLUMN($BI$2)-1),FALSE) -> 1.254772458 | BO10: =VLOOKUP($W10,$B$3:$I$23,COLUMN()-(COLUMN($BI$2)-1),FALSE)*H$33/SUM($C$33:$I$33)*VLOOKUP($W10,$B$3:$BI$23,(COLUMN($BI$2)-1),FALSE) -> 2.202523062 | BP10: =VLOOKUP($W10,$B$3:$I$23,COLUMN()-(COLUMN($BI$2)-1),FALSE)*I$33/SUM($C$33:$I$33)*VLOOKUP($W10,$B$3:$BI$23,(COLUMN($BI$2)-1),FALSE) -> 0
A11: 6 | B11: Italy | D11: ='Trade 2008'!F13 -> 5.520351801 | G11: ='Environment 2008'!K13 -> 6.11596369 | H11: ='Security 2008'!J14 -> 8.096378669 | J11: 6.57756472 | K11: 6 | M11: =SUM(IF(ROUND(J11,1)<ROUND($J$3:$J$23,1),1))+1 -> 6 | O11: Italy | P11: =(SUM(IF($J11<$J$3:$J$25*(1-BF$3:BF$25),1))+1)*(1-BF11) ->  | Q11: =(SUM(IF($J11<$J$3:$J$25*(1-BG$3:BG$25),1))+1)*(1-BG11) ->  | R11: =(SUM(IF(ROUND($J11,1)<ROUND($J$3:$J$25,1)*(1-BF$3:BF$25),1))+1)*(1-BF11) ->  | S11: =(SUM(IF(ROUND($J11,1)<ROUND($J$3:$J$25,1)*(1-BG$3:BG$25),1))+1)*(1-BG11) ->  | T11: Italy | U11: 9 | V11: 9 | W11: Germany | X11: 5.869008852 | Y11: 0 | Z11: -9 | BC11: 2975.329419 | BD11: 3330.031747 | BF11: 1 | BG11: 1 | BI11: =ABS(SUM($C11:$I11*$C$33:$I$33)/SUM(IF($C11:$I11>0,$C11:$I11*$C$33:$I$33))) -> 1 | BJ11: =VLOOKUP($W11,$B$3:$I$23,COLUMN()-(COLUMN($BI$2)-1),FALSE)*C$33/SUM($C$33:$I$33)*VLOOKUP($W11,$B$3:$BI$23,(COLUMN($BI$2)-1),FALSE) -> 0 | BK11: =VLOOKUP($W11,$B$3:$I$23,COLUMN()-(COLUMN($BI$2)-1),FALSE)*D$33/SUM($C$33:$I$33)*VLOOKUP($W11,$B$3:$BI$23,(COLUMN($BI$2)-1),FALSE) -> 1.752733553 | BL11: =VLOOKUP($W11,$B$3:$I$23,COLUMN()-(COLUMN($BI$2)-1),FALSE)*E$33/SUM($C$33:$I$33)*VLOOKUP($W11,$B$3:$BI$23,(COLUMN($BI$2)-1),FALSE) -> 0 | BM11: =VLOOKUP($W11,$B$3:$I$23,COLUMN()-(COLUMN($BI$2)-1),FALSE)*F$33/SUM($C$33:$I$33)*VLOOKUP($W11,$B$3:$BI$23,(COLUMN($BI$2)-1),FALSE) -> 0 | BN11: =VLOOKUP($W11,$B$3:$I$23,COLUMN()-(COLUMN($BI$2)-1),FALSE)*G$33/SUM($C$33:$I$33)*VLOOKUP($W11,$B$3:$BI$23,(COLUMN($BI$2)-1),FALSE) -> 2.140117217 | BO11: =VLOOKUP($W11,$B$3:$I$23,COLUMN()-(COLUMN($BI$2)-1),FALSE)*H$33/SUM($C$33:$I$33)*VLOOKUP($W11,$B$3:$BI$23,(COLUMN($BI$2)-1),FALSE) -> 1.976158083 | BP11: =VLOOKUP($W11,$B$3:$I$23,COLUMN()-(COLUMN($BI$2)-1),FALSE)*I$33/SUM($C$33:$I$33)*VLOOKUP($W11,$B$3:$BI$23,(COLUMN($BI$2)-1),FALSE) -> 0
A12: 14 | B12: Japan | D12: ='Trade 2008'!F14 -> 6.751675058 | G12: ='Environment 2008'!K14 -> 3.502776307 | H12: ='Security 2008'!J15 -> 2.77593696 | J12: 4.343462775 | K12: 14 | M12: =SUM(IF(ROUND(J12,1)<ROUND($J$3:$J$23,1),1))+1 -> 14 | O12: Japan | P12: =(SUM(IF($J12<$J$3:$J$25*(1-BF$3:BF$25),1))+1)*(1-BF12) ->  | Q12: =(SUM(IF($J12<$J$3:$J$25*(1-BG$3:BG$25),1))+1)*(1-BG12) ->  | R12: =(SUM(IF(ROUND($J12,1)<ROUND($J$3:$J$25,1)*(1-BF$3:BF$25),1))+1)*(1-BF12) ->  | S12: =(SUM(IF(ROUND($J12,1)<ROUND($J$3:$J$25,1)*(1-BG$3:BG$25),1))+1)*(1-BG12) ->  | T12: Japan | U12: 10 | V12: 10 | W12: Spain | X12: 5.310548895 | Y12: 0 | Z12: -10 | BC12: 334.1816627 | BD12: 329.9240509 | BF12: 1 | BG12: 1 | BI12: =ABS(SUM($C12:$I12*$C$33:$I$33)/SUM(IF($C12:$I12>0,$C12:$I12*$C$33:$I$33))) -> 1 | BJ12: =VLOOKUP($W12,$B$3:$I$23,COLUMN()-(COLUMN($BI$2)-1),FALSE)*C$33/SUM($C$33:$I$33)*VLOOKUP($W12,$B$3:$BI$23,(COLUMN($BI$2)-1),FALSE) -> 0 | BK12: =VLOOKUP($W12,$B$3:$I$23,COLUMN()-(COLUMN($BI$2)-1),FALSE)*D$33/SUM($C$33:$I$33)*VLOOKUP($W12,$B$3:$BI$23,(COLUMN($BI$2)-1),FALSE) -> 1.816253875 | BL12: =VLOOKUP($W12,$B$3:$I$23,COLUMN()-(COLUMN($BI$2)-1),FALSE)*E$33/SUM($C$33:$I$33)*VLOOKUP($W12,$B$3:$BI$23,(COLUMN($BI$2)-1),FALSE) -> 0 | BM12: =VLOOKUP($W12,$B$3:$I$23,COLUMN()-(COLUMN($BI$2)-1),FALSE)*F$33/SUM($C$33:$I$33)*VLOOKUP($W12,$B$3:$BI$23,(COLUMN($BI$2)-1),FALSE) -> 0 | BN12: =VLOOKUP($W12,$B$3:$I$23,COLUMN()-(COLUMN($BI$2)-1),FALSE)*G$33/SUM($C$33:$I$33)*VLOOKUP($W12,$B$3:$BI$23,(COLUMN($BI$2)-1),FALSE) -> 1.918151888 | BO12: =VLOOKUP($W12,$B$3:$I$23,COLUMN()-(COLUMN($BI$2)-1),FALSE)*H$33/SUM($C$33:$I$33)*VLOOKUP($W12,$B$3:$BI$23,(COLUMN($BI$2)-1),FALSE) -> 1.576143131 | BP12: =VLOOKUP($W12,$B$3:$I$23,COLUMN()-(COLUMN($BI$2)-1),FALSE)*I$33/SUM($C$33:$I$33)*VLOOKUP($W12,$B$3:$BI$23,(COLUMN($BI$2)-1),FALSE) -> 0
A13: 17 | B13: Mexico | D13: ='Trade 2008'!F15 -> 3.57014052 | G13: ='Environment 2008'!K15 -> 4.962780031 | H13: ='Security 2008'!J16 -> 2.061287185 | J13: 3.531402579 | K13: 17 | M13: =SUM(IF(ROUND(J13,1)<ROUND($J$3:$J$23,1),1))+1 -> 17 | O13: Mexico | P13: =(SUM(IF($J13<$J$3:$J$25*(1-BF$3:BF$25),1))+1)*(1-BF13) ->  | Q13: =(SUM(IF($J13<$J$3:$J$25*(1-BG$3:BG$25),1))+1)*(1-BG13) ->  | R13: =(SUM(IF(ROUND($J13,1)<ROUND($J$3:$J$25,1)*(1-BF$3:BF$25),1))+1)*(1-BF13) ->  | S13: =(SUM(IF(ROUND($J13,1)<ROUND($J$3:$J$25,1)*(1-BG$3:BG$25),1))+1)*(1-BG13) ->  | T13: Mexico | U13: 11 | V13: 11 | W13: Switzerland | X13: 4.969435838 | Y13: 0 | Z13: -11 | BF13: 1 | BG13: 1 | BI13: =ABS(SUM($C13:$I13*$C$33:$I$33)/SUM(IF($C13:$I13>0,$C13:$I13*$C$33:$I$33))) -> 1 | BJ13: =VLOOKUP($W13,$B$3:$I$23,COLUMN()-(COLUMN($BI$2)-1),FALSE)*C$33/SUM($C$33:$I$33)*VLOOKUP($W13,$B$3:$BI$23,(COLUMN($BI$2)-1),FALSE) -> 0 | BK13: =VLOOKUP($W13,$B$3:$I$23,COLUMN()-(COLUMN($BI$2)-1),FALSE)*D$33/SUM($C$33:$I$33)*VLOOKUP($W13,$B$3:$BI$23,(COLUMN($BI$2)-1),FALSE) -> 1.357454536 | BL13: =VLOOKUP($W13,$B$3:$I$23,COLUMN()-(COLUMN($BI$2)-1),FALSE)*E$33/SUM($C$33:$I$33)*VLOOKUP($W13,$B$3:$BI$23,(COLUMN($BI$2)-1),FALSE) -> 0 | BM13: =VLOOKUP($W13,$B$3:$I$23,COLUMN()-(COLUMN($BI$2)-1),FALSE)*F$33/SUM($C$33:$I$33)*VLOOKUP($W13,$B$3:$BI$23,(COLUMN($BI$2)-1),FALSE) -> 0 | BN13: =VLOOKUP($W13,$B$3:$I$23,COLUMN()-(COLUMN($BI$2)-1),FALSE)*G$33/SUM($C$33:$I$33)*VLOOKUP($W13,$B$3:$BI$23,(COLUMN($BI$2)-1),FALSE) -> 1.559217823 | BO13: =VLOOKUP($W13,$B$3:$I$23,COLUMN()-(COLUMN($BI$2)-1),FALSE)*H$33/SUM($C$33:$I$33)*VLOOKUP($W13,$B$3:$BI$23,(COLUMN($BI$2)-1),FALSE) -> 2.052763479 | BP13: =VLOOKUP($W13,$B$3:$I$23,COLUMN()-(COLUMN($BI$2)-1),FALSE)*I$33/SUM($C$33:$I$33)*VLOOKUP($W13,$B$3:$BI$23,(COLUMN($BI$2)-1),FALSE) -> 0
A14: 3 | B14: Netherlands | D14: ='Trade 2008'!F16 -> 5.784680646 | G14: ='Environment 2008'!K16 -> 6.677598715 | H14: ='Security 2008'!J17 -> 9.080025979 | J14: 7.180768447 | K14: 3 | M14: =SUM(IF(ROUND(J14,1)<ROUND($J$3:$J$23,1),1))+1 -> 3 | O14: Netherlands | P14: =(SUM(IF($J14<$J$3:$J$25*(1-BF$3:BF$25),1))+1)*(1-BF14) ->  | Q14: =(SUM(IF($J14<$J$3:$J$25*(1-BG$3:BG$25),1))+1)*(1-BG14) ->  | R14: =(SUM(IF(ROUND($J14,1)<ROUND($J$3:$J$25,1)*(1-BF$3:BF$25),1))+1)*(1-BF14) ->  | S14: =(SUM(IF(ROUND($J14,1)<ROUND($J$3:$J$25,1)*(1-BG$3:BG$25),1))+1)*(1-BG14) ->  | T14: Netherlands | U14: 12 | V14: 12 | W14: Turkey | X14: 4.648005688 | Y14: 0 | Z14: -12 | BC14: 181.1218596 | BD14: 227.1925699 | BF14: 1 | BG14: 1 | BI14: =ABS(SUM($C14:$I14*$C$33:$I$33)/SUM(IF($C14:$I14>0,$C14:$I14*$C$33:$I$33))) -> 1 | BJ14: =VLOOKUP($W14,$B$3:$I$23,COLUMN()-(COLUMN($BI$2)-1),FALSE)*C$33/SUM($C$33:$I$33)*VLOOKUP($W14,$B$3:$BI$23,(COLUMN($BI$2)-1),FALSE) -> 0 | BK14: =VLOOKUP($W14,$B$3:$I$23,COLUMN()-(COLUMN($BI$2)-1),FALSE)*D$33/SUM($C$33:$I$33)*VLOOKUP($W14,$B$3:$BI$23,(COLUMN($BI$2)-1),FALSE) -> 1.413944852 | BL14: =VLOOKUP($W14,$B$3:$I$23,COLUMN()-(COLUMN($BI$2)-1),FALSE)*E$33/SUM($C$33:$I$33)*VLOOKUP($W14,$B$3:$BI$23,(COLUMN($BI$2)-1),FALSE) -> 0 | BM14: =VLOOKUP($W14,$B$3:$I$23,COLUMN()-(COLUMN($BI$2)-1),FALSE)*F$33/SUM($C$33:$I$33)*VLOOKUP($W14,$B$3:$BI$23,(COLUMN($BI$2)-1),FALSE) -> 0 | BN14: =VLOOKUP($W14,$B$3:$I$23,COLUMN()-(COLUMN($BI$2)-1),FALSE)*G$33/SUM($C$33:$I$33)*VLOOKUP($W14,$B$3:$BI$23,(COLUMN($BI$2)-1),FALSE) -> 1.916156152 | BO14: =VLOOKUP($W14,$B$3:$I$23,COLUMN()-(COLUMN($BI$2)-1),FALSE)*H$33/SUM($C$33:$I$33)*VLOOKUP($W14,$B$3:$BI$23,(COLUMN($BI$2)-1),FALSE) -> 1.317904685 | BP14: =VLOOKUP($W14,$B$3:$I$23,COLUMN()-(COLUMN($BI$2)-1),FALSE)*I$33/SUM($C$33:$I$33)*VLOOKUP($W14,$B$3:$BI$23,(COLUMN($BI$2)-1),FALSE) -> 0
A15: 13 | B15: Russia | D15: ='Trade 2008'!F17 -> 2.242260972 | G15: ='Environment 2008'!K17 -> 7.598682337 | H15: ='Security 2008'!J18 -> 3.254237367 | J15: 4.365060226 | K15: 13 | M15: =SUM(IF(ROUND(J15,1)<ROUND($J$3:$J$23,1),1))+1 -> 13 | O15: Russia | P15: =(SUM(IF($J15<$J$3:$J$25*(1-BF$3:BF$25),1))+1)*(1-BF15) ->  | Q15: =(SUM(IF($J15<$J$3:$J$25*(1-BG$3:BG$25),1))+1)*(1-BG15) ->  | R15: =(SUM(IF(ROUND($J15,1)<ROUND($J$3:$J$25,1)*(1-BF$3:BF$25),1))+1)*(1-BF15) ->  | S15: =(SUM(IF(ROUND($J15,1)<ROUND($J$3:$J$25,1)*(1-BG$3:BG$25),1))+1)*(1-BG15) ->  | T15: Russia | U15: 13 | V15: 13 | W15: Russia | X15: 4.365060226 | Y15: 0 | Z15: -13 | BC15: 1952.973324 | BD15: 2112.780108 | BF15: 1 | BG15: 1 | BI15: =ABS(SUM($C15:$I15*$C$33:$I$33)/SUM(IF($C15:$I15>0,$C15:$I15*$C$33:$I$33))) -> 1 | BJ15: =VLOOKUP($W15,$B$3:$I$23,COLUMN()-(COLUMN($BI$2)-1),FALSE)*C$33/SUM($C$33:$I$33)*VLOOKUP($W15,$B$3:$BI$23,(COLUMN($BI$2)-1),FALSE) -> 0 | BK15: =VLOOKUP($W15,$B$3:$I$23,COLUMN()-(COLUMN($BI$2)-1),FALSE)*D$33/SUM($C$33:$I$33)*VLOOKUP($W15,$B$3:$BI$23,(COLUMN($BI$2)-1),FALSE) -> 0.7474203241 | BL15: =VLOOKUP($W15,$B$3:$I$23,COLUMN()-(COLUMN($BI$2)-1),FALSE)*E$33/SUM($C$33:$I$33)*VLOOKUP($W15,$B$3:$BI$23,(COLUMN($BI$2)-1),FALSE) -> 0 | BM15: =VLOOKUP($W15,$B$3:$I$23,COLUMN()-(COLUMN($BI$2)-1),FALSE)*F$33/SUM($C$33:$I$33)*VLOOKUP($W15,$B$3:$BI$23,(COLUMN($BI$2)-1),FALSE) -> 0 | BN15: =VLOOKUP($W15,$B$3:$I$23,COLUMN()-(COLUMN($BI$2)-1),FALSE)*G$33/SUM($C$33:$I$33)*VLOOKUP($W15,$B$3:$BI$23,(COLUMN($BI$2)-1),FALSE) -> 2.532894112 | BO15: =VLOOKUP($W15,$B$3:$I$23,COLUMN()-(COLUMN($BI$2)-1),FALSE)*H$33/SUM($C$33:$I$33)*VLOOKUP($W15,$B$3:$BI$23,(COLUMN($BI$2)-1),FALSE) -> 1.084745789 | BP15: =VLOOKUP($W15,$B$3:$I$23,COLUMN()-(COLUMN($BI$2)-1),FALSE)*I$33/SUM($C$33:$I$33)*VLOOKUP($W15,$B$3:$BI$23,(COLUMN($BI$2)-1),FALSE) -> 0
A16: 18 | B16: Saudi Arabia | D16: ='Trade 2008'!F18 -> 6.065582142 | G16: ='Environment 2008'!K18 -> 0.6489802501 | H16: ='Security 2008'!J19 -> 1.150948166 | J16: 2.621836852 | K16: 18 | M16: =SUM(IF(ROUND(J16,1)<ROUND($J$3:$J$23,1),1))+1 -> 18 | O16: Saudi Arabia | P16: =(SUM(IF($J16<$J$3:$J$25*(1-BF$3:BF$25),1))+1)*(1-BF16) ->  | Q16: =(SUM(IF($J16<$J$3:$J$25*(1-BG$3:BG$25),1))+1)*(1-BG16) ->  | R16: =(SUM(IF(ROUND($J16,1)<ROUND($J$3:$J$25,1)*(1-BF$3:BF$25),1))+1)*(1-BF16) ->  | S16: =(SUM(IF(ROUND($J16,1)<ROUND($J$3:$J$25,1)*(1-BG$3:BG$25),1))+1)*(1-BG16) ->  | T16: Saudi Arabia | U16: 14 | V16: 14 | W16: Japan | X16: 4.343462775 | Y16: 0 | Z16: -14 | BC16: 4135.294075 | BD16: 5068.996215 | BF16: 0 | BG16: 0 | BI16: =ABS(SUM($C16:$I16*$C$33:$I$33)/SUM(IF($C16:$I16>0,$C16:$I16*$C$33:$I$33))) -> 1 | BJ16: =VLOOKUP($W16,$B$3:$I$23,COLUMN()-(COLUMN($BI$2)-1),FALSE)*C$33/SUM($C$33:$I$33)*VLOOKUP($W16,$B$3:$BI$23,(COLUMN($BI$2)-1),FALSE) -> 0 | BK16: =VLOOKUP($W16,$B$3:$I$23,COLUMN()-(COLUMN($BI$2)-1),FALSE)*D$33/SUM($C$33:$I$33)*VLOOKUP($W16,$B$3:$BI$23,(COLUMN($BI$2)-1),FALSE) -> 2.250558353 | BL16: =VLOOKUP($W16,$B$3:$I$23,COLUMN()-(COLUMN($BI$2)-1),FALSE)*E$33/SUM($C$33:$I$33)*VLOOKUP($W16,$B$3:$BI$23,(COLUMN($BI$2)-1),FALSE) -> 0 | BM16: =VLOOKUP($W16,$B$3:$I$23,COLUMN()-(COLUMN($BI$2)-1),FALSE)*F$33/SUM($C$33:$I$33)*VLOOKUP($W16,$B$3:$BI$23,(COLUMN($BI$2)-1),FALSE) -> 0 | BN16: =VLOOKUP($W16,$B$3:$I$23,COLUMN()-(COLUMN($BI$2)-1),FALSE)*G$33/SUM($C$33:$I$33)*VLOOKUP($W16,$B$3:$BI$23,(COLUMN($BI$2)-1),FALSE) -> 1.167592102 | BO16: =VLOOKUP($W16,$B$3:$I$23,COLUMN()-(COLUMN($BI$2)-1),FALSE)*H$33/SUM($C$33:$I$33)*VLOOKUP($W16,$B$3:$BI$23,(COLUMN($BI$2)-1),FALSE) -> 0.92531232 | BP16: =VLOOKUP($W16,$B$3:$I$23,COLUMN()-(COLUMN($BI$2)-1),FALSE)*I$33/SUM($C$33:$I$33)*VLOOKUP($W16,$B$3:$BI$23,(COLUMN($BI$2)-1),FALSE) -> 0
A17: 19 | B17: South Korea | D17: ='Trade 2008'!F19 -> 1.093315017 | G17: ='Environment 2008'!K19 -> 3.410331156 | H17: ='Security 2008'!J20 -> 2.061192721 | J17: 2.188279631 | K17: 19 | M17: =SUM(IF(ROUND(J17,1)<ROUND($J$3:$J$23,1),1))+1 -> 19 | O17: South Korea | P17: =(SUM(IF($J17<$J$3:$J$25*(1-BF$3:BF$25),1))+1)*(1-BF17) ->  | Q17: =(SUM(IF($J17<$J$3:$J$25*(1-BG$3:BG$25),1))+1)*(1-BG17) ->  | R17: =(SUM(IF(ROUND($J17,1)<ROUND($J$3:$J$25,1)*(1-BF$3:BF$25),1))+1)*(1-BF17) ->  | S17: =(SUM(IF(ROUND($J17,1)<ROUND($J$3:$J$25,1)*(1-BG$3:BG$25),1))+1)*(1-BG17) ->  | T17: South Korea | U17: 15 | V17: 15 | W17: Indonesia | X17: 4.169111152 | Y17: 0 | Z17: -15 | BF17: 1 | BG17: 1 | BI17: =ABS(SUM($C17:$I17*$C$33:$I$33)/SUM(IF($C17:$I17>0,$C17:$I17*$C$33:$I$33))) -> 1 | BJ17: =VLOOKUP($W17,$B$3:$I$23,COLUMN()-(COLUMN($BI$2)-1),FALSE)*C$33/SUM($C$33:$I$33)*VLOOKUP($W17,$B$3:$BI$23,(COLUMN($BI$2)-1),FALSE) -> 0 | BK17: =VLOOKUP($W17,$B$3:$I$23,COLUMN()-(COLUMN($BI$2)-1),FALSE)*D$33/SUM($C$33:$I$33)*VLOOKUP($W17,$B$3:$BI$23,(COLUMN($BI$2)-1),FALSE) -> 1.887695642 | BL17: =VLOOKUP($W17,$B$3:$I$23,COLUMN()-(COLUMN($BI$2)-1),FALSE)*E$33/SUM($C$33:$I$33)*VLOOKUP($W17,$B$3:$BI$23,(COLUMN($BI$2)-1),FALSE) -> 0 | BM17: =VLOOKUP($W17,$B$3:$I$23,COLUMN()-(COLUMN($BI$2)-1),FALSE)*F$33/SUM($C$33:$I$33)*VLOOKUP($W17,$B$3:$BI$23,(COLUMN($BI$2)-1),FALSE) -> 0 | BN17: =VLOOKUP($W17,$B$3:$I$23,COLUMN()-(COLUMN($BI$2)-1),FALSE)*G$33/SUM($C$33:$I$33)*VLOOKUP($W17,$B$3:$BI$23,(COLUMN($BI$2)-1),FALSE) -> 1.831136853 | BO17: =VLOOKUP($W17,$B$3:$I$23,COLUMN()-(COLUMN($BI$2)-1),FALSE)*H$33/SUM($C$33:$I$33)*VLOOKUP($W17,$B$3:$BI$23,(COLUMN($BI$2)-1),FALSE) -> 0.4502786569 | BP17: =VLOOKUP($W17,$B$3:$I$23,COLUMN()-(COLUMN($BI$2)-1),FALSE)*I$33/SUM($C$33:$I$33)*VLOOKUP($W17,$B$3:$BI$23,(COLUMN($BI$2)-1),FALSE) -> 0
A18: 10 | B18: Spain | D18: ='Trade 2008'!F20 -> 5.448761626 | G18: ='Environment 2008'!K20 -> 5.754455665 | H18: ='Security 2008'!J21 -> 4.728429394 | J18: 5.310548895 | K18: 10 | M18: =SUM(IF(ROUND(J18,1)<ROUND($J$3:$J$23,1),1))+1 -> 10 | O18: Spain | P18: =(SUM(IF($J18<$J$3:$J$25*(1-BF$3:BF$25),1))+1)*(1-BF18) ->  | Q18: =(SUM(IF($J18<$J$3:$J$25*(1-BG$3:BG$25),1))+1)*(1-BG18) ->  | R18: =(SUM(IF(ROUND($J18,1)<ROUND($J$3:$J$25,1)*(1-BF$3:BF$25),1))+1)*(1-BF18) ->  | S18: =(SUM(IF(ROUND($J18,1)<ROUND($J$3:$J$25,1)*(1-BG$3:BG$25),1))+1)*(1-BG18) ->  | T18: Spain | U18: 16 | V18: 16 | W18: Brazil | X18: 4.059245552 | Y18: 0 | Z18: -16 | BC18: 672.4287201 | BD18: 792.128258 | BF18: 1 | BG18: 1 | BI18: =ABS(SUM($C18:$I18*$C$33:$I$33)/SUM(IF($C18:$I18>0,$C18:$I18*$C$33:$I$33))) -> 1 | BJ18: =VLOOKUP($W18,$B$3:$I$23,COLUMN()-(COLUMN($BI$2)-1),FALSE)*C$33/SUM($C$33:$I$33)*VLOOKUP($W18,$B$3:$BI$23,(COLUMN($BI$2)-1),FALSE) -> 0 | BK18: =VLOOKUP($W18,$B$3:$I$23,COLUMN()-(COLUMN($BI$2)-1),FALSE)*D$33/SUM($C$33:$I$33)*VLOOKUP($W18,$B$3:$BI$23,(COLUMN($BI$2)-1),FALSE) -> 0.8924626333 | BL18: =VLOOKUP($W18,$B$3:$I$23,COLUMN()-(COLUMN($BI$2)-1),FALSE)*E$33/SUM($C$33:$I$33)*VLOOKUP($W18,$B$3:$BI$23,(COLUMN($BI$2)-1),FALSE) -> 0 | BM18: =VLOOKUP($W18,$B$3:$I$23,COLUMN()-(COLUMN($BI$2)-1),FALSE)*F$33/SUM($C$33:$I$33)*VLOOKUP($W18,$B$3:$BI$23,(COLUMN($BI$2)-1),FALSE) -> 0 | BN18: =VLOOKUP($W18,$B$3:$I$23,COLUMN()-(COLUMN($BI$2)-1),FALSE)*G$33/SUM($C$33:$I$33)*VLOOKUP($W18,$B$3:$BI$23,(COLUMN($BI$2)-1),FALSE) -> 2.38107605 | BO18: =VLOOKUP($W18,$B$3:$I$23,COLUMN()-(COLUMN($BI$2)-1),FALSE)*H$33/SUM($C$33:$I$33)*VLOOKUP($W18,$B$3:$BI$23,(COLUMN($BI$2)-1),FALSE) -> 0.7857068683 | BP18: =VLOOKUP($W18,$B$3:$I$23,COLUMN()-(COLUMN($BI$2)-1),FALSE)*I$33/SUM($C$33:$I$33)*VLOOKUP($W18,$B$3:$BI$23,(COLUMN($BI$2)-1),FALSE) -> 0
A19: 4 | B19: Sweden | D19: ='Trade 2008'!F21 -> 5.635924802 | G19: ='Environment 2008'!K21 -> 7.206261062 | H19: ='Security 2008'!J22 -> 8.066825232 | J19: 6.969670365 | K19: 4 | M19: =SUM(IF(ROUND(J19,1)<ROUND($J$3:$J$23,1),1))+1 -> 4 | O19: Sweden | P19: =(SUM(IF($J19<$J$3:$J$25*(1-BF$3:BF$25),1))+1)*(1-BF19) ->  | Q19: =(SUM(IF($J19<$J$3:$J$25*(1-BG$3:BG$25),1))+1)*(1-BG19) ->  | R19: =(SUM(IF(ROUND($J19,1)<ROUND($J$3:$J$25,1)*(1-BF$3:BF$25),1))+1)*(1-BF19) ->  | S19: =(SUM(IF(ROUND($J19,1)<ROUND($J$3:$J$25,1)*(1-BG$3:BG$25),1))+1)*(1-BG19) ->  | T19: Sweden | U19: 17 | V19: 17 | W19: Mexico | X19: 3.531402579 | Y19: 0 | Z19: -17 | BC19: 125.1299164 | BD19: 126.6792612 | BF19: 0 | BG19: 0 | BI19: =ABS(SUM($C19:$I19*$C$33:$I$33)/SUM(IF($C19:$I19>0,$C19:$I19*$C$33:$I$33))) -> 1 | BJ19: =VLOOKUP($W19,$B$3:$I$23,COLUMN()-(COLUMN($BI$2)-1),FALSE)*C$33/SUM($C$33:$I$33)*VLOOKUP($W19,$B$3:$BI$23,(COLUMN($BI$2)-1),FALSE) -> 0 | BK19: =VLOOKUP($W19,$B$3:$I$23,COLUMN()-(COLUMN($BI$2)-1),FALSE)*D$33/SUM($C$33:$I$33)*VLOOKUP($W19,$B$3:$BI$23,(COLUMN($BI$2)-1),FALSE) -> 1.19004684 | BL19: =VLOOKUP($W19,$B$3:$I$23,COLUMN()-(COLUMN($BI$2)-1),FALSE)*E$33/SUM($C$33:$I$33)*VLOOKUP($W19,$B$3:$BI$23,(COLUMN($BI$2)-1),FALSE) -> 0 | BM19: =VLOOKUP($W19,$B$3:$I$23,COLUMN()-(COLUMN($BI$2)-1),FALSE)*F$33/SUM($C$33:$I$33)*VLOOKUP($W19,$B$3:$BI$23,(COLUMN($BI$2)-1),FALSE) -> 0 | BN19: =VLOOKUP($W19,$B$3:$I$23,COLUMN()-(COLUMN($BI$2)-1),FALSE)*G$33/SUM($C$33:$I$33)*VLOOKUP($W19,$B$3:$BI$23,(COLUMN($BI$2)-1),FALSE) -> 1.65426001 | BO19: =VLOOKUP($W19,$B$3:$I$23,COLUMN()-(COLUMN($BI$2)-1),FALSE)*H$33/SUM($C$33:$I$33)*VLOOKUP($W19,$B$3:$BI$23,(COLUMN($BI$2)-1),FALSE) -> 0.6870957285 | BP19: =VLOOKUP($W19,$B$3:$I$23,COLUMN()-(COLUMN($BI$2)-1),FALSE)*I$33/SUM($C$33:$I$33)*VLOOKUP($W19,$B$3:$BI$23,(COLUMN($BI$2)-1),FALSE) -> 0
A20: 11 | B20: Switzerland | D20: ='Trade 2008'!F22 -> 4.072363608 | G20: ='Environment 2008'!K22 -> 4.677653469 | H20: ='Security 2008'!J23 -> 6.158290437 | J20: 4.969435838 | K20: 11 | M20: =SUM(IF(ROUND(J20,1)<ROUND($J$3:$J$23,1),1))+1 -> 11 | O20: Switzerland | P20: =(SUM(IF($J20<$J$3:$J$25*(1-BF$3:BF$25),1))+1)*(1-BF20) ->  | Q20: =(SUM(IF($J20<$J$3:$J$25*(1-BG$3:BG$25),1))+1)*(1-BG20) ->  | R20: =(SUM(IF(ROUND($J20,1)<ROUND($J$3:$J$25,1)*(1-BF$3:BF$25),1))+1)*(1-BF20) ->  | S20: =(SUM(IF(ROUND($J20,1)<ROUND($J$3:$J$25,1)*(1-BG$3:BG$25),1))+1)*(1-BG20) ->  | T20: Switzerland | U20: 18 | V20: 18 | W20: Saudi Arabia | X20: 2.621836852 | Y20: 0 | Z20: -18 | BC20: 271.3447956 | BD20: 381.7662382 | BF20: 0 | BG20: 1 | BI20: =ABS(SUM($C20:$I20*$C$33:$I$33)/SUM(IF($C20:$I20>0,$C20:$I20*$C$33:$I$33))) -> 1 | BJ20: =VLOOKUP($W20,$B$3:$I$23,COLUMN()-(COLUMN($BI$2)-1),FALSE)*C$33/SUM($C$33:$I$33)*VLOOKUP($W20,$B$3:$BI$23,(COLUMN($BI$2)-1),FALSE) -> 0 | BK20: =VLOOKUP($W20,$B$3:$I$23,COLUMN()-(COLUMN($BI$2)-1),FALSE)*D$33/SUM($C$33:$I$33)*VLOOKUP($W20,$B$3:$BI$23,(COLUMN($BI$2)-1),FALSE) -> 2.021860714 | BL20: =VLOOKUP($W20,$B$3:$I$23,COLUMN()-(COLUMN($BI$2)-1),FALSE)*E$33/SUM($C$33:$I$33)*VLOOKUP($W20,$B$3:$BI$23,(COLUMN($BI$2)-1),FALSE) -> 0 | BM20: =VLOOKUP($W20,$B$3:$I$23,COLUMN()-(COLUMN($BI$2)-1),FALSE)*F$33/SUM($C$33:$I$33)*VLOOKUP($W20,$B$3:$BI$23,(COLUMN($BI$2)-1),FALSE) -> 0 | BN20: =VLOOKUP($W20,$B$3:$I$23,COLUMN()-(COLUMN($BI$2)-1),FALSE)*G$33/SUM($C$33:$I$33)*VLOOKUP($W20,$B$3:$BI$23,(COLUMN($BI$2)-1),FALSE) -> 0.21632675 | BO20: =VLOOKUP($W20,$B$3:$I$23,COLUMN()-(COLUMN($BI$2)-1),FALSE)*H$33/SUM($C$33:$I$33)*VLOOKUP($W20,$B$3:$BI$23,(COLUMN($BI$2)-1),FALSE) -> 0.3836493885 | BP20: =VLOOKUP($W20,$B$3:$I$23,COLUMN()-(COLUMN($BI$2)-1),FALSE)*I$33/SUM($C$33:$I$33)*VLOOKUP($W20,$B$3:$BI$23,(COLUMN($BI$2)-1),FALSE) -> 0
A21: 12 | B21: Turkey | D21: ='Trade 2008'!F23 -> 4.241834555 | G21: ='Environment 2008'!K23 -> 5.748468457 | H21: ='Security 2008'!J24 -> 3.953714054 | J21: 4.648005688 | K21: 12 | M21: =SUM(IF(ROUND(J21,1)<ROUND($J$3:$J$23,1),1))+1 -> 12 | O21: Turkey | P21: =(SUM(IF($J21<$J$3:$J$25*(1-BF$3:BF$25),1))+1)*(1-BF21) ->  | Q21: =(SUM(IF($J21<$J$3:$J$25*(1-BG$3:BG$25),1))+1)*(1-BG21) ->  | R21: =(SUM(IF(ROUND($J21,1)<ROUND($J$3:$J$25,1)*(1-BF$3:BF$25),1))+1)*(1-BF21) ->  | S21: =(SUM(IF(ROUND($J21,1)<ROUND($J$3:$J$25,1)*(1-BG$3:BG$25),1))+1)*(1-BG21) ->  | T21: Turkey | U21: 19 | V21: 19 | W21: South Korea | X21: 2.188279631 | Y21: 0 | Z21: -19 | BF21: 1 | BG21: 1 | BI21: =ABS(SUM($C21:$I21*$C$33:$I$33)/SUM(IF($C21:$I21>0,$C21:$I21*$C$33:$I$33))) -> 1 | BJ21: =VLOOKUP($W21,$B$3:$I$23,COLUMN()-(COLUMN($BI$2)-1),FALSE)*C$33/SUM($C$33:$I$33)*VLOOKUP($W21,$B$3:$BI$23,(COLUMN($BI$2)-1),FALSE) -> 0 | BK21: =VLOOKUP($W21,$B$3:$I$23,COLUMN()-(COLUMN($BI$2)-1),FALSE)*D$33/SUM($C$33:$I$33)*VLOOKUP($W21,$B$3:$BI$23,(COLUMN($BI$2)-1),FALSE) -> 0.3644383389 | BL21: =VLOOKUP($W21,$B$3:$I$23,COLUMN()-(COLUMN($BI$2)-1),FALSE)*E$33/SUM($C$33:$I$33)*VLOOKUP($W21,$B$3:$BI$23,(COLUMN($BI$2)-1),FALSE) -> 0 | BM21: =VLOOKUP($W21,$B$3:$I$23,COLUMN()-(COLUMN($BI$2)-1),FALSE)*F$33/SUM($C$33:$I$33)*VLOOKUP($W21,$B$3:$BI$23,(COLUMN($BI$2)-1),FALSE) -> 0 | BN21: =VLOOKUP($W21,$B$3:$I$23,COLUMN()-(COLUMN($BI$2)-1),FALSE)*G$33/SUM($C$33:$I$33)*VLOOKUP($W21,$B$3:$BI$23,(COLUMN($BI$2)-1),FALSE) -> 1.136777052 | BO21: =VLOOKUP($W21,$B$3:$I$23,COLUMN()-(COLUMN($BI$2)-1),FALSE)*H$33/SUM($C$33:$I$33)*VLOOKUP($W21,$B$3:$BI$23,(COLUMN($BI$2)-1),FALSE) -> 0.6870642404 | BP21: =VLOOKUP($W21,$B$3:$I$23,COLUMN()-(COLUMN($BI$2)-1),FALSE)*I$33/SUM($C$33:$I$33)*VLOOKUP($W21,$B$3:$BI$23,(COLUMN($BI$2)-1),FALSE) -> 0
A22: 1 | B22: United Kingdom | D22: ='Trade 2008'!F24 -> 5.342059626 | G22: ='Environment 2008'!K24 -> 7.128069639 | H22: ='Security 2008'!J25 -> 11.61199061 | J22: 8.02737329 | K22: 1 | M22: =SUM(IF(ROUND(J22,1)<ROUND($J$3:$J$23,1),1))+1 -> 1 | O22: United Kingdom | P22: =(SUM(IF($J22<$J$3:$J$25*(1-BF$3:BF$25),1))+1)*(1-BF22) ->  | Q22: =(SUM(IF($J22<$J$3:$J$25*(1-BG$3:BG$25),1))+1)*(1-BG22) ->  | R22: =(SUM(IF(ROUND($J22,1)<ROUND($J$3:$J$25,1)*(1-BF$3:BF$25),1))+1)*(1-BF22) ->  | S22: =(SUM(IF(ROUND($J22,1)<ROUND($J$3:$J$25,1)*(1-BG$3:BG$25),1))+1)*(1-BG22) ->  | T22: United Kingdom | U22: 20 | V22: 20 | W22: India | X22: 1.025241933 | Y22: 0 | Z22: -20 | BC22: 264.9464832 | BD22: 232.8736891 | BF22: 1 | BG22: 1 | BI22: =ABS(SUM($C22:$I22*$C$33:$I$33)/SUM(IF($C22:$I22>0,$C22:$I22*$C$33:$I$33))) -> 1 | BJ22: =VLOOKUP($W22,$B$3:$I$23,COLUMN()-(COLUMN($BI$2)-1),FALSE)*C$33/SUM($C$33:$I$33)*VLOOKUP($W22,$B$3:$BI$23,(COLUMN($BI$2)-1),FALSE) -> 0 | BK22: =VLOOKUP($W22,$B$3:$I$23,COLUMN()-(COLUMN($BI$2)-1),FALSE)*D$33/SUM($C$33:$I$33)*VLOOKUP($W22,$B$3:$BI$23,(COLUMN($BI$2)-1),FALSE) -> -0.7170825605 | BL22: =VLOOKUP($W22,$B$3:$I$23,COLUMN()-(COLUMN($BI$2)-1),FALSE)*E$33/SUM($C$33:$I$33)*VLOOKUP($W22,$B$3:$BI$23,(COLUMN($BI$2)-1),FALSE) -> 0 | BM22: =VLOOKUP($W22,$B$3:$I$23,COLUMN()-(COLUMN($BI$2)-1),FALSE)*F$33/SUM($C$33:$I$33)*VLOOKUP($W22,$B$3:$BI$23,(COLUMN($BI$2)-1),FALSE) -> 0 | BN22: =VLOOKUP($W22,$B$3:$I$23,COLUMN()-(COLUMN($BI$2)-1),FALSE)*G$33/SUM($C$33:$I$33)*VLOOKUP($W22,$B$3:$BI$23,(COLUMN($BI$2)-1),FALSE) -> 0.8048427728 | BO22: =VLOOKUP($W22,$B$3:$I$23,COLUMN()-(COLUMN($BI$2)-1),FALSE)*H$33/SUM($C$33:$I$33)*VLOOKUP($W22,$B$3:$BI$23,(COLUMN($BI$2)-1),FALSE) -> 0.2203991605 | BP22: =VLOOKUP($W22,$B$3:$I$23,COLUMN()-(COLUMN($BI$2)-1),FALSE)*I$33/SUM($C$33:$I$33)*VLOOKUP($W22,$B$3:$BI$23,(COLUMN($BI$2)-1),FALSE) -> 0
A23: 8 | B23: United States | D23: ='Trade 2008'!F25 -> 7.955997246 | G23: ='Environment 2008'!K25 -> 3.764317373 | H23: ='Security 2008'!J26 -> 6.607569187 | J23: 6.109294602 | K23: 8 | M23: =SUM(IF(ROUND(J23,1)<ROUND($J$3:$J$23,1),1))+1 -> 8 | O23: United States | P23: =(SUM(IF($J23<$J$3:$J$25*(1-BF$3:BF$25),1))+1)*(1-BF23) ->  | Q23: =(SUM(IF($J23<$J$3:$J$25*(1-BG$3:BG$25),1))+1)*(1-BG23) ->  | R23: =(SUM(IF(ROUND($J23,1)<ROUND($J$3:$J$25,1)*(1-BF$3:BF$25),1))+1)*(1-BF23) ->  | S23: =(SUM(IF(ROUND($J23,1)<ROUND($J$3:$J$25,1)*(1-BG$3:BG$25),1))+1)*(1-BG23) ->  | T23: United States | U23: 21 | V23: 21 | W23: China | X23: -0.5690290278 | Y23: 0 | Z23: -21 | BF23: 1 | BG23: 1 | BI23: =ABS(SUM($C23:$I23*$C$33:$I$33)/SUM(IF($C23:$I23>0,$C23:$I23*$C$33:$I$33))) -> 1 | BJ23: =VLOOKUP($W23,$B$3:$I$23,COLUMN()-(COLUMN($BI$2)-1),FALSE)*C$33/SUM($C$33:$I$33)*VLOOKUP($W23,$B$3:$BI$23,(COLUMN($BI$2)-1),FALSE) -> 0 | BK23: =VLOOKUP($W23,$B$3:$I$23,COLUMN()-(COLUMN($BI$2)-1),FALSE)*D$33/SUM($C$33:$I$33)*VLOOKUP($W23,$B$3:$BI$23,(COLUMN($BI$2)-1),FALSE) -> -0.7001416277 | BL23: =VLOOKUP($W23,$B$3:$I$23,COLUMN()-(COLUMN($BI$2)-1),FALSE)*E$33/SUM($C$33:$I$33)*VLOOKUP($W23,$B$3:$BI$23,(COLUMN($BI$2)-1),FALSE) -> 0 | BM23: =VLOOKUP($W23,$B$3:$I$23,COLUMN()-(COLUMN($BI$2)-1),FALSE)*F$33/SUM($C$33:$I$33)*VLOOKUP($W23,$B$3:$BI$23,(COLUMN($BI$2)-1),FALSE) -> 0 | BN23: =VLOOKUP($W23,$B$3:$I$23,COLUMN()-(COLUMN($BI$2)-1),FALSE)*G$33/SUM($C$33:$I$33)*VLOOKUP($W23,$B$3:$BI$23,(COLUMN($BI$2)-1),FALSE) -> 0.4646940935 | BO23: =VLOOKUP($W23,$B$3:$I$23,COLUMN()-(COLUMN($BI$2)-1),FALSE)*H$33/SUM($C$33:$I$33)*VLOOKUP($W23,$B$3:$BI$23,(COLUMN($BI$2)-1),FALSE) -> 0.1043349343 | BP23: =VLOOKUP($W23,$B$3:$I$23,COLUMN()-(COLUMN($BI$2)-1),FALSE)*I$33/SUM($C$33:$I$33)*VLOOKUP($W23,$B$3:$BI$23,(COLUMN($BI$2)-1),FALSE) -> 0
B24: EU | D24: ='Trade 2008'!G32 -> 0 | G24: ='Environment 2008'!K32 -> 0 | H24: ='Security 2008'!J27 ->  | P24: =(SUM(IF($J24<$J$3:$J$25*(1-BF$3:BF$25),1))+1)*(1-BF24) ->  | R24: =(SUM(IF(ROUND($J24,1)<ROUND($J$3:$J$25,1)*(1-BF$3:BF$25),1))+1)*(1-BF24) ->  | T24: EU | BG24: 1
B25: Europe | D25: ='Trade 2008'!G33 -> 0 | G25: ='Environment 2008'!K33 -> 0 | H25: ='Security 2008'!J28 ->  | P25: =(SUM(IF($J25<$J$3:$J$25*(1-BF$3:BF$25),1))+1)*(1-BF25) ->  | Q25: =(SUM(IF($J25<$J$3:$J$25*(1-BG$3:BG$25),1))+1)*(1-BG25) ->  | R25: =(SUM(IF(ROUND($J25,1)<ROUND($J$3:$J$25,1)*(1-BF$3:BF$25),1))+1)*(1-BF25) ->  | S25: =(SUM(IF(ROUND($J25,1)<ROUND($J$3:$J$25,1)*(1-BG$3:BG$25),1))+1)*(1-BG25) ->  | T25: Europe | BF25: 1
R26: =(SUM(IF(#REF!<$J$3:$J$25*(1-BF$3:BF$25),1))+1)*(1-#REF!) -> 
B27: Average | C27: =AVERAGE(C3:C23) ->  | D27: 3.866252391 | G27: 5.482311375 | H27: 5.28466408 | J27: 4.877742616 | U27: 1
B28: Standard dev. | C28: =STDEVP(C3:C23) ->  | D28: 4.247796271 | G28: 1.732398462 | H28: 3.356554487 | J28: 2.181458221 | U28: 2
U29: 3
B30: Lowest | C30: =MIN(C3:C23) -> 0 | D30: -9.115849513 | E30: 0 | F30: 0 | G30: 0.6489802501 | H30: 1.150948166 | I30: 0 | J30: -0.5690290278 | U30: 4
B31: Highest | C31: =MAX(C3:C23) -> 0 | D31: 7.955997246 | E31: 0 | F31: 0 | G31: 8.033102024 | H31: 12.31057361 | I31: 0 | J31: 8.02737329 | U31: 5
U32: 6
B33: Weight | C33: 0 | D33: 1 | E33: 0 | F33: 0 | G33: 1 | H33: 1 | I33: 0 | U33: 7
U34: 8
U35: 9
U38: 1
U39: 2
U40: 3
U41: 4
U42: 5
U43: 6
U44: 7
A67: =INT(RIGHT(CELL("filename",A1),4)) -> 2008

Sheet Index 2007
A1: =Index_long_name&" "&Region_name&IF(Region_name="",""," ")&Year -> Global Citizenship Index 2007 | V1: Standings | Y1: One-year change, latest methodology | AB1: Standings/EU as one | AM1: Standings/Europe as one | BF1: EU countries | BG1: Europe countries
A2: Rank | B2: Country | C2: Aid | D2: Trade | E2: Investment | F2: Migration | G2: Environment | H2: Security | I2: Technology | J2: Overall (Average) | K2: True rank | L2: 2010-11 score change | M2: Rank | N2: 2009 rank (2010 method) | P2: True rank/EU | Q2: True rank/Europe | R2: Rank/EU | S2: Rank/Europe | W2: Country | X2: Score | Y2: Score | Z2: Rank | AC2: Country | AD2: Aid | AE2: Trade | AF2: Investment | AG2: Migration | AH2: Environment | AI2: Security | AJ2: Technology | AK2: Overall (Average) | AN2: Country | AO2: Aid | AP2: Trade | AQ2: Investment | AR2: Migration | AS2: Environment | AT2: Security | AU2: Technology | AV2: Overall (Average) | BC2: PPP GDP | BD2: Exchange-rate GDP | BI2: Graphing scale factor to deal with negative scores, alpha by country
A3: =M3 -> 2 | B3: Australia | D3: ='Trade 2007'!F5 -> 6.851222213 | G3: ='Environment 2007'!K5 -> 2.714487314 | H3: ='Security 2007'!J6 -> 12.9148001 | J3: =SUMPRODUCT(C3:I3,$C$33:$I$33)/SUM($C$33:$I$33) -> 7.49350321 | K3: =COUNTIF($J$3:$J$23,">"&J3)+1 -> 2 | M3: =SUM(IF(ROUND(J3,1)<ROUND($J$3:$J$23,1),1))+1 -> 2 | O3: =B3 -> Australia | P3: =(SUM(IF($J3<$J$3:$J$25*(1-BF$3:BF$25),1))+1)*(1-BF3) ->  | Q3: =(SUM(IF($J3<$J$3:$J$25*(1-BG$3:BG$25),1))+1)*(1-BG3) ->  | R3: =(SUM(IF(ROUND($J3,1)<ROUND($J$3:$J$25,1)*(1-BF$3:BF$25),1))+1)*(1-BF3) ->  | S3: =(SUM(IF(ROUND($J3,1)<ROUND($J$3:$J$25,1)*(1-BG$3:BG$25),1))+1)*(1-BG3) ->  | T3: =B3 -> Australia | U3: =ROW(U3)-ROW($U$2) -> 1 | V3: =VLOOKUP(U3,$K$3:$O$23,3,FALSE) -> 1 | W3: =VLOOKUP(U3,$K$3:$O$23,5,FALSE) -> United Kingdom | X3: =VLOOKUP(W3,$B$3:$O$23,9,FALSE) -> 8.310681933 | Y3: =VLOOKUP(W3,$B$3:$O$23,11,FALSE) -> 0 | Z3: =VLOOKUP(U3,$K$3:$O$23,4,FALSE)-V3 -> -1 | AB3: =VLOOKUP(U27,$P$3:$U$25,3,FALSE) ->  | AC3: =VLOOKUP(U27,$P$3:$U$25,5,FALSE) ->  | AD3: =VLOOKUP($AC3,$B$3:$O$25,2,FALSE) ->  | AE3: =VLOOKUP($AC3,$B$3:$O$25,3,FALSE) ->  | AF3: =VLOOKUP($AC3,$B$3:$O$25,4,FALSE) ->  | AG3: =VLOOKUP($AC3,$B$3:$O$25,5,FALSE) ->  | AH3: =VLOOKUP($AC3,$B$3:$O$25,6,FALSE) ->  | AI3: =VLOOKUP($AC3,$B$3:$O$25,7,FALSE) ->  | AJ3: =VLOOKUP($AC3,$B$3:$O$25,8,FALSE) ->  | AK3: =VLOOKUP($AC3,$B$3:$O$25,9,FALSE) ->  | AM3: =VLOOKUP(U38,$Q$3:$V$25,3,FALSE) ->  | AN3: =VLOOKUP(U38,$Q$3:$V$25,4,FALSE) ->  | AO3: =VLOOKUP($AN3,$B$3:$O$25,2,FALSE) ->  | AP3: =VLOOKUP($AN3,$B$3:$O$25,3,FALSE) ->  | AQ3: =VLOOKUP($AN3,$B$3:$O$25,4,FALSE) ->  | AR3: =VLOOKUP($AN3,$B$3:$O$25,5,FALSE) ->  | AS3: =VLOOKUP($AN3,$B$3:$O$25,6,FALSE) ->  | AT3: =VLOOKUP($AN3,$B$3:$O$25,7,FALSE) ->  | AU3: =VLOOKUP($AN3,$B$3:$O$25,8,FALSE) ->  | AV3: =VLOOKUP(AN3,$B$3:$O$25,9,FALSE) ->  | BC3: 864.9146368 | BD3: 924.8431145 | BF3: 0 | BG3: 0 | BI3: =ABS(SUM($C3:$I3*$C$33:$I$33)/SUM(IF($C3:$I3>0,$C3:$I3*$C$33:$I$33))) -> 1 | BJ3: =VLOOKUP($W3,$B$3:$I$23,COLUMN()-(COLUMN($BI$2)-1),FALSE)*C$33/SUM($C$33:$I$33)*VLOOKUP($W3,$B$3:$BI$23,(COLUMN($BI$2)-1),FALSE) -> 0 | BK3: =VLOOKUP($W3,$B$3:$I$23,COLUMN()-(COLUMN($BI$2)-1),FALSE)*D$33/SUM($C$33:$I$33)*VLOOKUP($W3,$B$3:$BI$23,(COLUMN($BI$2)-1),FALSE) -> 1.768065634 | BL3: =VLOOKUP($W3,$B$3:$I$23,COLUMN()-(COLUMN($BI$2)-1),FALSE)*E$33/SUM($C$33:$I$33)*VLOOKUP($W3,$B$3:$BI$23,(COLUMN($BI$2)-1),FALSE) -> 0 | BM3: =VLOOKUP($W3,$B$3:$I$23,COLUMN()-(COLUMN($BI$2)-1),FALSE)*F$33/SUM($C$33:$I$33)*VLOOKUP($W3,$B$3:$BI$23,(COLUMN($BI$2)-1),FALSE) -> 0 | BN3: =VLOOKUP($W3,$B$3:$I$23,COLUMN()-(COLUMN($BI$2)-1),FALSE)*G$33/SUM($C$33:$I$33)*VLOOKUP($W3,$B$3:$BI$23,(COLUMN($BI$2)-1),FALSE) -> 2.454352818 | BO3: =VLOOKUP($W3,$B$3:$I$23,COLUMN()-(COLUMN($BI$2)-1),FALSE)*H$33/SUM($C$33:$I$33)*VLOOKUP($W3,$B$3:$BI$23,(COLUMN($BI$2)-1),FALSE) -> 4.088263481 | BP3: =VLOOKUP($W3,$B$3:$I$23,COLUMN()-(COLUMN($BI$2)-1),FALSE)*I$33/SUM($C$33:$I$33)*VLOOKUP($W3,$B$3:$BI$23,(COLUMN($BI$2)-1),FALSE) -> 0
A4: 15 | B4: Brazil | D4: ='Trade 2007'!F6 -> 2.705974066 | G4: ='Environment 2007'!K6 -> 6.923792921 | H4: ='Security 2007'!J7 -> 2.34008741 | J4: 3.989951465 | K4: 15 | M4: =SUM(IF(ROUND(J4,1)<ROUND($J$3:$J$23,1),1))+1 -> 15 | O4: Brazil | P4: =(SUM(IF($J4<$J$3:$J$25*(1-BF$3:BF$25),1))+1)*(1-BF4) ->  | Q4: =(SUM(IF($J4<$J$3:$J$25*(1-BG$3:BG$25),1))+1)*(1-BG4) ->  | R4: =(SUM(IF(ROUND($J4,1)<ROUND($J$3:$J$25,1)*(1-BF$3:BF$25),1))+1)*(1-BF4) ->  | S4: =(SUM(IF(ROUND($J4,1)<ROUND($J$3:$J$25,1)*(1-BG$3:BG$25),1))+1)*(1-BG4) ->  | T4: Brazil | U4: 2 | V4: 2 | W4: Australia | X4: 7.49350321 | Y4: =VLOOKUP(W4,$B$3:$O$23,11,FALSE) -> 0 | Z4: =VLOOKUP(U4,$K$3:$O$23,4,FALSE)-V4 -> -2 | BC4: 324.6757642 | BD4: 381.0837463 | BF4: 1 | BG4: 1 | BI4: =ABS(SUM($C4:$I4*$C$33:$I$33)/SUM(IF($C4:$I4>0,$C4:$I4*$C$33:$I$33))) -> 1 | BJ4: =VLOOKUP($W4,$B$3:$I$23,COLUMN()-(COLUMN($BI$2)-1),FALSE)*C$33/SUM($C$33:$I$33)*VLOOKUP($W4,$B$3:$BI$23,(COLUMN($BI$2)-1),FALSE) -> 0 | BK4: =VLOOKUP($W4,$B$3:$I$23,COLUMN()-(COLUMN($BI$2)-1),FALSE)*D$33/SUM($C$33:$I$33)*VLOOKUP($W4,$B$3:$BI$23,(COLUMN($BI$2)-1),FALSE) -> 2.283740738 | BL4: =VLOOKUP($W4,$B$3:$I$23,COLUMN()-(COLUMN($BI$2)-1),FALSE)*E$33/SUM($C$33:$I$33)*VLOOKUP($W4,$B$3:$BI$23,(COLUMN($BI$2)-1),FALSE) -> 0 | BM4: =VLOOKUP($W4,$B$3:$I$23,COLUMN()-(COLUMN($BI$2)-1),FALSE)*F$33/SUM($C$33:$I$33)*VLOOKUP($W4,$B$3:$BI$23,(COLUMN($BI$2)-1),FALSE) -> 0 | BN4: =VLOOKUP($W4,$B$3:$I$23,COLUMN()-(COLUMN($BI$2)-1),FALSE)*G$33/SUM($C$33:$I$33)*VLOOKUP($W4,$B$3:$BI$23,(COLUMN($BI$2)-1),FALSE) -> 0.9048291045 | BO4: =VLOOKUP($W4,$B$3:$I$23,COLUMN()-(COLUMN($BI$2)-1),FALSE)*H$33/SUM($C$33:$I$33)*VLOOKUP($W4,$B$3:$BI$23,(COLUMN($BI$2)-1),FALSE) -> 4.304933368 | BP4: =VLOOKUP($W4,$B$3:$I$23,COLUMN()-(COLUMN($BI$2)-1),FALSE)*I$33/SUM($C$33:$I$33)*VLOOKUP($W4,$B$3:$BI$23,(COLUMN($BI$2)-1),FALSE) -> 0
A5: 6 | B5: Canada | D5: ='Trade 2007'!F7 -> 7.869563925 | G5: ='Environment 2007'!K7 -> 4.848369846 | H5: ='Security 2007'!J8 -> 7.631383293 | J5: 6.783105688 | K5: 6 | M5: =SUM(IF(ROUND(J5,1)<ROUND($J$3:$J$23,1),1))+1 -> 6 | O5: Canada | P5: =(SUM(IF($J5<$J$3:$J$25*(1-BF$3:BF$25),1))+1)*(1-BF5) ->  | Q5: =(SUM(IF($J5<$J$3:$J$25*(1-BG$3:BG$25),1))+1)*(1-BG5) ->  | R5: =(SUM(IF(ROUND($J5,1)<ROUND($J$3:$J$25,1)*(1-BF$3:BF$25),1))+1)*(1-BF5) ->  | S5: =(SUM(IF(ROUND($J5,1)<ROUND($J$3:$J$25,1)*(1-BG$3:BG$25),1))+1)*(1-BG5) ->  | T5: Canada | U5: 3 | V5: 3 | W5: Netherlands | X5: 7.382393457 | BC5: 391.7684736 | BD5: 471.1610778 | BF5: 1 | BG5: 1 | BI5: =ABS(SUM($C5:$I5*$C$33:$I$33)/SUM(IF($C5:$I5>0,$C5:$I5*$C$33:$I$33))) -> 1 | BJ5: =VLOOKUP($W5,$B$3:$I$23,COLUMN()-(COLUMN($BI$2)-1),FALSE)*C$33/SUM($C$33:$I$33)*VLOOKUP($W5,$B$3:$BI$23,(COLUMN($BI$2)-1),FALSE) -> 0 | BK5: =VLOOKUP($W5,$B$3:$I$23,COLUMN()-(COLUMN($BI$2)-1),FALSE)*D$33/SUM($C$33:$I$33)*VLOOKUP($W5,$B$3:$BI$23,(COLUMN($BI$2)-1),FALSE) -> 1.898264984 | BL5: =VLOOKUP($W5,$B$3:$I$23,COLUMN()-(COLUMN($BI$2)-1),FALSE)*E$33/SUM($C$33:$I$33)*VLOOKUP($W5,$B$3:$BI$23,(COLUMN($BI$2)-1),FALSE) -> 0 | BM5: =VLOOKUP($W5,$B$3:$I$23,COLUMN()-(COLUMN($BI$2)-1),FALSE)*F$33/SUM($C$33:$I$33)*VLOOKUP($W5,$B$3:$BI$23,(COLUMN($BI$2)-1),FALSE) -> 0 | BN5: =VLOOKUP($W5,$B$3:$I$23,COLUMN()-(COLUMN($BI$2)-1),FALSE)*G$33/SUM($C$33:$I$33)*VLOOKUP($W5,$B$3:$BI$23,(COLUMN($BI$2)-1),FALSE) -> 2.296595158 | BO5: =VLOOKUP($W5,$B$3:$I$23,COLUMN()-(COLUMN($BI$2)-1),FALSE)*H$33/SUM($C$33:$I$33)*VLOOKUP($W5,$B$3:$BI$23,(COLUMN($BI$2)-1),FALSE) -> 3.187533315 | BP5: =VLOOKUP($W5,$B$3:$I$23,COLUMN()-(COLUMN($BI$2)-1),FALSE)*I$33/SUM($C$33:$I$33)*VLOOKUP($W5,$B$3:$BI$23,(COLUMN($BI$2)-1),FALSE) -> 0
A6: 21 | B6: China | D6: ='Trade 2007'!F8 -> -9.0167481 | G6: ='Environment 2007'!K8 -> 6.297738665 | H6: ='Security 2007'!J9 -> 1.329110341 | J6: -0.4632996979 | K6: 21 | M6: =SUM(IF(ROUND(J6,1)<ROUND($J$3:$J$23,1),1))+1 -> 21 | O6: China | P6: =(SUM(IF($J6<$J$3:$J$25*(1-BF$3:BF$25),1))+1)*(1-BF6) ->  | Q6: =(SUM(IF($J6<$J$3:$J$25*(1-BG$3:BG$25),1))+1)*(1-BG6) ->  | R6: =(SUM(IF(ROUND($J6,1)<ROUND($J$3:$J$25,1)*(1-BF$3:BF$25),1))+1)*(1-BF6) ->  | S6: =(SUM(IF(ROUND($J6,1)<ROUND($J$3:$J$25,1)*(1-BG$3:BG$25),1))+1)*(1-BG6) ->  | T6: China | U6: 4 | V6: 4 | W6: France | X6: 6.967239447 | Y6: =VLOOKUP(W6,$B$3:$O$23,11,FALSE) -> 0 | Z6: =VLOOKUP(U6,$K$3:$O$23,4,FALSE)-V6 -> -4 | BC6: 1275.638841 | BD6: 1336.067752 | BF6: 0 | BG6: 0 | BI6: =ABS(SUM($C6:$I6*$C$33:$I$33)/SUM(IF($C6:$I6>0,$C6:$I6*$C$33:$I$33))) -> 0.1822376571 | BJ6: =VLOOKUP($W6,$B$3:$I$23,COLUMN()-(COLUMN($BI$2)-1),FALSE)*C$33/SUM($C$33:$I$33)*VLOOKUP($W6,$B$3:$BI$23,(COLUMN($BI$2)-1),FALSE) -> 0 | BK6: =VLOOKUP($W6,$B$3:$I$23,COLUMN()-(COLUMN($BI$2)-1),FALSE)*D$33/SUM($C$33:$I$33)*VLOOKUP($W6,$B$3:$BI$23,(COLUMN($BI$2)-1),FALSE) -> 1.785428224 | BL6: =VLOOKUP($W6,$B$3:$I$23,COLUMN()-(COLUMN($BI$2)-1),FALSE)*E$33/SUM($C$33:$I$33)*VLOOKUP($W6,$B$3:$BI$23,(COLUMN($BI$2)-1),FALSE) -> 0 | BM6: =VLOOKUP($W6,$B$3:$I$23,COLUMN()-(COLUMN($BI$2)-1),FALSE)*F$33/SUM($C$33:$I$33)*VLOOKUP($W6,$B$3:$BI$23,(COLUMN($BI$2)-1),FALSE) -> 0 | BN6: =VLOOKUP($W6,$B$3:$I$23,COLUMN()-(COLUMN($BI$2)-1),FALSE)*G$33/SUM($C$33:$I$33)*VLOOKUP($W6,$B$3:$BI$23,(COLUMN($BI$2)-1),FALSE) -> 2.205982334 | BO6: =VLOOKUP($W6,$B$3:$I$23,COLUMN()-(COLUMN($BI$2)-1),FALSE)*H$33/SUM($C$33:$I$33)*VLOOKUP($W6,$B$3:$BI$23,(COLUMN($BI$2)-1),FALSE) -> 2.975828889 | BP6: =VLOOKUP($W6,$B$3:$I$23,COLUMN()-(COLUMN($BI$2)-1),FALSE)*I$33/SUM($C$33:$I$33)*VLOOKUP($W6,$B$3:$BI$23,(COLUMN($BI$2)-1),FALSE) -> 0
A7: 4 | B7: France | D7: ='Trade 2007'!F9 -> 5.356284673 | G7: ='Environment 2007'!K9 -> 6.617947003 | H7: ='Security 2007'!J10 -> 8.927486666 | J7: 6.967239447 | K7: 4 | M7: =SUM(IF(ROUND(J7,1)<ROUND($J$3:$J$23,1),1))+1 -> 4 | O7: France | P7: =(SUM(IF($J7<$J$3:$J$25*(1-BF$3:BF$25),1))+1)*(1-BF7) ->  | Q7: =(SUM(IF($J7<$J$3:$J$25*(1-BG$3:BG$25),1))+1)*(1-BG7) ->  | R7: =(SUM(IF(ROUND($J7,1)<ROUND($J$3:$J$25,1)*(1-BF$3:BF$25),1))+1)*(1-BF7) ->  | S7: =(SUM(IF(ROUND($J7,1)<ROUND($J$3:$J$25,1)*(1-BG$3:BG$25),1))+1)*(1-BG7) ->  | T7: France | U7: 5 | V7: 4 | W7: Sweden | X7: 6.956750173 | Y7: 0 | Z7: -4 | BF7: 1 | BG7: 1 | BI7: =ABS(SUM($C7:$I7*$C$33:$I$33)/SUM(IF($C7:$I7>0,$C7:$I7*$C$33:$I$33))) -> 1 | BJ7: =VLOOKUP($W7,$B$3:$I$23,COLUMN()-(COLUMN($BI$2)-1),FALSE)*C$33/SUM($C$33:$I$33)*VLOOKUP($W7,$B$3:$BI$23,(COLUMN($BI$2)-1),FALSE) -> 0 | BK7: =VLOOKUP($W7,$B$3:$I$23,COLUMN()-(COLUMN($BI$2)-1),FALSE)*D$33/SUM($C$33:$I$33)*VLOOKUP($W7,$B$3:$BI$23,(COLUMN($BI$2)-1),FALSE) -> 1.836413475 | BL7: =VLOOKUP($W7,$B$3:$I$23,COLUMN()-(COLUMN($BI$2)-1),FALSE)*E$33/SUM($C$33:$I$33)*VLOOKUP($W7,$B$3:$BI$23,(COLUMN($BI$2)-1),FALSE) -> 0 | BM7: =VLOOKUP($W7,$B$3:$I$23,COLUMN()-(COLUMN($BI$2)-1),FALSE)*F$33/SUM($C$33:$I$33)*VLOOKUP($W7,$B$3:$BI$23,(COLUMN($BI$2)-1),FALSE) -> 0 | BN7: =VLOOKUP($W7,$B$3:$I$23,COLUMN()-(COLUMN($BI$2)-1),FALSE)*G$33/SUM($C$33:$I$33)*VLOOKUP($W7,$B$3:$BI$23,(COLUMN($BI$2)-1),FALSE) -> 2.456148975 | BO7: =VLOOKUP($W7,$B$3:$I$23,COLUMN()-(COLUMN($BI$2)-1),FALSE)*H$33/SUM($C$33:$I$33)*VLOOKUP($W7,$B$3:$BI$23,(COLUMN($BI$2)-1),FALSE) -> 2.664187722 | BP7: =VLOOKUP($W7,$B$3:$I$23,COLUMN()-(COLUMN($BI$2)-1),FALSE)*I$33/SUM($C$33:$I$33)*VLOOKUP($W7,$B$3:$BI$23,(COLUMN($BI$2)-1),FALSE) -> 0
A8: 9 | B8: Germany | D8: ='Trade 2007'!F10 -> 5.215189123 | G8: ='Environment 2007'!K10 -> 6.609751964 | H8: ='Security 2007'!J11 -> 5.89730811 | J8: 5.907416399 | K8: 9 | M8: =SUM(IF(ROUND(J8,1)<ROUND($J$3:$J$23,1),1))+1 -> 9 | O8: Germany | P8: =(SUM(IF($J8<$J$3:$J$25*(1-BF$3:BF$25),1))+1)*(1-BF8) ->  | Q8: =(SUM(IF($J8<$J$3:$J$25*(1-BG$3:BG$25),1))+1)*(1-BG8) ->  | R8: =(SUM(IF(ROUND($J8,1)<ROUND($J$3:$J$25,1)*(1-BF$3:BF$25),1))+1)*(1-BF8) ->  | S8: =(SUM(IF(ROUND($J8,1)<ROUND($J$3:$J$25,1)*(1-BG$3:BG$25),1))+1)*(1-BG8) ->  | T8: Germany | U8: 6 | V8: 6 | W8: Canada | X8: 6.783105688 | Y8: 0 | Z8: -6 | BC8: 208.5665341 | BD8: 309.5961928 | BF8: 1 | BG8: 1 | BI8: =ABS(SUM($C8:$I8*$C$33:$I$33)/SUM(IF($C8:$I8>0,$C8:$I8*$C$33:$I$33))) -> 1 | BJ8: =VLOOKUP($W8,$B$3:$I$23,COLUMN()-(COLUMN($BI$2)-1),FALSE)*C$33/SUM($C$33:$I$33)*VLOOKUP($W8,$B$3:$BI$23,(COLUMN($BI$2)-1),FALSE) -> 0 | BK8: =VLOOKUP($W8,$B$3:$I$23,COLUMN()-(COLUMN($BI$2)-1),FALSE)*D$33/SUM($C$33:$I$33)*VLOOKUP($W8,$B$3:$BI$23,(COLUMN($BI$2)-1),FALSE) -> 2.623187975 | BL8: =VLOOKUP($W8,$B$3:$I$23,COLUMN()-(COLUMN($BI$2)-1),FALSE)*E$33/SUM($C$33:$I$33)*VLOOKUP($W8,$B$3:$BI$23,(COLUMN($BI$2)-1),FALSE) -> 0 | BM8: =VLOOKUP($W8,$B$3:$I$23,COLUMN()-(COLUMN($BI$2)-1),FALSE)*F$33/SUM($C$33:$I$33)*VLOOKUP($W8,$B$3:$BI$23,(COLUMN($BI$2)-1),FALSE) -> 0 | BN8: =VLOOKUP($W8,$B$3:$I$23,COLUMN()-(COLUMN($BI$2)-1),FALSE)*G$33/SUM($C$33:$I$33)*VLOOKUP($W8,$B$3:$BI$23,(COLUMN($BI$2)-1),FALSE) -> 1.616123282 | BO8: =VLOOKUP($W8,$B$3:$I$23,COLUMN()-(COLUMN($BI$2)-1),FALSE)*H$33/SUM($C$33:$I$33)*VLOOKUP($W8,$B$3:$BI$23,(COLUMN($BI$2)-1),FALSE) -> 2.543794431 | BP8: =VLOOKUP($W8,$B$3:$I$23,COLUMN()-(COLUMN($BI$2)-1),FALSE)*I$33/SUM($C$33:$I$33)*VLOOKUP($W8,$B$3:$BI$23,(COLUMN($BI$2)-1),FALSE) -> 0
A9: 20 | B9: India | D9: ='Trade 2007'!F11 -> -7.167147077 | G9: ='Environment 2007'!K11 -> 8.100173296 | H9: ='Security 2007'!J12 -> 2.114828742 | J9: 1.015951654 | K9: 20 | M9: =SUM(IF(ROUND(J9,1)<ROUND($J$3:$J$23,1),1))+1 -> 20 | O9: India | P9: =(SUM(IF($J9<$J$3:$J$25*(1-BF$3:BF$25),1))+1)*(1-BF9) ->  | Q9: =(SUM(IF($J9<$J$3:$J$25*(1-BG$3:BG$25),1))+1)*(1-BG9) ->  | R9: =(SUM(IF(ROUND($J9,1)<ROUND($J$3:$J$25,1)*(1-BF$3:BF$25),1))+1)*(1-BF9) ->  | S9: =(SUM(IF(ROUND($J9,1)<ROUND($J$3:$J$25,1)*(1-BG$3:BG$25),1))+1)*(1-BG9) ->  | T9: India | U9: 7 | V9: 7 | W9: Italy | X9: 6.282956273 | Y9: 0 | Z9: -7 | BC9: 188.2605978 | BD9: 237.9893965 | BF9: 1 | BG9: 1 | BI9: =ABS(SUM($C9:$I9*$C$33:$I$33)/SUM(IF($C9:$I9>0,$C9:$I9*$C$33:$I$33))) -> 0.2983704702 | BJ9: =VLOOKUP($W9,$B$3:$I$23,COLUMN()-(COLUMN($BI$2)-1),FALSE)*C$33/SUM($C$33:$I$33)*VLOOKUP($W9,$B$3:$BI$23,(COLUMN($BI$2)-1),FALSE) -> 0 | BK9: =VLOOKUP($W9,$B$3:$I$23,COLUMN()-(COLUMN($BI$2)-1),FALSE)*D$33/SUM($C$33:$I$33)*VLOOKUP($W9,$B$3:$BI$23,(COLUMN($BI$2)-1),FALSE) -> 1.824812446 | BL9: =VLOOKUP($W9,$B$3:$I$23,COLUMN()-(COLUMN($BI$2)-1),FALSE)*E$33/SUM($C$33:$I$33)*VLOOKUP($W9,$B$3:$BI$23,(COLUMN($BI$2)-1),FALSE) -> 0 | BM9: =VLOOKUP($W9,$B$3:$I$23,COLUMN()-(COLUMN($BI$2)-1),FALSE)*F$33/SUM($C$33:$I$33)*VLOOKUP($W9,$B$3:$BI$23,(COLUMN($BI$2)-1),FALSE) -> 0 | BN9: =VLOOKUP($W9,$B$3:$I$23,COLUMN()-(COLUMN($BI$2)-1),FALSE)*G$33/SUM($C$33:$I$33)*VLOOKUP($W9,$B$3:$BI$23,(COLUMN($BI$2)-1),FALSE) -> 2.077100051 | BO9: =VLOOKUP($W9,$B$3:$I$23,COLUMN()-(COLUMN($BI$2)-1),FALSE)*H$33/SUM($C$33:$I$33)*VLOOKUP($W9,$B$3:$BI$23,(COLUMN($BI$2)-1),FALSE) -> 2.381043775 | BP9: =VLOOKUP($W9,$B$3:$I$23,COLUMN()-(COLUMN($BI$2)-1),FALSE)*I$33/SUM($C$33:$I$33)*VLOOKUP($W9,$B$3:$BI$23,(COLUMN($BI$2)-1),FALSE) -> 0
A10: 16 | B10: Indonesia | D10: ='Trade 2007'!F12 -> 5.662069329 | G10: ='Environment 2007'!K12 -> 5.001881858 | H10: ='Security 2007'!J13 -> 0.9339148089 | J10: 3.865955332 | K10: 16 | M10: =SUM(IF(ROUND(J10,1)<ROUND($J$3:$J$23,1),1))+1 -> 16 | O10: Indonesia | P10: =(SUM(IF($J10<$J$3:$J$25*(1-BF$3:BF$25),1))+1)*(1-BF10) ->  | Q10: =(SUM(IF($J10<$J$3:$J$25*(1-BG$3:BG$25),1))+1)*(1-BG10) ->  | R10: =(SUM(IF(ROUND($J10,1)<ROUND($J$3:$J$25,1)*(1-BF$3:BF$25),1))+1)*(1-BF10) ->  | S10: =(SUM(IF(ROUND($J10,1)<ROUND($J$3:$J$25,1)*(1-BG$3:BG$25),1))+1)*(1-BG10) ->  | T10: Indonesia | U10: 8 | V10: 8 | W10: United States | X10: 6.160706637 | Y10: 0 | Z10: -8 | BC10: 2173.316891 | BD10: 2649.390055 | BF10: 1 | BG10: 1 | BI10: =ABS(SUM($C10:$I10*$C$33:$I$33)/SUM(IF($C10:$I10>0,$C10:$I10*$C$33:$I$33))) -> 1 | BJ10: =VLOOKUP($W10,$B$3:$I$23,COLUMN()-(COLUMN($BI$2)-1),FALSE)*C$33/SUM($C$33:$I$33)*VLOOKUP($W10,$B$3:$BI$23,(COLUMN($BI$2)-1),FALSE) -> 0 | BK10: =VLOOKUP($W10,$B$3:$I$23,COLUMN()-(COLUMN($BI$2)-1),FALSE)*D$33/SUM($C$33:$I$33)*VLOOKUP($W10,$B$3:$BI$23,(COLUMN($BI$2)-1),FALSE) -> 2.641865047 | BL10: =VLOOKUP($W10,$B$3:$I$23,COLUMN()-(COLUMN($BI$2)-1),FALSE)*E$33/SUM($C$33:$I$33)*VLOOKUP($W10,$B$3:$BI$23,(COLUMN($BI$2)-1),FALSE) -> 0 | BM10: =VLOOKUP($W10,$B$3:$I$23,COLUMN()-(COLUMN($BI$2)-1),FALSE)*F$33/SUM($C$33:$I$33)*VLOOKUP($W10,$B$3:$BI$23,(COLUMN($BI$2)-1),FALSE) -> 0 | BN10: =VLOOKUP($W10,$B$3:$I$23,COLUMN()-(COLUMN($BI$2)-1),FALSE)*G$33/SUM($C$33:$I$33)*VLOOKUP($W10,$B$3:$BI$23,(COLUMN($BI$2)-1),FALSE) -> 1.199442793 | BO10: =VLOOKUP($W10,$B$3:$I$23,COLUMN()-(COLUMN($BI$2)-1),FALSE)*H$33/SUM($C$33:$I$33)*VLOOKUP($W10,$B$3:$BI$23,(COLUMN($BI$2)-1),FALSE) -> 2.319398796 | BP10: =VLOOKUP($W10,$B$3:$I$23,COLUMN()-(COLUMN($BI$2)-1),FALSE)*I$33/SUM($C$33:$I$33)*VLOOKUP($W10,$B$3:$BI$23,(COLUMN($BI$2)-1),FALSE) -> 0
A11: 7 | B11: Italy | D11: ='Trade 2007'!F13 -> 5.474437339 | G11: ='Environment 2007'!K13 -> 6.231300154 | H11: ='Security 2007'!J14 -> 7.143131324 | J11: 6.282956273 | K11: 7 | M11: =SUM(IF(ROUND(J11,1)<ROUND($J$3:$J$23,1),1))+1 -> 7 | O11: Italy | P11: =(SUM(IF($J11<$J$3:$J$25*(1-BF$3:BF$25),1))+1)*(1-BF11) ->  | Q11: =(SUM(IF($J11<$J$3:$J$25*(1-BG$3:BG$25),1))+1)*(1-BG11) ->  | R11: =(SUM(IF(ROUND($J11,1)<ROUND($J$3:$J$25,1)*(1-BF$3:BF$25),1))+1)*(1-BF11) ->  | S11: =(SUM(IF(ROUND($J11,1)<ROUND($J$3:$J$25,1)*(1-BG$3:BG$25),1))+1)*(1-BG11) ->  | T11: Italy | U11: 9 | V11: 9 | W11: Germany | X11: 5.907416399 | Y11: 0 | Z11: -9 | BC11: 2975.329419 | BD11: 3330.031747 | BF11: 1 | BG11: 1 | BI11: =ABS(SUM($C11:$I11*$C$33:$I$33)/SUM(IF($C11:$I11>0,$C11:$I11*$C$33:$I$33))) -> 1 | BJ11: =VLOOKUP($W11,$B$3:$I$23,COLUMN()-(COLUMN($BI$2)-1),FALSE)*C$33/SUM($C$33:$I$33)*VLOOKUP($W11,$B$3:$BI$23,(COLUMN($BI$2)-1),FALSE) -> 0 | BK11: =VLOOKUP($W11,$B$3:$I$23,COLUMN()-(COLUMN($BI$2)-1),FALSE)*D$33/SUM($C$33:$I$33)*VLOOKUP($W11,$B$3:$BI$23,(COLUMN($BI$2)-1),FALSE) -> 1.738396374 | BL11: =VLOOKUP($W11,$B$3:$I$23,COLUMN()-(COLUMN($BI$2)-1),FALSE)*E$33/SUM($C$33:$I$33)*VLOOKUP($W11,$B$3:$BI$23,(COLUMN($BI$2)-1),FALSE) -> 0 | BM11: =VLOOKUP($W11,$B$3:$I$23,COLUMN()-(COLUMN($BI$2)-1),FALSE)*F$33/SUM($C$33:$I$33)*VLOOKUP($W11,$B$3:$BI$23,(COLUMN($BI$2)-1),FALSE) -> 0 | BN11: =VLOOKUP($W11,$B$3:$I$23,COLUMN()-(COLUMN($BI$2)-1),FALSE)*G$33/SUM($C$33:$I$33)*VLOOKUP($W11,$B$3:$BI$23,(COLUMN($BI$2)-1),FALSE) -> 2.203250655 | BO11: =VLOOKUP($W11,$B$3:$I$23,COLUMN()-(COLUMN($BI$2)-1),FALSE)*H$33/SUM($C$33:$I$33)*VLOOKUP($W11,$B$3:$BI$23,(COLUMN($BI$2)-1),FALSE) -> 1.96576937 | BP11: =VLOOKUP($W11,$B$3:$I$23,COLUMN()-(COLUMN($BI$2)-1),FALSE)*I$33/SUM($C$33:$I$33)*VLOOKUP($W11,$B$3:$BI$23,(COLUMN($BI$2)-1),FALSE) -> 0
A12: 13 | B12: Japan | D12: ='Trade 2007'!F14 -> 6.755666033 | G12: ='Environment 2007'!K14 -> 3.912475362 | H12: ='Security 2007'!J15 -> 2.440587082 | J12: 4.369576159 | K12: 14 | M12: =SUM(IF(ROUND(J12,1)<ROUND($J$3:$J$23,1),1))+1 -> 13 | O12: Japan | P12: =(SUM(IF($J12<$J$3:$J$25*(1-BF$3:BF$25),1))+1)*(1-BF12) ->  | Q12: =(SUM(IF($J12<$J$3:$J$25*(1-BG$3:BG$25),1))+1)*(1-BG12) ->  | R12: =(SUM(IF(ROUND($J12,1)<ROUND($J$3:$J$25,1)*(1-BF$3:BF$25),1))+1)*(1-BF12) ->  | S12: =(SUM(IF(ROUND($J12,1)<ROUND($J$3:$J$25,1)*(1-BG$3:BG$25),1))+1)*(1-BG12) ->  | T12: Japan | U12: 10 | V12: 10 | W12: Spain | X12: 5.251396979 | Y12: 0 | Z12: -10 | BC12: 334.1816627 | BD12: 329.9240509 | BF12: 1 | BG12: 1 | BI12: =ABS(SUM($C12:$I12*$C$33:$I$33)/SUM(IF($C12:$I12>0,$C12:$I12*$C$33:$I$33))) -> 1 | BJ12: =VLOOKUP($W12,$B$3:$I$23,COLUMN()-(COLUMN($BI$2)-1),FALSE)*C$33/SUM($C$33:$I$33)*VLOOKUP($W12,$B$3:$BI$23,(COLUMN($BI$2)-1),FALSE) -> 0 | BK12: =VLOOKUP($W12,$B$3:$I$23,COLUMN()-(COLUMN($BI$2)-1),FALSE)*D$33/SUM($C$33:$I$33)*VLOOKUP($W12,$B$3:$BI$23,(COLUMN($BI$2)-1),FALSE) -> 1.815057967 | BL12: =VLOOKUP($W12,$B$3:$I$23,COLUMN()-(COLUMN($BI$2)-1),FALSE)*E$33/SUM($C$33:$I$33)*VLOOKUP($W12,$B$3:$BI$23,(COLUMN($BI$2)-1),FALSE) -> 0 | BM12: =VLOOKUP($W12,$B$3:$I$23,COLUMN()-(COLUMN($BI$2)-1),FALSE)*F$33/SUM($C$33:$I$33)*VLOOKUP($W12,$B$3:$BI$23,(COLUMN($BI$2)-1),FALSE) -> 0 | BN12: =VLOOKUP($W12,$B$3:$I$23,COLUMN()-(COLUMN($BI$2)-1),FALSE)*G$33/SUM($C$33:$I$33)*VLOOKUP($W12,$B$3:$BI$23,(COLUMN($BI$2)-1),FALSE) -> 1.963768665 | BO12: =VLOOKUP($W12,$B$3:$I$23,COLUMN()-(COLUMN($BI$2)-1),FALSE)*H$33/SUM($C$33:$I$33)*VLOOKUP($W12,$B$3:$BI$23,(COLUMN($BI$2)-1),FALSE) -> 1.472570347 | BP12: =VLOOKUP($W12,$B$3:$I$23,COLUMN()-(COLUMN($BI$2)-1),FALSE)*I$33/SUM($C$33:$I$33)*VLOOKUP($W12,$B$3:$BI$23,(COLUMN($BI$2)-1),FALSE) -> 0
A13: 17 | B13: Mexico | D13: ='Trade 2007'!F15 -> 3.5657671 | G13: ='Environment 2007'!K15 -> 4.701085378 | H13: ='Security 2007'!J16 -> 2.059808962 | J13: 3.44222048 | K13: 17 | M13: =SUM(IF(ROUND(J13,1)<ROUND($J$3:$J$23,1),1))+1 -> 17 | O13: Mexico | P13: =(SUM(IF($J13<$J$3:$J$25*(1-BF$3:BF$25),1))+1)*(1-BF13) ->  | Q13: =(SUM(IF($J13<$J$3:$J$25*(1-BG$3:BG$25),1))+1)*(1-BG13) ->  | R13: =(SUM(IF(ROUND($J13,1)<ROUND($J$3:$J$25,1)*(1-BF$3:BF$25),1))+1)*(1-BF13) ->  | S13: =(SUM(IF(ROUND($J13,1)<ROUND($J$3:$J$25,1)*(1-BG$3:BG$25),1))+1)*(1-BG13) ->  | T13: Mexico | U13: 11 | V13: 11 | W13: Switzerland | X13: 5.048522089 | Y13: 0 | Z13: -11 | BF13: 1 | BG13: 1 | BI13: =ABS(SUM($C13:$I13*$C$33:$I$33)/SUM(IF($C13:$I13>0,$C13:$I13*$C$33:$I$33))) -> 1 | BJ13: =VLOOKUP($W13,$B$3:$I$23,COLUMN()-(COLUMN($BI$2)-1),FALSE)*C$33/SUM($C$33:$I$33)*VLOOKUP($W13,$B$3:$BI$23,(COLUMN($BI$2)-1),FALSE) -> 0 | BK13: =VLOOKUP($W13,$B$3:$I$23,COLUMN()-(COLUMN($BI$2)-1),FALSE)*D$33/SUM($C$33:$I$33)*VLOOKUP($W13,$B$3:$BI$23,(COLUMN($BI$2)-1),FALSE) -> 1.357955709 | BL13: =VLOOKUP($W13,$B$3:$I$23,COLUMN()-(COLUMN($BI$2)-1),FALSE)*E$33/SUM($C$33:$I$33)*VLOOKUP($W13,$B$3:$BI$23,(COLUMN($BI$2)-1),FALSE) -> 0 | BM13: =VLOOKUP($W13,$B$3:$I$23,COLUMN()-(COLUMN($BI$2)-1),FALSE)*F$33/SUM($C$33:$I$33)*VLOOKUP($W13,$B$3:$BI$23,(COLUMN($BI$2)-1),FALSE) -> 0 | BN13: =VLOOKUP($W13,$B$3:$I$23,COLUMN()-(COLUMN($BI$2)-1),FALSE)*G$33/SUM($C$33:$I$33)*VLOOKUP($W13,$B$3:$BI$23,(COLUMN($BI$2)-1),FALSE) -> 1.578847978 | BO13: =VLOOKUP($W13,$B$3:$I$23,COLUMN()-(COLUMN($BI$2)-1),FALSE)*H$33/SUM($C$33:$I$33)*VLOOKUP($W13,$B$3:$BI$23,(COLUMN($BI$2)-1),FALSE) -> 2.111718402 | BP13: =VLOOKUP($W13,$B$3:$I$23,COLUMN()-(COLUMN($BI$2)-1),FALSE)*I$33/SUM($C$33:$I$33)*VLOOKUP($W13,$B$3:$BI$23,(COLUMN($BI$2)-1),FALSE) -> 0
A14: 3 | B14: Netherlands | D14: ='Trade 2007'!F16 -> 5.694794951 | G14: ='Environment 2007'!K16 -> 6.889785475 | H14: ='Security 2007'!J17 -> 9.562599944 | J14: 7.382393457 | K14: 3 | M14: =SUM(IF(ROUND(J14,1)<ROUND($J$3:$J$23,1),1))+1 -> 3 | O14: Netherlands | P14: =(SUM(IF($J14<$J$3:$J$25*(1-BF$3:BF$25),1))+1)*(1-BF14) ->  | Q14: =(SUM(IF($J14<$J$3:$J$25*(1-BG$3:BG$25),1))+1)*(1-BG14) ->  | R14: =(SUM(IF(ROUND($J14,1)<ROUND($J$3:$J$25,1)*(1-BF$3:BF$25),1))+1)*(1-BF14) ->  | S14: =(SUM(IF(ROUND($J14,1)<ROUND($J$3:$J$25,1)*(1-BG$3:BG$25),1))+1)*(1-BG14) ->  | T14: Netherlands | U14: 12 | V14: 12 | W14: Turkey | X14: 4.686196814 | Y14: 0 | Z14: -12 | BC14: 181.1218596 | BD14: 227.1925699 | BF14: 1 | BG14: 1 | BI14: =ABS(SUM($C14:$I14*$C$33:$I$33)/SUM(IF($C14:$I14>0,$C14:$I14*$C$33:$I$33))) -> 1 | BJ14: =VLOOKUP($W14,$B$3:$I$23,COLUMN()-(COLUMN($BI$2)-1),FALSE)*C$33/SUM($C$33:$I$33)*VLOOKUP($W14,$B$3:$BI$23,(COLUMN($BI$2)-1),FALSE) -> 0 | BK14: =VLOOKUP($W14,$B$3:$I$23,COLUMN()-(COLUMN($BI$2)-1),FALSE)*D$33/SUM($C$33:$I$33)*VLOOKUP($W14,$B$3:$BI$23,(COLUMN($BI$2)-1),FALSE) -> 1.485575566 | BL14: =VLOOKUP($W14,$B$3:$I$23,COLUMN()-(COLUMN($BI$2)-1),FALSE)*E$33/SUM($C$33:$I$33)*VLOOKUP($W14,$B$3:$BI$23,(COLUMN($BI$2)-1),FALSE) -> 0 | BM14: =VLOOKUP($W14,$B$3:$I$23,COLUMN()-(COLUMN($BI$2)-1),FALSE)*F$33/SUM($C$33:$I$33)*VLOOKUP($W14,$B$3:$BI$23,(COLUMN($BI$2)-1),FALSE) -> 0 | BN14: =VLOOKUP($W14,$B$3:$I$23,COLUMN()-(COLUMN($BI$2)-1),FALSE)*G$33/SUM($C$33:$I$33)*VLOOKUP($W14,$B$3:$BI$23,(COLUMN($BI$2)-1),FALSE) -> 1.891675595 | BO14: =VLOOKUP($W14,$B$3:$I$23,COLUMN()-(COLUMN($BI$2)-1),FALSE)*H$33/SUM($C$33:$I$33)*VLOOKUP($W14,$B$3:$BI$23,(COLUMN($BI$2)-1),FALSE) -> 1.308945654 | BP14: =VLOOKUP($W14,$B$3:$I$23,COLUMN()-(COLUMN($BI$2)-1),FALSE)*I$33/SUM($C$33:$I$33)*VLOOKUP($W14,$B$3:$BI$23,(COLUMN($BI$2)-1),FALSE) -> 0
A15: 13 | B15: Russia | D15: ='Trade 2007'!F17 -> 2.199713036 | G15: ='Environment 2007'!K17 -> 7.636917345 | H15: ='Security 2007'!J18 -> 3.379531579 | J15: 4.40538732 | K15: 13 | M15: =SUM(IF(ROUND(J15,1)<ROUND($J$3:$J$23,1),1))+1 -> 13 | O15: Russia | P15: =(SUM(IF($J15<$J$3:$J$25*(1-BF$3:BF$25),1))+1)*(1-BF15) ->  | Q15: =(SUM(IF($J15<$J$3:$J$25*(1-BG$3:BG$25),1))+1)*(1-BG15) ->  | R15: =(SUM(IF(ROUND($J15,1)<ROUND($J$3:$J$25,1)*(1-BF$3:BF$25),1))+1)*(1-BF15) ->  | S15: =(SUM(IF(ROUND($J15,1)<ROUND($J$3:$J$25,1)*(1-BG$3:BG$25),1))+1)*(1-BG15) ->  | T15: Russia | U15: 13 | V15: 13 | W15: Russia | X15: 4.40538732 | Y15: 0 | Z15: -13 | BC15: 1952.973324 | BD15: 2112.780108 | BF15: 1 | BG15: 1 | BI15: =ABS(SUM($C15:$I15*$C$33:$I$33)/SUM(IF($C15:$I15>0,$C15:$I15*$C$33:$I$33))) -> 1 | BJ15: =VLOOKUP($W15,$B$3:$I$23,COLUMN()-(COLUMN($BI$2)-1),FALSE)*C$33/SUM($C$33:$I$33)*VLOOKUP($W15,$B$3:$BI$23,(COLUMN($BI$2)-1),FALSE) -> 0 | BK15: =VLOOKUP($W15,$B$3:$I$23,COLUMN()-(COLUMN($BI$2)-1),FALSE)*D$33/SUM($C$33:$I$33)*VLOOKUP($W15,$B$3:$BI$23,(COLUMN($BI$2)-1),FALSE) -> 0.7332376786 | BL15: =VLOOKUP($W15,$B$3:$I$23,COLUMN()-(COLUMN($BI$2)-1),FALSE)*E$33/SUM($C$33:$I$33)*VLOOKUP($W15,$B$3:$BI$23,(COLUMN($BI$2)-1),FALSE) -> 0 | BM15: =VLOOKUP($W15,$B$3:$I$23,COLUMN()-(COLUMN($BI$2)-1),FALSE)*F$33/SUM($C$33:$I$33)*VLOOKUP($W15,$B$3:$BI$23,(COLUMN($BI$2)-1),FALSE) -> 0 | BN15: =VLOOKUP($W15,$B$3:$I$23,COLUMN()-(COLUMN($BI$2)-1),FALSE)*G$33/SUM($C$33:$I$33)*VLOOKUP($W15,$B$3:$BI$23,(COLUMN($BI$2)-1),FALSE) -> 2.545639115 | BO15: =VLOOKUP($W15,$B$3:$I$23,COLUMN()-(COLUMN($BI$2)-1),FALSE)*H$33/SUM($C$33:$I$33)*VLOOKUP($W15,$B$3:$BI$23,(COLUMN($BI$2)-1),FALSE) -> 1.126510526 | BP15: =VLOOKUP($W15,$B$3:$I$23,COLUMN()-(COLUMN($BI$2)-1),FALSE)*I$33/SUM($C$33:$I$33)*VLOOKUP($W15,$B$3:$BI$23,(COLUMN($BI$2)-1),FALSE) -> 0
A16: 18 | B16: Saudi Arabia | D16: ='Trade 2007'!F18 -> 6.06412503 | G16: ='Environment 2007'!K18 -> 0.8462676486 | H16: ='Security 2007'!J19 -> 0.8910688979 | J16: 2.600487192 | K16: 18 | M16: =SUM(IF(ROUND(J16,1)<ROUND($J$3:$J$23,1),1))+1 -> 18 | O16: Saudi Arabia | P16: =(SUM(IF($J16<$J$3:$J$25*(1-BF$3:BF$25),1))+1)*(1-BF16) ->  | Q16: =(SUM(IF($J16<$J$3:$J$25*(1-BG$3:BG$25),1))+1)*(1-BG16) ->  | R16: =(SUM(IF(ROUND($J16,1)<ROUND($J$3:$J$25,1)*(1-BF$3:BF$25),1))+1)*(1-BF16) ->  | S16: =(SUM(IF(ROUND($J16,1)<ROUND($J$3:$J$25,1)*(1-BG$3:BG$25),1))+1)*(1-BG16) ->  | T16: Saudi Arabia | U16: 14 | V16: 13 | W16: Japan | X16: 4.369576159 | Y16: 0 | Z16: -13 | BC16: 4135.294075 | BD16: 5068.996215 | BF16: 0 | BG16: 0 | BI16: =ABS(SUM($C16:$I16*$C$33:$I$33)/SUM(IF($C16:$I16>0,$C16:$I16*$C$33:$I$33))) -> 1 | BJ16: =VLOOKUP($W16,$B$3:$I$23,COLUMN()-(COLUMN($BI$2)-1),FALSE)*C$33/SUM($C$33:$I$33)*VLOOKUP($W16,$B$3:$BI$23,(COLUMN($BI$2)-1),FALSE) -> 0 | BK16: =VLOOKUP($W16,$B$3:$I$23,COLUMN()-(COLUMN($BI$2)-1),FALSE)*D$33/SUM($C$33:$I$33)*VLOOKUP($W16,$B$3:$BI$23,(COLUMN($BI$2)-1),FALSE) -> 2.251888678 | BL16: =VLOOKUP($W16,$B$3:$I$23,COLUMN()-(COLUMN($BI$2)-1),FALSE)*E$33/SUM($C$33:$I$33)*VLOOKUP($W16,$B$3:$BI$23,(COLUMN($BI$2)-1),FALSE) -> 0 | BM16: =VLOOKUP($W16,$B$3:$I$23,COLUMN()-(COLUMN($BI$2)-1),FALSE)*F$33/SUM($C$33:$I$33)*VLOOKUP($W16,$B$3:$BI$23,(COLUMN($BI$2)-1),FALSE) -> 0 | BN16: =VLOOKUP($W16,$B$3:$I$23,COLUMN()-(COLUMN($BI$2)-1),FALSE)*G$33/SUM($C$33:$I$33)*VLOOKUP($W16,$B$3:$BI$23,(COLUMN($BI$2)-1),FALSE) -> 1.304158454 | BO16: =VLOOKUP($W16,$B$3:$I$23,COLUMN()-(COLUMN($BI$2)-1),FALSE)*H$33/SUM($C$33:$I$33)*VLOOKUP($W16,$B$3:$BI$23,(COLUMN($BI$2)-1),FALSE) -> 0.8135290275 | BP16: =VLOOKUP($W16,$B$3:$I$23,COLUMN()-(COLUMN($BI$2)-1),FALSE)*I$33/SUM($C$33:$I$33)*VLOOKUP($W16,$B$3:$BI$23,(COLUMN($BI$2)-1),FALSE) -> 0
A17: 19 | B17: South Korea | D17: ='Trade 2007'!F19 -> 1.092919468 | G17: ='Environment 2007'!K19 -> 3.529092068 | H17: ='Security 2007'!J20 -> 1.947317181 | J17: 2.189776239 | K17: 19 | M17: =SUM(IF(ROUND(J17,1)<ROUND($J$3:$J$23,1),1))+1 -> 19 | O17: South Korea | P17: =(SUM(IF($J17<$J$3:$J$25*(1-BF$3:BF$25),1))+1)*(1-BF17) ->  | Q17: =(SUM(IF($J17<$J$3:$J$25*(1-BG$3:BG$25),1))+1)*(1-BG17) ->  | R17: =(SUM(IF(ROUND($J17,1)<ROUND($J$3:$J$25,1)*(1-BF$3:BF$25),1))+1)*(1-BF17) ->  | S17: =(SUM(IF(ROUND($J17,1)<ROUND($J$3:$J$25,1)*(1-BG$3:BG$25),1))+1)*(1-BG17) ->  | T17: South Korea | U17: 15 | V17: 15 | W17: Brazil | X17: 3.989951465 | Y17: 0 | Z17: -15 | BF17: 1 | BG17: 1 | BI17: =ABS(SUM($C17:$I17*$C$33:$I$33)/SUM(IF($C17:$I17>0,$C17:$I17*$C$33:$I$33))) -> 1 | BJ17: =VLOOKUP($W17,$B$3:$I$23,COLUMN()-(COLUMN($BI$2)-1),FALSE)*C$33/SUM($C$33:$I$33)*VLOOKUP($W17,$B$3:$BI$23,(COLUMN($BI$2)-1),FALSE) -> 0 | BK17: =VLOOKUP($W17,$B$3:$I$23,COLUMN()-(COLUMN($BI$2)-1),FALSE)*D$33/SUM($C$33:$I$33)*VLOOKUP($W17,$B$3:$BI$23,(COLUMN($BI$2)-1),FALSE) -> 0.9019913552 | BL17: =VLOOKUP($W17,$B$3:$I$23,COLUMN()-(COLUMN($BI$2)-1),FALSE)*E$33/SUM($C$33:$I$33)*VLOOKUP($W17,$B$3:$BI$23,(COLUMN($BI$2)-1),FALSE) -> 0 | BM17: =VLOOKUP($W17,$B$3:$I$23,COLUMN()-(COLUMN($BI$2)-1),FALSE)*F$33/SUM($C$33:$I$33)*VLOOKUP($W17,$B$3:$BI$23,(COLUMN($BI$2)-1),FALSE) -> 0 | BN17: =VLOOKUP($W17,$B$3:$I$23,COLUMN()-(COLUMN($BI$2)-1),FALSE)*G$33/SUM($C$33:$I$33)*VLOOKUP($W17,$B$3:$BI$23,(COLUMN($BI$2)-1),FALSE) -> 2.307930974 | BO17: =VLOOKUP($W17,$B$3:$I$23,COLUMN()-(COLUMN($BI$2)-1),FALSE)*H$33/SUM($C$33:$I$33)*VLOOKUP($W17,$B$3:$BI$23,(COLUMN($BI$2)-1),FALSE) -> 0.7800291367 | BP17: =VLOOKUP($W17,$B$3:$I$23,COLUMN()-(COLUMN($BI$2)-1),FALSE)*I$33/SUM($C$33:$I$33)*VLOOKUP($W17,$B$3:$BI$23,(COLUMN($BI$2)-1),FALSE) -> 0
A18: 10 | B18: Spain | D18: ='Trade 2007'!F20 -> 5.445173901 | G18: ='Environment 2007'!K20 -> 5.891305995 | H18: ='Security 2007'!J21 -> 4.417711042 | J18: 5.251396979 | K18: 10 | M18: =SUM(IF(ROUND(J18,1)<ROUND($J$3:$J$23,1),1))+1 -> 10 | O18: Spain | P18: =(SUM(IF($J18<$J$3:$J$25*(1-BF$3:BF$25),1))+1)*(1-BF18) ->  | Q18: =(SUM(IF($J18<$J$3:$J$25*(1-BG$3:BG$25),1))+1)*(1-BG18) ->  | R18: =(SUM(IF(ROUND($J18,1)<ROUND($J$3:$J$25,1)*(1-BF$3:BF$25),1))+1)*(1-BF18) ->  | S18: =(SUM(IF(ROUND($J18,1)<ROUND($J$3:$J$25,1)*(1-BG$3:BG$25),1))+1)*(1-BG18) ->  | T18: Spain | U18: 16 | V18: 16 | W18: Indonesia | X18: 3.865955332 | Y18: 0 | Z18: -16 | BC18: 672.4287201 | BD18: 792.128258 | BF18: 1 | BG18: 1 | BI18: =ABS(SUM($C18:$I18*$C$33:$I$33)/SUM(IF($C18:$I18>0,$C18:$I18*$C$33:$I$33))) -> 1 | BJ18: =VLOOKUP($W18,$B$3:$I$23,COLUMN()-(COLUMN($BI$2)-1),FALSE)*C$33/SUM($C$33:$I$33)*VLOOKUP($W18,$B$3:$BI$23,(COLUMN($BI$2)-1),FALSE) -> 0 | BK18: =VLOOKUP($W18,$B$3:$I$23,COLUMN()-(COLUMN($BI$2)-1),FALSE)*D$33/SUM($C$33:$I$33)*VLOOKUP($W18,$B$3:$BI$23,(COLUMN($BI$2)-1),FALSE) -> 1.887356443 | BL18: =VLOOKUP($W18,$B$3:$I$23,COLUMN()-(COLUMN($BI$2)-1),FALSE)*E$33/SUM($C$33:$I$33)*VLOOKUP($W18,$B$3:$BI$23,(COLUMN($BI$2)-1),FALSE) -> 0 | BM18: =VLOOKUP($W18,$B$3:$I$23,COLUMN()-(COLUMN($BI$2)-1),FALSE)*F$33/SUM($C$33:$I$33)*VLOOKUP($W18,$B$3:$BI$23,(COLUMN($BI$2)-1),FALSE) -> 0 | BN18: =VLOOKUP($W18,$B$3:$I$23,COLUMN()-(COLUMN($BI$2)-1),FALSE)*G$33/SUM($C$33:$I$33)*VLOOKUP($W18,$B$3:$BI$23,(COLUMN($BI$2)-1),FALSE) -> 1.667293953 | BO18: =VLOOKUP($W18,$B$3:$I$23,COLUMN()-(COLUMN($BI$2)-1),FALSE)*H$33/SUM($C$33:$I$33)*VLOOKUP($W18,$B$3:$BI$23,(COLUMN($BI$2)-1),FALSE) -> 0.3113049363 | BP18: =VLOOKUP($W18,$B$3:$I$23,COLUMN()-(COLUMN($BI$2)-1),FALSE)*I$33/SUM($C$33:$I$33)*VLOOKUP($W18,$B$3:$BI$23,(COLUMN($BI$2)-1),FALSE) -> 0
A19: 4 | B19: Sweden | D19: ='Trade 2007'!F21 -> 5.509240426 | G19: ='Environment 2007'!K21 -> 7.368446926 | H19: ='Security 2007'!J22 -> 7.992563166 | J19: 6.956750173 | K19: 5 | M19: =SUM(IF(ROUND(J19,1)<ROUND($J$3:$J$23,1),1))+1 -> 4 | O19: Sweden | P19: =(SUM(IF($J19<$J$3:$J$25*(1-BF$3:BF$25),1))+1)*(1-BF19) ->  | Q19: =(SUM(IF($J19<$J$3:$J$25*(1-BG$3:BG$25),1))+1)*(1-BG19) ->  | R19: =(SUM(IF(ROUND($J19,1)<ROUND($J$3:$J$25,1)*(1-BF$3:BF$25),1))+1)*(1-BF19) ->  | S19: =(SUM(IF(ROUND($J19,1)<ROUND($J$3:$J$25,1)*(1-BG$3:BG$25),1))+1)*(1-BG19) ->  | T19: Sweden | U19: 17 | V19: 17 | W19: Mexico | X19: 3.44222048 | Y19: 0 | Z19: -17 | BC19: 125.1299164 | BD19: 126.6792612 | BF19: 0 | BG19: 0 | BI19: =ABS(SUM($C19:$I19*$C$33:$I$33)/SUM(IF($C19:$I19>0,$C19:$I19*$C$33:$I$33))) -> 1 | BJ19: =VLOOKUP($W19,$B$3:$I$23,COLUMN()-(COLUMN($BI$2)-1),FALSE)*C$33/SUM($C$33:$I$33)*VLOOKUP($W19,$B$3:$BI$23,(COLUMN($BI$2)-1),FALSE) -> 0 | BK19: =VLOOKUP($W19,$B$3:$I$23,COLUMN()-(COLUMN($BI$2)-1),FALSE)*D$33/SUM($C$33:$I$33)*VLOOKUP($W19,$B$3:$BI$23,(COLUMN($BI$2)-1),FALSE) -> 1.188589033 | BL19: =VLOOKUP($W19,$B$3:$I$23,COLUMN()-(COLUMN($BI$2)-1),FALSE)*E$33/SUM($C$33:$I$33)*VLOOKUP($W19,$B$3:$BI$23,(COLUMN($BI$2)-1),FALSE) -> 0 | BM19: =VLOOKUP($W19,$B$3:$I$23,COLUMN()-(COLUMN($BI$2)-1),FALSE)*F$33/SUM($C$33:$I$33)*VLOOKUP($W19,$B$3:$BI$23,(COLUMN($BI$2)-1),FALSE) -> 0 | BN19: =VLOOKUP($W19,$B$3:$I$23,COLUMN()-(COLUMN($BI$2)-1),FALSE)*G$33/SUM($C$33:$I$33)*VLOOKUP($W19,$B$3:$BI$23,(COLUMN($BI$2)-1),FALSE) -> 1.567028459 | BO19: =VLOOKUP($W19,$B$3:$I$23,COLUMN()-(COLUMN($BI$2)-1),FALSE)*H$33/SUM($C$33:$I$33)*VLOOKUP($W19,$B$3:$BI$23,(COLUMN($BI$2)-1),FALSE) -> 0.6866029874 | BP19: =VLOOKUP($W19,$B$3:$I$23,COLUMN()-(COLUMN($BI$2)-1),FALSE)*I$33/SUM($C$33:$I$33)*VLOOKUP($W19,$B$3:$BI$23,(COLUMN($BI$2)-1),FALSE) -> 0
A20: 11 | B20: Switzerland | D20: ='Trade 2007'!F22 -> 4.073867126 | G20: ='Environment 2007'!K22 -> 4.736543935 | H20: ='Security 2007'!J23 -> 6.335155205 | J20: 5.048522089 | K20: 11 | M20: =SUM(IF(ROUND(J20,1)<ROUND($J$3:$J$23,1),1))+1 -> 11 | O20: Switzerland | P20: =(SUM(IF($J20<$J$3:$J$25*(1-BF$3:BF$25),1))+1)*(1-BF20) ->  | Q20: =(SUM(IF($J20<$J$3:$J$25*(1-BG$3:BG$25),1))+1)*(1-BG20) ->  | R20: =(SUM(IF(ROUND($J20,1)<ROUND($J$3:$J$25,1)*(1-BF$3:BF$25),1))+1)*(1-BF20) ->  | S20: =(SUM(IF(ROUND($J20,1)<ROUND($J$3:$J$25,1)*(1-BG$3:BG$25),1))+1)*(1-BG20) ->  | T20: Switzerland | U20: 18 | V20: 18 | W20: Saudi Arabia | X20: 2.600487192 | Y20: 0 | Z20: -18 | BC20: 271.3447956 | BD20: 381.7662382 | BF20: 0 | BG20: 1 | BI20: =ABS(SUM($C20:$I20*$C$33:$I$33)/SUM(IF($C20:$I20>0,$C20:$I20*$C$33:$I$33))) -> 1 | BJ20: =VLOOKUP($W20,$B$3:$I$23,COLUMN()-(COLUMN($BI$2)-1),FALSE)*C$33/SUM($C$33:$I$33)*VLOOKUP($W20,$B$3:$BI$23,(COLUMN($BI$2)-1),FALSE) -> 0 | BK20: =VLOOKUP($W20,$B$3:$I$23,COLUMN()-(COLUMN($BI$2)-1),FALSE)*D$33/SUM($C$33:$I$33)*VLOOKUP($W20,$B$3:$BI$23,(COLUMN($BI$2)-1),FALSE) -> 2.02137501 | BL20: =VLOOKUP($W20,$B$3:$I$23,COLUMN()-(COLUMN($BI$2)-1),FALSE)*E$33/SUM($C$33:$I$33)*VLOOKUP($W20,$B$3:$BI$23,(COLUMN($BI$2)-1),FALSE) -> 0 | BM20: =VLOOKUP($W20,$B$3:$I$23,COLUMN()-(COLUMN($BI$2)-1),FALSE)*F$33/SUM($C$33:$I$33)*VLOOKUP($W20,$B$3:$BI$23,(COLUMN($BI$2)-1),FALSE) -> 0 | BN20: =VLOOKUP($W20,$B$3:$I$23,COLUMN()-(COLUMN($BI$2)-1),FALSE)*G$33/SUM($C$33:$I$33)*VLOOKUP($W20,$B$3:$BI$23,(COLUMN($BI$2)-1),FALSE) -> 0.2820892162 | BO20: =VLOOKUP($W20,$B$3:$I$23,COLUMN()-(COLUMN($BI$2)-1),FALSE)*H$33/SUM($C$33:$I$33)*VLOOKUP($W20,$B$3:$BI$23,(COLUMN($BI$2)-1),FALSE) -> 0.297022966 | BP20: =VLOOKUP($W20,$B$3:$I$23,COLUMN()-(COLUMN($BI$2)-1),FALSE)*I$33/SUM($C$33:$I$33)*VLOOKUP($W20,$B$3:$BI$23,(COLUMN($BI$2)-1),FALSE) -> 0
A21: 12 | B21: Turkey | D21: ='Trade 2007'!F23 -> 4.456726697 | G21: ='Environment 2007'!K23 -> 5.675026784 | H21: ='Security 2007'!J24 -> 3.926836961 | J21: 4.686196814 | K21: 12 | M21: =SUM(IF(ROUND(J21,1)<ROUND($J$3:$J$23,1),1))+1 -> 12 | O21: Turkey | P21: =(SUM(IF($J21<$J$3:$J$25*(1-BF$3:BF$25),1))+1)*(1-BF21) ->  | Q21: =(SUM(IF($J21<$J$3:$J$25*(1-BG$3:BG$25),1))+1)*(1-BG21) ->  | R21: =(SUM(IF(ROUND($J21,1)<ROUND($J$3:$J$25,1)*(1-BF$3:BF$25),1))+1)*(1-BF21) ->  | S21: =(SUM(IF(ROUND($J21,1)<ROUND($J$3:$J$25,1)*(1-BG$3:BG$25),1))+1)*(1-BG21) ->  | T21: Turkey | U21: 19 | V21: 19 | W21: South Korea | X21: 2.189776239 | Y21: 0 | Z21: -19 | BF21: 1 | BG21: 1 | BI21: =ABS(SUM($C21:$I21*$C$33:$I$33)/SUM(IF($C21:$I21>0,$C21:$I21*$C$33:$I$33))) -> 1 | BJ21: =VLOOKUP($W21,$B$3:$I$23,COLUMN()-(COLUMN($BI$2)-1),FALSE)*C$33/SUM($C$33:$I$33)*VLOOKUP($W21,$B$3:$BI$23,(COLUMN($BI$2)-1),FALSE) -> 0 | BK21: =VLOOKUP($W21,$B$3:$I$23,COLUMN()-(COLUMN($BI$2)-1),FALSE)*D$33/SUM($C$33:$I$33)*VLOOKUP($W21,$B$3:$BI$23,(COLUMN($BI$2)-1),FALSE) -> 0.3643064893 | BL21: =VLOOKUP($W21,$B$3:$I$23,COLUMN()-(COLUMN($BI$2)-1),FALSE)*E$33/SUM($C$33:$I$33)*VLOOKUP($W21,$B$3:$BI$23,(COLUMN($BI$2)-1),FALSE) -> 0 | BM21: =VLOOKUP($W21,$B$3:$I$23,COLUMN()-(COLUMN($BI$2)-1),FALSE)*F$33/SUM($C$33:$I$33)*VLOOKUP($W21,$B$3:$BI$23,(COLUMN($BI$2)-1),FALSE) -> 0 | BN21: =VLOOKUP($W21,$B$3:$I$23,COLUMN()-(COLUMN($BI$2)-1),FALSE)*G$33/SUM($C$33:$I$33)*VLOOKUP($W21,$B$3:$BI$23,(COLUMN($BI$2)-1),FALSE) -> 1.176364023 | BO21: =VLOOKUP($W21,$B$3:$I$23,COLUMN()-(COLUMN($BI$2)-1),FALSE)*H$33/SUM($C$33:$I$33)*VLOOKUP($W21,$B$3:$BI$23,(COLUMN($BI$2)-1),FALSE) -> 0.6491057271 | BP21: =VLOOKUP($W21,$B$3:$I$23,COLUMN()-(COLUMN($BI$2)-1),FALSE)*I$33/SUM($C$33:$I$33)*VLOOKUP($W21,$B$3:$BI$23,(COLUMN($BI$2)-1),FALSE) -> 0
A22: 1 | B22: United Kingdom | D22: ='Trade 2007'!F24 -> 5.304196902 | G22: ='Environment 2007'!K24 -> 7.363058455 | H22: ='Security 2007'!J25 -> 12.26479044 | J22: 8.310681933 | K22: 1 | M22: =SUM(IF(ROUND(J22,1)<ROUND($J$3:$J$23,1),1))+1 -> 1 | O22: United Kingdom | P22: =(SUM(IF($J22<$J$3:$J$25*(1-BF$3:BF$25),1))+1)*(1-BF22) ->  | Q22: =(SUM(IF($J22<$J$3:$J$25*(1-BG$3:BG$25),1))+1)*(1-BG22) ->  | R22: =(SUM(IF(ROUND($J22,1)<ROUND($J$3:$J$25,1)*(1-BF$3:BF$25),1))+1)*(1-BF22) ->  | S22: =(SUM(IF(ROUND($J22,1)<ROUND($J$3:$J$25,1)*(1-BG$3:BG$25),1))+1)*(1-BG22) ->  | T22: United Kingdom | U22: 20 | V22: 20 | W22: India | X22: 1.015951654 | Y22: 0 | Z22: -20 | BC22: 264.9464832 | BD22: 232.8736891 | BF22: 1 | BG22: 1 | BI22: =ABS(SUM($C22:$I22*$C$33:$I$33)/SUM(IF($C22:$I22>0,$C22:$I22*$C$33:$I$33))) -> 1 | BJ22: =VLOOKUP($W22,$B$3:$I$23,COLUMN()-(COLUMN($BI$2)-1),FALSE)*C$33/SUM($C$33:$I$33)*VLOOKUP($W22,$B$3:$BI$23,(COLUMN($BI$2)-1),FALSE) -> 0 | BK22: =VLOOKUP($W22,$B$3:$I$23,COLUMN()-(COLUMN($BI$2)-1),FALSE)*D$33/SUM($C$33:$I$33)*VLOOKUP($W22,$B$3:$BI$23,(COLUMN($BI$2)-1),FALSE) -> -0.7128216812 | BL22: =VLOOKUP($W22,$B$3:$I$23,COLUMN()-(COLUMN($BI$2)-1),FALSE)*E$33/SUM($C$33:$I$33)*VLOOKUP($W22,$B$3:$BI$23,(COLUMN($BI$2)-1),FALSE) -> 0 | BM22: =VLOOKUP($W22,$B$3:$I$23,COLUMN()-(COLUMN($BI$2)-1),FALSE)*F$33/SUM($C$33:$I$33)*VLOOKUP($W22,$B$3:$BI$23,(COLUMN($BI$2)-1),FALSE) -> 0 | BN22: =VLOOKUP($W22,$B$3:$I$23,COLUMN()-(COLUMN($BI$2)-1),FALSE)*G$33/SUM($C$33:$I$33)*VLOOKUP($W22,$B$3:$BI$23,(COLUMN($BI$2)-1),FALSE) -> 0.8056175051 | BO22: =VLOOKUP($W22,$B$3:$I$23,COLUMN()-(COLUMN($BI$2)-1),FALSE)*H$33/SUM($C$33:$I$33)*VLOOKUP($W22,$B$3:$BI$23,(COLUMN($BI$2)-1),FALSE) -> 0.2103341488 | BP22: =VLOOKUP($W22,$B$3:$I$23,COLUMN()-(COLUMN($BI$2)-1),FALSE)*I$33/SUM($C$33:$I$33)*VLOOKUP($W22,$B$3:$BI$23,(COLUMN($BI$2)-1),FALSE) -> 0
A23: 8 | B23: United States | D23: ='Trade 2007'!F25 -> 7.925595142 | G23: ='Environment 2007'!K25 -> 3.598328379 | H23: ='Security 2007'!J26 -> 6.958196389 | J23: 6.160706637 | K23: 8 | M23: =SUM(IF(ROUND(J23,1)<ROUND($J$3:$J$23,1),1))+1 -> 8 | O23: United States | P23: =(SUM(IF($J23<$J$3:$J$25*(1-BF$3:BF$25),1))+1)*(1-BF23) ->  | Q23: =(SUM(IF($J23<$J$3:$J$25*(1-BG$3:BG$25),1))+1)*(1-BG23) ->  | R23: =(SUM(IF(ROUND($J23,1)<ROUND($J$3:$J$25,1)*(1-BF$3:BF$25),1))+1)*(1-BF23) ->  | S23: =(SUM(IF(ROUND($J23,1)<ROUND($J$3:$J$25,1)*(1-BG$3:BG$25),1))+1)*(1-BG23) ->  | T23: United States | U23: 21 | V23: 21 | W23: China | X23: -0.4632996979 | Y23: 0 | Z23: -21 | BF23: 1 | BG23: 1 | BI23: =ABS(SUM($C23:$I23*$C$33:$I$33)/SUM(IF($C23:$I23>0,$C23:$I23*$C$33:$I$33))) -> 1 | BJ23: =VLOOKUP($W23,$B$3:$I$23,COLUMN()-(COLUMN($BI$2)-1),FALSE)*C$33/SUM($C$33:$I$33)*VLOOKUP($W23,$B$3:$BI$23,(COLUMN($BI$2)-1),FALSE) -> 0 | BK23: =VLOOKUP($W23,$B$3:$I$23,COLUMN()-(COLUMN($BI$2)-1),FALSE)*D$33/SUM($C$33:$I$33)*VLOOKUP($W23,$B$3:$BI$23,(COLUMN($BI$2)-1),FALSE) -> -0.5477303493 | BL23: =VLOOKUP($W23,$B$3:$I$23,COLUMN()-(COLUMN($BI$2)-1),FALSE)*E$33/SUM($C$33:$I$33)*VLOOKUP($W23,$B$3:$BI$23,(COLUMN($BI$2)-1),FALSE) -> 0 | BM23: =VLOOKUP($W23,$B$3:$I$23,COLUMN()-(COLUMN($BI$2)-1),FALSE)*F$33/SUM($C$33:$I$33)*VLOOKUP($W23,$B$3:$BI$23,(COLUMN($BI$2)-1),FALSE) -> 0 | BN23: =VLOOKUP($W23,$B$3:$I$23,COLUMN()-(COLUMN($BI$2)-1),FALSE)*G$33/SUM($C$33:$I$33)*VLOOKUP($W23,$B$3:$BI$23,(COLUMN($BI$2)-1),FALSE) -> 0.382561713 | BO23: =VLOOKUP($W23,$B$3:$I$23,COLUMN()-(COLUMN($BI$2)-1),FALSE)*H$33/SUM($C$33:$I$33)*VLOOKUP($W23,$B$3:$BI$23,(COLUMN($BI$2)-1),FALSE) -> 0.08073798486 | BP23: =VLOOKUP($W23,$B$3:$I$23,COLUMN()-(COLUMN($BI$2)-1),FALSE)*I$33/SUM($C$33:$I$33)*VLOOKUP($W23,$B$3:$BI$23,(COLUMN($BI$2)-1),FALSE) -> 0
B24: EU | D24: ='Trade 2007'!G32 -> 0 | G24: ='Environment 2007'!K32 -> 0 | H24: ='Security 2007'!J27 ->  | P24: =(SUM(IF($J24<$J$3:$J$25*(1-BF$3:BF$25),1))+1)*(1-BF24) ->  | R24: =(SUM(IF(ROUND($J24,1)<ROUND($J$3:$J$25,1)*(1-BF$3:BF$25),1))+1)*(1-BF24) ->  | T24: EU | BG24: 1
B25: Europe | D25: ='Trade 2007'!G33 -> 0 | G25: ='Environment 2007'!K33 -> 0 | H25: ='Security 2007'!J28 ->  | P25: =(SUM(IF($J25<$J$3:$J$25*(1-BF$3:BF$25),1))+1)*(1-BF25) ->  | Q25: =(SUM(IF($J25<$J$3:$J$25*(1-BG$3:BG$25),1))+1)*(1-BG25) ->  | R25: =(SUM(IF(ROUND($J25,1)<ROUND($J$3:$J$25,1)*(1-BF$3:BF$25),1))+1)*(1-BF25) ->  | S25: =(SUM(IF(ROUND($J25,1)<ROUND($J$3:$J$25,1)*(1-BG$3:BG$25),1))+1)*(1-BG25) ->  | T25: Europe | BF25: 1
R26: =(SUM(IF(#REF!<$J$3:$J$25*(1-BF$3:BF$25),1))+1)*(1-#REF!) -> 
B27: Average | C27: =AVERAGE(C3:C23) ->  | D27: 3.858982443 | G27: 5.499703656 | H27: 5.305153222 | J27: 4.88794644 | U27: 1
B28: Standard dev. | C28: =STDEVP(C3:C23) ->  | D28: 4.226066455 | G28: 1.791722087 | H28: 3.56921474 | J28: 2.207223502 | U28: 2
U29: 3
B30: Lowest | C30: =MIN(C3:C23) -> 0 | D30: -9.0167481 | E30: 0 | F30: 0 | G30: 0.8462676486 | H30: 0.8910688979 | I30: 0 | J30: -0.4632996979 | U30: 4
B31: Highest | C31: =MAX(C3:C23) -> 0 | D31: 7.925595142 | E31: 0 | F31: 0 | G31: 8.100173296 | H31: 12.9148001 | I31: 0 | J31: 8.310681933 | U31: 5
U32: 6
B33: Weight | C33: 0 | D33: 1 | E33: 0 | F33: 0 | G33: 1 | H33: 1 | I33: 0 | U33: 7
U34: 8
U35: 9
U38: 1
U39: 2
U40: 3
U41: 4
U42: 5
U43: 6
U44: 7
A67: =INT(RIGHT(CELL("filename",A1),4)) -> 2007

Sheet Index 2006
A1: =Index_long_name&" "&Region_name&IF(Region_name="",""," ")&Year -> Global Citizenship Index 2006 | V1: Standings | Y1: One-year change, latest methodology | AB1: Standings/EU as one | AM1: Standings/Europe as one | BF1: EU countries | BG1: Europe countries
A2: Rank | B2: Country | C2: Aid | D2: Trade | E2: Investment | F2: Migration | G2: Environment | H2: Security | I2: Technology | J2: Overall (Average) | K2: True rank | L2: 2010-11 score change | M2: Rank | N2: 2009 rank (2010 method) | P2: True rank/EU | Q2: True rank/Europe | R2: Rank/EU | S2: Rank/Europe | W2: Country | X2: Score | Y2: Score | Z2: Rank | AC2: Country | AD2: Aid | AE2: Trade | AF2: Investment | AG2: Migration | AH2: Environment | AI2: Security | AJ2: Technology | AK2: Overall (Average) | AN2: Country | AO2: Aid | AP2: Trade | AQ2: Investment | AR2: Migration | AS2: Environment | AT2: Security | AU2: Technology | AV2: Overall (Average) | BC2: PPP GDP | BD2: Exchange-rate GDP | BI2: Graphing scale factor to deal with negative scores, alpha by country
A3: =M3 -> 2 | B3: Australia | D3: ='Trade 2006'!F5 -> 6.825320911 | G3: ='Environment 2006'!K5 -> 2.612682554 | H3: ='Security 2006'!J6 -> 13.68071341 | J3: =SUMPRODUCT(C3:I3,$C$33:$I$33)/SUM($C$33:$I$33) -> 7.706238957 | K3: =COUNTIF($J$3:$J$23,">"&J3)+1 -> 2 | M3: =SUM(IF(ROUND(J3,1)<ROUND($J$3:$J$23,1),1))+1 -> 2 | O3: =B3 -> Australia | P3: =(SUM(IF($J3<$J$3:$J$25*(1-BF$3:BF$25),1))+1)*(1-BF3) ->  | Q3: =(SUM(IF($J3<$J$3:$J$25*(1-BG$3:BG$25),1))+1)*(1-BG3) ->  | R3: =(SUM(IF(ROUND($J3,1)<ROUND($J$3:$J$25,1)*(1-BF$3:BF$25),1))+1)*(1-BF3) ->  | S3: =(SUM(IF(ROUND($J3,1)<ROUND($J$3:$J$25,1)*(1-BG$3:BG$25),1))+1)*(1-BG3) ->  | T3: =B3 -> Australia | U3: =ROW(U3)-ROW($U$2) -> 1 | V3: =VLOOKUP(U3,$K$3:$O$23,3,FALSE) -> 1 | W3: =VLOOKUP(U3,$K$3:$O$23,5,FALSE) -> United Kingdom | X3: =VLOOKUP(W3,$B$3:$O$23,9,FALSE) -> 8.600122867 | Y3: =VLOOKUP(W3,$B$3:$O$23,11,FALSE) -> 0 | Z3: =VLOOKUP(U3,$K$3:$O$23,4,FALSE)-V3 -> -1 | AB3: =VLOOKUP(U27,$P$3:$U$25,3,FALSE) ->  | AC3: =VLOOKUP(U27,$P$3:$U$25,5,FALSE) ->  | AD3: =VLOOKUP($AC3,$B$3:$O$25,2,FALSE) ->  | AE3: =VLOOKUP($AC3,$B$3:$O$25,3,FALSE) ->  | AF3: =VLOOKUP($AC3,$B$3:$O$25,4,FALSE) ->  | AG3: =VLOOKUP($AC3,$B$3:$O$25,5,FALSE) ->  | AH3: =VLOOKUP($AC3,$B$3:$O$25,6,FALSE) ->  | AI3: =VLOOKUP($AC3,$B$3:$O$25,7,FALSE) ->  | AJ3: =VLOOKUP($AC3,$B$3:$O$25,8,FALSE) ->  | AK3: =VLOOKUP($AC3,$B$3:$O$25,9,FALSE) ->  | AM3: =VLOOKUP(U38,$Q$3:$V$25,3,FALSE) ->  | AN3: =VLOOKUP(U38,$Q$3:$V$25,4,FALSE) ->  | AO3: =VLOOKUP($AN3,$B$3:$O$25,2,FALSE) ->  | AP3: =VLOOKUP($AN3,$B$3:$O$25,3,FALSE) ->  | AQ3: =VLOOKUP($AN3,$B$3:$O$25,4,FALSE) ->  | AR3: =VLOOKUP($AN3,$B$3:$O$25,5,FALSE) ->  | AS3: =VLOOKUP($AN3,$B$3:$O$25,6,FALSE) ->  | AT3: =VLOOKUP($AN3,$B$3:$O$25,7,FALSE) ->  | AU3: =VLOOKUP($AN3,$B$3:$O$25,8,FALSE) ->  | AV3: =VLOOKUP(AN3,$B$3:$O$25,9,FALSE) ->  | BC3: 864.9146368 | BD3: 924.8431145 | BF3: 0 | BG3: 0 | BI3: =ABS(SUM($C3:$I3*$C$33:$I$33)/SUM(IF($C3:$I3>0,$C3:$I3*$C$33:$I$33))) -> 1 | BJ3: =VLOOKUP($W3,$B$3:$I$23,COLUMN()-(COLUMN($BI$2)-1),FALSE)*C$33/SUM($C$33:$I$33)*VLOOKUP($W3,$B$3:$BI$23,(COLUMN($BI$2)-1),FALSE) -> 0 | BK3: =VLOOKUP($W3,$B$3:$I$23,COLUMN()-(COLUMN($BI$2)-1),FALSE)*D$33/SUM($C$33:$I$33)*VLOOKUP($W3,$B$3:$BI$23,(COLUMN($BI$2)-1),FALSE) -> 1.772204088 | BL3: =VLOOKUP($W3,$B$3:$I$23,COLUMN()-(COLUMN($BI$2)-1),FALSE)*E$33/SUM($C$33:$I$33)*VLOOKUP($W3,$B$3:$BI$23,(COLUMN($BI$2)-1),FALSE) -> 0 | BM3: =VLOOKUP($W3,$B$3:$I$23,COLUMN()-(COLUMN($BI$2)-1),FALSE)*F$33/SUM($C$33:$I$33)*VLOOKUP($W3,$B$3:$BI$23,(COLUMN($BI$2)-1),FALSE) -> 0 | BN3: =VLOOKUP($W3,$B$3:$I$23,COLUMN()-(COLUMN($BI$2)-1),FALSE)*G$33/SUM($C$33:$I$33)*VLOOKUP($W3,$B$3:$BI$23,(COLUMN($BI$2)-1),FALSE) -> 2.502954703 | BO3: =VLOOKUP($W3,$B$3:$I$23,COLUMN()-(COLUMN($BI$2)-1),FALSE)*H$33/SUM($C$33:$I$33)*VLOOKUP($W3,$B$3:$BI$23,(COLUMN($BI$2)-1),FALSE) -> 4.324964075 | BP3: =VLOOKUP($W3,$B$3:$I$23,COLUMN()-(COLUMN($BI$2)-1),FALSE)*I$33/SUM($C$33:$I$33)*VLOOKUP($W3,$B$3:$BI$23,(COLUMN($BI$2)-1),FALSE) -> 0
A4: 14 | B4: Brazil | D4: ='Trade 2006'!F6 -> 2.74671596 | G4: ='Environment 2006'!K6 -> 6.698526438 | H4: ='Security 2006'!J7 -> 2.332779651 | J4: 3.92600735 | K4: 15 | M4: =SUM(IF(ROUND(J4,1)<ROUND($J$3:$J$23,1),1))+1 -> 14 | O4: Brazil | P4: =(SUM(IF($J4<$J$3:$J$25*(1-BF$3:BF$25),1))+1)*(1-BF4) ->  | Q4: =(SUM(IF($J4<$J$3:$J$25*(1-BG$3:BG$25),1))+1)*(1-BG4) ->  | R4: =(SUM(IF(ROUND($J4,1)<ROUND($J$3:$J$25,1)*(1-BF$3:BF$25),1))+1)*(1-BF4) ->  | S4: =(SUM(IF(ROUND($J4,1)<ROUND($J$3:$J$25,1)*(1-BG$3:BG$25),1))+1)*(1-BG4) ->  | T4: Brazil | U4: 2 | V4: 2 | W4: Australia | X4: 7.706238957 | Y4: =VLOOKUP(W4,$B$3:$O$23,11,FALSE) -> 0 | Z4: =VLOOKUP(U4,$K$3:$O$23,4,FALSE)-V4 -> -2 | BC4: 324.6757642 | BD4: 381.0837463 | BF4: 1 | BG4: 1 | BI4: =ABS(SUM($C4:$I4*$C$33:$I$33)/SUM(IF($C4:$I4>0,$C4:$I4*$C$33:$I$33))) -> 1 | BJ4: =VLOOKUP($W4,$B$3:$I$23,COLUMN()-(COLUMN($BI$2)-1),FALSE)*C$33/SUM($C$33:$I$33)*VLOOKUP($W4,$B$3:$BI$23,(COLUMN($BI$2)-1),FALSE) -> 0 | BK4: =VLOOKUP($W4,$B$3:$I$23,COLUMN()-(COLUMN($BI$2)-1),FALSE)*D$33/SUM($C$33:$I$33)*VLOOKUP($W4,$B$3:$BI$23,(COLUMN($BI$2)-1),FALSE) -> 2.27510697 | BL4: =VLOOKUP($W4,$B$3:$I$23,COLUMN()-(COLUMN($BI$2)-1),FALSE)*E$33/SUM($C$33:$I$33)*VLOOKUP($W4,$B$3:$BI$23,(COLUMN($BI$2)-1),FALSE) -> 0 | BM4: =VLOOKUP($W4,$B$3:$I$23,COLUMN()-(COLUMN($BI$2)-1),FALSE)*F$33/SUM($C$33:$I$33)*VLOOKUP($W4,$B$3:$BI$23,(COLUMN($BI$2)-1),FALSE) -> 0 | BN4: =VLOOKUP($W4,$B$3:$I$23,COLUMN()-(COLUMN($BI$2)-1),FALSE)*G$33/SUM($C$33:$I$33)*VLOOKUP($W4,$B$3:$BI$23,(COLUMN($BI$2)-1),FALSE) -> 0.8708941848 | BO4: =VLOOKUP($W4,$B$3:$I$23,COLUMN()-(COLUMN($BI$2)-1),FALSE)*H$33/SUM($C$33:$I$33)*VLOOKUP($W4,$B$3:$BI$23,(COLUMN($BI$2)-1),FALSE) -> 4.560237802 | BP4: =VLOOKUP($W4,$B$3:$I$23,COLUMN()-(COLUMN($BI$2)-1),FALSE)*I$33/SUM($C$33:$I$33)*VLOOKUP($W4,$B$3:$BI$23,(COLUMN($BI$2)-1),FALSE) -> 0
A5: 6 | B5: Canada | D5: ='Trade 2006'!F7 -> 7.86994801 | G5: ='Environment 2006'!K7 -> 4.69670489 | H5: ='Security 2006'!J8 -> 8.035171015 | J5: 6.867274639 | K5: 6 | M5: =SUM(IF(ROUND(J5,1)<ROUND($J$3:$J$23,1),1))+1 -> 6 | O5: Canada | P5: =(SUM(IF($J5<$J$3:$J$25*(1-BF$3:BF$25),1))+1)*(1-BF5) ->  | Q5: =(SUM(IF($J5<$J$3:$J$25*(1-BG$3:BG$25),1))+1)*(1-BG5) ->  | R5: =(SUM(IF(ROUND($J5,1)<ROUND($J$3:$J$25,1)*(1-BF$3:BF$25),1))+1)*(1-BF5) ->  | S5: =(SUM(IF(ROUND($J5,1)<ROUND($J$3:$J$25,1)*(1-BG$3:BG$25),1))+1)*(1-BG5) ->  | T5: Canada | U5: 3 | V5: 3 | W5: Netherlands | X5: 7.56734547 | BC5: 391.7684736 | BD5: 471.1610778 | BF5: 1 | BG5: 1 | BI5: =ABS(SUM($C5:$I5*$C$33:$I$33)/SUM(IF($C5:$I5>0,$C5:$I5*$C$33:$I$33))) -> 1 | BJ5: =VLOOKUP($W5,$B$3:$I$23,COLUMN()-(COLUMN($BI$2)-1),FALSE)*C$33/SUM($C$33:$I$33)*VLOOKUP($W5,$B$3:$BI$23,(COLUMN($BI$2)-1),FALSE) -> 0 | BK5: =VLOOKUP($W5,$B$3:$I$23,COLUMN()-(COLUMN($BI$2)-1),FALSE)*D$33/SUM($C$33:$I$33)*VLOOKUP($W5,$B$3:$BI$23,(COLUMN($BI$2)-1),FALSE) -> 1.855706312 | BL5: =VLOOKUP($W5,$B$3:$I$23,COLUMN()-(COLUMN($BI$2)-1),FALSE)*E$33/SUM($C$33:$I$33)*VLOOKUP($W5,$B$3:$BI$23,(COLUMN($BI$2)-1),FALSE) -> 0 | BM5: =VLOOKUP($W5,$B$3:$I$23,COLUMN()-(COLUMN($BI$2)-1),FALSE)*F$33/SUM($C$33:$I$33)*VLOOKUP($W5,$B$3:$BI$23,(COLUMN($BI$2)-1),FALSE) -> 0 | BN5: =VLOOKUP($W5,$B$3:$I$23,COLUMN()-(COLUMN($BI$2)-1),FALSE)*G$33/SUM($C$33:$I$33)*VLOOKUP($W5,$B$3:$BI$23,(COLUMN($BI$2)-1),FALSE) -> 2.336503123 | BO5: =VLOOKUP($W5,$B$3:$I$23,COLUMN()-(COLUMN($BI$2)-1),FALSE)*H$33/SUM($C$33:$I$33)*VLOOKUP($W5,$B$3:$BI$23,(COLUMN($BI$2)-1),FALSE) -> 3.375136034 | BP5: =VLOOKUP($W5,$B$3:$I$23,COLUMN()-(COLUMN($BI$2)-1),FALSE)*I$33/SUM($C$33:$I$33)*VLOOKUP($W5,$B$3:$BI$23,(COLUMN($BI$2)-1),FALSE) -> 0
A6: 21 | B6: China | D6: ='Trade 2006'!F8 -> -8.952853066 | G6: ='Environment 2006'!K8 -> 6.489783281 | H6: ='Security 2006'!J9 -> 1.307817842 | J6: -0.3850839808 | K6: 21 | M6: =SUM(IF(ROUND(J6,1)<ROUND($J$3:$J$23,1),1))+1 -> 21 | O6: China | P6: =(SUM(IF($J6<$J$3:$J$25*(1-BF$3:BF$25),1))+1)*(1-BF6) ->  | Q6: =(SUM(IF($J6<$J$3:$J$25*(1-BG$3:BG$25),1))+1)*(1-BG6) ->  | R6: =(SUM(IF(ROUND($J6,1)<ROUND($J$3:$J$25,1)*(1-BF$3:BF$25),1))+1)*(1-BF6) ->  | S6: =(SUM(IF(ROUND($J6,1)<ROUND($J$3:$J$25,1)*(1-BG$3:BG$25),1))+1)*(1-BG6) ->  | T6: China | U6: 4 | V6: 4 | W6: Sweden | X6: 7.213525749 | Y6: =VLOOKUP(W6,$B$3:$O$23,11,FALSE) -> 0 | Z6: =VLOOKUP(U6,$K$3:$O$23,4,FALSE)-V6 -> -4 | BC6: 1275.638841 | BD6: 1336.067752 | BF6: 0 | BG6: 0 | BI6: =ABS(SUM($C6:$I6*$C$33:$I$33)/SUM(IF($C6:$I6>0,$C6:$I6*$C$33:$I$33))) -> 0.1481547881 | BJ6: =VLOOKUP($W6,$B$3:$I$23,COLUMN()-(COLUMN($BI$2)-1),FALSE)*C$33/SUM($C$33:$I$33)*VLOOKUP($W6,$B$3:$BI$23,(COLUMN($BI$2)-1),FALSE) -> 0 | BK6: =VLOOKUP($W6,$B$3:$I$23,COLUMN()-(COLUMN($BI$2)-1),FALSE)*D$33/SUM($C$33:$I$33)*VLOOKUP($W6,$B$3:$BI$23,(COLUMN($BI$2)-1),FALSE) -> 1.852655478 | BL6: =VLOOKUP($W6,$B$3:$I$23,COLUMN()-(COLUMN($BI$2)-1),FALSE)*E$33/SUM($C$33:$I$33)*VLOOKUP($W6,$B$3:$BI$23,(COLUMN($BI$2)-1),FALSE) -> 0 | BM6: =VLOOKUP($W6,$B$3:$I$23,COLUMN()-(COLUMN($BI$2)-1),FALSE)*F$33/SUM($C$33:$I$33)*VLOOKUP($W6,$B$3:$BI$23,(COLUMN($BI$2)-1),FALSE) -> 0 | BN6: =VLOOKUP($W6,$B$3:$I$23,COLUMN()-(COLUMN($BI$2)-1),FALSE)*G$33/SUM($C$33:$I$33)*VLOOKUP($W6,$B$3:$BI$23,(COLUMN($BI$2)-1),FALSE) -> 2.600684156 | BO6: =VLOOKUP($W6,$B$3:$I$23,COLUMN()-(COLUMN($BI$2)-1),FALSE)*H$33/SUM($C$33:$I$33)*VLOOKUP($W6,$B$3:$BI$23,(COLUMN($BI$2)-1),FALSE) -> 2.760186114 | BP6: =VLOOKUP($W6,$B$3:$I$23,COLUMN()-(COLUMN($BI$2)-1),FALSE)*I$33/SUM($C$33:$I$33)*VLOOKUP($W6,$B$3:$BI$23,(COLUMN($BI$2)-1),FALSE) -> 0
A7: 5 | B7: France | D7: ='Trade 2006'!F9 -> 5.277341673 | G7: ='Environment 2006'!K9 -> 6.684865559 | H7: ='Security 2006'!J10 -> 9.33375598 | J7: 7.098654404 | K7: 5 | M7: =SUM(IF(ROUND(J7,1)<ROUND($J$3:$J$23,1),1))+1 -> 5 | O7: France | P7: =(SUM(IF($J7<$J$3:$J$25*(1-BF$3:BF$25),1))+1)*(1-BF7) ->  | Q7: =(SUM(IF($J7<$J$3:$J$25*(1-BG$3:BG$25),1))+1)*(1-BG7) ->  | R7: =(SUM(IF(ROUND($J7,1)<ROUND($J$3:$J$25,1)*(1-BF$3:BF$25),1))+1)*(1-BF7) ->  | S7: =(SUM(IF(ROUND($J7,1)<ROUND($J$3:$J$25,1)*(1-BG$3:BG$25),1))+1)*(1-BG7) ->  | T7: France | U7: 5 | V7: 5 | W7: France | X7: 7.098654404 | Y7: 0 | Z7: -5 | BF7: 1 | BG7: 1 | BI7: =ABS(SUM($C7:$I7*$C$33:$I$33)/SUM(IF($C7:$I7>0,$C7:$I7*$C$33:$I$33))) -> 1 | BJ7: =VLOOKUP($W7,$B$3:$I$23,COLUMN()-(COLUMN($BI$2)-1),FALSE)*C$33/SUM($C$33:$I$33)*VLOOKUP($W7,$B$3:$BI$23,(COLUMN($BI$2)-1),FALSE) -> 0 | BK7: =VLOOKUP($W7,$B$3:$I$23,COLUMN()-(COLUMN($BI$2)-1),FALSE)*D$33/SUM($C$33:$I$33)*VLOOKUP($W7,$B$3:$BI$23,(COLUMN($BI$2)-1),FALSE) -> 1.759113891 | BL7: =VLOOKUP($W7,$B$3:$I$23,COLUMN()-(COLUMN($BI$2)-1),FALSE)*E$33/SUM($C$33:$I$33)*VLOOKUP($W7,$B$3:$BI$23,(COLUMN($BI$2)-1),FALSE) -> 0 | BM7: =VLOOKUP($W7,$B$3:$I$23,COLUMN()-(COLUMN($BI$2)-1),FALSE)*F$33/SUM($C$33:$I$33)*VLOOKUP($W7,$B$3:$BI$23,(COLUMN($BI$2)-1),FALSE) -> 0 | BN7: =VLOOKUP($W7,$B$3:$I$23,COLUMN()-(COLUMN($BI$2)-1),FALSE)*G$33/SUM($C$33:$I$33)*VLOOKUP($W7,$B$3:$BI$23,(COLUMN($BI$2)-1),FALSE) -> 2.22828852 | BO7: =VLOOKUP($W7,$B$3:$I$23,COLUMN()-(COLUMN($BI$2)-1),FALSE)*H$33/SUM($C$33:$I$33)*VLOOKUP($W7,$B$3:$BI$23,(COLUMN($BI$2)-1),FALSE) -> 3.111251993 | BP7: =VLOOKUP($W7,$B$3:$I$23,COLUMN()-(COLUMN($BI$2)-1),FALSE)*I$33/SUM($C$33:$I$33)*VLOOKUP($W7,$B$3:$BI$23,(COLUMN($BI$2)-1),FALSE) -> 0
A8: 9 | B8: Germany | D8: ='Trade 2006'!F10 -> 5.193587613 | G8: ='Environment 2006'!K10 -> 6.763693351 | H8: ='Security 2006'!J11 -> 5.91856381 | J8: 5.958614925 | K8: 9 | M8: =SUM(IF(ROUND(J8,1)<ROUND($J$3:$J$23,1),1))+1 -> 9 | O8: Germany | P8: =(SUM(IF($J8<$J$3:$J$25*(1-BF$3:BF$25),1))+1)*(1-BF8) ->  | Q8: =(SUM(IF($J8<$J$3:$J$25*(1-BG$3:BG$25),1))+1)*(1-BG8) ->  | R8: =(SUM(IF(ROUND($J8,1)<ROUND($J$3:$J$25,1)*(1-BF$3:BF$25),1))+1)*(1-BF8) ->  | S8: =(SUM(IF(ROUND($J8,1)<ROUND($J$3:$J$25,1)*(1-BG$3:BG$25),1))+1)*(1-BG8) ->  | T8: Germany | U8: 6 | V8: 6 | W8: Canada | X8: 6.867274639 | Y8: 0 | Z8: -6 | BC8: 208.5665341 | BD8: 309.5961928 | BF8: 1 | BG8: 1 | BI8: =ABS(SUM($C8:$I8*$C$33:$I$33)/SUM(IF($C8:$I8>0,$C8:$I8*$C$33:$I$33))) -> 1 | BJ8: =VLOOKUP($W8,$B$3:$I$23,COLUMN()-(COLUMN($BI$2)-1),FALSE)*C$33/SUM($C$33:$I$33)*VLOOKUP($W8,$B$3:$BI$23,(COLUMN($BI$2)-1),FALSE) -> 0 | BK8: =VLOOKUP($W8,$B$3:$I$23,COLUMN()-(COLUMN($BI$2)-1),FALSE)*D$33/SUM($C$33:$I$33)*VLOOKUP($W8,$B$3:$BI$23,(COLUMN($BI$2)-1),FALSE) -> 2.623316003 | BL8: =VLOOKUP($W8,$B$3:$I$23,COLUMN()-(COLUMN($BI$2)-1),FALSE)*E$33/SUM($C$33:$I$33)*VLOOKUP($W8,$B$3:$BI$23,(COLUMN($BI$2)-1),FALSE) -> 0 | BM8: =VLOOKUP($W8,$B$3:$I$23,COLUMN()-(COLUMN($BI$2)-1),FALSE)*F$33/SUM($C$33:$I$33)*VLOOKUP($W8,$B$3:$BI$23,(COLUMN($BI$2)-1),FALSE) -> 0 | BN8: =VLOOKUP($W8,$B$3:$I$23,COLUMN()-(COLUMN($BI$2)-1),FALSE)*G$33/SUM($C$33:$I$33)*VLOOKUP($W8,$B$3:$BI$23,(COLUMN($BI$2)-1),FALSE) -> 1.565568297 | BO8: =VLOOKUP($W8,$B$3:$I$23,COLUMN()-(COLUMN($BI$2)-1),FALSE)*H$33/SUM($C$33:$I$33)*VLOOKUP($W8,$B$3:$BI$23,(COLUMN($BI$2)-1),FALSE) -> 2.678390338 | BP8: =VLOOKUP($W8,$B$3:$I$23,COLUMN()-(COLUMN($BI$2)-1),FALSE)*I$33/SUM($C$33:$I$33)*VLOOKUP($W8,$B$3:$BI$23,(COLUMN($BI$2)-1),FALSE) -> 0
A9: 20 | B9: India | D9: ='Trade 2006'!F11 -> -7.179692311 | G9: ='Environment 2006'!K11 -> 7.969006637 | H9: ='Security 2006'!J12 -> 1.797816545 | J9: 0.862376957 | K9: 20 | M9: =SUM(IF(ROUND(J9,1)<ROUND($J$3:$J$23,1),1))+1 -> 20 | O9: India | P9: =(SUM(IF($J9<$J$3:$J$25*(1-BF$3:BF$25),1))+1)*(1-BF9) ->  | Q9: =(SUM(IF($J9<$J$3:$J$25*(1-BG$3:BG$25),1))+1)*(1-BG9) ->  | R9: =(SUM(IF(ROUND($J9,1)<ROUND($J$3:$J$25,1)*(1-BF$3:BF$25),1))+1)*(1-BF9) ->  | S9: =(SUM(IF(ROUND($J9,1)<ROUND($J$3:$J$25,1)*(1-BG$3:BG$25),1))+1)*(1-BG9) ->  | T9: India | U9: 7 | V9: 7 | W9: Italy | X9: 6.290223229 | Y9: 0 | Z9: -7 | BC9: 188.2605978 | BD9: 237.9893965 | BF9: 1 | BG9: 1 | BI9: =ABS(SUM($C9:$I9*$C$33:$I$33)/SUM(IF($C9:$I9>0,$C9:$I9*$C$33:$I$33))) -> 0.2648897009 | BJ9: =VLOOKUP($W9,$B$3:$I$23,COLUMN()-(COLUMN($BI$2)-1),FALSE)*C$33/SUM($C$33:$I$33)*VLOOKUP($W9,$B$3:$BI$23,(COLUMN($BI$2)-1),FALSE) -> 0 | BK9: =VLOOKUP($W9,$B$3:$I$23,COLUMN()-(COLUMN($BI$2)-1),FALSE)*D$33/SUM($C$33:$I$33)*VLOOKUP($W9,$B$3:$BI$23,(COLUMN($BI$2)-1),FALSE) -> 1.806635866 | BL9: =VLOOKUP($W9,$B$3:$I$23,COLUMN()-(COLUMN($BI$2)-1),FALSE)*E$33/SUM($C$33:$I$33)*VLOOKUP($W9,$B$3:$BI$23,(COLUMN($BI$2)-1),FALSE) -> 0 | BM9: =VLOOKUP($W9,$B$3:$I$23,COLUMN()-(COLUMN($BI$2)-1),FALSE)*F$33/SUM($C$33:$I$33)*VLOOKUP($W9,$B$3:$BI$23,(COLUMN($BI$2)-1),FALSE) -> 0 | BN9: =VLOOKUP($W9,$B$3:$I$23,COLUMN()-(COLUMN($BI$2)-1),FALSE)*G$33/SUM($C$33:$I$33)*VLOOKUP($W9,$B$3:$BI$23,(COLUMN($BI$2)-1),FALSE) -> 2.104353499 | BO9: =VLOOKUP($W9,$B$3:$I$23,COLUMN()-(COLUMN($BI$2)-1),FALSE)*H$33/SUM($C$33:$I$33)*VLOOKUP($W9,$B$3:$BI$23,(COLUMN($BI$2)-1),FALSE) -> 2.379233865 | BP9: =VLOOKUP($W9,$B$3:$I$23,COLUMN()-(COLUMN($BI$2)-1),FALSE)*I$33/SUM($C$33:$I$33)*VLOOKUP($W9,$B$3:$BI$23,(COLUMN($BI$2)-1),FALSE) -> 0
A10: 16 | B10: Indonesia | D10: ='Trade 2006'!F12 -> 5.660789665 | G10: ='Environment 2006'!K12 -> 4.601583132 | H10: ='Security 2006'!J13 -> 0.8999026566 | J10: 3.720758484 | K10: 16 | M10: =SUM(IF(ROUND(J10,1)<ROUND($J$3:$J$23,1),1))+1 -> 16 | O10: Indonesia | P10: =(SUM(IF($J10<$J$3:$J$25*(1-BF$3:BF$25),1))+1)*(1-BF10) ->  | Q10: =(SUM(IF($J10<$J$3:$J$25*(1-BG$3:BG$25),1))+1)*(1-BG10) ->  | R10: =(SUM(IF(ROUND($J10,1)<ROUND($J$3:$J$25,1)*(1-BF$3:BF$25),1))+1)*(1-BF10) ->  | S10: =(SUM(IF(ROUND($J10,1)<ROUND($J$3:$J$25,1)*(1-BG$3:BG$25),1))+1)*(1-BG10) ->  | T10: Indonesia | U10: 8 | V10: 8 | W10: United States | X10: 6.23834976 | Y10: 0 | Z10: -8 | BC10: 2173.316891 | BD10: 2649.390055 | BF10: 1 | BG10: 1 | BI10: =ABS(SUM($C10:$I10*$C$33:$I$33)/SUM(IF($C10:$I10>0,$C10:$I10*$C$33:$I$33))) -> 1 | BJ10: =VLOOKUP($W10,$B$3:$I$23,COLUMN()-(COLUMN($BI$2)-1),FALSE)*C$33/SUM($C$33:$I$33)*VLOOKUP($W10,$B$3:$BI$23,(COLUMN($BI$2)-1),FALSE) -> 0 | BK10: =VLOOKUP($W10,$B$3:$I$23,COLUMN()-(COLUMN($BI$2)-1),FALSE)*D$33/SUM($C$33:$I$33)*VLOOKUP($W10,$B$3:$BI$23,(COLUMN($BI$2)-1),FALSE) -> 2.639857356 | BL10: =VLOOKUP($W10,$B$3:$I$23,COLUMN()-(COLUMN($BI$2)-1),FALSE)*E$33/SUM($C$33:$I$33)*VLOOKUP($W10,$B$3:$BI$23,(COLUMN($BI$2)-1),FALSE) -> 0 | BM10: =VLOOKUP($W10,$B$3:$I$23,COLUMN()-(COLUMN($BI$2)-1),FALSE)*F$33/SUM($C$33:$I$33)*VLOOKUP($W10,$B$3:$BI$23,(COLUMN($BI$2)-1),FALSE) -> 0 | BN10: =VLOOKUP($W10,$B$3:$I$23,COLUMN()-(COLUMN($BI$2)-1),FALSE)*G$33/SUM($C$33:$I$33)*VLOOKUP($W10,$B$3:$BI$23,(COLUMN($BI$2)-1),FALSE) -> 1.148852637 | BO10: =VLOOKUP($W10,$B$3:$I$23,COLUMN()-(COLUMN($BI$2)-1),FALSE)*H$33/SUM($C$33:$I$33)*VLOOKUP($W10,$B$3:$BI$23,(COLUMN($BI$2)-1),FALSE) -> 2.449639767 | BP10: =VLOOKUP($W10,$B$3:$I$23,COLUMN()-(COLUMN($BI$2)-1),FALSE)*I$33/SUM($C$33:$I$33)*VLOOKUP($W10,$B$3:$BI$23,(COLUMN($BI$2)-1),FALSE) -> 0
A11: 7 | B11: Italy | D11: ='Trade 2006'!F13 -> 5.419907598 | G11: ='Environment 2006'!K13 -> 6.313060496 | H11: ='Security 2006'!J14 -> 7.137701594 | J11: 6.290223229 | K11: 7 | M11: =SUM(IF(ROUND(J11,1)<ROUND($J$3:$J$23,1),1))+1 -> 7 | O11: Italy | P11: =(SUM(IF($J11<$J$3:$J$25*(1-BF$3:BF$25),1))+1)*(1-BF11) ->  | Q11: =(SUM(IF($J11<$J$3:$J$25*(1-BG$3:BG$25),1))+1)*(1-BG11) ->  | R11: =(SUM(IF(ROUND($J11,1)<ROUND($J$3:$J$25,1)*(1-BF$3:BF$25),1))+1)*(1-BF11) ->  | S11: =(SUM(IF(ROUND($J11,1)<ROUND($J$3:$J$25,1)*(1-BG$3:BG$25),1))+1)*(1-BG11) ->  | T11: Italy | U11: 9 | V11: 9 | W11: Germany | X11: 5.958614925 | Y11: 0 | Z11: -9 | BC11: 2975.329419 | BD11: 3330.031747 | BF11: 1 | BG11: 1 | BI11: =ABS(SUM($C11:$I11*$C$33:$I$33)/SUM(IF($C11:$I11>0,$C11:$I11*$C$33:$I$33))) -> 1 | BJ11: =VLOOKUP($W11,$B$3:$I$23,COLUMN()-(COLUMN($BI$2)-1),FALSE)*C$33/SUM($C$33:$I$33)*VLOOKUP($W11,$B$3:$BI$23,(COLUMN($BI$2)-1),FALSE) -> 0 | BK11: =VLOOKUP($W11,$B$3:$I$23,COLUMN()-(COLUMN($BI$2)-1),FALSE)*D$33/SUM($C$33:$I$33)*VLOOKUP($W11,$B$3:$BI$23,(COLUMN($BI$2)-1),FALSE) -> 1.731195871 | BL11: =VLOOKUP($W11,$B$3:$I$23,COLUMN()-(COLUMN($BI$2)-1),FALSE)*E$33/SUM($C$33:$I$33)*VLOOKUP($W11,$B$3:$BI$23,(COLUMN($BI$2)-1),FALSE) -> 0 | BM11: =VLOOKUP($W11,$B$3:$I$23,COLUMN()-(COLUMN($BI$2)-1),FALSE)*F$33/SUM($C$33:$I$33)*VLOOKUP($W11,$B$3:$BI$23,(COLUMN($BI$2)-1),FALSE) -> 0 | BN11: =VLOOKUP($W11,$B$3:$I$23,COLUMN()-(COLUMN($BI$2)-1),FALSE)*G$33/SUM($C$33:$I$33)*VLOOKUP($W11,$B$3:$BI$23,(COLUMN($BI$2)-1),FALSE) -> 2.25456445 | BO11: =VLOOKUP($W11,$B$3:$I$23,COLUMN()-(COLUMN($BI$2)-1),FALSE)*H$33/SUM($C$33:$I$33)*VLOOKUP($W11,$B$3:$BI$23,(COLUMN($BI$2)-1),FALSE) -> 1.972854603 | BP11: =VLOOKUP($W11,$B$3:$I$23,COLUMN()-(COLUMN($BI$2)-1),FALSE)*I$33/SUM($C$33:$I$33)*VLOOKUP($W11,$B$3:$BI$23,(COLUMN($BI$2)-1),FALSE) -> 0
A12: 14 | B12: Japan | D12: ='Trade 2006'!F14 -> 6.757017687 | G12: ='Environment 2006'!K14 -> 2.747878759 | H12: ='Security 2006'!J15 -> 2.342578318 | J12: 3.949158255 | K12: 14 | M12: =SUM(IF(ROUND(J12,1)<ROUND($J$3:$J$23,1),1))+1 -> 14 | O12: Japan | P12: =(SUM(IF($J12<$J$3:$J$25*(1-BF$3:BF$25),1))+1)*(1-BF12) ->  | Q12: =(SUM(IF($J12<$J$3:$J$25*(1-BG$3:BG$25),1))+1)*(1-BG12) ->  | R12: =(SUM(IF(ROUND($J12,1)<ROUND($J$3:$J$25,1)*(1-BF$3:BF$25),1))+1)*(1-BF12) ->  | S12: =(SUM(IF(ROUND($J12,1)<ROUND($J$3:$J$25,1)*(1-BG$3:BG$25),1))+1)*(1-BG12) ->  | T12: Japan | U12: 10 | V12: 10 | W12: Spain | X12: 5.278285319 | Y12: 0 | Z12: -10 | BC12: 334.1816627 | BD12: 329.9240509 | BF12: 1 | BG12: 1 | BI12: =ABS(SUM($C12:$I12*$C$33:$I$33)/SUM(IF($C12:$I12>0,$C12:$I12*$C$33:$I$33))) -> 1 | BJ12: =VLOOKUP($W12,$B$3:$I$23,COLUMN()-(COLUMN($BI$2)-1),FALSE)*C$33/SUM($C$33:$I$33)*VLOOKUP($W12,$B$3:$BI$23,(COLUMN($BI$2)-1),FALSE) -> 0 | BK12: =VLOOKUP($W12,$B$3:$I$23,COLUMN()-(COLUMN($BI$2)-1),FALSE)*D$33/SUM($C$33:$I$33)*VLOOKUP($W12,$B$3:$BI$23,(COLUMN($BI$2)-1),FALSE) -> 1.78764918 | BL12: =VLOOKUP($W12,$B$3:$I$23,COLUMN()-(COLUMN($BI$2)-1),FALSE)*E$33/SUM($C$33:$I$33)*VLOOKUP($W12,$B$3:$BI$23,(COLUMN($BI$2)-1),FALSE) -> 0 | BM12: =VLOOKUP($W12,$B$3:$I$23,COLUMN()-(COLUMN($BI$2)-1),FALSE)*F$33/SUM($C$33:$I$33)*VLOOKUP($W12,$B$3:$BI$23,(COLUMN($BI$2)-1),FALSE) -> 0 | BN12: =VLOOKUP($W12,$B$3:$I$23,COLUMN()-(COLUMN($BI$2)-1),FALSE)*G$33/SUM($C$33:$I$33)*VLOOKUP($W12,$B$3:$BI$23,(COLUMN($BI$2)-1),FALSE) -> 2.026827705 | BO12: =VLOOKUP($W12,$B$3:$I$23,COLUMN()-(COLUMN($BI$2)-1),FALSE)*H$33/SUM($C$33:$I$33)*VLOOKUP($W12,$B$3:$BI$23,(COLUMN($BI$2)-1),FALSE) -> 1.463808434 | BP12: =VLOOKUP($W12,$B$3:$I$23,COLUMN()-(COLUMN($BI$2)-1),FALSE)*I$33/SUM($C$33:$I$33)*VLOOKUP($W12,$B$3:$BI$23,(COLUMN($BI$2)-1),FALSE) -> 0
A13: 17 | B13: Mexico | D13: ='Trade 2006'!F15 -> 3.587042614 | G13: ='Environment 2006'!K15 -> 4.440445968 | H13: ='Security 2006'!J16 -> 2.069701698 | J13: 3.365730093 | K13: 17 | M13: =SUM(IF(ROUND(J13,1)<ROUND($J$3:$J$23,1),1))+1 -> 17 | O13: Mexico | P13: =(SUM(IF($J13<$J$3:$J$25*(1-BF$3:BF$25),1))+1)*(1-BF13) ->  | Q13: =(SUM(IF($J13<$J$3:$J$25*(1-BG$3:BG$25),1))+1)*(1-BG13) ->  | R13: =(SUM(IF(ROUND($J13,1)<ROUND($J$3:$J$25,1)*(1-BF$3:BF$25),1))+1)*(1-BF13) ->  | S13: =(SUM(IF(ROUND($J13,1)<ROUND($J$3:$J$25,1)*(1-BG$3:BG$25),1))+1)*(1-BG13) ->  | T13: Mexico | U13: 11 | V13: 11 | W13: Switzerland | X13: 5.06459131 | Y13: 0 | Z13: -11 | BF13: 1 | BG13: 1 | BI13: =ABS(SUM($C13:$I13*$C$33:$I$33)/SUM(IF($C13:$I13>0,$C13:$I13*$C$33:$I$33))) -> 1 | BJ13: =VLOOKUP($W13,$B$3:$I$23,COLUMN()-(COLUMN($BI$2)-1),FALSE)*C$33/SUM($C$33:$I$33)*VLOOKUP($W13,$B$3:$BI$23,(COLUMN($BI$2)-1),FALSE) -> 0 | BK13: =VLOOKUP($W13,$B$3:$I$23,COLUMN()-(COLUMN($BI$2)-1),FALSE)*D$33/SUM($C$33:$I$33)*VLOOKUP($W13,$B$3:$BI$23,(COLUMN($BI$2)-1),FALSE) -> 1.359671026 | BL13: =VLOOKUP($W13,$B$3:$I$23,COLUMN()-(COLUMN($BI$2)-1),FALSE)*E$33/SUM($C$33:$I$33)*VLOOKUP($W13,$B$3:$BI$23,(COLUMN($BI$2)-1),FALSE) -> 0 | BM13: =VLOOKUP($W13,$B$3:$I$23,COLUMN()-(COLUMN($BI$2)-1),FALSE)*F$33/SUM($C$33:$I$33)*VLOOKUP($W13,$B$3:$BI$23,(COLUMN($BI$2)-1),FALSE) -> 0 | BN13: =VLOOKUP($W13,$B$3:$I$23,COLUMN()-(COLUMN($BI$2)-1),FALSE)*G$33/SUM($C$33:$I$33)*VLOOKUP($W13,$B$3:$BI$23,(COLUMN($BI$2)-1),FALSE) -> 1.54335458 | BO13: =VLOOKUP($W13,$B$3:$I$23,COLUMN()-(COLUMN($BI$2)-1),FALSE)*H$33/SUM($C$33:$I$33)*VLOOKUP($W13,$B$3:$BI$23,(COLUMN($BI$2)-1),FALSE) -> 2.161565704 | BP13: =VLOOKUP($W13,$B$3:$I$23,COLUMN()-(COLUMN($BI$2)-1),FALSE)*I$33/SUM($C$33:$I$33)*VLOOKUP($W13,$B$3:$BI$23,(COLUMN($BI$2)-1),FALSE) -> 0
A14: 3 | B14: Netherlands | D14: ='Trade 2006'!F16 -> 5.567118937 | G14: ='Environment 2006'!K16 -> 7.009509368 | H14: ='Security 2006'!J17 -> 10.1254081 | J14: 7.56734547 | K14: 3 | M14: =SUM(IF(ROUND(J14,1)<ROUND($J$3:$J$23,1),1))+1 -> 3 | O14: Netherlands | P14: =(SUM(IF($J14<$J$3:$J$25*(1-BF$3:BF$25),1))+1)*(1-BF14) ->  | Q14: =(SUM(IF($J14<$J$3:$J$25*(1-BG$3:BG$25),1))+1)*(1-BG14) ->  | R14: =(SUM(IF(ROUND($J14,1)<ROUND($J$3:$J$25,1)*(1-BF$3:BF$25),1))+1)*(1-BF14) ->  | S14: =(SUM(IF(ROUND($J14,1)<ROUND($J$3:$J$25,1)*(1-BG$3:BG$25),1))+1)*(1-BG14) ->  | T14: Netherlands | U14: 12 | V14: 12 | W14: Turkey | X14: 4.560065184 | Y14: 0 | Z14: -12 | BC14: 181.1218596 | BD14: 227.1925699 | BF14: 1 | BG14: 1 | BI14: =ABS(SUM($C14:$I14*$C$33:$I$33)/SUM(IF($C14:$I14>0,$C14:$I14*$C$33:$I$33))) -> 1 | BJ14: =VLOOKUP($W14,$B$3:$I$23,COLUMN()-(COLUMN($BI$2)-1),FALSE)*C$33/SUM($C$33:$I$33)*VLOOKUP($W14,$B$3:$BI$23,(COLUMN($BI$2)-1),FALSE) -> 0 | BK14: =VLOOKUP($W14,$B$3:$I$23,COLUMN()-(COLUMN($BI$2)-1),FALSE)*D$33/SUM($C$33:$I$33)*VLOOKUP($W14,$B$3:$BI$23,(COLUMN($BI$2)-1),FALSE) -> 1.489518331 | BL14: =VLOOKUP($W14,$B$3:$I$23,COLUMN()-(COLUMN($BI$2)-1),FALSE)*E$33/SUM($C$33:$I$33)*VLOOKUP($W14,$B$3:$BI$23,(COLUMN($BI$2)-1),FALSE) -> 0 | BM14: =VLOOKUP($W14,$B$3:$I$23,COLUMN()-(COLUMN($BI$2)-1),FALSE)*F$33/SUM($C$33:$I$33)*VLOOKUP($W14,$B$3:$BI$23,(COLUMN($BI$2)-1),FALSE) -> 0 | BN14: =VLOOKUP($W14,$B$3:$I$23,COLUMN()-(COLUMN($BI$2)-1),FALSE)*G$33/SUM($C$33:$I$33)*VLOOKUP($W14,$B$3:$BI$23,(COLUMN($BI$2)-1),FALSE) -> 1.721570701 | BO14: =VLOOKUP($W14,$B$3:$I$23,COLUMN()-(COLUMN($BI$2)-1),FALSE)*H$33/SUM($C$33:$I$33)*VLOOKUP($W14,$B$3:$BI$23,(COLUMN($BI$2)-1),FALSE) -> 1.348976151 | BP14: =VLOOKUP($W14,$B$3:$I$23,COLUMN()-(COLUMN($BI$2)-1),FALSE)*I$33/SUM($C$33:$I$33)*VLOOKUP($W14,$B$3:$BI$23,(COLUMN($BI$2)-1),FALSE) -> 0
A15: 13 | B15: Russia | D15: ='Trade 2006'!F17 -> 2.189027273 | G15: ='Environment 2006'!K17 -> 7.446236345 | H15: ='Security 2006'!J18 -> 3.504130881 | J15: 4.379798166 | K15: 13 | M15: =SUM(IF(ROUND(J15,1)<ROUND($J$3:$J$23,1),1))+1 -> 13 | O15: Russia | P15: =(SUM(IF($J15<$J$3:$J$25*(1-BF$3:BF$25),1))+1)*(1-BF15) ->  | Q15: =(SUM(IF($J15<$J$3:$J$25*(1-BG$3:BG$25),1))+1)*(1-BG15) ->  | R15: =(SUM(IF(ROUND($J15,1)<ROUND($J$3:$J$25,1)*(1-BF$3:BF$25),1))+1)*(1-BF15) ->  | S15: =(SUM(IF(ROUND($J15,1)<ROUND($J$3:$J$25,1)*(1-BG$3:BG$25),1))+1)*(1-BG15) ->  | T15: Russia | U15: 13 | V15: 13 | W15: Russia | X15: 4.379798166 | Y15: 0 | Z15: -13 | BC15: 1952.973324 | BD15: 2112.780108 | BF15: 1 | BG15: 1 | BI15: =ABS(SUM($C15:$I15*$C$33:$I$33)/SUM(IF($C15:$I15>0,$C15:$I15*$C$33:$I$33))) -> 1 | BJ15: =VLOOKUP($W15,$B$3:$I$23,COLUMN()-(COLUMN($BI$2)-1),FALSE)*C$33/SUM($C$33:$I$33)*VLOOKUP($W15,$B$3:$BI$23,(COLUMN($BI$2)-1),FALSE) -> 0 | BK15: =VLOOKUP($W15,$B$3:$I$23,COLUMN()-(COLUMN($BI$2)-1),FALSE)*D$33/SUM($C$33:$I$33)*VLOOKUP($W15,$B$3:$BI$23,(COLUMN($BI$2)-1),FALSE) -> 0.7296757576 | BL15: =VLOOKUP($W15,$B$3:$I$23,COLUMN()-(COLUMN($BI$2)-1),FALSE)*E$33/SUM($C$33:$I$33)*VLOOKUP($W15,$B$3:$BI$23,(COLUMN($BI$2)-1),FALSE) -> 0 | BM15: =VLOOKUP($W15,$B$3:$I$23,COLUMN()-(COLUMN($BI$2)-1),FALSE)*F$33/SUM($C$33:$I$33)*VLOOKUP($W15,$B$3:$BI$23,(COLUMN($BI$2)-1),FALSE) -> 0 | BN15: =VLOOKUP($W15,$B$3:$I$23,COLUMN()-(COLUMN($BI$2)-1),FALSE)*G$33/SUM($C$33:$I$33)*VLOOKUP($W15,$B$3:$BI$23,(COLUMN($BI$2)-1),FALSE) -> 2.482078782 | BO15: =VLOOKUP($W15,$B$3:$I$23,COLUMN()-(COLUMN($BI$2)-1),FALSE)*H$33/SUM($C$33:$I$33)*VLOOKUP($W15,$B$3:$BI$23,(COLUMN($BI$2)-1),FALSE) -> 1.168043627 | BP15: =VLOOKUP($W15,$B$3:$I$23,COLUMN()-(COLUMN($BI$2)-1),FALSE)*I$33/SUM($C$33:$I$33)*VLOOKUP($W15,$B$3:$BI$23,(COLUMN($BI$2)-1),FALSE) -> 0
A16: 18 | B16: Saudi Arabia | D16: ='Trade 2006'!F18 -> 6.062292662 | G16: ='Environment 2006'!K18 -> 0.9573098926 | H16: ='Security 2006'!J19 -> 0.8830098652 | J16: 2.63420414 | K16: 18 | M16: =SUM(IF(ROUND(J16,1)<ROUND($J$3:$J$23,1),1))+1 -> 18 | O16: Saudi Arabia | P16: =(SUM(IF($J16<$J$3:$J$25*(1-BF$3:BF$25),1))+1)*(1-BF16) ->  | Q16: =(SUM(IF($J16<$J$3:$J$25*(1-BG$3:BG$25),1))+1)*(1-BG16) ->  | R16: =(SUM(IF(ROUND($J16,1)<ROUND($J$3:$J$25,1)*(1-BF$3:BF$25),1))+1)*(1-BF16) ->  | S16: =(SUM(IF(ROUND($J16,1)<ROUND($J$3:$J$25,1)*(1-BG$3:BG$25),1))+1)*(1-BG16) ->  | T16: Saudi Arabia | U16: 14 | V16: 14 | W16: Japan | X16: 3.949158255 | Y16: 0 | Z16: -14 | BC16: 4135.294075 | BD16: 5068.996215 | BF16: 0 | BG16: 0 | BI16: =ABS(SUM($C16:$I16*$C$33:$I$33)/SUM(IF($C16:$I16>0,$C16:$I16*$C$33:$I$33))) -> 1 | BJ16: =VLOOKUP($W16,$B$3:$I$23,COLUMN()-(COLUMN($BI$2)-1),FALSE)*C$33/SUM($C$33:$I$33)*VLOOKUP($W16,$B$3:$BI$23,(COLUMN($BI$2)-1),FALSE) -> 0 | BK16: =VLOOKUP($W16,$B$3:$I$23,COLUMN()-(COLUMN($BI$2)-1),FALSE)*D$33/SUM($C$33:$I$33)*VLOOKUP($W16,$B$3:$BI$23,(COLUMN($BI$2)-1),FALSE) -> 2.252339229 | BL16: =VLOOKUP($W16,$B$3:$I$23,COLUMN()-(COLUMN($BI$2)-1),FALSE)*E$33/SUM($C$33:$I$33)*VLOOKUP($W16,$B$3:$BI$23,(COLUMN($BI$2)-1),FALSE) -> 0 | BM16: =VLOOKUP($W16,$B$3:$I$23,COLUMN()-(COLUMN($BI$2)-1),FALSE)*F$33/SUM($C$33:$I$33)*VLOOKUP($W16,$B$3:$BI$23,(COLUMN($BI$2)-1),FALSE) -> 0 | BN16: =VLOOKUP($W16,$B$3:$I$23,COLUMN()-(COLUMN($BI$2)-1),FALSE)*G$33/SUM($C$33:$I$33)*VLOOKUP($W16,$B$3:$BI$23,(COLUMN($BI$2)-1),FALSE) -> 0.9159595862 | BO16: =VLOOKUP($W16,$B$3:$I$23,COLUMN()-(COLUMN($BI$2)-1),FALSE)*H$33/SUM($C$33:$I$33)*VLOOKUP($W16,$B$3:$BI$23,(COLUMN($BI$2)-1),FALSE) -> 0.7808594394 | BP16: =VLOOKUP($W16,$B$3:$I$23,COLUMN()-(COLUMN($BI$2)-1),FALSE)*I$33/SUM($C$33:$I$33)*VLOOKUP($W16,$B$3:$BI$23,(COLUMN($BI$2)-1),FALSE) -> 0
A17: 19 | B17: South Korea | D17: ='Trade 2006'!F19 -> 1.092071883 | G17: ='Environment 2006'!K19 -> 2.870992965 | H17: ='Security 2006'!J20 -> 1.928719005 | J17: 1.963927951 | K17: 19 | M17: =SUM(IF(ROUND(J17,1)<ROUND($J$3:$J$23,1),1))+1 -> 19 | O17: South Korea | P17: =(SUM(IF($J17<$J$3:$J$25*(1-BF$3:BF$25),1))+1)*(1-BF17) ->  | Q17: =(SUM(IF($J17<$J$3:$J$25*(1-BG$3:BG$25),1))+1)*(1-BG17) ->  | R17: =(SUM(IF(ROUND($J17,1)<ROUND($J$3:$J$25,1)*(1-BF$3:BF$25),1))+1)*(1-BF17) ->  | S17: =(SUM(IF(ROUND($J17,1)<ROUND($J$3:$J$25,1)*(1-BG$3:BG$25),1))+1)*(1-BG17) ->  | T17: South Korea | U17: 15 | V17: 14 | W17: Brazil | X17: 3.92600735 | Y17: 0 | Z17: -14 | BF17: 1 | BG17: 1 | BI17: =ABS(SUM($C17:$I17*$C$33:$I$33)/SUM(IF($C17:$I17>0,$C17:$I17*$C$33:$I$33))) -> 1 | BJ17: =VLOOKUP($W17,$B$3:$I$23,COLUMN()-(COLUMN($BI$2)-1),FALSE)*C$33/SUM($C$33:$I$33)*VLOOKUP($W17,$B$3:$BI$23,(COLUMN($BI$2)-1),FALSE) -> 0 | BK17: =VLOOKUP($W17,$B$3:$I$23,COLUMN()-(COLUMN($BI$2)-1),FALSE)*D$33/SUM($C$33:$I$33)*VLOOKUP($W17,$B$3:$BI$23,(COLUMN($BI$2)-1),FALSE) -> 0.9155719867 | BL17: =VLOOKUP($W17,$B$3:$I$23,COLUMN()-(COLUMN($BI$2)-1),FALSE)*E$33/SUM($C$33:$I$33)*VLOOKUP($W17,$B$3:$BI$23,(COLUMN($BI$2)-1),FALSE) -> 0 | BM17: =VLOOKUP($W17,$B$3:$I$23,COLUMN()-(COLUMN($BI$2)-1),FALSE)*F$33/SUM($C$33:$I$33)*VLOOKUP($W17,$B$3:$BI$23,(COLUMN($BI$2)-1),FALSE) -> 0 | BN17: =VLOOKUP($W17,$B$3:$I$23,COLUMN()-(COLUMN($BI$2)-1),FALSE)*G$33/SUM($C$33:$I$33)*VLOOKUP($W17,$B$3:$BI$23,(COLUMN($BI$2)-1),FALSE) -> 2.232842146 | BO17: =VLOOKUP($W17,$B$3:$I$23,COLUMN()-(COLUMN($BI$2)-1),FALSE)*H$33/SUM($C$33:$I$33)*VLOOKUP($W17,$B$3:$BI$23,(COLUMN($BI$2)-1),FALSE) -> 0.777593217 | BP17: =VLOOKUP($W17,$B$3:$I$23,COLUMN()-(COLUMN($BI$2)-1),FALSE)*I$33/SUM($C$33:$I$33)*VLOOKUP($W17,$B$3:$BI$23,(COLUMN($BI$2)-1),FALSE) -> 0
A18: 10 | B18: Spain | D18: ='Trade 2006'!F20 -> 5.36294754 | G18: ='Environment 2006'!K20 -> 6.080483115 | H18: ='Security 2006'!J21 -> 4.391425301 | J18: 5.278285319 | K18: 10 | M18: =SUM(IF(ROUND(J18,1)<ROUND($J$3:$J$23,1),1))+1 -> 10 | O18: Spain | P18: =(SUM(IF($J18<$J$3:$J$25*(1-BF$3:BF$25),1))+1)*(1-BF18) ->  | Q18: =(SUM(IF($J18<$J$3:$J$25*(1-BG$3:BG$25),1))+1)*(1-BG18) ->  | R18: =(SUM(IF(ROUND($J18,1)<ROUND($J$3:$J$25,1)*(1-BF$3:BF$25),1))+1)*(1-BF18) ->  | S18: =(SUM(IF(ROUND($J18,1)<ROUND($J$3:$J$25,1)*(1-BG$3:BG$25),1))+1)*(1-BG18) ->  | T18: Spain | U18: 16 | V18: 16 | W18: Indonesia | X18: 3.720758484 | Y18: 0 | Z18: -16 | BC18: 672.4287201 | BD18: 792.128258 | BF18: 1 | BG18: 1 | BI18: =ABS(SUM($C18:$I18*$C$33:$I$33)/SUM(IF($C18:$I18>0,$C18:$I18*$C$33:$I$33))) -> 1 | BJ18: =VLOOKUP($W18,$B$3:$I$23,COLUMN()-(COLUMN($BI$2)-1),FALSE)*C$33/SUM($C$33:$I$33)*VLOOKUP($W18,$B$3:$BI$23,(COLUMN($BI$2)-1),FALSE) -> 0 | BK18: =VLOOKUP($W18,$B$3:$I$23,COLUMN()-(COLUMN($BI$2)-1),FALSE)*D$33/SUM($C$33:$I$33)*VLOOKUP($W18,$B$3:$BI$23,(COLUMN($BI$2)-1),FALSE) -> 1.886929888 | BL18: =VLOOKUP($W18,$B$3:$I$23,COLUMN()-(COLUMN($BI$2)-1),FALSE)*E$33/SUM($C$33:$I$33)*VLOOKUP($W18,$B$3:$BI$23,(COLUMN($BI$2)-1),FALSE) -> 0 | BM18: =VLOOKUP($W18,$B$3:$I$23,COLUMN()-(COLUMN($BI$2)-1),FALSE)*F$33/SUM($C$33:$I$33)*VLOOKUP($W18,$B$3:$BI$23,(COLUMN($BI$2)-1),FALSE) -> 0 | BN18: =VLOOKUP($W18,$B$3:$I$23,COLUMN()-(COLUMN($BI$2)-1),FALSE)*G$33/SUM($C$33:$I$33)*VLOOKUP($W18,$B$3:$BI$23,(COLUMN($BI$2)-1),FALSE) -> 1.533861044 | BO18: =VLOOKUP($W18,$B$3:$I$23,COLUMN()-(COLUMN($BI$2)-1),FALSE)*H$33/SUM($C$33:$I$33)*VLOOKUP($W18,$B$3:$BI$23,(COLUMN($BI$2)-1),FALSE) -> 0.2999675522 | BP18: =VLOOKUP($W18,$B$3:$I$23,COLUMN()-(COLUMN($BI$2)-1),FALSE)*I$33/SUM($C$33:$I$33)*VLOOKUP($W18,$B$3:$BI$23,(COLUMN($BI$2)-1),FALSE) -> 0
A19: 4 | B19: Sweden | D19: ='Trade 2006'!F21 -> 5.557966435 | G19: ='Environment 2006'!K21 -> 7.802052469 | H19: ='Security 2006'!J22 -> 8.280558342 | J19: 7.213525749 | K19: 4 | M19: =SUM(IF(ROUND(J19,1)<ROUND($J$3:$J$23,1),1))+1 -> 4 | O19: Sweden | P19: =(SUM(IF($J19<$J$3:$J$25*(1-BF$3:BF$25),1))+1)*(1-BF19) ->  | Q19: =(SUM(IF($J19<$J$3:$J$25*(1-BG$3:BG$25),1))+1)*(1-BG19) ->  | R19: =(SUM(IF(ROUND($J19,1)<ROUND($J$3:$J$25,1)*(1-BF$3:BF$25),1))+1)*(1-BF19) ->  | S19: =(SUM(IF(ROUND($J19,1)<ROUND($J$3:$J$25,1)*(1-BG$3:BG$25),1))+1)*(1-BG19) ->  | T19: Sweden | U19: 17 | V19: 17 | W19: Mexico | X19: 3.365730093 | Y19: 0 | Z19: -17 | BC19: 125.1299164 | BD19: 126.6792612 | BF19: 0 | BG19: 0 | BI19: =ABS(SUM($C19:$I19*$C$33:$I$33)/SUM(IF($C19:$I19>0,$C19:$I19*$C$33:$I$33))) -> 1 | BJ19: =VLOOKUP($W19,$B$3:$I$23,COLUMN()-(COLUMN($BI$2)-1),FALSE)*C$33/SUM($C$33:$I$33)*VLOOKUP($W19,$B$3:$BI$23,(COLUMN($BI$2)-1),FALSE) -> 0 | BK19: =VLOOKUP($W19,$B$3:$I$23,COLUMN()-(COLUMN($BI$2)-1),FALSE)*D$33/SUM($C$33:$I$33)*VLOOKUP($W19,$B$3:$BI$23,(COLUMN($BI$2)-1),FALSE) -> 1.195680871 | BL19: =VLOOKUP($W19,$B$3:$I$23,COLUMN()-(COLUMN($BI$2)-1),FALSE)*E$33/SUM($C$33:$I$33)*VLOOKUP($W19,$B$3:$BI$23,(COLUMN($BI$2)-1),FALSE) -> 0 | BM19: =VLOOKUP($W19,$B$3:$I$23,COLUMN()-(COLUMN($BI$2)-1),FALSE)*F$33/SUM($C$33:$I$33)*VLOOKUP($W19,$B$3:$BI$23,(COLUMN($BI$2)-1),FALSE) -> 0 | BN19: =VLOOKUP($W19,$B$3:$I$23,COLUMN()-(COLUMN($BI$2)-1),FALSE)*G$33/SUM($C$33:$I$33)*VLOOKUP($W19,$B$3:$BI$23,(COLUMN($BI$2)-1),FALSE) -> 1.480148656 | BO19: =VLOOKUP($W19,$B$3:$I$23,COLUMN()-(COLUMN($BI$2)-1),FALSE)*H$33/SUM($C$33:$I$33)*VLOOKUP($W19,$B$3:$BI$23,(COLUMN($BI$2)-1),FALSE) -> 0.6899005659 | BP19: =VLOOKUP($W19,$B$3:$I$23,COLUMN()-(COLUMN($BI$2)-1),FALSE)*I$33/SUM($C$33:$I$33)*VLOOKUP($W19,$B$3:$BI$23,(COLUMN($BI$2)-1),FALSE) -> 0
A20: 11 | B20: Switzerland | D20: ='Trade 2006'!F22 -> 4.079013079 | G20: ='Environment 2006'!K22 -> 4.63006374 | H20: ='Security 2006'!J23 -> 6.484697111 | J20: 5.06459131 | K20: 11 | M20: =SUM(IF(ROUND(J20,1)<ROUND($J$3:$J$23,1),1))+1 -> 11 | O20: Switzerland | P20: =(SUM(IF($J20<$J$3:$J$25*(1-BF$3:BF$25),1))+1)*(1-BF20) ->  | Q20: =(SUM(IF($J20<$J$3:$J$25*(1-BG$3:BG$25),1))+1)*(1-BG20) ->  | R20: =(SUM(IF(ROUND($J20,1)<ROUND($J$3:$J$25,1)*(1-BF$3:BF$25),1))+1)*(1-BF20) ->  | S20: =(SUM(IF(ROUND($J20,1)<ROUND($J$3:$J$25,1)*(1-BG$3:BG$25),1))+1)*(1-BG20) ->  | T20: Switzerland | U20: 18 | V20: 18 | W20: Saudi Arabia | X20: 2.63420414 | Y20: 0 | Z20: -18 | BC20: 271.3447956 | BD20: 381.7662382 | BF20: 0 | BG20: 1 | BI20: =ABS(SUM($C20:$I20*$C$33:$I$33)/SUM(IF($C20:$I20>0,$C20:$I20*$C$33:$I$33))) -> 1 | BJ20: =VLOOKUP($W20,$B$3:$I$23,COLUMN()-(COLUMN($BI$2)-1),FALSE)*C$33/SUM($C$33:$I$33)*VLOOKUP($W20,$B$3:$BI$23,(COLUMN($BI$2)-1),FALSE) -> 0 | BK20: =VLOOKUP($W20,$B$3:$I$23,COLUMN()-(COLUMN($BI$2)-1),FALSE)*D$33/SUM($C$33:$I$33)*VLOOKUP($W20,$B$3:$BI$23,(COLUMN($BI$2)-1),FALSE) -> 2.020764221 | BL20: =VLOOKUP($W20,$B$3:$I$23,COLUMN()-(COLUMN($BI$2)-1),FALSE)*E$33/SUM($C$33:$I$33)*VLOOKUP($W20,$B$3:$BI$23,(COLUMN($BI$2)-1),FALSE) -> 0 | BM20: =VLOOKUP($W20,$B$3:$I$23,COLUMN()-(COLUMN($BI$2)-1),FALSE)*F$33/SUM($C$33:$I$33)*VLOOKUP($W20,$B$3:$BI$23,(COLUMN($BI$2)-1),FALSE) -> 0 | BN20: =VLOOKUP($W20,$B$3:$I$23,COLUMN()-(COLUMN($BI$2)-1),FALSE)*G$33/SUM($C$33:$I$33)*VLOOKUP($W20,$B$3:$BI$23,(COLUMN($BI$2)-1),FALSE) -> 0.3191032975 | BO20: =VLOOKUP($W20,$B$3:$I$23,COLUMN()-(COLUMN($BI$2)-1),FALSE)*H$33/SUM($C$33:$I$33)*VLOOKUP($W20,$B$3:$BI$23,(COLUMN($BI$2)-1),FALSE) -> 0.2943366217 | BP20: =VLOOKUP($W20,$B$3:$I$23,COLUMN()-(COLUMN($BI$2)-1),FALSE)*I$33/SUM($C$33:$I$33)*VLOOKUP($W20,$B$3:$BI$23,(COLUMN($BI$2)-1),FALSE) -> 0
